Workbook

Sheet 聯絡我
B28: gisin.com@gmail.com

Sheet 試算
C1: 112 | D1: 年度 | E1: 輸入投保薪資 | F1: 投保天數 | G1: 30 | H1: <<輸入加保天數 | J1: 眷屬數 | K1: 0 | L1: <<輸入眷屬數
C2: 成本項目 | D2: 費率 | E2: 應投保金額 | F2: 公司應負擔計算公式 | I2: 雇主負擔 | K2: 員工負擔 | M2: 工會
C3: 勞保(不含就保) | D3: =VLOOKUP($C$1,勞就保費率,2,0) -> 11.00% | E3: 45800 | F3: =$E$3 & " ×"&$D$3 & "×70%" -> 45800 ×0.11×70% | I3: =J3+J4 -> 3848 | J3: =ROUND(E3*D3*$G$1/30*0.7,0) -> 3527 | K3: =ROUND($E$3*$D$3*$G$1/30*0.2,0) -> 1008 | L3: =$K$3+$K$4 -> 1100
C4: 就保 | D4: =VLOOKUP($C$1,勞就保費率,3,0) -> 1.00% | E4: =$E$3 -> 45800 | F4: =E4 & " ×" & D4 & "×70%" -> 45800 ×0.01×70% | J4: =ROUND(E4*D4*$G$1/30*0.7,0) -> 321 | K4: =ROUND($E$4*$D$4*$G$1/30*0.2,0) -> 92
C5: 職災(查勞保繳款單) | D5: 0.28% | E5: 50600 | F5: =$E$5& "×" &$D$5 -> 50600×0.0028 | J5: =ROUND(E5*D5,0) -> 142 | L5: 負責人
C6: 健保 | D6: =VLOOKUP($C$1,健保_費率,2,0) -> 5.17% | E6: 50600 | F6: =$E$6& "×" &$D$6 & "×60%×" &$E$9 -> 50600×0.0517×60%×1.57 | J6: =ROUND(E6*D6*$E$9*0.6,0) -> 2464 | K6: =ROUND($E$6*$D$6*0.3,0)*(1+IF($K$1>3,3,$K$1)) -> 785 | L6: =+ROUND($E$6*$D$6,0) -> 2616 | M6: =+ROUND(E6*$D$6*0.6,0) -> 1570 | N6: (負責人未計算眷口數)
C7: 退休金 | D7: 6.00% | E7: 50600 | F7: =$E$7& "×6%" -> 50600×6% | J7: =ROUND($E$7*$D$7,0) -> 3036
I8: 小計： | J8: =SUM($J$3:$J$7) -> 9490 | K8: =SUM($K$3:$K$7) -> 1885
B9: 註: | C9: 1.健保_本人及平均眷屬人數 | E9: =VLOOKUP($C$1,健保_費率,4,0) -> 1.57
C10: 2、退休金提繳率6%計算
C12: 3、勞就保費率： | D12: 103 | E12: 104 | F12: 106 | G12: 108 | H12: 110 | I12: 112 | J12: 114 | K12: 116年
D13: 9.5% | E13: 10.0% | F13: 10.5% | G13: 11.0% | H13: 11.5% | I13: 12.0% | J13: 12.5% | K13: 13.0%
C14: 如為雇主或外籍勞工，就業保險欄位輸入0，如已領老年給付，勞保與就保欄位輸入0
C15: 4、勞工職災保險費率應依勞保繳款單上職災費率輸入
C16: 5. 自110年1月1日起，補充保險費率調整為2.11%
C17: 6.健保最高投保金額提高至219500元(111.7.1起)
C18: 勞務顧問 李金國 編製 0932342621 line ID : @gisin
C19: 網址: | D19: https://www.gisin.com.tw/
C22: 勞保下載網址 | D22: https://www.bli.gov.tw/0102606.html
C23: 健保下載網址 | D23: https://www.nhi.gov.tw/Content_List.aspx?n=5581FA007B6177B7&topn=5FE8C9FEAE863B46&upn=BD91948631E3736A
C24: 勞退下載網址 | D24: https://www.bli.gov.tw/0012959.html
C25: 勞保、就保個人保險費試算 | D25: https://www.bli.gov.tw/0014162.html

Sheet 非全月加保保險費計算說明
A1: 非全月加保或月中變更加保身分保險費計算說明
A3: 一、如何計算「非全月加、退保之被保險人保費」(不論大小月，均以30日計算)
A4: (一)當月加保者，自加保日起計收至當月底止
A5: 例1：1月15日加保，保險費計收16日
A6: 1月30日加保或1月31日加保，保險費均計收1日
A7: 例2：2月8日加保，保險費計收23日
A8: 3月28日加保，保險費計收3日
A9: (二)當月退保者，自當月1日起計收至退保當日或當月底止
A10: 例1：1月15日退保，保險費計收15日
A11: 1月30日退保或1月31日退保，保險費計收30日
A12: 例2：2月8日退保，保險費計收8日
A13: 2月28日退保，保險費計收28日
A14: (三)同月份加、退保者，自加保當日起計收至退保當日或當月底止
A15: 例1：1月5日加保，1月20日退保，保險費計收16日
A16: 1月20日加保，1月31日退保，保險費計收11日
A17: 例2：2月3日加保，2月18日退保，保險費計收16日
A18: 2月18日加保，2月28日退保，保險費計收11日
A19: 例3：1月30日加保，1月31日退保，保險費計收1日
A20: (四)同月份異動頻繁
A21: 異動頻繁者，先依每一組加、退保資料分個人及單位分項計算應計之勞保普通事故保費、勞保職災事故保費、就保保費（均採小數點第5位無條件捨去），再合計各分項保費應繳金額（以元為單位，角以下四捨五入取整數。小於1元者均以1元計算）後。最後再分別合計個人及單位應繳保費金額。
A23: 例1：有一定雇主員工，每一加、退保期間之投保薪資相同，加保共6天
B24: 日期 | C24: 異動 | D24: 投保薪資 | E24: 個人保費 | G24: 單位保費
E25: 勞保普通事故 | F25: 就保 | G25: 勞保普通事故 | H25: 勞保職災事故 | I25: 就保
E26: 10.5% | F26: 1.0% | G26: 10.5% | H26: 0.10% | I26: 1.0%
A27: 王二 | B27: 1100306 | C27: 加保 | D27: 11100
B28: 1100306 | C28: 退保 | D28: =D27 -> 11100 | E28: =TRUNC(D27*E26*20%/30*(B28-B27+1),4) -> 7.7700 | F28: =TRUNC(D27*F26*20%/30*(B28-B27+1),4) -> 0.7400 | G28: =TRUNC(D27*G26*70%/30*(B28-B27+1),4) -> 27.1950 | H28: =TRUNC(D28*H26/30*(B28-B27+1),4) -> 0.3700 | I28: =TRUNC(D27*I26*70%/30*(B28-B27+1),4) -> 2.5900
B29: 1100312 | C29: 加保 | D29: 11100
B30: 1100313 | C30: 退保 | D30: =D29 -> 11100 | E30: =TRUNC(D29*E26*20%/30*(B30-B29+1),4) -> 15.5400 | F30: =TRUNC(D29*F26*20%/30*(B30-B29+1),4) -> 1.4800 | G30: =TRUNC(D29*G26*70%/30*(B30-B29+1),4) -> 54.3900 | H30: =TRUNC(D30*H26/30*(B30-B29+1),4) -> 0.7400 | I30: =TRUNC(D29*I26*70%/30*(B30-B29+1),4) -> 5.1800
B31: 1100319 | C31: 加保 | D31: 11100
B32: 1100320 | C32: 退保 | D32: =D31 -> 11100 | E32: =TRUNC(D31*E26*20%/30*(B32-B31+1),4) -> 15.5400 | F32: =TRUNC(D31*F26*20%/30*(B32-B31+1),4) -> 1.4800 | G32: =TRUNC(D31*G26*70%/30*(B32-B31+1),4) -> 54.3900 | H32: =TRUNC(D32*H26/30*(B32-B31+1),4) -> 0.7400 | I32: =TRUNC(D31*I26*70%/30*(B32-B31+1),4) -> 5.1800
B33: 1100326 | C33: 加保 | D33: 11100
B34: 1100326 | C34: 退保 | D34: =D33 -> 11100 | E34: =TRUNC(D33*E26*20%/30*(B34-B33+1),4) -> 7.7700 | F34: =TRUNC(D33*F26*20%/30*(B34-B33+1),4) -> 0.7400 | G34: =TRUNC(D33*G26*70%/30*(B34-B33+1),4) -> 27.1950 | H34: =TRUNC(D34*H26/30*(B34-B33+1),4) -> 0.3700 | I34: =TRUNC(D33*I26*70%/30*(B34-B33+1),4) -> 2.5900
A35: 合計 | B35: (取至小數第4位) | E35: =SUM(E28:E34) -> 46.6200 | F35: =SUM(F28:F34) -> 4.4400 | G35: =SUM(G28:G34) -> 163.1700 | H35: =SUM(H28:H34) -> 2.2200 | I35: =SUM(I28:I34) -> 15.5400
A36: 應繳 | B36: （以元為單位，角以下四捨五入取整數） | E36: =ROUND(E35,0) -> 47 | F36: =ROUND(F35,0) -> 4 | G36: =ROUND(G35,0) -> 163 | H36: =ROUND(H35,0) -> 2 | I36: =ROUND(I35,0) -> 16
E37: 個人應繳 | F37: =SUM(E36:F36) -> 合計51元 | G37: 單位應繳 | H37: =SUM(G36:I36) -> 合計181元
A39: 註：單位之職業災害保險費率，係依職業災害保險適用行業別及費率表辦理以下保險費計算案例之職業災害保險費率為舉例說明。
A40: 例2：有一定雇主員工，每一加、退保期間之投保薪資相同，加保共7天
B41: 日期 | C41: 異動 | D41: 投保薪資 | E41: 個人保費 | G41: 單位保費
E42: 勞保普通事故 | F42: 就保 | G42: 勞保普通事故 | H42: 勞保職災事故 | I42: 就保
E43: 10.5% | F43: 1.0% | G43: 10.5% | H43: 0.10% | I43: 1.0%
A44: 王三君 | B44: 1100301 | C44: 加保 | D44: 38200
B45: 1100302 | C45: 退保 | D45: =D44 -> 38200 | E45: =TRUNC(D44*E43*20%/30*(B45-B44+1),4) -> 53.4800 | F45: =TRUNC(D44*F43*20%/30*(B45-B44+1),4) -> 5.0933 | G45: =TRUNC(D44*G43*70%/30*(B45-B44+1),4) -> 187.1800 | H45: =TRUNC(D45*H43/30*(B45-B44+1),4) -> 2.5466 | I45: =TRUNC(D44*I43*70%/30*(B45-B44+1),4) -> 17.8266
B46: 1100312 | C46: 加保 | D46: 38200
B47: 1100313 | C47: 退保 | D47: =D46 -> 38200 | E47: =TRUNC(D46*E43*20%/30*(B47-B46+1),4) -> 53.4800 | F47: =TRUNC(D46*F43*20%/30*(B47-B46+1),4) -> 5.0933 | G47: =TRUNC(D46*G43*70%/30*(B47-B46+1),4) -> 187.1800 | H47: =TRUNC(D47*H43/30*(B47-B46+1),4) -> 2.5466 | I47: =TRUNC(D46*I43*70%/30*(B47-B46+1),4) -> 17.8266
B48: 1100319 | C48: 加保 | D48: 38200
B49: 1100320 | C49: 退保 | D49: =D48 -> 38200 | E49: =TRUNC(D48*E43*20%/30*(B49-B48+1),4) -> 53.4800 | F49: =TRUNC(D48*F43*20%/30*(B49-B48+1),4) -> 5.0933 | G49: =TRUNC(D48*G43*70%/30*(B49-B48+1),4) -> 187.1800 | H49: =TRUNC(D49*H43/30*(B49-B48+1),4) -> 2.5466 | I49: =TRUNC(D48*I43*70%/30*(B49-B48+1),4) -> 17.8266
B50: 1100326 | C50: 加保 | D50: 38200
B51: 1100326 | C51: 退保 | D51: =D50 -> 38200 | E51: =TRUNC(D50*E43*20%/30*(B51-B50+1),4) -> 26.7400 | F51: =TRUNC(D50*F43*20%/30*(B51-B50+1),4) -> 2.5466 | G51: =TRUNC(D50*G43*70%/30*(B51-B50+1),4) -> 93.5900 | H51: =TRUNC(D51*H43/30*(B51-B50+1),4) -> 1.2733 | I51: =TRUNC(D50*I43*70%/30*(B51-B50+1),4) -> 8.9133
A52: 合計 | B52: (取至小數第4位) | E52: =SUM(E45:E51) -> 187.1800 | F52: =SUM(F45:F51) -> 17.8265 | G52: =SUM(G45:G51) -> 655.1300 | H52: =SUM(H45:H51) -> 8.9131 | I52: =SUM(I45:I51) -> 62.3931
A53: 應繳 | B53: （以元為單位，角以下四捨五入取整數） | E53: =ROUND(E52,0) -> 187 | F53: =ROUND(F52,0) -> 18 | G53: =ROUND(G52,0) -> 655 | H53: =ROUND(H52,0) -> 9 | I53: =ROUND(I52,0) -> 62
E54: 個人應繳 | F54: =SUM(E53:F53) -> 合計205元 | G54: 單位應繳 | H54: =SUM(G53:I53) -> 合計726元
A56: 例3：有一定雇主員工，其加、退保期間之投保薪資不同，加保共5天
B57: 日期 | C57: 異動 | D57: 投保薪資 | E57: 個人保費 | G57: 單位保費
E58: 勞保普通事故 | F58: 就保 | G58: 勞保普通事故 | H58: 勞保職災事故 | I58: 就保
E59: 10.5% | F59: 1.0% | G59: 10.5% | H59: 0.10% | I59: 1.0%
A60: 周五郎 | B60: 1100306 | C60: 加保 | D60: 11100
B61: 1100306 | C61: 退保 | D61: =D60 -> 11100 | E61: =TRUNC(D61*E59*20%/30*(B61-B60+1),4) -> 7.7700 | F61: =TRUNC(D61*F59*20%/30*(B61-B60+1),4) -> 0.7400 | G61: =TRUNC(D61*G59*70%/30*(B61-B60+1),4) -> 27.1950 | H61: =TRUNC(D61*H59/30*(B61-B60+1),4) -> 0.3700 | I61: =TRUNC(D61*I59*70%/30*(B61-B60+1),4) -> 2.5900
B62: 1100312 | C62: 加保 | D62: 11100
B63: 1100312 | C63: 退保 | D63: =D62 -> 11100 | E63: =TRUNC(D63*E59*20%/30*(B63-B62+1),4) -> 7.7700 | F63: =TRUNC(D63*F59*20%/30*(B63-B62+1),4) -> 0.7400 | G63: =TRUNC(D63*G59*70%/30*(B63-B62+1),4) -> 27.1950 | H63: =TRUNC(D63*H59/30*(B63-B62+1),4) -> 0.3700 | I63: =TRUNC(D63*I59*70%/30*(B63-B62+1),4) -> 2.5900
B64: 1100319 | C64: 加保 | D64: 38200
B65: 1100320 | C65: 退保 | D65: =D64 -> 38200 | E65: =TRUNC(D65*E59*20%/30*(B65-B64+1),4) -> 53.4800 | F65: =TRUNC(D65*F59*20%/30*(B65-B64+1),4) -> 5.0933 | G65: =TRUNC(D65*G59*70%/30*(B65-B64+1),4) -> 187.1800 | H65: =TRUNC(D65*H59/30*(B65-B64+1),4) -> 2.5466 | I65: =TRUNC(D65*I59*70%/30*(B65-B64+1),4) -> 17.8266
B66: 1100326 | C66: 加保 | D66: 38200
B67: 1100326 | C67: 退保 | D67: =D66 -> 38200 | E67: =TRUNC(D67*E59*20%/30*(B67-B66+1),4) -> 26.7400 | F67: =TRUNC(D67*F59*20%/30*(B67-B66+1),4) -> 2.5466 | G67: =TRUNC(D67*G59*70%/30*(B67-B66+1),4) -> 93.5900 | H67: =TRUNC(D67*H59/30*(B67-B66+1),4) -> 1.2733 | I67: =TRUNC(D67*I59*70%/30*(B67-B66+1),4) -> 8.9133
A68: 合計 | B68: (取至小數第4位) | E68: =SUM(E61:E67) -> 95.7600 | F68: =SUM(F61:F67) -> 9.1199 | G68: =SUM(G61:G67) -> 335.1600 | H68: =SUM(H61:H67) -> 4.5599 | I68: =SUM(I61:I67) -> 31.9199
A69: 應繳 | B69: （以元為單位，角以下四捨五入取整數） | E69: =ROUND(E68,0) -> 96 | F69: =ROUND(F68,0) -> 9 | G69: =ROUND(G68,0) -> 335 | H69: =ROUND(H68,0) -> 5 | I69: =ROUND(I68,0) -> 32
E70: 個人應繳 | F70: =SUM(E69:F69) -> 合計105元 | G70: 單位應繳 | H70: =SUM(G69:I69) -> 合計372元
A72: 例4：有一定雇主員工，當月加、退保2次，但投保薪資不同，加保共30天
B73: 日期 | C73: 異動 | D73: 投保薪資 | E73: 個人保費 | G73: 單位保費
E74: 勞保普通事故 | F74: 就保 | G74: 勞保普通事故 | H74: 勞保職災事故 | I74: 就保
E75: 10.5% | F75: 1.0% | G75: 10.5% | H75: 0.10% | I75: 1.0%
A76: 簡美美 | B76: 1100301 | C76: 加保 | D76: 11100
B77: 1100304 | C77: 退保 | D77: =D76 -> 11100 | E77: =TRUNC(D77*E75*20%/30*(B77-B76+1),4) -> 31.0800 | F77: =TRUNC(D77*F75*20%/30*(B77-B76+1),4) -> 2.9600 | G77: =TRUNC(D77*G75*70%/30*(B77-B76+1),4) -> 108.7800 | H77: =TRUNC(D77*H75/30*(B77-B76+1),4) -> 1.4800 | I77: =TRUNC(D77*I75*70%/30*(B77-B76+1),4) -> 10.3600
B78: 1100305 | C78: 加保 | D78: 33300
B79: 1100330 | C79: 退保 | D79: =D78 -> 33300 | E79: =TRUNC(D79*E75*20%/30*(B79-B78+1),4) -> 606.0600 | F79: =TRUNC(D79*F75*20%/30*(B79-B78+1),4) -> 57.7200 | G79: =TRUNC(D79*G75*70%/30*(B79-B78+1),4) -> 2121.2100 | H79: =TRUNC(D79*H75/30*(B79-B78+1),4) -> 28.8600 | I79: =TRUNC(D79*I75*70%/30*(B79-B78+1),4) -> 202.0200
A80: 合計 | B80: (取至小數第4位) | E80: =SUM(E77:E79) -> 637.1400 | F80: =SUM(F77:F79) -> 60.6800 | G80: =SUM(G77:G79) -> 2,229.9900 | H80: =SUM(H77:H79) -> 30.3400 | I80: =SUM(I77:I79) -> 212.3800
A81: 應繳 | B81: （以元為單位，角以下四捨五入取整數） | E81: =ROUND(E80,0) -> 637 | F81: =ROUND(F80,0) -> 61 | G81: =ROUND(G80,0) -> 2230 | H81: =ROUND(H80,0) -> 30 | I81: =ROUND(I80,0) -> 212
E82: 個人應繳 | F82: =SUM(E81:F81) -> 合計698元 | G82: 單位應繳 | H82: =SUM(G81:I81) -> 合計2472元
A83: 註：當月加、退保2次（含）以上，且投保薪資不同者，如使用網頁「個人保險費試算」試算保費，因該系統無法同時以2種投保薪資計算，須分別試算，但因四捨五入時點關係，合計後應繳金額，應依上述計算方式所得金額為準。
A85: (五)、已領老年給付僅參加職業災害保險者（有一定雇主單位）
A86: 例1：被保險人僅參加職業災害保險共4天
B87: 日期 | C87: 異動 | D87: 投保薪資 | E87: 個人保費 | G87: 單位保費
E88: 勞保普通事故 | F88: 就保 | G88: 勞保普通事故 | H88: 勞保職災事故 | I88: 就保
E89: 10.5% | F89: 1.0% | G89: 10.5% | H89: 0.10% | I89: 1.0%
A90: 李四 | B90: 1100306 | C90: 加保 | D90: 11100
B91: 1100306 | C91: 退保 | D91: =D90 -> 11100 | H91: =ROUND(D91*H89/30*(B91-B90+1),4) -> 0.3700
B92: 1100312 | C92: 加保 | D92: 11100
B93: 1100312 | C93: 退保 | D93: =D92 -> 11100 | H93: =ROUND(D93*H89/30*(B93-B92+1),4) -> 0.3700
B94: 1100319 | C94: 加保 | D94: 11100
B95: 1100319 | C95: 退保 | D95: =D94 -> 11100 | H95: =ROUND(D95*H89/30*(B95-B94+1),4) -> 0.3700
B96: 1100326 | C96: 加保 | D96: 11100
B97: 1100326 | C97: 退保 | D97: =D96 -> 11100 | H97: =ROUND(D97*H89/30*(B97-B96+1),4) -> 0.3700
A98: 合計 | B98: (取至小數第4位) | H98: =SUM(H90:H97) -> 1.4800
A99: 應繳 | B99: （以元為單位，角以下四捨五入取整數） | H99: =ROUND(H98,0) -> 1
G100: 單位應繳 | H100: =SUM(G99:I99) -> 合計1元
A102: 例2：被保險人僅參加職災保險共1天
B103: 日期 | C103: 異動 | D103: 投保薪資 | E103: 個人保費 | G103: 單位保費
E104: 勞保普通事故 | F104: 就保 | G104: 勞保普通事故 | H104: 勞保職災事故 | I104: 就保
E105: 10.5% | F105: 1.0% | G105: 10.5% | H105: 0.10% | I105: 1.0%
A106: 張三 | B106: 1100306 | C106: 加保 | D106: 11100
B107: 1100306 | C107: 退保 | D107: =D106 -> 11100 | H107: =ROUND(D107*H105/30*(B107-B106+1),4) -> 0.3700
A108: 合計 | B108: (取至小數第4位) | H108: =SUM(H106:H107) -> 0.3700
A109: 應繳 | B109: （職災保費總計小於1元以1元計收） | H109: =ROUNDUP(H108,0) -> 1
G110: 單位應繳 | H110: =SUM(G109:I109) -> 合計1元
A112: 二、如何計算「月中變更加保身分之被保險人保費」
A114: （一）適用就業保險變更為不適用就業保險（如年滿65歲、有一定雇主員工變更為負責人及本國籍變更為外國籍等)
A115: 例1：有一定雇主員工，自110/5/15滿 65歲，或有一定雇主員工，自110/5/15變更為負責人，或本國籍員工，自110/5/15變更為外國籍，自即日起不是就業保險對象，投保薪資30300元。（假設該單位之職業災害保險費率為0.10%）
C117: 計算過程 | G117: 以元為單位，角以下四捨五入
B118: 個人 | C118: 勞保保費=30300 *10.5% * 20 % = | F118: =30300 *10.5% * 20 % -> 636.3000 | G118: =ROUND(F118,0) -> =636元
C119: 就保保費=30300 * 1% * 20% ÷30*14天= | F119: =30300*1%*20% /30*14 -> 28.2800 | G119: =ROUND(F119,0) -> ≒28元
G120: =SUM(G118:G119) -> 合計664元
B121: 單位 | C121: 勞保保費=30300 *10.5% * 70 % = | F121: =30300*10.5%* 70 % -> 2227.0500 | G121: =ROUND(F121,0) -> =2227元
C122: 就保保費=30300*1%*70% ÷30*14天 | F122: =30300*1%*70% /30*14 -> 98.9800 | G122: =ROUND(F122,0) -> ≒99元
C123: 職災保費=30300 *0.10%= | F123: =30300 *0.1% -> 30.3000 | G123: =ROUND(F123,0) -> ≒30元
G124: =SUM(G121:G123) -> 合計2356元
A126: 註：被保險人月中變更為不適用就業保險身分，如使用網頁「個人保險費試算」試算保險費，請分別點選「有一定雇主員工不參加就業保險」試算30天勞保保費，另點選「僅參加就業保險人員」試算14天就保保費。
A127: （二）不適用就業保險變更為適用就業保險（如年滿15歲、負責人變更為有一定雇主員工及外國籍變更為本國籍等)
A128: 例2：有一定雇主員工自110/4/20滿15歲，或負責人自110/4/20變更為有一定雇主員工，或外國籍員工，自110/4/20變更為本國籍，自即日起是就業保險對象，投保薪資30300元。（假設該單位之職業災害保險費率為0.10%）
C130: 計算過程 | G130: 以元為單位，角以下四捨五入
B131: 個人 | C131: 勞保保費=30300*10.5% *20 % = | F131: =30300 *10.5% * 20 % -> 636.3000 | G131: =ROUND(F131,0) -> =636元
C132: 就保保費=30300*1%*20%÷30*11天 = | F132: =30300*1%*20% /30*11 -> 22.2200 | G132: =ROUND(F132,0) -> ≒22元
G133: =SUM(G131:G132) -> 合計658元
B134: 單位 | C134: 勞保保費=30300*10.5%*70%= | F134: =30300*10.5%*70% -> 2227.0500 | G134: =ROUND(F134,0) -> =2227元
C135: 就保保費=30300*1%*70% ÷ 30*11天 = | F135: =30300*1%*70% /30*11 -> 77.7700 | G135: =ROUND(F135,0) -> ≒78元
C136: 職災保費=30300*0.10%= | F136: =30300*0.1% -> 30.3000 | G136: =ROUND(F136,0) -> ≒30元
G137: =SUM(G134:G136) -> 合計2335元
A139: 註：被保險人月中變更為適用就業保險身分，如使用網頁「個人保險費試算」試算保險費，請分別點選「有一定雇主員工不參加就業保險」試算30天勞保保費，另點選「僅參加就業保險人員」試算11天就保保費。
D140: 費
A141: 三、如何計算依規定可追溯退保者之應退還之保費
A142: 以「原計」－「應計」計算，非直接計算追溯退保之天數
A143: 例：有一定雇主員工，投保薪資 28,800元，110/3/30退保，追溯至110/3/28退保（假設該單位之職業災害保險費率為0.10%）。計算前開追溯3/29至3/30之2天保費。
C145: 原計─計算過程 | G145: 以元為單位，角以下四捨五入
B146: 個人 | C146: 勞保保費=28800*10.5%*20%＝ | F146: =28800*10.5%*20% -> 604.8000 | G146: =ROUND(F146,0) -> =605元
C147: 就保保費=28800*1%*20%= | F147: =28800*1%*20% -> 57.6000 | G147: =ROUND(F147,0) -> ≒58元
G148: =SUM(G146:G147) -> 合計663元
B149: 單位 | C149: 勞保保費=28800* 10.5% *70%= | F149: =28800* 10.5% *70% -> 2116.8000 | G149: =ROUND(F149,0) -> =2117元
C150: 就保保費=28800* 1% *70%= | F150: =28800* 1% *70% -> 201.6000 | G150: =ROUND(F150,0) -> ≒202元
C151: 職災保費=28800 *0.10% | F151: =28800*0.1% -> 28.8000 | G151: =ROUND(F151,0) -> ≒29元
G152: =SUM(G149:G151) -> 合計2348元
C154: 應計─計算過程 | G154: 以元為單位，角以下四捨五入
B155: 個人 | C155: 勞保保費=28800*10.5%*20% ÷ 30*28天 = | F155: =28800 *10.5% * 20%/30*28 -> 564.4800 | G155: =ROUND(F155,0) -> =564元
C156: 就保保費=28800*1%*20%÷30*28天 = | F156: =28800 *1%*20%/30 *28 -> 53.7600 | G156: =ROUND(F156,0) -> ≒54元
G157: =SUM(G155:G156) -> 合計618元
B158: 單位 | C158: 勞保保費=28800 *10.5%*70%÷30*28天= | F158: =28800*10.5%*70%/30*28 -> 1975.6800 | G158: =ROUND(F158,0) -> ≒1976元
C159: 就保保費=28800 *1%*70% ÷ 30*28天 = | F159: =28800 *1%*70% / 30*28 -> 188.1600 | G159: =ROUND(F159,0) -> ≒188元
C160: 職災保費=28800 * 0.10% ÷ 30*28天 = | F160: =28800*0.1%/30*28 -> 26.8800 | G160: =ROUND(F160,0) -> ≒27元
G161: =SUM(G158:G160) -> 合計2191元
A163: 溢計 | B163: 個人 | C163: =G148 -> 原計663元 | D163: =G157 -> -應計618元 | E163: =C163-D163 -> =45元
A164: 溢計 | B164: 單位 | C164: =G152 -> 原計2348元 | D164: =G161 -> -應計2191元 | E164: =C164-D164 -> =157元

Sheet 監察人
B2: 公司監察人可否提撥退休金疑義。
B3: 勞動部103年10月16日勞動福3字第1030136185號
B4: (1) 依據勞工退休金條例第7條第2項規定，實際從事勞動之雇主﹑自營作業者﹑「受委任工作者」及不適用勞動基準法之勞工，得自願依該條例規定提繳及請領退休金。同條例第14條第2項規定，雇主得為同條例第7條第2﹑3款規定人員（即「受委任工作者」及不適用勞動基準法之勞工），於每月工資6%範圍內提繳退休金。
B5: (2) 至於公司「監察人」，依公司法第216條第2項規定，與公司間之關係，從民法關於委任之規定。同法第222條規定，監察人不得兼任公司董事﹑經理人或其他職員。經查監察人與公司間雖為委任關係，惟其性質與實際從事勞動者仍有差異，非可歸類為勞工退休金條例第7條第2項第3款之「受委任工作者」，爰不適用前開得依法自願提繳退休金之相關規定。
B7: 其他職員係指監察權行使所及之人
B8: 按公司法第222條規定：「監察人不得兼任公司董事、經理人或其他職員」。旨在期望監察人能以超然立場行使職權，而不得兼任董事、經理人或其他職員等職務，以杜流弊。本條所稱之其他職員，係指除公司董事、經理人外，其他為公司服勞務之人，而該項勞務須為監察權行使所及者始屬之（本部78年4月19日商字第011339號函參照），本案公司之「總務」或「顧問」人員可否由股東會選任為監察人，請依上開說明辦理。
B9: （經濟部93年7月20日商字第09302111940號 ）

Sheet 負責人投保規定
B2: 勞保負責人投保薪資應如何申報？
B3: 負責人投保薪資應以投保薪資分級表最高一級申報(目前為45,800元)，所得未達最高一級者，應檢附最近年度薪資所得扣繳憑單，及最近3個月薪資印領清冊(分列各項獎金、津貼等明細)或最近年度國稅局核發之營利事業所得稅核定通知書等影本供稽，若成立未滿6個月者得出具薪資切結書，但負責人投保薪資不得低於所屬員工申報之最高投保薪資適用之等級。
B4: https://www.bli.gov.tw/0006921.html 最後更新日期：2020-03-09
B5: 健保負責人投保金額應如何申報？
B6: 1.僱用被保險人數5人以上之事業單位負責人或會計師、律師、建築師、醫師、牙醫師、中醫師自行執業者 除自行舉證申報其投保金額者外，應按投保金額分級表最高一級申報。自行舉證申報之投保金額， 最低不得低於勞工保險投保薪資分級表最高一級(105年5月1日起為45,800元)及其所屬員工申報之 最高投保金額。 2.僱用被保險人數未滿5人之事業單位負責人、前項以外之專門職業及技術人員自行執業者或 屬於第一類被保險人之自營業主，除自行舉證申報其投保金額者外，應按投保金額分級表 最高一級申報。自行舉證申報之投保金額，最低不得低於健保法第10條第1項第1款第2目 被保險人之平均投保金額(目前為34,800元)及其所屬員工申報之最高投保金額。 但未僱用有酬人員幫同工作之本款專門職業及技術人員自行執業者， 其自行舉證申報之投保金額，最低以投保金額分級表第6級(110年1月1日起為30,300元)為限。

Sheet 健保保費計收原則
B2: 保費計收原則
B3: 依全民健康保險法(下稱健保法)第30條第2項規定：「被保險人投保當月應繳納全月保險費，退保當月免繳納保險費。」之基本精神，訂定全民健康保險保險費計收作業要點，以及健保法第18條第2項規定:「前項眷屬之保險費，由被保險人繳納；超過三口者，以三口計」等相關計費原則說明如下：
B4: 一、保險對象同月僅一單位有投保(轉入)紀錄，無退保(轉出)紀錄，以該單位計收被保險人全月保險費。
B5: 二、保險對象全月在保，當月最末日轉出，由健保署核定為次月1日生效，以該單位計收被保險人全月保險費。
B6: 三、保險對象同月僅一單位非於當月最末日有轉出紀錄，不以該單位計收被保險人全月保險費。保險對象轉出後，應改以其他適法身分投保，並請注意投(退)保日期之銜接，以該月最末日所屬之投保單位計收全月保險費。
B7: 四、保險對象同一月份中有多次投保、轉出紀錄者，以當月最末日在保之投保單位計收保險對象全月保險費。惟當月辦理退保者(死亡、除籍、失蹤滿6個月等)，當月不計收保險費。
B8: 五、超過三口眷屬依附於同一被保險人時，以三口眷屬計算全月保險費。

Sheet 係數設定
A1: 1 | B1: 2 | C1: 3 | D1: 4 | E1: 5 | F1: 6 | G1: 7 | H1: 8 | I1: 9 | J1: 10 | K1: 11 | L1: 1 | M1: 2 | N1: 3 | O1: 4
A3: 修正日期 | B3: 項目 | C3: 金額或內容 | D3: 列數 | E3: 社保分級 | G3: 年度 | H3: 一般費率 | I3: 補充保費 | J3: 眷口數 | L3: 年度 | M3: 勞保費率 | N3: 就保費率 | O3: 小計
D4: 4 | E4: 1500 | G4: 101 | H4: 5.17% | I4: 0.00% | J4: 1.7 | L4: 98 | M4: 6.5% | N4: 1.0% | O4: =SUM(M4:N4) -> 7.5%
D5: 5 | E5: 3000 | G5: 102 | H5: 4.91% | I5: 2.00% | J5: 1.7 | L5: 99 | M5: 6.5% | N5: 1.0% | O5: 7.5%
D6: 6 | E6: 4500 | G6: 103 | H6: 4.91% | I6: 2.00% | J6: 1.7 | L6: 100 | M6: =M5+0.5% -> 7.0% | N6: 1.0% | O6: 8.0%
D7: 7 | E7: 6000 | G7: 104 | H7: 4.91% | I7: 2.00% | J7: 1.62 | L7: 101 | M7: =M6+0.5% -> 7.5% | N7: 1.0% | O7: 8.5%
D8: 8 | E8: 7500 | G8: 105 | H8: 4.69% | I8: 1.91% | J8: 1.61 | L8: 102 | M8: =M7+0.5% -> 8.0% | N8: 1.0% | O8: 9.0%
D9: 9 | E9: 8700 | G9: 106 | H9: 4.69% | I9: 1.91% | J9: 1.61 | L9: 103 | M9: =M8+0.5% -> 8.5% | N9: 1.0% | O9: 9.5%
D10: 10 | E10: 9900 | G10: 107 | H10: 4.69% | I10: 1.91% | J10: 1.61 | L10: 104 | M10: =M9+0.5% -> 9.0% | N10: 1.0% | O10: 10.0%
D11: 11 | E11: 11100 | G11: 108 | H11: 4.69% | I11: 1.91% | J11: 1.61 | L11: 105 | M11: =M10 -> 9.0% | N11: 1.0% | O11: 10.0%
D12: 12 | E12: 12540 | G12: 109 | H12: 4.69% | I12: 1.91% | J12: 1.58 | L12: 106 | M12: =M11+0.5% -> 9.5% | N12: 1.0% | O12: =SUM(M12:N12) -> 10.5%
B13: 職災保險第一級 | C13: 25 | D13: 13 | E13: 13500 | G13: 110 | H13: 5.17% | I13: 2.11% | J13: 1.58 | L13: 107 | M13: =M12 -> 9.5% | N13: 1.0% | O13: 10.5%
B14: 職災保險最後一級 | C14: 47 | D14: 14 | E14: 15840 | G14: 111 | H14: 5.17% | I14: 2.11% | J14: 1.58 | L14: 108 | M14: 10.0% | N14: 1.0% | O14: 11.0%
B15: 健保第一級 | C15: 25 | D15: 15 | E15: 16500 | G15: 112 | H15: 5.17% | I15: 2.11% | J15: 1.57 | L15: 109 | M15: =M14 -> 10.0% | N15: 1.0% | O15: 11.0%
B16: 健保最後一級 | C16: 74 | D16: 16 | E16: 17280 | G16: 113 | H16: 5.17% | I16: 2.11% | J16: 1.57 | L16: 110 | M16: 10.5% | N16: 1.0% | O16: 11.5%
B17: 勞保第一級 | C17: 11 | D17: 17 | E17: 17880 | G17: 114 | H17: 5.17% | I17: 2.11% | J17: 1.57 | L17: 111 | M17: =M16 -> 10.5% | N17: 1.0% | O17: 11.5%
B18: 勞保最後一級 | C18: 37 | D18: 18 | E18: 19047 | G18: 115 | H18: 5.17% | I18: 2.11% | J18: 1.57 | L18: 112 | M18: 11.0% | N18: 1.0% | O18: 12.0%
B19: 退休第一級 | C19: 4 | D19: 19 | E19: 20008 | G19: 116 | H19: 5.17% | I19: 2.11% | J19: 1.57 | L19: 113 | M19: =M18 -> 11.0% | N19: 1.0% | O19: 12.0%
B20: 退休最後一級 | C20: 64 | D20: 20 | E20: 21009 | G20: 117 | H20: 5.17% | I20: 2.11% | J20: 1.57 | L20: 114 | M20: 11.5% | N20: 1.0% | O20: 12.5%
B21: 健保最低薪資 | C21: =$C$4 -> 0 | D21: 21 | E21: 22000 | G21: 118 | H21: 5.17% | I21: 2.11% | J21: 1.57 | L21: 115 | M21: =M20 -> 11.5% | N21: 1.0% | O21: 12.5%
A22: =試算!$C$1 -> 112 | B22: 健保眷口數 | C22: =VLOOKUP($A$22,健保_費率,4,0) -> 1.57 | D22: 22 | E22: 23100 | G22: 119 | H22: 5.17% | I22: 2.11% | J22: 1.57 | L22: 116 | M22: 12.0% | N22: 1.0% | O22: 13.0%
D23: 23 | E23: 24000 | G23: 120 | H23: 5.17% | I23: 2.11% | J23: 1.57 | L23: 117 | M23: 12.0% | N23: 1.0% | O23: 13.0%
D24: 24 | E24: 25250 | G24: 121 | H24: 5.17% | I24: 2.11% | J24: 1.57 | L24: 118 | M24: 12.0% | N24: 1.0% | O24: 13.0%
D25: 25 | E25: 26400 | G25: 122 | H25: 5.17% | I25: 2.11% | J25: 1.57 | L25: 119 | M25: 12.0% | N25: 1.0% | O25: 13.0%
D26: 26 | E26: 27600 | G26: 123 | H26: 5.17% | I26: 2.11% | J26: 1.57 | L26: 120 | M26: 12.0% | N26: 1.0% | O26: 13.0%
D27: 27 | E27: 28800 | G27: 124 | H27: 5.17% | I27: 2.11% | J27: 1.57
D28: 28 | E28: 30300 | G28: 125 | H28: 5.17% | I28: 2.11% | J28: 1.57
D29: 29 | E29: 31800 | G29: 126 | H29: 5.17% | I29: 2.11% | J29: 1.57
D30: 30 | E30: 33300 | G30: 127 | H30: 5.17% | I30: 2.11% | J30: 1.57
D31: 31 | E31: 34800 | G31: 128 | H31: 5.17% | I31: 2.11% | J31: 1.57
D32: 32 | E32: 36300 | G32: 129 | H32: 5.17% | I32: 2.11% | J32: 1.57
D33: 33 | E33: 38200 | G33: 130 | H33: 5.17% | I33: 2.11% | J33: 1.57
D34: 34 | E34: 40100 | G34: 131 | H34: 5.17% | I34: 2.11% | J34: 1.57
D35: 35 | E35: 42000 | G35: 132 | H35: 5.17% | I35: 2.11% | J35: 1.57
D36: 36 | E36: 43900 | G36: 133 | H36: 5.17% | I36: 2.11% | J36: 1.57
D37: 37 | E37: 45800 | G37: 134 | H37: 5.17% | I37: 2.11% | J37: 1.57
D38: 38 | E38: 48200
D39: 39 | E39: 50600
D40: 40 | E40: 53000
D41: 41 | E41: 55400
D42: 42 | E42: 57800
D43: 43 | E43: 60800
D44: 44 | E44: 63800
D45: 45 | E45: 66800
D46: 46 | E46: 69800
D47: 47 | E47: 72800
D48: 48 | E48: 76500
D49: 49 | E49: 80200
D50: 50 | E50: 83900
D51: 51 | E51: 87600
D52: 52 | E52: 92100
D53: 53 | E53: 96600
D54: 54 | E54: 101100
D55: 55 | E55: 105600
D56: 56 | E56: 110100
D57: 57 | E57: 115500
D58: 58 | E58: 120900
D59: 59 | E59: 126300
D60: 60 | E60: 131700
D61: 61 | E61: 137100
D62: 62 | E62: 142500
D63: 63 | E63: 147900
D64: 64 | E64: 150000
D65: 65 | E65: 156400
D66: 66 | E66: 162800
D67: 67 | E67: 169200
D68: 68 | E68: 175600
D69: 69 | E69: 182000
D70: 70 | E70: 189500
D71: 71 | E71: 197000
D72: 72 | E72: 204500
D73: 73 | E73: 212000
D74: 74 | E74: 219500

Sheet 勞保_一般員工勞就保11201起
A1: 勞 工 保 險 普 通 事 故 保 險 費 及 就 業 保 險 保 險 費 合 計 之 被 保 險 人 與 投 保 單 位 分 擔 金 額 表 (自112年1月1日起適用) | AE1: 普通事故費率 | AF1: 11.00%
A2: ※本表不含勞工職業災害保險費，職業災害保險費率依投保單位行業別而有不同，請按繳款單所列職業災害保險費率自行計算，並請依規定職業災害保險費全部由投保單位負擔。單位：新台幣元 | AE2: 就業保險費率 | AF2: 1.00%
B3: 部分工時勞工適用
B4: 11,100 | D4: 12,540 | F4: 13,500 | H4: 15,840 | J4: 16,500 | L4: 17,280 | N4: 17,880 | P4: 19,047 | R4: 20,008 | T4: 21,009 | V4: 22,000 | X4: 23,100 | Z4: 24,000 | AB4: 25,250
B5: 勞工 | C5: 單位 | D5: 勞工 | E5: 單位 | F5: 勞工 | G5: 單位 | H5: 勞工 | I5: 單位 | J5: 勞工 | K5: 單位 | L5: 勞工 | M5: 單位 | N5: 勞工 | O5: 單位 | P5: 勞工 | Q5: 單位 | R5: 勞工 | S5: 單位 | T5: 勞工 | U5: 單位 | V5: 勞工 | W5: 單位 | X5: 勞工 | Y5: 單位 | Z5: 勞工 | AA5: 單位 | AB5: 勞工 | AC5: 單位
A6: 1 | B6: =ROUND($B$4*$A6/30*$AF$1*20/100,0)+ROUND($B$4*$A6/30*$AF$2*20/100,0) -> 9 | C6: =ROUND($B$4*$A6/30*$AF$1*70/100,0)+ROUND($B$4*$A6/30*$AF$2*70/100,0) -> 31 | D6: =ROUND($D$4*$A6/30*$AF$1*20/100,0)+ROUND($D$4*$A6/30*$AF$2*20/100,0) -> 10 | E6: =ROUND($D$4*$A6/30*$AF$1*70/100,0)+ROUND($D$4*$A6/30*$AF$2*70/100,0) -> 35 | F6: =ROUND($F$4*$A6/30*$AF$1*20/100,0)+ROUND($F$4*$A6/30*$AF$2*20/100,0) -> 11 | G6: =ROUND($F$4*$A6/30*$AF$1*70/100,0)+ROUND($F$4*$A6/30*$AF$2*70/100,0) -> 38 | H6: =ROUND($H$4*$A6/30*$AF$1*20/100,0)+ROUND($H$4*$A6/30*$AF$2*20/100,0) -> 13 | I6: =ROUND($H$4*$A6/30*$AF$1*70/100,0)+ROUND($H$4*$A6/30*$AF$2*70/100,0) -> 45 | J6: =ROUND($J$4*$A6/30*$AF$1*20/100,0)+ROUND($J$4*$A6/30*$AF$2*20/100,0) -> 13 | K6: =ROUND($J$4*$A6/30*$AF$1*70/100,0)+ROUND($J$4*$A6/30*$AF$2*70/100,0) -> 46 | L6: =ROUND($L$4*$A6/30*$AF$1*20/100,0)+ROUND($L$4*$A6/30*$AF$2*20/100,0) -> 14 | M6: =ROUND($L$4*$A6/30*$AF$1*70/100,0)+ROUND($L$4*$A6/30*$AF$2*70/100,0) -> 48 | N6: =ROUND($N$4*$A6/30*$AF$1*20/100,0)+ROUND($N$4*$A6/30*$AF$2*20/100,0) -> 14 | O6: =ROUND($N$4*$A6/30*$AF$1*70/100,0)+ROUND($N$4*$A6/30*$AF$2*70/100,0) -> 50 | P6: =ROUND($P$4*$A6/30*$AF$1*20/100,0)+ROUND($P$4*$A6/30*$AF$2*20/100,0) -> 15 | Q6: =ROUND($P$4*$A6/30*$AF$1*70/100,0)+ROUND($P$4*$A6/30*$AF$2*70/100,0) -> 53 | R6: =ROUND($R$4*$A6/30*$AF$1*20/100,0)+ROUND($R$4*$A6/30*$AF$2*20/100,0) -> 16 | S6: =ROUND($R$4*$A6/30*$AF$1*70/100,0)+ROUND($R$4*$A6/30*$AF$2*70/100,0) -> 56 | T6: =ROUND($T$4*$A6/30*$AF$1*20/100,0)+ROUND($T$4*$A6/30*$AF$2*20/100,0) -> 16 | U6: =ROUND($T$4*$A6/30*$AF$1*70/100,0)+ROUND($T$4*$A6/30*$AF$2*70/100,0) -> 59 | V6: =ROUND($V$4*$A6/30*$AF$1*20/100,0)+ROUND($V$4*$A6/30*$AF$2*20/100,0) -> 17 | W6: =ROUND($V$4*$A6/30*$AF$1*70/100,0)+ROUND($V$4*$A6/30*$AF$2*70/100,0) -> 61 | X6: =ROUND($X$4*$A6/30*$AF$1*20/100,0)+ROUND($X$4*$A6/30*$AF$2*20/100,0) -> 19 | Y6: =ROUND($X$4*$A6/30*$AF$1*70/100,0)+ROUND($X$4*$A6/30*$AF$2*70/100,0) -> 64 | Z6: =ROUND($Z$4*$A6/30*$AF$1*20/100,0)+ROUND($Z$4*$A6/30*$AF$2*20/100,0) -> 20 | AA6: =ROUND($Z$4*$A6/30*$AF$1*70/100,0)+ROUND($Z$4*$A6/30*$AF$2*70/100,0) -> 68 | AB6: =ROUND($AB$4*$A6/30*$AF$1*20/100,0)+ROUND($AB$4*$A6/30*$AF$2*20/100,0) -> 21 | AC6: =ROUND($AB$4*$A6/30*$AF$1*70/100,0)+ROUND($AB$4*$A6/30*$AF$2*70/100,0) -> 71
A7: 2 | B7: 17 | C7: 62 | D7: 20 | E7: 70 | F7: 22 | G7: 75 | H7: 25 | I7: 88 | J7: 26 | K7: 93 | L7: 27 | M7: 97 | N7: 28 | O7: 100 | P7: 31 | Q7: 107 | R7: 32 | S7: 112 | T7: 34 | U7: 118 | V7: 35 | W7: 123 | X7: 37 | Y7: 130 | Z7: 38 | AA7: 134 | AB7: 40 | AC7: 142
A8: 3 | B8: 26 | C8: 93 | D8: 31 | E8: 106 | F8: 33 | G8: 113 | H8: 38 | I8: 133 | J8: 39 | K8: 139 | L8: 41 | M8: 145 | N8: 43 | O8: 151 | P8: 46 | Q8: 160 | R8: 48 | S8: 168 | T8: 50 | U8: 177 | V8: 52 | W8: 184 | X8: 56 | Y8: 194 | Z8: 58 | AA8: 202 | AB8: 61 | AC8: 212
A9: 4 | B9: 36 | C9: 124 | D9: 40 | E9: 141 | F9: 44 | G9: 152 | H9: 50 | I9: 178 | J9: 52 | K9: 184 | L9: 56 | M9: 193 | N9: 57 | O9: 201 | P9: 61 | Q9: 214 | R9: 64 | S9: 224 | T9: 68 | U9: 236 | V9: 71 | W9: 247 | X9: 74 | Y9: 259 | Z9: 76 | AA9: 268 | AB9: 81 | AC9: 283
A10: 5 | B10: 45 | C10: 155 | D10: 50 | E10: 176 | F10: 55 | G10: 189 | H10: 63 | I10: 221 | J10: 67 | K10: 231 | L10: 69 | M10: 242 | N10: 72 | O10: 250 | P10: 76 | Q10: 266 | R10: 80 | S10: 280 | T10: 84 | U10: 295 | V10: 88 | W10: 308 | X10: 93 | Y10: 323 | Z10: 96 | AA10: 336 | AB10: 101 | AC10: 353
A11: 6 | B11: 53 | C11: 187 | D11: 60 | E11: 211 | F11: 64 | G11: 227 | H11: 76 | I11: 266 | J11: 80 | K11: 277 | L11: 83 | M11: 290 | N11: 86 | O11: 300 | P11: 92 | Q11: 320 | R11: 96 | S11: 336 | T11: 100 | U11: 353 | V11: 106 | W11: 370 | X11: 111 | Y11: 388 | Z11: 116 | AA11: 404 | AB11: 121 | AC11: 424
A12: 7 | B12: 62 | C12: 217 | D12: 70 | E12: 245 | F12: 75 | G12: 265 | H12: 88 | I12: 311 | J12: 93 | K12: 323 | L12: 97 | M12: 338 | N12: 100 | O12: 350 | P12: 107 | Q12: 373 | R12: 112 | S12: 392 | T12: 118 | U12: 411 | V12: 123 | W12: 431 | X12: 130 | Y12: 453 | Z12: 134 | AA12: 470 | AB12: 142 | AC12: 495
A13: 8 | B13: 71 | C13: 249 | D13: 81 | E13: 280 | F13: 86 | G13: 302 | H13: 101 | I13: 355 | J13: 106 | K13: 370 | L13: 110 | M13: 387 | N13: 115 | O13: 400 | P13: 122 | Q13: 427 | R13: 128 | S13: 448 | T13: 134 | U13: 470 | V13: 141 | W13: 493 | X13: 148 | Y13: 517 | Z13: 154 | AA13: 538 | AB13: 161 | AC13: 565
A14: 9 | B14: 80 | C14: 279 | D14: 91 | E14: 316 | F14: 97 | G14: 340 | H14: 115 | I14: 399 | J14: 119 | K14: 416 | L14: 124 | M14: 435 | N14: 129 | O14: 451 | P14: 137 | Q14: 480 | R14: 144 | S14: 504 | T14: 152 | U14: 529 | V14: 158 | W14: 554 | X14: 166 | Y14: 583 | Z14: 172 | AA14: 604 | AB14: 182 | AC14: 636
A15: 10 | B15: 88 | C15: 311 | D15: 100 | E15: 351 | F15: 108 | G15: 379 | H15: 127 | I15: 444 | J15: 132 | K15: 463 | L15: 139 | M15: 484 | N15: 143 | O15: 501 | P15: 153 | Q15: 533 | R15: 160 | S15: 561 | T15: 168 | U15: 588 | V15: 176 | W15: 616 | X15: 184 | Y15: 647 | Z15: 192 | AA15: 672 | AB15: 202 | AC15: 707
A16: 11 | B16: 98 | C16: 341 | D16: 110 | E16: 386 | F16: 119 | G16: 416 | H16: 140 | I16: 488 | J16: 145 | K16: 508 | L16: 152 | M16: 532 | N16: 157 | O16: 551 | P16: 168 | Q16: 587 | R16: 176 | S16: 616 | T16: 184 | U16: 647 | V16: 193 | W16: 677 | X16: 203 | Y16: 711 | Z16: 212 | AA16: 740 | AB16: 223 | AC16: 778
A17: 12 | B17: 107 | C17: 373 | D17: 120 | E17: 421 | F17: 130 | G17: 454 | H17: 152 | I17: 532 | J17: 158 | K17: 554 | L17: 166 | M17: 580 | N17: 171 | O17: 601 | P17: 183 | Q17: 640 | R17: 192 | S17: 672 | T17: 202 | U17: 706 | V17: 212 | W17: 740 | X17: 221 | Y17: 776 | Z17: 230 | AA17: 806 | AB17: 242 | AC17: 849
A18: 13 | B18: 116 | C18: 404 | D18: 131 | E18: 456 | F18: 141 | G18: 491 | H18: 165 | I18: 577 | J18: 171 | K18: 601 | L18: 180 | M18: 629 | N18: 185 | O18: 651 | P18: 199 | Q18: 694 | R18: 208 | S18: 729 | T18: 218 | U18: 765 | V18: 229 | W18: 801 | X18: 240 | Y18: 841 | Z18: 250 | AA18: 874 | AB18: 263 | AC18: 920
A19: 14 | B19: 124 | C19: 435 | D19: 141 | E19: 492 | F19: 152 | G19: 529 | H19: 178 | I19: 621 | J19: 184 | K19: 647 | L19: 193 | M19: 677 | N19: 201 | O19: 700 | P19: 214 | Q19: 746 | R19: 224 | S19: 784 | T19: 236 | U19: 824 | V19: 247 | W19: 863 | X19: 259 | Y19: 905 | Z19: 268 | AA19: 940 | AB19: 283 | AC19: 989
A20: 15 | B20: 133 | C20: 466 | D20: 151 | E20: 527 | F20: 163 | G20: 567 | H20: 190 | I20: 665 | J20: 199 | K20: 693 | L20: 207 | M20: 725 | N20: 215 | O20: 751 | P20: 229 | Q20: 800 | R20: 240 | S20: 840 | T20: 252 | U20: 883 | V20: 264 | W20: 924 | X20: 277 | Y20: 970 | Z20: 288 | AA20: 1,008 | AB20: 303 | AC20: 1,060
A21: 16 | B21: 142 | C21: 497 | D21: 160 | E21: 562 | F21: 172 | G21: 604 | H21: 203 | I21: 709 | J21: 212 | K21: 740 | L21: 221 | M21: 775 | N21: 229 | O21: 801 | P21: 243 | Q21: 853 | R21: 256 | S21: 897 | T21: 269 | U21: 941 | V21: 281 | W21: 985 | X21: 296 | Y21: 1,035 | Z21: 308 | AA21: 1,076 | AB21: 323 | AC21: 1,131
A22: 17 | B22: 151 | C22: 528 | D22: 170 | E22: 597 | F22: 183 | G22: 643 | H22: 215 | I22: 754 | J22: 225 | K22: 785 | L22: 235 | M22: 823 | N22: 243 | O22: 851 | P22: 259 | Q22: 907 | R22: 272 | S22: 952 | T22: 286 | U22: 1,000 | V22: 299 | W22: 1,047 | X22: 314 | Y22: 1,100 | Z22: 326 | AA22: 1,142 | AB22: 344 | AC22: 1,202
A23: 18 | B23: 160 | C23: 560 | D23: 181 | E23: 632 | F23: 194 | G23: 681 | H23: 228 | I23: 799 | J23: 238 | K23: 831 | L23: 249 | M23: 871 | N23: 257 | O23: 901 | P23: 274 | Q23: 960 | R23: 288 | S23: 1,008 | T23: 302 | U23: 1,059 | V23: 316 | W23: 1,108 | X23: 333 | Y23: 1,164 | Z23: 346 | AA23: 1,210 | AB23: 363 | AC23: 1,273
A24: 19 | B24: 169 | C24: 590 | D24: 191 | E24: 668 | F24: 205 | G24: 718 | H24: 241 | I24: 842 | J24: 251 | K24: 878 | L24: 263 | M24: 920 | N24: 272 | O24: 951 | P24: 289 | Q24: 1,013 | R24: 304 | S24: 1,065 | T24: 320 | U24: 1,118 | V24: 335 | W24: 1,171 | X24: 351 | Y24: 1,229 | Z24: 364 | AA24: 1,276 | AB24: 384 | AC24: 1,343
A25: 20 | B25: 178 | C25: 622 | D25: 201 | E25: 703 | F25: 216 | G25: 756 | H25: 253 | I25: 887 | J25: 264 | K25: 924 | L25: 276 | M25: 968 | N25: 286 | O25: 1,001 | P25: 304 | Q25: 1,067 | R25: 320 | S25: 1,120 | T25: 336 | U25: 1,176 | V25: 352 | W25: 1,232 | X25: 370 | Y25: 1,294 | Z25: 384 | AA25: 1,344 | AB25: 404 | AC25: 1,414
A26: 21 | B26: 187 | C26: 652 | D26: 211 | E26: 737 | F26: 227 | G26: 794 | H26: 266 | I26: 932 | J26: 277 | K26: 970 | L26: 290 | M26: 1,016 | N26: 300 | O26: 1,052 | P26: 320 | Q26: 1,120 | R26: 336 | S26: 1,176 | T26: 353 | U26: 1,235 | V26: 370 | W26: 1,294 | X26: 388 | Y26: 1,358 | Z26: 404 | AA26: 1,412 | AB26: 424 | AC26: 1,485
A27: 22 | B27: 195 | C27: 684 | D27: 220 | E27: 772 | F27: 238 | G27: 831 | H27: 279 | I27: 975 | J27: 290 | K27: 1,017 | L27: 304 | M27: 1,065 | N27: 314 | O27: 1,102 | P27: 335 | Q27: 1,174 | R27: 352 | S27: 1,233 | T27: 370 | U27: 1,294 | V27: 387 | W27: 1,355 | X27: 407 | Y27: 1,423 | Z27: 422 | AA27: 1,478 | AB27: 444 | AC27: 1,556
A28: 23 | B28: 204 | C28: 715 | D28: 231 | E28: 807 | F28: 249 | G28: 869 | H28: 291 | I28: 1,020 | J28: 303 | K28: 1,063 | L28: 317 | M28: 1,113 | N28: 329 | O28: 1,152 | P28: 350 | Q28: 1,226 | R28: 368 | S28: 1,288 | T28: 386 | U28: 1,353 | V28: 405 | W28: 1,417 | X28: 425 | Y28: 1,488 | Z28: 442 | AA28: 1,546 | AB28: 465 | AC28: 1,627
A29: 24 | B29: 213 | C29: 746 | D29: 241 | E29: 842 | F29: 260 | G29: 908 | H29: 304 | I29: 1,065 | J29: 316 | K29: 1,108 | L29: 332 | M29: 1,161 | N29: 344 | O29: 1,201 | P29: 365 | Q29: 1,280 | R29: 384 | S29: 1,344 | T29: 404 | U29: 1,412 | V29: 422 | W29: 1,478 | X29: 444 | Y29: 1,552 | Z29: 460 | AA29: 1,612 | AB29: 484 | AC29: 1,696
A30: 25 | B30: 223 | C30: 777 | D30: 251 | E30: 878 | F30: 271 | G30: 945 | H30: 316 | I30: 1,108 | J30: 331 | K30: 1,155 | L30: 346 | M30: 1,210 | N30: 358 | O30: 1,251 | P30: 381 | Q30: 1,333 | R30: 400 | S30: 1,401 | T30: 420 | U30: 1,471 | V30: 440 | W30: 1,540 | X30: 463 | Y30: 1,617 | Z30: 480 | AA30: 1,680 | AB30: 505 | AC30: 1,767
A31: 26 | B31: 231 | C31: 808 | D31: 261 | E31: 913 | F31: 280 | G31: 983 | H31: 329 | I31: 1,153 | J31: 344 | K31: 1,201 | L31: 359 | M31: 1,258 | N31: 372 | O31: 1,301 | P31: 396 | Q31: 1,387 | R31: 416 | S31: 1,456 | T31: 437 | U31: 1,529 | V31: 457 | W31: 1,601 | X31: 480 | Y31: 1,682 | Z31: 500 | AA31: 1,748 | AB31: 525 | AC31: 1,838
A32: 27 | B32: 240 | C32: 839 | D32: 271 | E32: 948 | F32: 291 | G32: 1,021 | H32: 343 | I32: 1,198 | J32: 357 | K32: 1,247 | L32: 373 | M32: 1,307 | N32: 386 | O32: 1,352 | P32: 411 | Q32: 1,440 | R32: 432 | S32: 1,513 | T32: 454 | U32: 1,588 | V32: 476 | W32: 1,664 | X32: 499 | Y32: 1,747 | Z32: 518 | AA32: 1,814 | AB32: 545 | AC32: 1,909
A33: 28 | B33: 249 | C33: 871 | D33: 280 | E33: 983 | F33: 302 | G33: 1,058 | H33: 355 | I33: 1,241 | J33: 370 | K33: 1,294 | L33: 387 | M33: 1,355 | N33: 400 | O33: 1,402 | P33: 427 | Q33: 1,493 | R33: 448 | S33: 1,569 | T33: 470 | U33: 1,647 | V33: 493 | W33: 1,725 | X33: 517 | Y33: 1,811 | Z33: 538 | AA33: 1,882 | AB33: 565 | AC33: 1,980
A34: 29 | B34: 257 | C34: 901 | D34: 291 | E34: 1,018 | F34: 313 | G34: 1,096 | H34: 368 | I34: 1,286 | J34: 383 | K34: 1,340 | L34: 400 | M34: 1,403 | N34: 415 | O34: 1,452 | P34: 442 | Q34: 1,547 | R34: 465 | S34: 1,624 | T34: 488 | U34: 1,706 | V34: 511 | W34: 1,787 | X34: 536 | Y34: 1,875 | Z34: 556 | AA34: 1,948 | AB34: 586 | AC34: 2,050
A35: 30 | B35: 266 | C35: 933 | D35: 301 | E35: 1,054 | F35: 324 | G35: 1,135 | H35: 380 | I35: 1,331 | J35: 396 | K35: 1,387 | L35: 415 | M35: 1,452 | N35: 429 | O35: 1,502 | P35: 457 | Q35: 1,600 | R35: 480 | S35: 1,681 | T35: 504 | U35: 1,765 | V35: 528 | W35: 1,848 | X35: 554 | Y35: 1,941 | Z35: 576 | AA35: 2,016 | AB35: 607 | AC35: 2,121
B37: 第1級 | D37: 第2級 | F37: 第3級 | H37: 第4級 | J37: 第5級 | L37: 第6級 | N37: 第7級 | P37: 第8級 | R37: 第9級 | T37: 第10級 | V37: 第11級 | X37: 第12級 | Z37: 第13級
B38: 26,400 | D38: 27,600 | F38: 28,800 | H38: 30,300 | J38: 31,800 | L38: 33,300 | N38: 34,800 | P38: 36,300 | R38: 38,200 | T38: 40,100 | V38: 42,000 | X38: 43,900 | Z38: 45,800
B39: 勞工 | C39: 單位 | D39: 勞工 | E39: 單位 | F39: 勞工 | G39: 單位 | H39: 勞工 | I39: 單位 | J39: 勞工 | K39: 單位 | L39: 勞工 | M39: 單位 | N39: 勞工 | O39: 單位 | P39: 勞工 | Q39: 單位 | R39: 勞工 | S39: 單位 | T39: 勞工 | U39: 單位 | V39: 勞工 | W39: 單位 | X39: 勞工 | Y39: 單位 | Z39: 勞工 | AA39: 單位 | AB39: 勞工 | AC39: 單位
A40: 1 | B40: =ROUND($B$38*$A40/30*$AF$1*20/100,0)+ROUND($B$38*$A40/30*$AF$2*20/100,0) -> 21 | C40: =ROUND($B$38*$A40/30*$AF$1*70/100,0)+ROUND($B$38*$A40/30*$AF$2*70/100,0) -> 74 | D40: =ROUND($D$38*$A40/30*$AF$1*20/100,0)+ROUND($D$38*$A40/30*$AF$2*20/100,0) -> 22 | E40: =ROUND($D$38*$A40/30*$AF$1*70/100,0)+ROUND($D$38*$A40/30*$AF$2*70/100,0) -> 77 | F40: =ROUND($F$38*$A40/30*$AF$1*20/100,0)+ROUND($F$38*$A40/30*$AF$2*20/100,0) -> 23 | G40: =ROUND($F$38*$A40/30*$AF$1*70/100,0)+ROUND($F$38*$A40/30*$AF$2*70/100,0) -> 81 | H40: =ROUND($H$38*$A40/30*$AF$1*20/100,0)+ROUND($H$38*$A40/30*$AF$2*20/100,0) -> 24 | I40: =ROUND($H$38*$A40/30*$AF$1*70/100,0)+ROUND($H$38*$A40/30*$AF$2*70/100,0) -> 85 | J40: =ROUND($J$38*$A40/30*$AF$1*20/100,0)+ROUND($J$38*$A40/30*$AF$2*20/100,0) -> 25 | K40: =ROUND($J$38*$A40/30*$AF$1*70/100,0)+ROUND($J$38*$A40/30*$AF$2*70/100,0) -> 89 | L40: =ROUND($L$38*$A40/30*$AF$1*20/100,0)+ROUND($L$38*$A40/30*$AF$2*20/100,0) -> 26 | M40: =ROUND($L$38*$A40/30*$AF$1*70/100,0)+ROUND($L$38*$A40/30*$AF$2*70/100,0) -> 93 | N40: =ROUND($N$38*$A40/30*$AF$1*20/100,0)+ROUND($N$38*$A40/30*$AF$2*20/100,0) -> 28 | O40: =ROUND($N$38*$A40/30*$AF$1*70/100,0)+ROUND($N$38*$A40/30*$AF$2*70/100,0) -> 97 | P40: =ROUND($P$38*$A40/30*$AF$1*20/100,0)+ROUND($P$38*$A40/30*$AF$2*20/100,0) -> 29 | Q40: =ROUND($P$38*$A40/30*$AF$1*70/100,0)+ROUND($P$38*$A40/30*$AF$2*70/100,0) -> 101 | R40: =ROUND($R$38*$A40/30*$AF$1*20/100,0)+ROUND($R$38*$A40/30*$AF$2*20/100,0) -> 31 | S40: =ROUND($R$38*$A40/30*$AF$1*70/100,0)+ROUND($R$38*$A40/30*$AF$2*70/100,0) -> 107 | T40: =ROUND($T$38*$A40/30*$AF$1*20/100,0)+ROUND($T$38*$A40/30*$AF$2*20/100,0) -> 32 | U40: =ROUND($T$38*$A40/30*$AF$1*70/100,0)+ROUND($T$38*$A40/30*$AF$2*70/100,0) -> 112 | V40: =ROUND($V$38*$A40/30*$AF$1*20/100,0)+ROUND($V$38*$A40/30*$AF$2*20/100,0) -> 34 | W40: =ROUND($V$38*$A40/30*$AF$1*70/100,0)+ROUND($V$38*$A40/30*$AF$2*70/100,0) -> 118 | X40: =ROUND($X$38*$A40/30*$AF$1*20/100,0)+ROUND($X$38*$A40/30*$AF$2*20/100,0) -> 35 | Y40: =ROUND($X$38*$A40/30*$AF$1*70/100,0)+ROUND($X$38*$A40/30*$AF$2*70/100,0) -> 123 | Z40: =ROUND($Z$38*$A40/30*$AF$1*20/100,0)+ROUND($Z$38*$A40/30*$AF$2*20/100,0) -> 37 | AA40: =ROUND($Z$38*$A40/30*$AF$1*70/100,0)+ROUND($Z$38*$A40/30*$AF$2*70/100,0) -> 129
A41: 2 | B41: 43 | C41: 148 | D41: 44 | E41: 155 | F41: 46 | G41: 161 | H41: 48 | I41: 170 | J41: 51 | K41: 178 | L41: 53 | M41: 187 | N41: 56 | O41: 195 | P41: 58 | Q41: 203 | R41: 61 | S41: 214 | T41: 64 | U41: 225 | V41: 68 | W41: 236 | X41: 70 | Y41: 245 | Z41: 73 | AA41: 256
A42: 3 | B42: 63 | C42: 221 | D42: 67 | E42: 232 | F42: 69 | G42: 242 | H42: 73 | I42: 254 | J42: 76 | K42: 267 | L42: 80 | M42: 279 | N42: 84 | O42: 292 | P42: 87 | Q42: 305 | R42: 92 | S42: 321 | T42: 96 | U42: 337 | V42: 100 | W42: 352 | X42: 106 | Y42: 369 | Z42: 110 | AA42: 385
A43: 4 | B43: 84 | C43: 296 | D43: 88 | E43: 309 | F43: 92 | G43: 323 | H43: 97 | I43: 339 | J43: 101 | K43: 356 | L43: 107 | M43: 373 | N43: 111 | O43: 389 | P43: 116 | Q43: 407 | R43: 122 | S43: 428 | T43: 129 | U43: 449 | V43: 134 | W43: 470 | X43: 141 | Y43: 492 | Z43: 146 | AA43: 513
A44: 5 | B44: 106 | C44: 370 | D44: 110 | E44: 386 | F44: 116 | G44: 404 | H44: 121 | I44: 424 | J44: 128 | K44: 445 | L44: 133 | M44: 466 | N44: 140 | O44: 488 | P44: 145 | Q44: 508 | R44: 153 | S44: 535 | T44: 160 | U44: 562 | V44: 168 | W44: 588 | X44: 176 | Y44: 614 | Z44: 183 | AA44: 641
A45: 6 | B45: 127 | C45: 444 | D45: 132 | E45: 464 | F45: 139 | G45: 484 | H45: 145 | I45: 509 | J45: 153 | K45: 535 | L45: 160 | M45: 560 | N45: 167 | O45: 585 | P45: 175 | Q45: 610 | R45: 183 | S45: 641 | T45: 192 | U45: 674 | V45: 202 | W45: 706 | X45: 211 | Y45: 737 | Z45: 220 | AA45: 769
A46: 7 | B46: 148 | C46: 517 | D46: 155 | E46: 541 | F46: 161 | G46: 564 | H46: 170 | I46: 593 | J46: 178 | K46: 623 | L46: 187 | M46: 652 | N46: 195 | O46: 682 | P46: 203 | Q46: 711 | R46: 214 | S46: 748 | T46: 225 | U46: 785 | V46: 236 | W46: 824 | X46: 245 | Y46: 861 | Z46: 256 | AA46: 898
A47: 8 | B47: 169 | C47: 591 | D47: 177 | E47: 619 | F47: 184 | G47: 645 | H47: 194 | I47: 679 | J47: 204 | K47: 712 | L47: 213 | M47: 746 | N47: 223 | O47: 780 | P47: 232 | Q47: 813 | R47: 244 | S47: 855 | T47: 256 | U47: 898 | V47: 268 | W47: 940 | X47: 281 | Y47: 983 | Z47: 293 | AA47: 1,025
A48: 9 | B48: 190 | C48: 665 | D48: 199 | E48: 696 | F48: 207 | G48: 725 | H48: 218 | I48: 764 | J48: 229 | K48: 802 | L48: 240 | M48: 839 | N48: 251 | O48: 877 | P48: 262 | Q48: 915 | R48: 275 | S48: 962 | T48: 289 | U48: 1,010 | V48: 302 | W48: 1,058 | X48: 316 | Y48: 1,106 | Z48: 329 | AA48: 1,154
A49: 10 | B49: 212 | C49: 740 | D49: 220 | E49: 772 | F49: 230 | G49: 806 | H49: 242 | I49: 849 | J49: 254 | K49: 890 | L49: 266 | M49: 933 | N49: 278 | O49: 974 | P49: 290 | Q49: 1,017 | R49: 305 | S49: 1,069 | T49: 321 | U49: 1,123 | V49: 336 | W49: 1,176 | X49: 351 | Y49: 1,229 | Z49: 367 | AA49: 1,283
A50: 11 | B50: 232 | C50: 813 | D50: 243 | E50: 850 | F50: 253 | G50: 887 | H50: 266 | I50: 933 | J50: 280 | K50: 980 | L50: 293 | M50: 1,025 | N50: 307 | O50: 1,072 | P50: 320 | Q50: 1,118 | R50: 336 | S50: 1,177 | T50: 352 | U50: 1,235 | V50: 370 | W50: 1,294 | X50: 386 | Y50: 1,352 | Z50: 403 | AA50: 1,411
A51: 12 | B51: 253 | C51: 887 | D51: 265 | E51: 927 | F51: 276 | G51: 968 | H51: 291 | I51: 1,018 | J51: 305 | K51: 1,068 | L51: 320 | M51: 1,119 | N51: 334 | O51: 1,169 | P51: 348 | Q51: 1,220 | R51: 367 | S51: 1,284 | T51: 385 | U51: 1,347 | V51: 404 | W51: 1,412 | X51: 421 | Y51: 1,475 | Z51: 440 | AA51: 1,539
A52: 13 | B52: 275 | C52: 961 | D52: 287 | E52: 1,005 | F52: 300 | G52: 1,048 | H52: 315 | I52: 1,103 | J52: 331 | K52: 1,157 | L52: 346 | M52: 1,212 | N52: 362 | O52: 1,267 | P52: 377 | Q52: 1,321 | R52: 397 | S52: 1,391 | T52: 417 | U52: 1,460 | V52: 436 | W52: 1,528 | X52: 457 | Y52: 1,598 | Z52: 477 | AA52: 1,667
A53: 14 | B53: 296 | C53: 1,035 | D53: 309 | E53: 1,082 | F53: 323 | G53: 1,129 | H53: 339 | I53: 1,188 | J53: 356 | K53: 1,247 | L53: 373 | M53: 1,306 | N53: 389 | O53: 1,364 | P53: 407 | Q53: 1,423 | R53: 428 | S53: 1,498 | T53: 449 | U53: 1,572 | V53: 470 | W53: 1,646 | X53: 492 | Y53: 1,720 | Z53: 513 | AA53: 1,796
A54: 15 | B54: 316 | C54: 1,108 | D54: 332 | E54: 1,160 | F54: 346 | G54: 1,210 | H54: 363 | I54: 1,273 | J54: 382 | K54: 1,335 | L54: 399 | M54: 1,399 | N54: 418 | O54: 1,462 | P54: 435 | Q54: 1,525 | R54: 458 | S54: 1,605 | T54: 481 | U54: 1,684 | V54: 504 | W54: 1,764 | X54: 527 | Y54: 1,844 | Z54: 550 | AA54: 1,923
A55: 16 | B55: 338 | C55: 1,183 | D55: 353 | E55: 1,236 | F55: 369 | G55: 1,291 | H55: 388 | I55: 1,357 | J55: 407 | K55: 1,425 | L55: 427 | M55: 1,492 | N55: 445 | O55: 1,559 | P55: 465 | Q55: 1,627 | R55: 489 | S55: 1,712 | T55: 514 | U55: 1,797 | V55: 538 | W55: 1,882 | X55: 562 | Y55: 1,967 | Z55: 586 | AA55: 2,052
A56: 17 | B56: 359 | C56: 1,257 | D56: 375 | E56: 1,313 | F56: 392 | G56: 1,371 | H56: 412 | I56: 1,442 | J56: 432 | K56: 1,514 | L56: 453 | M56: 1,585 | N56: 473 | O56: 1,656 | P56: 494 | Q56: 1,728 | R56: 519 | S56: 1,819 | T56: 545 | U56: 1,909 | V56: 572 | W56: 2,000 | X56: 597 | Y56: 2,090 | Z56: 623 | AA56: 2,180
A57: 18 | B57: 380 | C57: 1,331 | D57: 397 | E57: 1,391 | F57: 415 | G57: 1,452 | H57: 436 | I57: 1,527 | J57: 458 | K57: 1,603 | L57: 480 | M57: 1,678 | N57: 501 | O57: 1,754 | P57: 523 | Q57: 1,829 | R57: 550 | S57: 1,925 | T57: 577 | U57: 2,021 | V57: 604 | W57: 2,116 | X57: 632 | Y57: 2,212 | Z57: 660 | AA57: 2,308
A58: 19 | B58: 401 | C58: 1,404 | D58: 420 | E58: 1,468 | F58: 437 | G58: 1,532 | H58: 460 | I58: 1,612 | J58: 483 | K58: 1,692 | L58: 506 | M58: 1,772 | N58: 529 | O58: 1,851 | P58: 552 | Q58: 1,931 | R58: 580 | S58: 2,032 | T58: 610 | U58: 2,134 | V58: 638 | W58: 2,234 | X58: 668 | Y58: 2,336 | Z58: 696 | AA58: 2,437
A59: 20 | B59: 422 | C59: 1,478 | D59: 442 | E59: 1,546 | F59: 460 | G59: 1,612 | H59: 484 | I59: 1,696 | J59: 508 | K59: 1,780 | L59: 532 | M59: 1,864 | N59: 556 | O59: 1,948 | P59: 580 | Q59: 2,032 | R59: 611 | S59: 2,139 | T59: 641 | U59: 2,245 | V59: 672 | W59: 2,352 | X59: 703 | Y59: 2,459 | Z59: 733 | AA59: 2,565
A60: 21 | B60: 444 | C60: 1,552 | D60: 464 | E60: 1,623 | F60: 484 | G60: 1,693 | H60: 509 | I60: 1,781 | J60: 535 | K60: 1,870 | L60: 560 | M60: 1,958 | N60: 585 | O60: 2,047 | P60: 610 | Q60: 2,135 | R60: 641 | S60: 2,246 | T60: 674 | U60: 2,357 | V60: 706 | W60: 2,470 | X60: 737 | Y60: 2,581 | Z60: 769 | AA60: 2,693
A61: 22 | B61: 465 | C61: 1,627 | D61: 485 | E61: 1,700 | F61: 507 | G61: 1,774 | H61: 533 | I61: 1,867 | J61: 560 | K61: 1,959 | L61: 586 | M61: 2,051 | N61: 612 | O61: 2,144 | P61: 639 | Q61: 2,236 | R61: 672 | S61: 2,353 | T61: 706 | U61: 2,470 | V61: 740 | W61: 2,588 | X61: 772 | Y61: 2,704 | Z61: 806 | AA61: 2,821
A62: 23 | B62: 485 | C62: 1,700 | D62: 508 | E62: 1,777 | F62: 530 | G62: 1,855 | H62: 557 | I62: 1,952 | J62: 585 | K62: 2,048 | L62: 613 | M62: 2,145 | N62: 640 | O62: 2,241 | P62: 668 | Q62: 2,338 | R62: 703 | S62: 2,460 | T62: 737 | U62: 2,582 | V62: 772 | W62: 2,704 | X62: 807 | Y62: 2,828 | Z62: 842 | AA62: 2,950
A63: 24 | B63: 507 | C63: 1,774 | D63: 530 | E63: 1,855 | F63: 553 | G63: 1,935 | H63: 581 | I63: 2,036 | J63: 611 | K63: 2,137 | L63: 639 | M63: 2,237 | N63: 668 | O63: 2,339 | P63: 697 | Q63: 2,439 | R63: 733 | S63: 2,567 | T63: 770 | U63: 2,695 | V63: 806 | W63: 2,822 | X63: 843 | Y63: 2,950 | Z63: 879 | AA63: 3,077
A64: 25 | B64: 528 | C64: 1,848 | D64: 552 | E64: 1,932 | F64: 576 | G64: 2,016 | H64: 607 | I64: 2,121 | J64: 636 | K64: 2,227 | L64: 667 | M64: 2,331 | N64: 696 | O64: 2,436 | P64: 727 | Q64: 2,541 | R64: 764 | S64: 2,674 | T64: 802 | U64: 2,807 | V64: 840 | W64: 2,940 | X64: 878 | Y64: 3,073 | Z64: 916 | AA64: 3,206
A65: 26 | B65: 549 | C65: 1,922 | D65: 574 | E65: 2,009 | F65: 599 | G65: 2,097 | H65: 631 | I65: 2,206 | J65: 661 | K65: 2,315 | L65: 693 | M65: 2,424 | N65: 724 | O65: 2,533 | P65: 755 | Q65: 2,642 | R65: 794 | S65: 2,781 | T65: 835 | U65: 2,919 | V65: 874 | W65: 3,058 | X65: 913 | Y65: 3,196 | Z65: 952 | AA65: 3,334
A66: 27 | B66: 571 | C66: 1,996 | D66: 596 | E66: 2,087 | F66: 622 | G66: 2,177 | H66: 655 | I66: 2,291 | J66: 687 | K66: 2,404 | L66: 719 | M66: 2,518 | N66: 752 | O66: 2,631 | P66: 784 | Q66: 2,745 | R66: 825 | S66: 2,888 | T66: 866 | U66: 3,032 | V66: 908 | W66: 3,176 | X66: 948 | Y66: 3,319 | Z66: 989 | AA66: 3,463
A67: 28 | B67: 591 | C67: 2,069 | D67: 619 | E67: 2,164 | F67: 645 | G67: 2,258 | H67: 679 | I67: 2,376 | J67: 712 | K67: 2,493 | L67: 746 | M67: 2,611 | N67: 780 | O67: 2,728 | P67: 813 | Q67: 2,846 | R67: 855 | S67: 2,995 | T67: 898 | U67: 3,144 | V67: 940 | W67: 3,292 | X67: 983 | Y67: 3,442 | Z67: 1,025 | AA67: 3,590
A68: 29 | B68: 612 | C68: 2,144 | D68: 640 | E68: 2,241 | F68: 668 | G68: 2,339 | H68: 703 | I68: 2,460 | J68: 737 | K68: 2,582 | L68: 772 | M68: 2,704 | N68: 807 | O68: 2,825 | P68: 842 | Q68: 2,948 | R68: 886 | S68: 3,101 | T68: 931 | U68: 3,256 | V68: 974 | W68: 3,410 | X68: 1,019 | Y68: 3,565 | Z68: 1,063 | AA68: 3,719
A69: 30 | B69: 634 | C69: 2,218 | D69: 662 | E69: 2,318 | F69: 692 | G69: 2,420 | H69: 728 | I69: 2,545 | J69: 764 | K69: 2,672 | L69: 800 | M69: 2,797 | N69: 836 | O69: 2,924 | P69: 872 | Q69: 3,049 | R69: 916 | S69: 3,208 | T69: 962 | U69: 3,369 | V69: 1,008 | W69: 3,528 | X69: 1,054 | Y69: 3,687 | Z69: 1,100 | AA69: 3,848
AB71: 111.11製表

Sheet 勞保_雇主或外勞勞保11201起
A1: 勞 工 保 險 普 通 事 故 保 險 費 被 保 險 人 與 投 保 單 位 分 擔 金 額 表 (自112年1月1日起適用)
A2: ※本表不含勞工職業災害保險費，職業災害保險費率依投保單位行業別而有不同，請按繳款單所列職業災害保險費率自行計算，並請依規定職業災害保險費全部由投保單位負擔。 單位：新台幣元
B3: 部分工時勞工適用 | F3: 部分工時勞工、職訓機構受訓者適用 | AE3: 普通事故費率
B4: 11,100 | D4: 12,540 | F4: 13,500 | H4: 15,840 | J4: 16,500 | L4: 17,280 | N4: 17,880 | P4: 19,047 | R4: 20,008 | T4: 21,009 | V4: 22,000 | X4: 23,100 | Z4: 24,000 | AB4: 25,250 | AE4: 11.00%
B5: 勞工 | C5: 單位 | D5: 勞工 | E5: 單位 | F5: 勞工 | G5: 單位 | H5: 勞工 | I5: 單位 | J5: 勞工 | K5: 單位 | L5: 勞工 | M5: 單位 | N5: 勞工 | O5: 單位 | P5: 勞工 | Q5: 單位 | R5: 勞工 | S5: 單位 | T5: 勞工 | U5: 單位 | V5: 勞工 | W5: 單位 | X5: 勞工 | Y5: 單位 | Z5: 勞工 | AA5: 單位 | AB5: 勞工 | AC5: 單位
A6: 1 | B6: =ROUND($B$4*$A6/30*$AE$4*20/100,0) -> 8 | C6: =ROUND($B$4*$A6/30*$AE$4*70/100,0) -> 28 | D6: =ROUND($D$4*$A6/30*$AE$4*20/100,0) -> 9 | E6: =ROUND($D$4*$A6/30*$AE$4*70/100,0) -> 32 | F6: =ROUND($F$4*$A6/30*$AE$4*20/100,0) -> 10 | G6: =ROUND($F$4*$A6/30*$AE$4*70/100,0) -> 35 | H6: =ROUND($H$4*$A6/30*$AE$4*20/100,0) -> 12 | I6: =ROUND($H$4*$A6/30*$AE$4*70/100,0) -> 41 | J6: =ROUND($J$4*$A6/30*$AE$4*20/100,0) -> 12 | K6: =ROUND($J$4*$A6/30*$AE$4*70/100,0) -> 42 | L6: =ROUND($L$4*$A6/30*$AE$4*20/100,0) -> 13 | M6: =ROUND($L$4*$A6/30*$AE$4*70/100,0) -> 44 | N6: =ROUND($N$4*$A6/30*$AE$4*20/100,0) -> 13 | O6: =ROUND($N$4*$A6/30*$AE$4*70/100,0) -> 46 | P6: =ROUND($P$4*$A6/30*$AE$4*20/100,0) -> 14 | Q6: =ROUND($P$4*$A6/30*$AE$4*70/100,0) -> 49 | R6: =ROUND($R$4*$A6/30*$AE$4*20/100,0) -> 15 | S6: =ROUND($R$4*$A6/30*$AE$4*70/100,0) -> 51 | T6: =ROUND($T$4*$A6/30*$AE$4*20/100,0) -> 15 | U6: =ROUND($T$4*$A6/30*$AE$4*70/100,0) -> 54 | V6: =ROUND($V$4*$A6/30*$AE$4*20/100,0) -> 16 | W6: =ROUND($V$4*$A6/30*$AE$4*70/100,0) -> 56 | X6: =ROUND($X$4*$A6/30*$AE$4*20/100,0) -> 17 | Y6: =ROUND($X$4*$A6/30*$AE$4*70/100,0) -> 59 | Z6: =ROUND($Z$4*$A6/30*$AE$4*20/100,0) -> 18 | AA6: =ROUND($Z$4*$A6/30*$AE$4*70/100,0) -> 62 | AB6: =ROUND($AB$4*$A6/30*$AE$4*20/100,0) -> 19 | AC6: =ROUND($AB$4*$A6/30*$AE$4*70/100,0) -> 65
A7: 2 | B7: 16 | C7: 57 | D7: 18 | E7: 64 | F7: 20 | G7: 69 | H7: 23 | I7: 81 | J7: 24 | K7: 85 | L7: 25 | M7: 89 | N7: 26 | O7: 92 | P7: 28 | Q7: 98 | R7: 29 | S7: 103 | T7: 31 | U7: 108 | V7: 32 | W7: 113 | X7: 34 | Y7: 119 | Z7: 35 | AA7: 123 | AB7: 37 | AC7: 130
A8: 3 | B8: 24 | C8: 85 | D8: 28 | E8: 97 | F8: 30 | G8: 104 | H8: 35 | I8: 122 | J8: 36 | K8: 127 | L8: 38 | M8: 133 | N8: 39 | O8: 138 | P8: 42 | Q8: 147 | R8: 44 | S8: 154 | T8: 46 | U8: 162 | V8: 48 | W8: 169 | X8: 51 | Y8: 178 | Z8: 53 | AA8: 185 | AB8: 56 | AC8: 194
A9: 4 | B9: 33 | C9: 114 | D9: 37 | E9: 129 | F9: 40 | G9: 139 | H9: 46 | I9: 163 | J9: 48 | K9: 169 | L9: 51 | M9: 177 | N9: 52 | O9: 184 | P9: 56 | Q9: 196 | R9: 59 | S9: 205 | T9: 62 | U9: 216 | V9: 65 | W9: 226 | X9: 68 | Y9: 237 | Z9: 70 | AA9: 246 | AB9: 74 | AC9: 259
A10: 5 | B10: 41 | C10: 142 | D10: 46 | E10: 161 | F10: 50 | G10: 173 | H10: 58 | I10: 203 | J10: 61 | K10: 212 | L10: 63 | M10: 222 | N10: 66 | O10: 229 | P10: 70 | Q10: 244 | R10: 73 | S10: 257 | T10: 77 | U10: 270 | V10: 81 | W10: 282 | X10: 85 | Y10: 296 | Z10: 88 | AA10: 308 | AB10: 93 | AC10: 324
A11: 6 | B11: 49 | C11: 171 | D11: 55 | E11: 193 | F11: 59 | G11: 208 | H11: 70 | I11: 244 | J11: 73 | K11: 254 | L11: 76 | M11: 266 | N11: 79 | O11: 275 | P11: 84 | Q11: 293 | R11: 88 | S11: 308 | T11: 92 | U11: 324 | V11: 97 | W11: 339 | X11: 102 | Y11: 356 | Z11: 106 | AA11: 370 | AB11: 111 | AC11: 389
A12: 7 | B12: 57 | C12: 199 | D12: 64 | E12: 225 | F12: 69 | G12: 243 | H12: 81 | I12: 285 | J12: 85 | K12: 296 | L12: 89 | M12: 310 | N12: 92 | O12: 321 | P12: 98 | Q12: 342 | R12: 103 | S12: 359 | T12: 108 | U12: 377 | V12: 113 | W12: 395 | X12: 119 | Y12: 415 | Z12: 123 | AA12: 431 | AB12: 130 | AC12: 454
A13: 8 | B13: 65 | C13: 228 | D13: 74 | E13: 257 | F13: 79 | G13: 277 | H13: 93 | I13: 325 | J13: 97 | K13: 339 | L13: 101 | M13: 355 | N13: 105 | O13: 367 | P13: 112 | Q13: 391 | R13: 117 | S13: 411 | T13: 123 | U13: 431 | V13: 129 | W13: 452 | X13: 136 | Y13: 474 | Z13: 141 | AA13: 493 | AB13: 148 | AC13: 518
A14: 9 | B14: 73 | C14: 256 | D14: 83 | E14: 290 | F14: 89 | G14: 312 | H14: 105 | I14: 366 | J14: 109 | K14: 381 | L14: 114 | M14: 399 | N14: 118 | O14: 413 | P14: 126 | Q14: 440 | R14: 132 | S14: 462 | T14: 139 | U14: 485 | V14: 145 | W14: 508 | X14: 152 | Y14: 534 | Z14: 158 | AA14: 554 | AB14: 167 | AC14: 583
A15: 10 | B15: 81 | C15: 285 | D15: 92 | E15: 322 | F15: 99 | G15: 347 | H15: 116 | I15: 407 | J15: 121 | K15: 424 | L15: 127 | M15: 444 | N15: 131 | O15: 459 | P15: 140 | Q15: 489 | R15: 147 | S15: 514 | T15: 154 | U15: 539 | V15: 161 | W15: 565 | X15: 169 | Y15: 593 | Z15: 176 | AA15: 616 | AB15: 185 | AC15: 648
A16: 11 | B16: 90 | C16: 313 | D16: 101 | E16: 354 | F16: 109 | G16: 381 | H16: 128 | I16: 447 | J16: 133 | K16: 466 | L16: 139 | M16: 488 | N16: 144 | O16: 505 | P16: 154 | Q16: 538 | R16: 161 | S16: 565 | T16: 169 | U16: 593 | V16: 177 | W16: 621 | X16: 186 | Y16: 652 | Z16: 194 | AA16: 678 | AB16: 204 | AC16: 713
A17: 12 | B17: 98 | C17: 342 | D17: 110 | E17: 386 | F17: 119 | G17: 416 | H17: 139 | I17: 488 | J17: 145 | K17: 508 | L17: 152 | M17: 532 | N17: 157 | O17: 551 | P17: 168 | Q17: 587 | R17: 176 | S17: 616 | T17: 185 | U17: 647 | V17: 194 | W17: 678 | X17: 203 | Y17: 711 | Z17: 211 | AA17: 739 | AB17: 222 | AC17: 778
A18: 13 | B18: 106 | C18: 370 | D18: 120 | E18: 418 | F18: 129 | G18: 450 | H18: 151 | I18: 529 | J18: 157 | K18: 551 | L18: 165 | M18: 577 | N18: 170 | O18: 597 | P18: 182 | Q18: 636 | R18: 191 | S18: 668 | T18: 200 | U18: 701 | V18: 210 | W18: 734 | X18: 220 | Y18: 771 | Z18: 229 | AA18: 801 | AB18: 241 | AC18: 843
A19: 14 | B19: 114 | C19: 399 | D19: 129 | E19: 451 | F19: 139 | G19: 485 | H19: 163 | I19: 569 | J19: 169 | K19: 593 | L19: 177 | M19: 621 | N19: 184 | O19: 642 | P19: 196 | Q19: 684 | R19: 205 | S19: 719 | T19: 216 | U19: 755 | V19: 226 | W19: 791 | X19: 237 | Y19: 830 | Z19: 246 | AA19: 862 | AB19: 259 | AC19: 907
A20: 15 | B20: 122 | C20: 427 | D20: 138 | E20: 483 | F20: 149 | G20: 520 | H20: 174 | I20: 610 | J20: 182 | K20: 635 | L20: 190 | M20: 665 | N20: 197 | O20: 688 | P20: 210 | Q20: 733 | R20: 220 | S20: 770 | T20: 231 | U20: 809 | V20: 242 | W20: 847 | X20: 254 | Y20: 889 | Z20: 264 | AA20: 924 | AB20: 278 | AC20: 972
A21: 16 | B21: 130 | C21: 456 | D21: 147 | E21: 515 | F21: 158 | G21: 554 | H21: 186 | I21: 650 | J21: 194 | K21: 678 | L21: 203 | M21: 710 | N21: 210 | O21: 734 | P21: 223 | Q21: 782 | R21: 235 | S21: 822 | T21: 247 | U21: 863 | V21: 258 | W21: 903 | X21: 271 | Y21: 949 | Z21: 282 | AA21: 986 | AB21: 296 | AC21: 1,037
A22: 17 | B22: 138 | C22: 484 | D22: 156 | E22: 547 | F22: 168 | G22: 589 | H22: 197 | I22: 691 | J22: 206 | K22: 720 | L22: 215 | M22: 754 | N22: 223 | O22: 780 | P22: 237 | Q22: 831 | R22: 249 | S22: 873 | T22: 262 | U22: 917 | V22: 274 | W22: 960 | X22: 288 | Y22: 1,008 | Z22: 299 | AA22: 1,047 | AB22: 315 | AC22: 1,102
A23: 18 | B23: 147 | C23: 513 | D23: 166 | E23: 579 | F23: 178 | G23: 624 | H23: 209 | I23: 732 | J23: 218 | K23: 762 | L23: 228 | M23: 798 | N23: 236 | O23: 826 | P23: 251 | Q23: 880 | R23: 264 | S23: 924 | T23: 277 | U23: 971 | V23: 290 | W23: 1,016 | X23: 305 | Y23: 1,067 | Z23: 317 | AA23: 1,109 | AB23: 333 | AC23: 1,167
A24: 19 | B24: 155 | C24: 541 | D24: 175 | E24: 612 | F24: 188 | G24: 658 | H24: 221 | I24: 772 | J24: 230 | K24: 805 | L24: 241 | M24: 843 | N24: 249 | O24: 872 | P24: 265 | Q24: 929 | R24: 279 | S24: 976 | T24: 293 | U24: 1,025 | V24: 307 | W24: 1,073 | X24: 322 | Y24: 1,127 | Z24: 334 | AA24: 1,170 | AB24: 352 | AC24: 1,231
A25: 20 | B25: 163 | C25: 570 | D25: 184 | E25: 644 | F25: 198 | G25: 693 | H25: 232 | I25: 813 | J25: 242 | K25: 847 | L25: 253 | M25: 887 | N25: 262 | O25: 918 | P25: 279 | Q25: 978 | R25: 293 | S25: 1,027 | T25: 308 | U25: 1,078 | V25: 323 | W25: 1,129 | X25: 339 | Y25: 1,186 | Z25: 352 | AA25: 1,232 | AB25: 370 | AC25: 1,296
A26: 21 | B26: 171 | C26: 598 | D26: 193 | E26: 676 | F26: 208 | G26: 728 | H26: 244 | I26: 854 | J26: 254 | K26: 889 | L26: 266 | M26: 931 | N26: 275 | O26: 964 | P26: 293 | Q26: 1,027 | R26: 308 | S26: 1,078 | T26: 324 | U26: 1,132 | V26: 339 | W26: 1,186 | X26: 356 | Y26: 1,245 | Z26: 370 | AA26: 1,294 | AB26: 389 | AC26: 1,361
A27: 22 | B27: 179 | C27: 627 | D27: 202 | E27: 708 | F27: 218 | G27: 762 | H27: 256 | I27: 894 | J27: 266 | K27: 932 | L27: 279 | M27: 976 | N27: 288 | O27: 1,010 | P27: 307 | Q27: 1,076 | R27: 323 | S27: 1,130 | T27: 339 | U27: 1,186 | V27: 355 | W27: 1,242 | X27: 373 | Y27: 1,304 | Z27: 387 | AA27: 1,355 | AB27: 407 | AC27: 1,426
A28: 23 | B28: 187 | C28: 655 | D28: 212 | E28: 740 | F28: 228 | G28: 797 | H28: 267 | I28: 935 | J28: 278 | K28: 974 | L28: 291 | M28: 1,020 | N28: 302 | O28: 1,056 | P28: 321 | Q28: 1,124 | R28: 337 | S28: 1,181 | T28: 354 | U28: 1,240 | V28: 371 | W28: 1,299 | X28: 390 | Y28: 1,364 | Z28: 405 | AA28: 1,417 | AB28: 426 | AC28: 1,491
A29: 24 | B29: 195 | C29: 684 | D29: 221 | E29: 772 | F29: 238 | G29: 832 | H29: 279 | I29: 976 | J29: 290 | K29: 1,016 | L29: 304 | M29: 1,064 | N29: 315 | O29: 1,101 | P29: 335 | Q29: 1,173 | R29: 352 | S29: 1,232 | T29: 370 | U29: 1,294 | V29: 387 | W29: 1,355 | X29: 407 | Y29: 1,423 | Z29: 422 | AA29: 1,478 | AB29: 444 | AC29: 1,555
A30: 25 | B30: 204 | C30: 712 | D30: 230 | E30: 805 | F30: 248 | G30: 866 | H30: 290 | I30: 1,016 | J30: 303 | K30: 1,059 | L30: 317 | M30: 1,109 | N30: 328 | O30: 1,147 | P30: 349 | Q30: 1,222 | R30: 367 | S30: 1,284 | T30: 385 | U30: 1,348 | V30: 403 | W30: 1,412 | X30: 424 | Y30: 1,482 | Z30: 440 | AA30: 1,540 | AB30: 463 | AC30: 1,620
A31: 26 | B31: 212 | C31: 741 | D31: 239 | E31: 837 | F31: 257 | G31: 901 | H31: 302 | I31: 1,057 | J31: 315 | K31: 1,101 | L31: 329 | M31: 1,153 | N31: 341 | O31: 1,193 | P31: 363 | Q31: 1,271 | R31: 381 | S31: 1,335 | T31: 401 | U31: 1,402 | V31: 419 | W31: 1,468 | X31: 440 | Y31: 1,542 | Z31: 458 | AA31: 1,602 | AB31: 481 | AC31: 1,685
A32: 27 | B32: 220 | C32: 769 | D32: 248 | E32: 869 | F32: 267 | G32: 936 | H32: 314 | I32: 1,098 | J32: 327 | K32: 1,143 | L32: 342 | M32: 1,198 | N32: 354 | O32: 1,239 | P32: 377 | Q32: 1,320 | R32: 396 | S32: 1,387 | T32: 416 | U32: 1,456 | V32: 436 | W32: 1,525 | X32: 457 | Y32: 1,601 | Z32: 475 | AA32: 1,663 | AB32: 500 | AC32: 1,750
A33: 28 | B33: 228 | C33: 798 | D33: 257 | E33: 901 | F33: 277 | G33: 970 | H33: 325 | I33: 1,138 | J33: 339 | K33: 1,186 | L33: 355 | M33: 1,242 | N33: 367 | O33: 1,285 | P33: 391 | Q33: 1,369 | R33: 411 | S33: 1,438 | T33: 431 | U33: 1,510 | V33: 452 | W33: 1,581 | X33: 474 | Y33: 1,660 | Z33: 493 | AA33: 1,725 | AB33: 518 | AC33: 1,815
A34: 29 | B34: 236 | C34: 826 | D34: 267 | E34: 933 | F34: 287 | G34: 1,005 | H34: 337 | I34: 1,179 | J34: 351 | K34: 1,228 | L34: 367 | M34: 1,286 | N34: 380 | O34: 1,331 | P34: 405 | Q34: 1,418 | R34: 426 | S34: 1,489 | T34: 447 | U34: 1,564 | V34: 468 | W34: 1,638 | X34: 491 | Y34: 1,719 | Z34: 510 | AA34: 1,786 | AB34: 537 | AC34: 1,879
A35: 30 | B35: 244 | C35: 855 | D35: 276 | E35: 966 | F35: 297 | G35: 1,040 | H35: 348 | I35: 1,220 | J35: 363 | K35: 1,271 | L35: 380 | M35: 1,331 | N35: 393 | O35: 1,377 | P35: 419 | Q35: 1,467 | R35: 440 | S35: 1,541 | T35: 462 | U35: 1,618 | V35: 484 | W35: 1,694 | X35: 508 | Y35: 1,779 | Z35: 528 | AA35: 1,848 | AB35: 556 | AC35: 1,944
B37: 第1級 | D37: 第2級 | F37: 第3級 | H37: 第4級 | J37: 第5級 | L37: 第6級 | N37: 第7級 | P37: 第8級 | R37: 第9級 | T37: 第10級 | V37: 第11級 | X37: 第12級 | Z37: 第13級
B38: 26,400 | D38: 27,600 | F38: 28,800 | H38: 30,300 | J38: 31,800 | L38: 33,300 | N38: 34,800 | P38: 36,300 | R38: 38,200 | T38: 40,100 | V38: 42,000 | X38: 43,900 | Z38: 45,800
B39: 勞工 | C39: 單位 | D39: 勞工 | E39: 單位 | F39: 勞工 | G39: 單位 | H39: 勞工 | I39: 單位 | J39: 勞工 | K39: 單位 | L39: 勞工 | M39: 單位 | N39: 勞工 | O39: 單位 | P39: 勞工 | Q39: 單位 | R39: 勞工 | S39: 單位 | T39: 勞工 | U39: 單位 | V39: 勞工 | W39: 單位 | X39: 勞工 | Y39: 單位 | Z39: 勞工 | AA39: 單位 | AB39: 勞工 | AC39: 單位
A40: 1 | B40: =ROUND($B$38*$A40/30*$AE$4*20/100,0) -> 19 | C40: =ROUND($B$38*$A40/30*$AE$4*70/100,0) -> 68 | D40: =ROUND($D$38*$A40/30*$AE$4*20/100,0) -> 20 | E40: =ROUND($D$38*$A40/30*$AE$4*70/100,0) -> 71 | F40: =ROUND($F$38*$A40/30*$AE$4*20/100,0) -> 21 | G40: =ROUND($F$38*$A40/30*$AE$4*70/100,0) -> 74 | H40: =ROUND($H$38*$A40/30*$AE$4*20/100,0) -> 22 | I40: =ROUND($H$38*$A40/30*$AE$4*70/100,0) -> 78 | J40: =ROUND($J$38*$A40/30*$AE$4*20/100,0) -> 23 | K40: =ROUND($J$38*$A40/30*$AE$4*70/100,0) -> 82 | L40: =ROUND($L$38*$A40/30*$AE$4*20/100,0) -> 24 | M40: =ROUND($L$38*$A40/30*$AE$4*70/100,0) -> 85 | N40: =ROUND($N$38*$A40/30*$AE$4*20/100,0) -> 26 | O40: =ROUND($N$38*$A40/30*$AE$4*70/100,0) -> 89 | P40: =ROUND($P$38*$A40/30*$AE$4*20/100,0) -> 27 | Q40: =ROUND($P$38*$A40/30*$AE$4*70/100,0) -> 93 | R40: =ROUND($R$38*$A40/30*$AE$4*20/100,0) -> 28 | S40: =ROUND($R$38*$A40/30*$AE$4*70/100,0) -> 98 | T40: =ROUND($T$38*$A40/30*$AE$4*20/100,0) -> 29 | U40: =ROUND($T$38*$A40/30*$AE$4*70/100,0) -> 103 | V40: =ROUND($V$38*$A40/30*$AE$4*20/100,0) -> 31 | W40: =ROUND($V$38*$A40/30*$AE$4*70/100,0) -> 108 | X40: =ROUND($X$38*$A40/30*$AE$4*20/100,0) -> 32 | Y40: =ROUND($X$38*$A40/30*$AE$4*70/100,0) -> 113 | Z40: =ROUND($Z$38*$A40/30*$AE$4*20/100,0) -> 34 | AA40: =ROUND($Z$38*$A40/30*$AE$4*70/100,0) -> 118
A41: 2 | B41: 39 | C41: 136 | D41: 40 | E41: 142 | F41: 42 | G41: 148 | H41: 44 | I41: 156 | J41: 47 | K41: 163 | L41: 49 | M41: 171 | N41: 51 | O41: 179 | P41: 53 | Q41: 186 | R41: 56 | S41: 196 | T41: 59 | U41: 206 | V41: 62 | W41: 216 | X41: 64 | Y41: 225 | Z41: =ROUND($Z$38*$A41/30*$AE$4*20/100,0) -> 67 | AA41: =ROUND($Z$38*$A41/30*$AE$4*70/100,0) -> 235
A42: 3 | B42: 58 | C42: 203 | D42: 61 | E42: 213 | F42: 63 | G42: 222 | H42: 67 | I42: 233 | J42: 70 | K42: 245 | L42: 73 | M42: 256 | N42: 77 | O42: 268 | P42: 80 | Q42: 280 | R42: 84 | S42: 294 | T42: 88 | U42: 309 | V42: 92 | W42: 323 | X42: 97 | Y42: 338 | Z42: 101 | AA42: 353
A43: 4 | B43: 77 | C43: 271 | D43: 81 | E43: 283 | F43: 84 | G43: 296 | H43: 89 | I43: 311 | J43: 93 | K43: 326 | L43: 98 | M43: 342 | N43: 102 | O43: 357 | P43: 106 | Q43: 373 | R43: 112 | S43: 392 | T43: 118 | U43: 412 | V43: 123 | W43: 431 | X43: 129 | Y43: 451 | Z43: 134 | AA43: 470
A44: 5 | B44: 97 | C44: 339 | D44: 101 | E44: 354 | F44: 106 | G44: 370 | H44: 111 | I44: 389 | J44: 117 | K44: 408 | L44: 122 | M44: 427 | N44: 128 | O44: 447 | P44: 133 | Q44: 466 | R44: 140 | S44: 490 | T44: 147 | U44: 515 | V44: 154 | W44: 539 | X44: 161 | Y44: 563 | Z44: 168 | AA44: 588
A45: 6 | B45: 116 | C45: 407 | D45: 121 | E45: 425 | F45: 127 | G45: 444 | H45: 133 | I45: 467 | J45: 140 | K45: 490 | L45: 147 | M45: 513 | N45: 153 | O45: 536 | P45: 160 | Q45: 559 | R45: 168 | S45: 588 | T45: 176 | U45: 618 | V45: 185 | W45: 647 | X45: 193 | Y45: 676 | Z45: 202 | AA45: 705
A46: 7 | B46: 136 | C46: 474 | D46: 142 | E46: 496 | F46: 148 | G46: 517 | H46: 156 | I46: 544 | J46: 163 | K46: 571 | L46: 171 | M46: 598 | N46: 179 | O46: 625 | P46: 186 | Q46: 652 | R46: 196 | S46: 686 | T46: 206 | U46: 720 | V46: 216 | W46: 755 | X46: 225 | Y46: 789 | Z46: 235 | AA46: 823
A47: 8 | B47: 155 | C47: 542 | D47: 162 | E47: 567 | F47: 169 | G47: 591 | H47: 178 | I47: 622 | J47: 187 | K47: 653 | L47: 195 | M47: 684 | N47: 204 | O47: 715 | P47: 213 | Q47: 745 | R47: 224 | S47: 784 | T47: 235 | U47: 823 | V47: 246 | W47: 862 | X47: 258 | Y47: 901 | Z47: 269 | AA47: 940
A48: 9 | B48: 174 | C48: 610 | D48: 182 | E48: 638 | F48: 190 | G48: 665 | H48: 200 | I48: 700 | J48: 210 | K48: 735 | L48: 220 | M48: 769 | N48: 230 | O48: 804 | P48: 240 | Q48: 839 | R48: 252 | S48: 882 | T48: 265 | U48: 926 | V48: 277 | W48: 970 | X48: 290 | Y48: 1,014 | Z48: 302 | AA48: 1,058
A49: 10 | B49: 194 | C49: 678 | D49: 202 | E49: 708 | F49: 211 | G49: 739 | H49: 222 | I49: 778 | J49: 233 | K49: 816 | L49: 244 | M49: 855 | N49: 255 | O49: 893 | P49: 266 | Q49: 932 | R49: 280 | S49: 980 | T49: 294 | U49: 1,029 | V49: 308 | W49: 1,078 | X49: 322 | Y49: 1,127 | Z49: 336 | AA49: 1,176
A50: 11 | B50: 213 | C50: 745 | D50: 223 | E50: 779 | F50: 232 | G50: 813 | H50: 244 | I50: 855 | J50: 257 | K50: 898 | L50: 269 | M50: 940 | N50: 281 | O50: 983 | P50: 293 | Q50: 1,025 | R50: 308 | S50: 1,079 | T50: 323 | U50: 1,132 | V50: 339 | W50: 1,186 | X50: 354 | Y50: 1,239 | Z50: 369 | AA50: 1,293
A51: 12 | B51: 232 | C51: 813 | D51: 243 | E51: 850 | F51: 253 | G51: 887 | H51: 267 | I51: 933 | J51: 280 | K51: 979 | L51: 293 | M51: 1,026 | N51: 306 | O51: 1,072 | P51: 319 | Q51: 1,118 | R51: 336 | S51: 1,177 | T51: 353 | U51: 1,235 | V51: 370 | W51: 1,294 | X51: 386 | Y51: 1,352 | Z51: 403 | AA51: 1,411
A52: 13 | B52: 252 | C52: 881 | D52: 263 | E52: 921 | F52: 275 | G52: 961 | H52: 289 | I52: 1,011 | J52: 303 | K52: 1,061 | L52: 317 | M52: 1,111 | N52: 332 | O52: 1,161 | P52: 346 | Q52: 1,211 | R52: 364 | S52: 1,275 | T52: 382 | U52: 1,338 | V52: 400 | W52: 1,401 | X52: 419 | Y52: 1,465 | Z52: 437 | AA52: 1,528
A53: 14 | B53: 271 | C53: 949 | D53: 283 | E53: 992 | F53: 296 | G53: 1,035 | H53: 311 | I53: 1,089 | J53: 326 | K53: 1,143 | L53: 342 | M53: 1,197 | N53: 357 | O53: 1,250 | P53: 373 | Q53: 1,304 | R53: 392 | S53: 1,373 | T53: 412 | U53: 1,441 | V53: 431 | W53: 1,509 | X53: 451 | Y53: 1,577 | Z53: 470 | AA53: 1,646
A54: 15 | B54: 290 | C54: 1,016 | D54: 304 | E54: 1,063 | F54: 317 | G54: 1,109 | H54: 333 | I54: 1,167 | J54: 350 | K54: 1,224 | L54: 366 | M54: 1,282 | N54: 383 | O54: 1,340 | P54: 399 | Q54: 1,398 | R54: 420 | S54: 1,471 | T54: 441 | U54: 1,544 | V54: 462 | W54: 1,617 | X54: 483 | Y54: 1,690 | Z54: 504 | AA54: 1,763
A55: 16 | B55: 310 | C55: 1,084 | D55: 324 | E55: 1,133 | F55: 338 | G55: 1,183 | H55: 356 | I55: 1,244 | J55: 373 | K55: 1,306 | L55: 391 | M55: 1,368 | N55: 408 | O55: 1,429 | P55: 426 | Q55: 1,491 | R55: 448 | S55: 1,569 | T55: 471 | U55: 1,647 | V55: 493 | W55: 1,725 | X55: 515 | Y55: 1,803 | Z55: 537 | AA55: 1,881
A56: 17 | B56: 329 | C56: 1,152 | D56: 344 | E56: 1,204 | F56: 359 | G56: 1,257 | H56: 378 | I56: 1,322 | J56: 396 | K56: 1,388 | L56: 415 | M56: 1,453 | N56: 434 | O56: 1,518 | P56: 453 | Q56: 1,584 | R56: 476 | S56: 1,667 | T56: 500 | U56: 1,750 | V56: 524 | W56: 1,833 | X56: 547 | Y56: 1,916 | Z56: 571 | AA56: 1,998
A57: 18 | B57: 348 | C57: 1,220 | D57: 364 | E57: 1,275 | F57: 380 | G57: 1,331 | H57: 400 | I57: 1,400 | J57: 420 | K57: 1,469 | L57: 440 | M57: 1,538 | N57: 459 | O57: 1,608 | P57: 479 | Q57: 1,677 | R57: 504 | S57: 1,765 | T57: 529 | U57: 1,853 | V57: 554 | W57: 1,940 | X57: 579 | Y57: 2,028 | Z57: 605 | AA57: 2,116
A58: 19 | B58: 368 | C58: 1,287 | D58: 385 | E58: 1,346 | F58: 401 | G58: 1,404 | H58: 422 | I58: 1,478 | J58: 443 | K58: 1,551 | L58: 464 | M58: 1,624 | N58: 485 | O58: 1,697 | P58: 506 | Q58: 1,770 | R58: 532 | S58: 1,863 | T58: 559 | U58: 1,956 | V58: 585 | W58: 2,048 | X58: 612 | Y58: 2,141 | Z58: 638 | AA58: 2,234
A59: 20 | B59: 387 | C59: 1,355 | D59: 405 | E59: 1,417 | F59: 422 | G59: 1,478 | H59: 444 | I59: 1,555 | J59: 466 | K59: 1,632 | L59: 488 | M59: 1,709 | N59: 510 | O59: 1,786 | P59: 532 | Q59: 1,863 | R59: 560 | S59: 1,961 | T59: 588 | U59: 2,058 | V59: 616 | W59: 2,156 | X59: 644 | Y59: 2,254 | Z59: 672 | AA59: 2,351
A60: 21 | B60: 407 | C60: 1,423 | D60: 425 | E60: 1,488 | F60: 444 | G60: 1,552 | H60: 467 | I60: 1,633 | J60: 490 | K60: 1,714 | L60: 513 | M60: 1,795 | N60: 536 | O60: 1,876 | P60: 559 | Q60: 1,957 | R60: 588 | S60: 2,059 | T60: 618 | U60: 2,161 | V60: 647 | W60: 2,264 | X60: 676 | Y60: 2,366 | Z60: 705 | AA60: 2,469
A61: 22 | B61: 426 | C61: 1,491 | D61: 445 | E61: 1,558 | F61: 465 | G61: 1,626 | H61: 489 | I61: 1,711 | J61: 513 | K61: 1,796 | L61: 537 | M61: 1,880 | N61: 561 | O61: 1,965 | P61: 586 | Q61: 2,050 | R61: 616 | S61: 2,157 | T61: 647 | U61: 2,264 | V61: 678 | W61: 2,372 | X61: 708 | Y61: 2,479 | Z61: 739 | AA61: 2,586
A62: 23 | B62: 445 | C62: 1,558 | D62: 466 | E62: 1,629 | F62: 486 | G62: 1,700 | H62: 511 | I62: 1,789 | J62: 536 | K62: 1,877 | L62: 562 | M62: 1,966 | N62: 587 | O62: 2,054 | P62: 612 | Q62: 2,143 | R62: 644 | S62: 2,255 | T62: 676 | U62: 2,367 | V62: 708 | W62: 2,479 | X62: 740 | Y62: 2,592 | Z62: 772 | AA62: 2,704
A63: 24 | B63: 465 | C63: 1,626 | D63: 486 | E63: 1,700 | F63: 507 | G63: 1,774 | H63: 533 | I63: 1,866 | J63: 560 | K63: 1,959 | L63: 586 | M63: 2,051 | N63: 612 | O63: 2,144 | P63: 639 | Q63: 2,236 | R63: 672 | S63: 2,353 | T63: 706 | U63: 2,470 | V63: 739 | W63: 2,587 | X63: 773 | Y63: 2,704 | Z63: 806 | AA63: 2,821
A64: 25 | B64: 484 | C64: 1,694 | D64: 506 | E64: 1,771 | F64: 528 | G64: 1,848 | H64: 556 | I64: 1,944 | J64: 583 | K64: 2,041 | L64: 611 | M64: 2,137 | N64: 638 | O64: 2,233 | P64: 666 | Q64: 2,329 | R64: 700 | S64: 2,451 | T64: 735 | U64: 2,573 | V64: 770 | W64: 2,695 | X64: 805 | Y64: 2,817 | Z64: 840 | AA64: 2,939
A65: 26 | B65: 503 | C65: 1,762 | D65: 526 | E65: 1,842 | F65: 549 | G65: 1,922 | H65: 578 | I65: 2,022 | J65: 606 | K65: 2,122 | L65: 635 | M65: 2,222 | N65: 664 | O65: 2,322 | P65: 692 | Q65: 2,422 | R65: 728 | S65: 2,549 | T65: 765 | U65: 2,676 | V65: 801 | W65: 2,803 | X65: 837 | Y65: 2,930 | Z65: 873 | AA65: 3,056
A66: 27 | B66: 523 | C66: 1,830 | D66: 546 | E66: 1,913 | F66: 570 | G66: 1,996 | H66: 600 | I66: 2,100 | J66: 630 | K66: 2,204 | L66: 659 | M66: 2,308 | N66: 689 | O66: 2,412 | P66: 719 | Q66: 2,516 | R66: 756 | S66: 2,647 | T66: 794 | U66: 2,779 | V66: 832 | W66: 2,911 | X66: 869 | Y66: 3,042 | Z66: 907 | AA66: 3,174
A67: 28 | B67: 542 | C67: 1,897 | D67: 567 | E67: 1,984 | F67: 591 | G67: 2,070 | H67: 622 | I67: 2,178 | J67: 653 | K67: 2,285 | L67: 684 | M67: 2,393 | N67: 715 | O67: 2,501 | P67: 745 | Q67: 2,609 | R67: 784 | S67: 2,745 | T67: 823 | U67: 2,882 | V67: 862 | W67: 3,018 | X67: 901 | Y67: 3,155 | Z67: 940 | AA67: 3,291
A68: 29 | B68: 561 | C68: 1,965 | D68: 587 | E68: 2,054 | F68: 612 | G68: 2,144 | H68: 644 | I68: 2,255 | J68: 676 | K68: 2,367 | L68: 708 | M68: 2,479 | N68: 740 | O68: 2,590 | P68: 772 | Q68: 2,702 | R68: 812 | S68: 2,843 | T68: 853 | U68: 2,985 | V68: 893 | W68: 3,126 | X68: 934 | Y68: 3,268 | Z68: 974 | AA68: 3,409
A69: 30 | B69: 581 | C69: 2,033 | D69: 607 | E69: 2,125 | F69: 634 | G69: 2,218 | H69: 667 | I69: 2,333 | J69: 700 | K69: 2,449 | L69: 733 | M69: 2,564 | N69: 766 | O69: 2,680 | P69: 799 | Q69: 2,795 | R69: 840 | S69: 2,941 | T69: 882 | U69: 3,088 | V69: 924 | W69: 3,234 | X69: 966 | Y69: 3,380 | Z69: 1008 | AA69: 3,527
AB70: 111.11製表

Sheet 就業保險11201起
A1: 勞 工 保 險 普 通 事 故 保 險 費 被 保 險 人 與 投 保 單 位 分 擔 金 額 表 (自112年1月1日起適用)
A2: ※本表不含勞工職業災害保險費，職業災害保險費率依投保單位行業別而有不同，請按繳款單所列職業災害保險費率自行計算，並請依規定職業災害保險費全部由投保單位負擔。 單位：新台幣元
B3: 部分工時勞工適用 | F3: 部分工時勞工、職訓機構受訓者適用 | AE3: 普通事故費率
B4: 11,100 | D4: 12,540 | F4: 13,500 | H4: 15,840 | J4: 16,500 | L4: 17,280 | N4: 17,880 | P4: 19,047 | R4: 20,008 | T4: 21,009 | V4: 22,000 | X4: 23,100 | Z4: 24,000 | AB4: 25,250 | AE4: 11.00%
B5: 勞工 | C5: 單位 | D5: 勞工 | E5: 單位 | F5: 勞工 | G5: 單位 | H5: 勞工 | I5: 單位 | J5: 勞工 | K5: 單位 | L5: 勞工 | M5: 單位 | N5: 勞工 | O5: 單位 | P5: 勞工 | Q5: 單位 | R5: 勞工 | S5: 單位 | T5: 勞工 | U5: 單位 | V5: 勞工 | W5: 單位 | X5: 勞工 | Y5: 單位 | Z5: 勞工 | AA5: 單位 | AB5: 勞工 | AC5: 單位
A6: 1 | B6: =ROUND($B$4*$A6/30*$AE$4*20/100,0) -> 8 | C6: =ROUND($B$4*$A6/30*$AE$4*70/100,0) -> 28 | D6: =ROUND($D$4*$A6/30*$AE$4*20/100,0) -> 9 | E6: =ROUND($D$4*$A6/30*$AE$4*70/100,0) -> 32 | F6: =ROUND($F$4*$A6/30*$AE$4*20/100,0) -> 10 | G6: =ROUND($F$4*$A6/30*$AE$4*70/100,0) -> 35 | H6: =ROUND($H$4*$A6/30*$AE$4*20/100,0) -> 12 | I6: =ROUND($H$4*$A6/30*$AE$4*70/100,0) -> 41 | J6: =ROUND($J$4*$A6/30*$AE$4*20/100,0) -> 12 | K6: =ROUND($J$4*$A6/30*$AE$4*70/100,0) -> 42 | L6: =ROUND($L$4*$A6/30*$AE$4*20/100,0) -> 13 | M6: =ROUND($L$4*$A6/30*$AE$4*70/100,0) -> 44 | N6: =ROUND($N$4*$A6/30*$AE$4*20/100,0) -> 13 | O6: =ROUND($N$4*$A6/30*$AE$4*70/100,0) -> 46 | P6: =ROUND($P$4*$A6/30*$AE$4*20/100,0) -> 14 | Q6: =ROUND($P$4*$A6/30*$AE$4*70/100,0) -> 49 | R6: =ROUND($R$4*$A6/30*$AE$4*20/100,0) -> 15 | S6: =ROUND($R$4*$A6/30*$AE$4*70/100,0) -> 51 | T6: =ROUND($T$4*$A6/30*$AE$4*20/100,0) -> 15 | U6: =ROUND($T$4*$A6/30*$AE$4*70/100,0) -> 54 | V6: =ROUND($V$4*$A6/30*$AE$4*20/100,0) -> 16 | W6: =ROUND($V$4*$A6/30*$AE$4*70/100,0) -> 56 | X6: =ROUND($X$4*$A6/30*$AE$4*20/100,0) -> 17 | Y6: =ROUND($X$4*$A6/30*$AE$4*70/100,0) -> 59 | Z6: =ROUND($Z$4*$A6/30*$AE$4*20/100,0) -> 18 | AA6: =ROUND($Z$4*$A6/30*$AE$4*70/100,0) -> 62 | AB6: =ROUND($AB$4*$A6/30*$AE$4*20/100,0) -> 19 | AC6: =ROUND($AB$4*$A6/30*$AE$4*70/100,0) -> 65
A7: 2 | B7: 16 | C7: 57 | D7: 18 | E7: 64 | F7: 20 | G7: 69 | H7: 23 | I7: 81 | J7: 24 | K7: 85 | L7: 25 | M7: 89 | N7: 26 | O7: 92 | P7: 28 | Q7: 98 | R7: 29 | S7: 103 | T7: 31 | U7: 108 | V7: 32 | W7: 113 | X7: 34 | Y7: 119 | Z7: 35 | AA7: 123 | AB7: 37 | AC7: 130
A8: 3 | B8: 24 | C8: 85 | D8: 28 | E8: 97 | F8: 30 | G8: 104 | H8: 35 | I8: 122 | J8: 36 | K8: 127 | L8: 38 | M8: 133 | N8: 39 | O8: 138 | P8: 42 | Q8: 147 | R8: 44 | S8: 154 | T8: 46 | U8: 162 | V8: 48 | W8: 169 | X8: 51 | Y8: 178 | Z8: 53 | AA8: 185 | AB8: 56 | AC8: 194
A9: 4 | B9: 33 | C9: 114 | D9: 37 | E9: 129 | F9: 40 | G9: 139 | H9: 46 | I9: 163 | J9: 48 | K9: 169 | L9: 51 | M9: 177 | N9: 52 | O9: 184 | P9: 56 | Q9: 196 | R9: 59 | S9: 205 | T9: 62 | U9: 216 | V9: 65 | W9: 226 | X9: 68 | Y9: 237 | Z9: 70 | AA9: 246 | AB9: 74 | AC9: 259
A10: 5 | B10: 41 | C10: 142 | D10: 46 | E10: 161 | F10: 50 | G10: 173 | H10: 58 | I10: 203 | J10: 61 | K10: 212 | L10: 63 | M10: 222 | N10: 66 | O10: 229 | P10: 70 | Q10: 244 | R10: 73 | S10: 257 | T10: 77 | U10: 270 | V10: 81 | W10: 282 | X10: 85 | Y10: 296 | Z10: 88 | AA10: 308 | AB10: 93 | AC10: 324
A11: 6 | B11: 49 | C11: 171 | D11: 55 | E11: 193 | F11: 59 | G11: 208 | H11: 70 | I11: 244 | J11: 73 | K11: 254 | L11: 76 | M11: 266 | N11: 79 | O11: 275 | P11: 84 | Q11: 293 | R11: 88 | S11: 308 | T11: 92 | U11: 324 | V11: 97 | W11: 339 | X11: 102 | Y11: 356 | Z11: 106 | AA11: 370 | AB11: 111 | AC11: 389
A12: 7 | B12: 57 | C12: 199 | D12: 64 | E12: 225 | F12: 69 | G12: 243 | H12: 81 | I12: 285 | J12: 85 | K12: 296 | L12: 89 | M12: 310 | N12: 92 | O12: 321 | P12: 98 | Q12: 342 | R12: 103 | S12: 359 | T12: 108 | U12: 377 | V12: 113 | W12: 395 | X12: 119 | Y12: 415 | Z12: 123 | AA12: 431 | AB12: 130 | AC12: 454
A13: 8 | B13: 65 | C13: 228 | D13: 74 | E13: 257 | F13: 79 | G13: 277 | H13: 93 | I13: 325 | J13: 97 | K13: 339 | L13: 101 | M13: 355 | N13: 105 | O13: 367 | P13: 112 | Q13: 391 | R13: 117 | S13: 411 | T13: 123 | U13: 431 | V13: 129 | W13: 452 | X13: 136 | Y13: 474 | Z13: 141 | AA13: 493 | AB13: 148 | AC13: 518
A14: 9 | B14: 73 | C14: 256 | D14: 83 | E14: 290 | F14: 89 | G14: 312 | H14: 105 | I14: 366 | J14: 109 | K14: 381 | L14: 114 | M14: 399 | N14: 118 | O14: 413 | P14: 126 | Q14: 440 | R14: 132 | S14: 462 | T14: 139 | U14: 485 | V14: 145 | W14: 508 | X14: 152 | Y14: 534 | Z14: 158 | AA14: 554 | AB14: 167 | AC14: 583
A15: 10 | B15: 81 | C15: 285 | D15: 92 | E15: 322 | F15: 99 | G15: 347 | H15: 116 | I15: 407 | J15: 121 | K15: 424 | L15: 127 | M15: 444 | N15: 131 | O15: 459 | P15: 140 | Q15: 489 | R15: 147 | S15: 514 | T15: 154 | U15: 539 | V15: 161 | W15: 565 | X15: 169 | Y15: 593 | Z15: 176 | AA15: 616 | AB15: 185 | AC15: 648
A16: 11 | B16: 90 | C16: 313 | D16: 101 | E16: 354 | F16: 109 | G16: 381 | H16: 128 | I16: 447 | J16: 133 | K16: 466 | L16: 139 | M16: 488 | N16: 144 | O16: 505 | P16: 154 | Q16: 538 | R16: 161 | S16: 565 | T16: 169 | U16: 593 | V16: 177 | W16: 621 | X16: 186 | Y16: 652 | Z16: 194 | AA16: 678 | AB16: 204 | AC16: 713
A17: 12 | B17: 98 | C17: 342 | D17: 110 | E17: 386 | F17: 119 | G17: 416 | H17: 139 | I17: 488 | J17: 145 | K17: 508 | L17: 152 | M17: 532 | N17: 157 | O17: 551 | P17: 168 | Q17: 587 | R17: 176 | S17: 616 | T17: 185 | U17: 647 | V17: 194 | W17: 678 | X17: 203 | Y17: 711 | Z17: 211 | AA17: 739 | AB17: 222 | AC17: 778
A18: 13 | B18: 106 | C18: 370 | D18: 120 | E18: 418 | F18: 129 | G18: 450 | H18: 151 | I18: 529 | J18: 157 | K18: 551 | L18: 165 | M18: 577 | N18: 170 | O18: 597 | P18: 182 | Q18: 636 | R18: 191 | S18: 668 | T18: 200 | U18: 701 | V18: 210 | W18: 734 | X18: 220 | Y18: 771 | Z18: 229 | AA18: 801 | AB18: 241 | AC18: 843
A19: 14 | B19: 114 | C19: 399 | D19: 129 | E19: 451 | F19: 139 | G19: 485 | H19: 163 | I19: 569 | J19: 169 | K19: 593 | L19: 177 | M19: 621 | N19: 184 | O19: 642 | P19: 196 | Q19: 684 | R19: 205 | S19: 719 | T19: 216 | U19: 755 | V19: 226 | W19: 791 | X19: 237 | Y19: 830 | Z19: 246 | AA19: 862 | AB19: 259 | AC19: 907
A20: 15 | B20: 122 | C20: 427 | D20: 138 | E20: 483 | F20: 149 | G20: 520 | H20: 174 | I20: 610 | J20: 182 | K20: 635 | L20: 190 | M20: 665 | N20: 197 | O20: 688 | P20: 210 | Q20: 733 | R20: 220 | S20: 770 | T20: 231 | U20: 809 | V20: 242 | W20: 847 | X20: 254 | Y20: 889 | Z20: 264 | AA20: 924 | AB20: 278 | AC20: 972
A21: 16 | B21: 130 | C21: 456 | D21: 147 | E21: 515 | F21: 158 | G21: 554 | H21: 186 | I21: 650 | J21: 194 | K21: 678 | L21: 203 | M21: 710 | N21: 210 | O21: 734 | P21: 223 | Q21: 782 | R21: 235 | S21: 822 | T21: 247 | U21: 863 | V21: 258 | W21: 903 | X21: 271 | Y21: 949 | Z21: 282 | AA21: 986 | AB21: 296 | AC21: 1,037
A22: 17 | B22: 138 | C22: 484 | D22: 156 | E22: 547 | F22: 168 | G22: 589 | H22: 197 | I22: 691 | J22: 206 | K22: 720 | L22: 215 | M22: 754 | N22: 223 | O22: 780 | P22: 237 | Q22: 831 | R22: 249 | S22: 873 | T22: 262 | U22: 917 | V22: 274 | W22: 960 | X22: 288 | Y22: 1,008 | Z22: 299 | AA22: 1,047 | AB22: 315 | AC22: 1,102
A23: 18 | B23: 147 | C23: 513 | D23: 166 | E23: 579 | F23: 178 | G23: 624 | H23: 209 | I23: 732 | J23: 218 | K23: 762 | L23: 228 | M23: 798 | N23: 236 | O23: 826 | P23: 251 | Q23: 880 | R23: 264 | S23: 924 | T23: 277 | U23: 971 | V23: 290 | W23: 1,016 | X23: 305 | Y23: 1,067 | Z23: 317 | AA23: 1,109 | AB23: 333 | AC23: 1,167
A24: 19 | B24: 155 | C24: 541 | D24: 175 | E24: 612 | F24: 188 | G24: 658 | H24: 221 | I24: 772 | J24: 230 | K24: 805 | L24: 241 | M24: 843 | N24: 249 | O24: 872 | P24: 265 | Q24: 929 | R24: 279 | S24: 976 | T24: 293 | U24: 1,025 | V24: 307 | W24: 1,073 | X24: 322 | Y24: 1,127 | Z24: 334 | AA24: 1,170 | AB24: 352 | AC24: 1,231
A25: 20 | B25: 163 | C25: 570 | D25: 184 | E25: 644 | F25: 198 | G25: 693 | H25: 232 | I25: 813 | J25: 242 | K25: 847 | L25: 253 | M25: 887 | N25: 262 | O25: 918 | P25: 279 | Q25: 978 | R25: 293 | S25: 1,027 | T25: 308 | U25: 1,078 | V25: 323 | W25: 1,129 | X25: 339 | Y25: 1,186 | Z25: 352 | AA25: 1,232 | AB25: 370 | AC25: 1,296
A26: 21 | B26: 171 | C26: 598 | D26: 193 | E26: 676 | F26: 208 | G26: 728 | H26: 244 | I26: 854 | J26: 254 | K26: 889 | L26: 266 | M26: 931 | N26: 275 | O26: 964 | P26: 293 | Q26: 1,027 | R26: 308 | S26: 1,078 | T26: 324 | U26: 1,132 | V26: 339 | W26: 1,186 | X26: 356 | Y26: 1,245 | Z26: 370 | AA26: 1,294 | AB26: 389 | AC26: 1,361
A27: 22 | B27: 179 | C27: 627 | D27: 202 | E27: 708 | F27: 218 | G27: 762 | H27: 256 | I27: 894 | J27: 266 | K27: 932 | L27: 279 | M27: 976 | N27: 288 | O27: 1,010 | P27: 307 | Q27: 1,076 | R27: 323 | S27: 1,130 | T27: 339 | U27: 1,186 | V27: 355 | W27: 1,242 | X27: 373 | Y27: 1,304 | Z27: 387 | AA27: 1,355 | AB27: 407 | AC27: 1,426
A28: 23 | B28: 187 | C28: 655 | D28: 212 | E28: 740 | F28: 228 | G28: 797 | H28: 267 | I28: 935 | J28: 278 | K28: 974 | L28: 291 | M28: 1,020 | N28: 302 | O28: 1,056 | P28: 321 | Q28: 1,124 | R28: 337 | S28: 1,181 | T28: 354 | U28: 1,240 | V28: 371 | W28: 1,299 | X28: 390 | Y28: 1,364 | Z28: 405 | AA28: 1,417 | AB28: 426 | AC28: 1,491
A29: 24 | B29: 195 | C29: 684 | D29: 221 | E29: 772 | F29: 238 | G29: 832 | H29: 279 | I29: 976 | J29: 290 | K29: 1,016 | L29: 304 | M29: 1,064 | N29: 315 | O29: 1,101 | P29: 335 | Q29: 1,173 | R29: 352 | S29: 1,232 | T29: 370 | U29: 1,294 | V29: 387 | W29: 1,355 | X29: 407 | Y29: 1,423 | Z29: 422 | AA29: 1,478 | AB29: 444 | AC29: 1,555
A30: 25 | B30: 204 | C30: 712 | D30: 230 | E30: 805 | F30: 248 | G30: 866 | H30: 290 | I30: 1,016 | J30: 303 | K30: 1,059 | L30: 317 | M30: 1,109 | N30: 328 | O30: 1,147 | P30: 349 | Q30: 1,222 | R30: 367 | S30: 1,284 | T30: 385 | U30: 1,348 | V30: 403 | W30: 1,412 | X30: 424 | Y30: 1,482 | Z30: 440 | AA30: 1,540 | AB30: 463 | AC30: 1,620
A31: 26 | B31: 212 | C31: 741 | D31: 239 | E31: 837 | F31: 257 | G31: 901 | H31: 302 | I31: 1,057 | J31: 315 | K31: 1,101 | L31: 329 | M31: 1,153 | N31: 341 | O31: 1,193 | P31: 363 | Q31: 1,271 | R31: 381 | S31: 1,335 | T31: 401 | U31: 1,402 | V31: 419 | W31: 1,468 | X31: 440 | Y31: 1,542 | Z31: 458 | AA31: 1,602 | AB31: 481 | AC31: 1,685
A32: 27 | B32: 220 | C32: 769 | D32: 248 | E32: 869 | F32: 267 | G32: 936 | H32: 314 | I32: 1,098 | J32: 327 | K32: 1,143 | L32: 342 | M32: 1,198 | N32: 354 | O32: 1,239 | P32: 377 | Q32: 1,320 | R32: 396 | S32: 1,387 | T32: 416 | U32: 1,456 | V32: 436 | W32: 1,525 | X32: 457 | Y32: 1,601 | Z32: 475 | AA32: 1,663 | AB32: 500 | AC32: 1,750
A33: 28 | B33: 228 | C33: 798 | D33: 257 | E33: 901 | F33: 277 | G33: 970 | H33: 325 | I33: 1,138 | J33: 339 | K33: 1,186 | L33: 355 | M33: 1,242 | N33: 367 | O33: 1,285 | P33: 391 | Q33: 1,369 | R33: 411 | S33: 1,438 | T33: 431 | U33: 1,510 | V33: 452 | W33: 1,581 | X33: 474 | Y33: 1,660 | Z33: 493 | AA33: 1,725 | AB33: 518 | AC33: 1,815
A34: 29 | B34: 236 | C34: 826 | D34: 267 | E34: 933 | F34: 287 | G34: 1,005 | H34: 337 | I34: 1,179 | J34: 351 | K34: 1,228 | L34: 367 | M34: 1,286 | N34: 380 | O34: 1,331 | P34: 405 | Q34: 1,418 | R34: 426 | S34: 1,489 | T34: 447 | U34: 1,564 | V34: 468 | W34: 1,638 | X34: 491 | Y34: 1,719 | Z34: 510 | AA34: 1,786 | AB34: 537 | AC34: 1,879
A35: 30 | B35: 244 | C35: 855 | D35: 276 | E35: 966 | F35: 297 | G35: 1,040 | H35: 348 | I35: 1,220 | J35: 363 | K35: 1,271 | L35: 380 | M35: 1,331 | N35: 393 | O35: 1,377 | P35: 419 | Q35: 1,467 | R35: 440 | S35: 1,541 | T35: 462 | U35: 1,618 | V35: 484 | W35: 1,694 | X35: 508 | Y35: 1,779 | Z35: 528 | AA35: 1,848 | AB35: 556 | AC35: 1,944
B37: 第1級 | D37: 第2級 | F37: 第3級 | H37: 第4級 | J37: 第5級 | L37: 第6級 | N37: 第7級 | P37: 第8級 | R37: 第9級 | T37: 第10級 | V37: 第11級 | X37: 第12級 | Z37: 第13級
B38: 26,400 | D38: 27,600 | F38: 28,800 | H38: 30,300 | J38: 31,800 | L38: 33,300 | N38: 34,800 | P38: 36,300 | R38: 38,200 | T38: 40,100 | V38: 42,000 | X38: 43,900 | Z38: 45,800
B39: 勞工 | C39: 單位 | D39: 勞工 | E39: 單位 | F39: 勞工 | G39: 單位 | H39: 勞工 | I39: 單位 | J39: 勞工 | K39: 單位 | L39: 勞工 | M39: 單位 | N39: 勞工 | O39: 單位 | P39: 勞工 | Q39: 單位 | R39: 勞工 | S39: 單位 | T39: 勞工 | U39: 單位 | V39: 勞工 | W39: 單位 | X39: 勞工 | Y39: 單位 | Z39: 勞工 | AA39: 單位 | AB39: 勞工 | AC39: 單位
A40: 1 | B40: =ROUND($B$38*$A40/30*$AE$4*20/100,0) -> 19 | C40: =ROUND($B$38*$A40/30*$AE$4*70/100,0) -> 68 | D40: =ROUND($D$38*$A40/30*$AE$4*20/100,0) -> 20 | E40: =ROUND($D$38*$A40/30*$AE$4*70/100,0) -> 71 | F40: =ROUND($F$38*$A40/30*$AE$4*20/100,0) -> 21 | G40: =ROUND($F$38*$A40/30*$AE$4*70/100,0) -> 74 | H40: =ROUND($H$38*$A40/30*$AE$4*20/100,0) -> 22 | I40: =ROUND($H$38*$A40/30*$AE$4*70/100,0) -> 78 | J40: =ROUND($J$38*$A40/30*$AE$4*20/100,0) -> 23 | K40: =ROUND($J$38*$A40/30*$AE$4*70/100,0) -> 82 | L40: =ROUND($L$38*$A40/30*$AE$4*20/100,0) -> 24 | M40: =ROUND($L$38*$A40/30*$AE$4*70/100,0) -> 85 | N40: =ROUND($N$38*$A40/30*$AE$4*20/100,0) -> 26 | O40: =ROUND($N$38*$A40/30*$AE$4*70/100,0) -> 89 | P40: =ROUND($P$38*$A40/30*$AE$4*20/100,0) -> 27 | Q40: =ROUND($P$38*$A40/30*$AE$4*70/100,0) -> 93 | R40: =ROUND($R$38*$A40/30*$AE$4*20/100,0) -> 28 | S40: =ROUND($R$38*$A40/30*$AE$4*70/100,0) -> 98 | T40: =ROUND($T$38*$A40/30*$AE$4*20/100,0) -> 29 | U40: =ROUND($T$38*$A40/30*$AE$4*70/100,0) -> 103 | V40: =ROUND($V$38*$A40/30*$AE$4*20/100,0) -> 31 | W40: =ROUND($V$38*$A40/30*$AE$4*70/100,0) -> 108 | X40: =ROUND($X$38*$A40/30*$AE$4*20/100,0) -> 32 | Y40: =ROUND($X$38*$A40/30*$AE$4*70/100,0) -> 113 | Z40: =ROUND($Z$38*$A40/30*$AE$4*20/100,0) -> 34 | AA40: =ROUND($Z$38*$A40/30*$AE$4*70/100,0) -> 118
A41: 2 | B41: 39 | C41: 136 | D41: 40 | E41: 142 | F41: 42 | G41: 148 | H41: 44 | I41: 156 | J41: 47 | K41: 163 | L41: 49 | M41: 171 | N41: 51 | O41: 179 | P41: 53 | Q41: 186 | R41: 56 | S41: 196 | T41: 59 | U41: 206 | V41: 62 | W41: 216 | X41: 64 | Y41: 225 | Z41: =ROUND($Z$38*$A41/30*$AE$4*20/100,0) -> 67 | AA41: =ROUND($Z$38*$A41/30*$AE$4*70/100,0) -> 235
A42: 3 | B42: 58 | C42: 203 | D42: 61 | E42: 213 | F42: 63 | G42: 222 | H42: 67 | I42: 233 | J42: 70 | K42: 245 | L42: 73 | M42: 256 | N42: 77 | O42: 268 | P42: 80 | Q42: 280 | R42: 84 | S42: 294 | T42: 88 | U42: 309 | V42: 92 | W42: 323 | X42: 97 | Y42: 338 | Z42: 101 | AA42: 353
A43: 4 | B43: 77 | C43: 271 | D43: 81 | E43: 283 | F43: 84 | G43: 296 | H43: 89 | I43: 311 | J43: 93 | K43: 326 | L43: 98 | M43: 342 | N43: 102 | O43: 357 | P43: 106 | Q43: 373 | R43: 112 | S43: 392 | T43: 118 | U43: 412 | V43: 123 | W43: 431 | X43: 129 | Y43: 451 | Z43: 134 | AA43: 470
A44: 5 | B44: 97 | C44: 339 | D44: 101 | E44: 354 | F44: 106 | G44: 370 | H44: 111 | I44: 389 | J44: 117 | K44: 408 | L44: 122 | M44: 427 | N44: 128 | O44: 447 | P44: 133 | Q44: 466 | R44: 140 | S44: 490 | T44: 147 | U44: 515 | V44: 154 | W44: 539 | X44: 161 | Y44: 563 | Z44: 168 | AA44: 588
A45: 6 | B45: 116 | C45: 407 | D45: 121 | E45: 425 | F45: 127 | G45: 444 | H45: 133 | I45: 467 | J45: 140 | K45: 490 | L45: 147 | M45: 513 | N45: 153 | O45: 536 | P45: 160 | Q45: 559 | R45: 168 | S45: 588 | T45: 176 | U45: 618 | V45: 185 | W45: 647 | X45: 193 | Y45: 676 | Z45: 202 | AA45: 705
A46: 7 | B46: 136 | C46: 474 | D46: 142 | E46: 496 | F46: 148 | G46: 517 | H46: 156 | I46: 544 | J46: 163 | K46: 571 | L46: 171 | M46: 598 | N46: 179 | O46: 625 | P46: 186 | Q46: 652 | R46: 196 | S46: 686 | T46: 206 | U46: 720 | V46: 216 | W46: 755 | X46: 225 | Y46: 789 | Z46: 235 | AA46: 823
A47: 8 | B47: 155 | C47: 542 | D47: 162 | E47: 567 | F47: 169 | G47: 591 | H47: 178 | I47: 622 | J47: 187 | K47: 653 | L47: 195 | M47: 684 | N47: 204 | O47: 715 | P47: 213 | Q47: 745 | R47: 224 | S47: 784 | T47: 235 | U47: 823 | V47: 246 | W47: 862 | X47: 258 | Y47: 901 | Z47: 269 | AA47: 940
A48: 9 | B48: 174 | C48: 610 | D48: 182 | E48: 638 | F48: 190 | G48: 665 | H48: 200 | I48: 700 | J48: 210 | K48: 735 | L48: 220 | M48: 769 | N48: 230 | O48: 804 | P48: 240 | Q48: 839 | R48: 252 | S48: 882 | T48: 265 | U48: 926 | V48: 277 | W48: 970 | X48: 290 | Y48: 1,014 | Z48: 302 | AA48: 1,058
A49: 10 | B49: 194 | C49: 678 | D49: 202 | E49: 708 | F49: 211 | G49: 739 | H49: 222 | I49: 778 | J49: 233 | K49: 816 | L49: 244 | M49: 855 | N49: 255 | O49: 893 | P49: 266 | Q49: 932 | R49: 280 | S49: 980 | T49: 294 | U49: 1,029 | V49: 308 | W49: 1,078 | X49: 322 | Y49: 1,127 | Z49: 336 | AA49: 1,176
A50: 11 | B50: 213 | C50: 745 | D50: 223 | E50: 779 | F50: 232 | G50: 813 | H50: 244 | I50: 855 | J50: 257 | K50: 898 | L50: 269 | M50: 940 | N50: 281 | O50: 983 | P50: 293 | Q50: 1,025 | R50: 308 | S50: 1,079 | T50: 323 | U50: 1,132 | V50: 339 | W50: 1,186 | X50: 354 | Y50: 1,239 | Z50: 369 | AA50: 1,293
A51: 12 | B51: 232 | C51: 813 | D51: 243 | E51: 850 | F51: 253 | G51: 887 | H51: 267 | I51: 933 | J51: 280 | K51: 979 | L51: 293 | M51: 1,026 | N51: 306 | O51: 1,072 | P51: 319 | Q51: 1,118 | R51: 336 | S51: 1,177 | T51: 353 | U51: 1,235 | V51: 370 | W51: 1,294 | X51: 386 | Y51: 1,352 | Z51: 403 | AA51: 1,411
A52: 13 | B52: 252 | C52: 881 | D52: 263 | E52: 921 | F52: 275 | G52: 961 | H52: 289 | I52: 1,011 | J52: 303 | K52: 1,061 | L52: 317 | M52: 1,111 | N52: 332 | O52: 1,161 | P52: 346 | Q52: 1,211 | R52: 364 | S52: 1,275 | T52: 382 | U52: 1,338 | V52: 400 | W52: 1,401 | X52: 419 | Y52: 1,465 | Z52: 437 | AA52: 1,528
A53: 14 | B53: 271 | C53: 949 | D53: 283 | E53: 992 | F53: 296 | G53: 1,035 | H53: 311 | I53: 1,089 | J53: 326 | K53: 1,143 | L53: 342 | M53: 1,197 | N53: 357 | O53: 1,250 | P53: 373 | Q53: 1,304 | R53: 392 | S53: 1,373 | T53: 412 | U53: 1,441 | V53: 431 | W53: 1,509 | X53: 451 | Y53: 1,577 | Z53: 470 | AA53: 1,646
A54: 15 | B54: 290 | C54: 1,016 | D54: 304 | E54: 1,063 | F54: 317 | G54: 1,109 | H54: 333 | I54: 1,167 | J54: 350 | K54: 1,224 | L54: 366 | M54: 1,282 | N54: 383 | O54: 1,340 | P54: 399 | Q54: 1,398 | R54: 420 | S54: 1,471 | T54: 441 | U54: 1,544 | V54: 462 | W54: 1,617 | X54: 483 | Y54: 1,690 | Z54: 504 | AA54: 1,763
A55: 16 | B55: 310 | C55: 1,084 | D55: 324 | E55: 1,133 | F55: 338 | G55: 1,183 | H55: 356 | I55: 1,244 | J55: 373 | K55: 1,306 | L55: 391 | M55: 1,368 | N55: 408 | O55: 1,429 | P55: 426 | Q55: 1,491 | R55: 448 | S55: 1,569 | T55: 471 | U55: 1,647 | V55: 493 | W55: 1,725 | X55: 515 | Y55: 1,803 | Z55: 537 | AA55: 1,881
A56: 17 | B56: 329 | C56: 1,152 | D56: 344 | E56: 1,204 | F56: 359 | G56: 1,257 | H56: 378 | I56: 1,322 | J56: 396 | K56: 1,388 | L56: 415 | M56: 1,453 | N56: 434 | O56: 1,518 | P56: 453 | Q56: 1,584 | R56: 476 | S56: 1,667 | T56: 500 | U56: 1,750 | V56: 524 | W56: 1,833 | X56: 547 | Y56: 1,916 | Z56: 571 | AA56: 1,998
A57: 18 | B57: 348 | C57: 1,220 | D57: 364 | E57: 1,275 | F57: 380 | G57: 1,331 | H57: 400 | I57: 1,400 | J57: 420 | K57: 1,469 | L57: 440 | M57: 1,538 | N57: 459 | O57: 1,608 | P57: 479 | Q57: 1,677 | R57: 504 | S57: 1,765 | T57: 529 | U57: 1,853 | V57: 554 | W57: 1,940 | X57: 579 | Y57: 2,028 | Z57: 605 | AA57: 2,116
A58: 19 | B58: 368 | C58: 1,287 | D58: 385 | E58: 1,346 | F58: 401 | G58: 1,404 | H58: 422 | I58: 1,478 | J58: 443 | K58: 1,551 | L58: 464 | M58: 1,624 | N58: 485 | O58: 1,697 | P58: 506 | Q58: 1,770 | R58: 532 | S58: 1,863 | T58: 559 | U58: 1,956 | V58: 585 | W58: 2,048 | X58: 612 | Y58: 2,141 | Z58: 638 | AA58: 2,234
A59: 20 | B59: 387 | C59: 1,355 | D59: 405 | E59: 1,417 | F59: 422 | G59: 1,478 | H59: 444 | I59: 1,555 | J59: 466 | K59: 1,632 | L59: 488 | M59: 1,709 | N59: 510 | O59: 1,786 | P59: 532 | Q59: 1,863 | R59: 560 | S59: 1,961 | T59: 588 | U59: 2,058 | V59: 616 | W59: 2,156 | X59: 644 | Y59: 2,254 | Z59: 672 | AA59: 2,351
A60: 21 | B60: 407 | C60: 1,423 | D60: 425 | E60: 1,488 | F60: 444 | G60: 1,552 | H60: 467 | I60: 1,633 | J60: 490 | K60: 1,714 | L60: 513 | M60: 1,795 | N60: 536 | O60: 1,876 | P60: 559 | Q60: 1,957 | R60: 588 | S60: 2,059 | T60: 618 | U60: 2,161 | V60: 647 | W60: 2,264 | X60: 676 | Y60: 2,366 | Z60: 705 | AA60: 2,469
A61: 22 | B61: 426 | C61: 1,491 | D61: 445 | E61: 1,558 | F61: 465 | G61: 1,626 | H61: 489 | I61: 1,711 | J61: 513 | K61: 1,796 | L61: 537 | M61: 1,880 | N61: 561 | O61: 1,965 | P61: 586 | Q61: 2,050 | R61: 616 | S61: 2,157 | T61: 647 | U61: 2,264 | V61: 678 | W61: 2,372 | X61: 708 | Y61: 2,479 | Z61: 739 | AA61: 2,586
A62: 23 | B62: 445 | C62: 1,558 | D62: 466 | E62: 1,629 | F62: 486 | G62: 1,700 | H62: 511 | I62: 1,789 | J62: 536 | K62: 1,877 | L62: 562 | M62: 1,966 | N62: 587 | O62: 2,054 | P62: 612 | Q62: 2,143 | R62: 644 | S62: 2,255 | T62: 676 | U62: 2,367 | V62: 708 | W62: 2,479 | X62: 740 | Y62: 2,592 | Z62: 772 | AA62: 2,704
A63: 24 | B63: 465 | C63: 1,626 | D63: 486 | E63: 1,700 | F63: 507 | G63: 1,774 | H63: 533 | I63: 1,866 | J63: 560 | K63: 1,959 | L63: 586 | M63: 2,051 | N63: 612 | O63: 2,144 | P63: 639 | Q63: 2,236 | R63: 672 | S63: 2,353 | T63: 706 | U63: 2,470 | V63: 739 | W63: 2,587 | X63: 773 | Y63: 2,704 | Z63: 806 | AA63: 2,821
A64: 25 | B64: 484 | C64: 1,694 | D64: 506 | E64: 1,771 | F64: 528 | G64: 1,848 | H64: 556 | I64: 1,944 | J64: 583 | K64: 2,041 | L64: 611 | M64: 2,137 | N64: 638 | O64: 2,233 | P64: 666 | Q64: 2,329 | R64: 700 | S64: 2,451 | T64: 735 | U64: 2,573 | V64: 770 | W64: 2,695 | X64: 805 | Y64: 2,817 | Z64: 840 | AA64: 2,939
A65: 26 | B65: 503 | C65: 1,762 | D65: 526 | E65: 1,842 | F65: 549 | G65: 1,922 | H65: 578 | I65: 2,022 | J65: 606 | K65: 2,122 | L65: 635 | M65: 2,222 | N65: 664 | O65: 2,322 | P65: 692 | Q65: 2,422 | R65: 728 | S65: 2,549 | T65: 765 | U65: 2,676 | V65: 801 | W65: 2,803 | X65: 837 | Y65: 2,930 | Z65: 873 | AA65: 3,056
A66: 27 | B66: 523 | C66: 1,830 | D66: 546 | E66: 1,913 | F66: 570 | G66: 1,996 | H66: 600 | I66: 2,100 | J66: 630 | K66: 2,204 | L66: 659 | M66: 2,308 | N66: 689 | O66: 2,412 | P66: 719 | Q66: 2,516 | R66: 756 | S66: 2,647 | T66: 794 | U66: 2,779 | V66: 832 | W66: 2,911 | X66: 869 | Y66: 3,042 | Z66: 907 | AA66: 3,174
A67: 28 | B67: 542 | C67: 1,897 | D67: 567 | E67: 1,984 | F67: 591 | G67: 2,070 | H67: 622 | I67: 2,178 | J67: 653 | K67: 2,285 | L67: 684 | M67: 2,393 | N67: 715 | O67: 2,501 | P67: 745 | Q67: 2,609 | R67: 784 | S67: 2,745 | T67: 823 | U67: 2,882 | V67: 862 | W67: 3,018 | X67: 901 | Y67: 3,155 | Z67: 940 | AA67: 3,291
A68: 29 | B68: 561 | C68: 1,965 | D68: 587 | E68: 2,054 | F68: 612 | G68: 2,144 | H68: 644 | I68: 2,255 | J68: 676 | K68: 2,367 | L68: 708 | M68: 2,479 | N68: 740 | O68: 2,590 | P68: 772 | Q68: 2,702 | R68: 812 | S68: 2,843 | T68: 853 | U68: 2,985 | V68: 893 | W68: 3,126 | X68: 934 | Y68: 3,268 | Z68: 974 | AA68: 3,409
A69: 30 | B69: 581 | C69: 2,033 | D69: 607 | E69: 2,125 | F69: 634 | G69: 2,218 | H69: 667 | I69: 2,333 | J69: 700 | K69: 2,449 | L69: 733 | M69: 2,564 | N69: 766 | O69: 2,680 | P69: 799 | Q69: 2,795 | R69: 840 | S69: 2,941 | T69: 882 | U69: 3,088 | V69: 924 | W69: 3,234 | X69: 966 | Y69: 3,380 | Z69: 1008 | AA69: 3,527
AB70: 111.11製表

Sheet 退休金分級表11101起
B1: 勞工退休金月提繳分級表
B2: 中華民國110年11月24日勞動部勞動福3字第1100136255號令修正發布，自111年1月1日生效
B3: 級距 | C3: 級 | D3: 實際工資/執行業務所得 | E3: 月提繳工資/月提繳執行業務所得 | F3: 級距 | G3: 級 | H3: 實際工資/執行業務所得 | I3: 月提繳工資/月提繳執行業務所得
B4: 第1組 | C4: 1 | D4: 1,500元以下 | E4: 1,500元 | F4: 第7組 | G4: 35 | H4: 45,801元至48,200元 | I4: 48,200元
C5: 2 | D5: 1,501元至3,000元 | E5: 3,000元 | G5: 36 | H5: 48,201元至50,600元 | I5: 50,600元
C6: 3 | D6: 3,001元至4,500元 | E6: 4,500元 | G6: 37 | H6: 50,601元至53,000元 | I6: 53,000元
C7: 4 | D7: 4,501元至6,000元 | E7: 6,000元 | G7: 38 | H7: 53,001元至55,400元 | I7: 55,400元
C8: 5 | D8: 6,001元至7,500元 | E8: 7,500元 | G8: 39 | H8: 55,401元至57,800元 | I8: 57,800元
B9: 第2組 | C9: 6 | D9: 7,501元至8,700元 | E9: 8,700元 | F9: 第8組 | G9: 40 | H9: 57,801元至60,800元 | I9: 60,800元
C10: 7 | D10: 8,701元至9,900元 | E10: 9,900元 | G10: 41 | H10: 60,801元至63,800元 | I10: 63,800元
C11: 8 | D11: 9,901元至11,100元 | E11: 11,100元 | G11: 42 | H11: 63,801元至66,800元 | I11: 66,800元
C12: 9 | D12: 11,101元至12,540元 | E12: 12,540元 | G12: 43 | H12: 66,801元至69,800元 | I12: 69,800元
C13: 10 | D13: 12,541元至13,500元 | E13: 13,500元 | G13: 44 | H13: 69,801元至72,800元 | I13: 72,800元
B14: 第3組 | C14: 11 | D14: 13,501元至15,840元 | E14: 15,840元 | F14: 第9組 | G14: 45 | H14: 72,801元至76,500元 | I14: 76,500元
C15: 12 | D15: 15,841元至16,500元 | E15: 16,500元 | G15: 46 | H15: 76,501元至80,200元 | I15: 80,200元
C16: 13 | D16: 16,501元至17,280元 | E16: 17,280元 | G16: 47 | H16: 80,201元至83,900元 | I16: 83,900元
C17: 14 | D17: 17,281元至17,880元 | E17: 17,880元 | G17: 48 | H17: 83,901元至87,600元 | I17: 87,600元
C18: 15 | D18: 17,881元至19,047元 | E18: 19,047元 | F18: 第10組 | G18: 49 | H18: 87,601元至92,100元 | I18: 92,100元
C19: 16 | D19: 19,048元至20,008元 | E19: 20,008元 | G19: 50 | H19: 92,101元至96,600元 | I19: 96,600元
C20: 17 | D20: 20,009元至21,009元 | E20: 21,009元 | G20: 51 | H20: 96,601元至101,100元 | I20: 101,100元
C21: 18 | D21: 21,010元至22,000元 | E21: 22,000元 | G21: 52 | H21: 101,101元至105,600元 | I21: 105,600元
C22: 19 | D22: 22,001元至23,100元 | E22: 23,100元 | G22: 53 | H22: 105,601元至110,100元 | I22: 110,100元
B23: 第4組 | C23: 20 | D23: 23,101元至24,000元 | E23: 24,000元 | F23: 第11組 | G23: 54 | H23: 110,101元至115,500元 | I23: 115,500元
C24: 21 | D24: 24,001元至25,250元 | E24: 25,250元 | G24: 55 | H24: 115,501元至120,900元 | I24: 120,900元
C25: 22 | D25: 25,251元至26,400元 | E25: 26,400元 | G25: 56 | H25: 120,901元至126,300元 | I25: 126,300元
C26: 23 | D26: 26,401元至27,600元 | E26: 27,600元 | G26: 57 | H26: 126,301元至131,700元 | I26: 131,700元
C27: 24 | D27: 27,601元至28,800元 | E27: 28,800元 | G27: 58 | H27: 131,701元至137,100元 | I27: 137,100元
B28: 第5組 | C28: 25 | D28: 28,801元至30,300元 | E28: 30,300元 | G28: 59 | H28: 137,101元至142,500元 | I28: 142,500元
C29: 26 | D29: 30,301元至31,800元 | E29: 31,800元 | G29: 60 | H29: 142,501元至147,900元 | I29: 147,900元
C30: 27 | D30: 31,801元至33,300元 | E30: 33,300元 | G30: 61 | H30: 147,901元以上 | I30: 150,000元
C31: 28 | D31: 33,301元至34,800元 | E31: 34,800元 | F31: 備註：
C32: 29 | D32: 34,801元至36,300元 | E32: 36,300元 | F32: 一、本表依勞工退休金條例第十四條第五項規定
B33: 第6組 | C33: 30 | D33: 36,301元至38,200元 | E33: 38,200元 | F33: 訂定之。
C34: 31 | D34: 38,201元至40,100元 | E34: 40,100元 | F34: 二、本表月提繳工資/月提繳執行業務所得金額以新臺幣元為單位，角以下四捨五入。
C35: 32 | D35: 40,101元至42,000元 | E35: 42,000元
C36: 33 | D36: 42,001元至43,900元 | E36: 43,900元
C37: 34 | D37: 43,901元至45,800元 | E37: 45,800元

Sheet 健保_雇主11201
A1: 全民健康保險保險費負擔金額表(五)
B2: ﹝雇主、自營業主、專門職業及技術人員自行執業者適用﹞ | F2: 單位：新台幣元
A3: 投保金額等級 | B3: 月投保金額 | C3: 被保險人及眷屬負擔金額﹝負擔比率100%﹞
C4: 本人 | D4: 本人+1眷口 | E4: 本人+2眷口 | F4: 本人+3眷口
A5: 1
A6: =+A5+1 -> 2
A7: 3
A8: 4
A9: 5
A10: 6 | B10: 33,300 | C10: =+ROUND(B10*0.0517,0) -> 1722 | D10: =+C10*2 -> 3444 | E10: =+C10*3 -> 5166 | F10: =+C10*4 -> 6888
A11: 7 | B11: 34,800 | C11: 1799 | D11: =+C11*2 -> 3598 | E11: =+C11*3 -> 5397 | F11: =+C11*4 -> 7196
A12: 8 | B12: 36,300 | C12: 1877 | D12: =+C12*2 -> 3754 | E12: =+C12*3 -> 5631 | F12: =+C12*4 -> 7508
A13: 9 | B13: 38,200 | C13: 1975 | D13: 3950 | E13: 5925 | F13: 7900
A14: 10 | B14: 40,100 | C14: 2073 | D14: 4146 | E14: 6219 | F14: 8292
A15: 11 | B15: 42,000 | C15: 2171 | D15: 4342 | E15: 6513 | F15: 8684
A16: 12 | B16: 43,900 | C16: 2270 | D16: 4540 | E16: 6810 | F16: 9080
A17: 13 | B17: 45,800 | C17: 2368 | D17: 4736 | E17: 7104 | F17: 9472
A18: 14 | B18: 48,200 | C18: 2492 | D18: 4984 | E18: 7476 | F18: 9968
A19: 15 | B19: 50,600 | C19: 2616 | D19: 5232 | E19: 7848 | F19: 10464
A20: 16 | B20: 53,000 | C20: 2740 | D20: 5480 | E20: 8220 | F20: 10960
A21: 17 | B21: 55,400 | C21: 2864 | D21: 5728 | E21: 8592 | F21: 11456
A22: 18 | B22: 57,800 | C22: 2988 | D22: 5976 | E22: 8964 | F22: 11952
A23: 19 | B23: 60,800 | C23: 3143 | D23: 6286 | E23: 9429 | F23: 12572
A24: 20 | B24: 63,800 | C24: 3298 | D24: 6596 | E24: 9894 | F24: 13192
A25: 21 | B25: 66,800 | C25: 3454 | D25: 6908 | E25: 10362 | F25: 13816
A26: 22 | B26: 69,800 | C26: 3609 | D26: 7218 | E26: 10827 | F26: 14436
A27: 23 | B27: 72,800 | C27: 3764 | D27: 7528 | E27: 11292 | F27: 15056
A28: 24 | B28: 76,500 | C28: 3955 | D28: 7910 | E28: 11865 | F28: 15820
A29: 25 | B29: 80,200 | C29: 4146 | D29: 8292 | E29: 12438 | F29: 16584
A30: 26 | B30: 83,900 | C30: 4338 | D30: 8676 | E30: 13014 | F30: 17352
A31: 27 | B31: 87,600 | C31: 4529 | D31: 9058 | E31: 13587 | F31: 18116
A32: 28 | B32: 92,100 | C32: 4762 | D32: 9524 | E32: 14286 | F32: 19048
A33: 29 | B33: 96,600 | C33: 4994 | D33: 9988 | E33: 14982 | F33: 19976
A34: 30 | B34: 101,100 | C34: 5227 | D34: 10454 | E34: 15681 | F34: 20908
A35: 31 | B35: 105,600 | C35: 5460 | D35: 10920 | E35: 16380 | F35: 21840
A36: 32 | B36: 110,100 | C36: 5692 | D36: 11384 | E36: 17076 | F36: 22768
A37: 33 | B37: 115,500 | C37: 5971 | D37: 11942 | E37: 17913 | F37: 23884
A38: 34 | B38: 120,900 | C38: 6251 | D38: 12502 | E38: 18753 | F38: 25004
A39: 35 | B39: 126,300 | C39: 6530 | D39: 13060 | E39: 19590 | F39: 26120
A40: 36 | B40: 131,700 | C40: 6809 | D40: 13618 | E40: 20427 | F40: 27236
A41: 37 | B41: 137,100 | C41: 7088 | D41: 14176 | E41: 21264 | F41: 28352
A42: 38 | B42: 142,500 | C42: 7367 | D42: 14734 | E42: 22101 | F42: 29468
A43: 39 | B43: 147,900 | C43: 7646 | D43: 15292 | E43: 22938 | F43: 30584
A44: =+A43+1 -> 40 | B44: 150,000 | C44: 7755 | D44: 15510 | E44: 23265 | F44: 31020
A45: 41 | B45: 156,400 | C45: 8086 | D45: 16172 | E45: 24258 | F45: 32344
A46: 42 | B46: 162,800 | C46: 8417 | D46: 16834 | E46: 25251 | F46: 33668
A47: 43 | B47: 169,200 | C47: 8748 | D47: 17496 | E47: 26244 | F47: 34992
A48: =+A47+1 -> 44 | B48: 175,600 | C48: 9079 | D48: 18158 | E48: 27237 | F48: 36316
A49: 45 | B49: 182,000 | C49: 9409 | D49: 18818 | E49: 28227 | F49: 37636
A50: 46 | B50: 189,500 | C50: 9797 | D50: 19594 | E50: 29391 | F50: 39188
A51: 47 | B51: 197,000 | C51: 10185 | D51: 20370 | E51: 30555 | F51: 40740
A52: 48 | B52: 204,500 | C52: 10573 | D52: 21146 | E52: 31719 | F52: 42292
A53: 49 | B53: 212,000 | C53: 10960 | D53: 21920 | E53: 32880 | F53: 43840
A54: 50 | B54: 219,500 | C54: 11348 | D54: 22696 | E54: 34044 | F54: 45392
A55: 112年1月1日起實施 | F55: 中央健康保險署製表
A57: 註:1.自112年1月1日起，配合基本工資調整，修正投保金額分級表級數。
A58: 2.自111年7月1日起，投保金額最高一級調整為219,500元。
A59: 3.自110年1月1日起，調整費率為5.17%。
A60: 4.僱用被保險人數5人以上之事業單位負責人或會計師、律師、建築師、醫師、牙醫師、中醫師自行執業者除自行舉證申 報其投保金額者外，應按投保金額分級表最高一級申報。自行舉證申報之投保金額，最低不得低於勞工保險投保薪資 分級表最高一級(105年5月1日起為45,800元)及其所屬員工申報之最高投保金額。 5.僱用被保險人數未滿5人之事業單位負責人、前項以外之專門職業及技術人員自行執業者或屬於第一類被保險人之自營 業主，除自行舉證申報其投保金額者外，應按投保金額分級表最高一級申報。自行舉證申報之投保金額，最低不得低 於健保法第10條第1項第1款第2目被保險人之平均投保金額(112年1月1日起為36,300元)及其所屬員工申報之最高投保金額。 6.但未僱用有酬人員幫同工作之前項第4點以外之專門職業及技術人員自行執業者,其自行舉證申報之投保金額，最低以 投保金額分級表第6級(112年1月1日起為33,300元)為限。

Sheet 健保_一定雇主之受雇者11201起
B1: 全民健康保險保險費負擔金額表(三)
B2: ﹝公、民營事業、機構及有一定雇主之受僱者適用﹞ | H2: 單位：新台幣元
A3: 投保金額等級 | B3: 月投保金額 | C3: 被保險人及眷屬負擔金額﹝負擔比率30%﹞ | G3: 投保單位負擔金額﹝負擔比率60%﹞ | H3: 政府補助金額﹝補助比率10%﹞
C4: 本人 | D4: 本人+１眷口 | E4: 本人+２眷口 | F4: 本人+３眷口
A5: 1 | B5: 26,400 | C5: =+ROUND(B5*0.0517*0.3,0) -> 409 | D5: =+C5*2 -> 818 | E5: =+C5*3 -> 1227 | F5: =+C5*4 -> 1636 | G5: =+ROUND(B5*0.0517*0.6*1.57,0) -> 1286 | H5: =+ROUND(B5*0.0517*0.1*1.57,0) -> 214
A6: =+A5+1 -> 2 | B6: 27,600 | C6: 428 | D6: 856 | E6: 1284 | F6: 1712 | G6: 1344 | H6: 224
A7: 3 | B7: 28,800 | C7: 447 | D7: 894 | E7: 1341 | F7: 1788 | G7: 1403 | H7: 234
A8: 4 | B8: 30,300 | C8: 470 | D8: 940 | E8: 1410 | F8: 1880 | G8: 1476 | H8: 246
A9: 5 | B9: 31,800 | C9: 493 | D9: 986 | E9: 1479 | F9: 1972 | G9: 1549 | H9: 258
A10: 6 | B10: 33,300 | C10: 516 | D10: 1032 | E10: 1548 | F10: 2064 | G10: 1622 | H10: 270
A11: 7 | B11: 34,800 | C11: 540 | D11: 1080 | E11: 1620 | F11: 2160 | G11: 1695 | H11: 282
A12: 8 | B12: 36,300 | C12: 563 | D12: 1126 | E12: 1689 | F12: 2252 | G12: 1768 | H12: 295
A13: 9 | B13: 38,200 | C13: 592 | D13: 1184 | E13: 1776 | F13: 2368 | G13: 1860 | H13: 310
A14: 10 | B14: 40,100 | C14: 622 | D14: 1244 | E14: 1866 | F14: 2488 | G14: 1953 | H14: 325
A15: 11 | B15: 42,000 | C15: 651 | D15: =+C15*2 -> 1302 | E15: 1953 | F15: 2604 | G15: 2045 | H15: 341
A16: 12 | B16: 43,900 | C16: 681 | D16: =+C16*2 -> 1362 | E16: 2043 | F16: 2724 | G16: 2138 | H16: 356
A17: 13 | B17: 45,800 | C17: 710 | D17: 1420 | E17: 2130 | F17: 2840 | G17: 2231 | H17: 372
A18: 14 | B18: 48,200 | C18: 748 | D18: 1496 | E18: 2244 | F18: 2992 | G18: 2347 | H18: 391
A19: 15 | B19: 50,600 | C19: 785 | D19: 1570 | E19: 2355 | F19: 3140 | G19: 2464 | H19: 411
A20: 16 | B20: 53,000 | C20: 822 | D20: 1644 | E20: 2466 | F20: 3288 | G20: 2581 | H20: 430
A21: 17 | B21: 55,400 | C21: 859 | D21: 1718 | E21: 2577 | F21: 3436 | G21: 2698 | H21: 450
A22: 18 | B22: 57,800 | C22: 896 | D22: 1792 | E22: 2688 | F22: 3584 | G22: 2815 | H22: 469
A23: 19 | B23: 60,800 | C23: 943 | D23: 1886 | E23: 2829 | F23: 3772 | G23: 2961 | H23: 494
A24: 20 | B24: 63,800 | C24: 990 | D24: 1980 | E24: 2970 | F24: 3960 | G24: 3107 | H24: 518
A25: 21 | B25: 66,800 | C25: 1036 | D25: 2072 | E25: 3108 | F25: 4144 | G25: 3253 | H25: 542
A26: 22 | B26: 69,800 | C26: 1083 | D26: 2166 | E26: 3249 | F26: 4332 | G26: 3399 | H26: 567
A27: 23 | B27: 72,800 | C27: 1129 | D27: 2258 | E27: 3387 | F27: 4516 | G27: 3545 | H27: 591
A28: 24 | B28: 76,500 | C28: 1187 | D28: 2374 | E28: 3561 | F28: 4748 | G28: 3726 | H28: 621
A29: 25 | B29: 80,200 | C29: 1244 | D29: 2488 | E29: 3732 | F29: 4976 | G29: 3906 | H29: 651
A30: 26 | B30: 83,900 | C30: 1301 | D30: 2602 | E30: 3903 | F30: 5204 | G30: 4086 | H30: 681
A31: 27 | B31: 87,600 | C31: 1359 | D31: 2718 | E31: 4077 | F31: 5436 | G31: 4266 | H31: 711
A32: 28 | B32: 92,100 | C32: 1428 | D32: 2856 | E32: 4284 | F32: 5712 | G32: 4485 | H32: 748
A33: 29 | B33: 96,600 | C33: 1498 | D33: 2996 | E33: 4494 | F33: 5992 | G33: 4705 | H33: 784
A34: 30 | B34: 101,100 | C34: 1568 | D34: 3136 | E34: 4704 | F34: 6272 | G34: 4924 | H34: 821
A35: 31 | B35: 105,600 | C35: 1638 | D35: 3276 | E35: 4914 | F35: 6552 | G35: 5143 | H35: 857
A36: 32 | B36: 110,100 | C36: 1708 | D36: 3416 | E36: 5124 | F36: 6832 | G36: 5362 | H36: 894
A37: 33 | B37: 115,500 | C37: 1791 | D37: 3582 | E37: 5373 | F37: 7164 | G37: 5625 | H37: 938
A38: 34 | B38: 120,900 | C38: 1875 | D38: 3750 | E38: 5625 | F38: 7500 | G38: 5888 | H38: 981
A39: 35 | B39: 126,300 | C39: 1959 | D39: 3918 | E39: 5877 | F39: 7836 | G39: 6151 | H39: 1025
A40: =+A39+1 -> 36 | B40: 131,700 | C40: 2043 | D40: 4086 | E40: 6129 | F40: 8172 | G40: 6414 | H40: 1069
A41: 37 | B41: 137,100 | C41: 2126 | D41: 4252 | E41: 6378 | F41: 8504 | G41: 6677 | H41: 1113
A42: 38 | B42: 142,500 | C42: 2210 | D42: 4420 | E42: 6630 | F42: 8840 | G42: 6940 | H42: 1157
A43: 39 | B43: 147,900 | C43: 2294 | D43: 4588 | E43: 6882 | F43: 9176 | G43: 7203 | H43: 1200
A44: =+A43+1 -> 40 | B44: 150,000 | C44: 2327 | D44: 4654 | E44: 6981 | F44: 9308 | G44: 7305 | H44: 1218
A45: 41 | B45: 156,400 | C45: 2426 | D45: 4852 | E45: 7278 | F45: 9704 | G45: 7617 | H45: 1269
A46: 42 | B46: 162,800 | C46: 2525 | D46: 5050 | E46: 7575 | F46: 10100 | G46: 7929 | H46: 1321
A47: 43 | B47: 169,200 | C47: 2624 | D47: 5248 | E47: 7872 | F47: 10496 | G47: 8240 | H47: 1373
A48: =+A47+1 -> 44 | B48: 175,600 | C48: 2724 | D48: 5448 | E48: 8172 | F48: 10896 | G48: 8552 | H48: 1425
A49: 45 | B49: 182,000 | C49: 2823 | D49: 5646 | E49: 8469 | F49: 11292 | G49: 8864 | H49: 1477
A50: 46 | B50: 189,500 | C50: 2939 | D50: 5878 | E50: 8817 | F50: 11756 | G50: 9229 | H50: 1538
A51: 47 | B51: 197,000 | C51: 3055 | D51: 6110 | E51: 9165 | F51: 12220 | G51: 9594 | H51: 1599
A52: 48 | B52: 204,500 | C52: 3172 | D52: 6344 | E52: 9516 | F52: 12688 | G52: 9959 | H52: 1660
A53: 49 | B53: 212,000 | C53: 3288 | D53: 6576 | E53: 9864 | F53: 13152 | G53: 10325 | H53: 1721
A54: 50 | B54: 219,500 | C54: 3404 | D54: 6808 | E54: 10212 | F54: 13616 | G54: 10690 | H54: 1782
A55: 112年1月1日起實施 | H55: 中央健康保險署製表
A57: 註:1.自112年1月1日起配合基本工資調整，第一級調整為26,400元。
A58: 2.自112年1月1日起調整平均眷口數為0.57人，投保單位負擔金額含本人 及平均眷屬人數0.57人,合計1.57人。
A59: 3.自111年7月1日起，投保金額最高一級調整為219,500元。
A60: 4.自110年1月1日起費率調整為5.17%。

Sheet 勞保_一般員工勞就保11101起
A1: 勞 工 保 險 普 通 事 故 保 險 費 及 就 業 保 險 保 險 費 合 計 之 被 保 險 人 與 投 保 單 位 分 擔 金 額 表 (自111年1月1日起適用) | AE1: 普通事故費率 | AF1: 10.50%
A2: ※本表不含勞工保險職業災害保險費，職業災害保險費率依投保單位行業別而有不同，請按繳款單所列職業災害保險費率自行計算，並請依規定職業災害保險費全部由投保單位負擔。單位：新台幣元 | AE2: 就業保險費率 | AF2: 1.00%
B3: 部分工時勞工適用 | AB3: 第1級
B4: 11,100 | D4: 12,540 | F4: 13,500 | H4: 15,840 | J4: 16,500 | L4: 17,280 | N4: 17,880 | P4: 19,047 | R4: 20,008 | T4: 21,009 | V4: 22,000 | X4: 23,100 | Z4: 24,000 | AB4: 25,250
B5: 勞工 | C5: 單位 | D5: 勞工 | E5: 單位 | F5: 勞工 | G5: 單位 | H5: 勞工 | I5: 單位 | J5: 勞工 | K5: 單位 | L5: 勞工 | M5: 單位 | N5: 勞工 | O5: 單位 | P5: 勞工 | Q5: 單位 | R5: 勞工 | S5: 單位 | T5: 勞工 | U5: 單位 | V5: 勞工 | W5: 單位 | X5: 勞工 | Y5: 單位 | Z5: 勞工 | AA5: 單位 | AB5: 勞工 | AC5: 單位
A6: 1 | B6: =ROUND($B$4*$A6/30*$AF$1*20/100,0)+ROUND($B$4*$A6/30*$AF$2*20/100,0) -> 9 | C6: =ROUND($B$4*$A6/30*$AF$1*70/100,0)+ROUND($B$4*$A6/30*$AF$2*70/100,0) -> 30 | D6: =ROUND($D$4*$A6/30*$AF$1*20/100,0)+ROUND($D$4*$A6/30*$AF$2*20/100,0) -> 10 | E6: =ROUND($D$4*$A6/30*$AF$1*70/100,0)+ROUND($D$4*$A6/30*$AF$2*70/100,0) -> 34 | F6: =ROUND($F$4*$A6/30*$AF$1*20/100,0)+ROUND($F$4*$A6/30*$AF$2*20/100,0) -> 10 | G6: =ROUND($F$4*$A6/30*$AF$1*70/100,0)+ROUND($F$4*$A6/30*$AF$2*70/100,0) -> 36 | H6: =ROUND($H$4*$A6/30*$AF$1*20/100,0)+ROUND($H$4*$A6/30*$AF$2*20/100,0) -> 12 | I6: =ROUND($H$4*$A6/30*$AF$1*70/100,0)+ROUND($H$4*$A6/30*$AF$2*70/100,0) -> 43 | J6: =ROUND($J$4*$A6/30*$AF$1*20/100,0)+ROUND($J$4*$A6/30*$AF$2*20/100,0) -> 13 | K6: =ROUND($J$4*$A6/30*$AF$1*70/100,0)+ROUND($J$4*$A6/30*$AF$2*70/100,0) -> 44 | L6: =ROUND($L$4*$A6/30*$AF$1*20/100,0)+ROUND($L$4*$A6/30*$AF$2*20/100,0) -> 13 | M6: =ROUND($L$4*$A6/30*$AF$1*70/100,0)+ROUND($L$4*$A6/30*$AF$2*70/100,0) -> 46 | N6: =ROUND($N$4*$A6/30*$AF$1*20/100,0)+ROUND($N$4*$A6/30*$AF$2*20/100,0) -> 14 | O6: =ROUND($N$4*$A6/30*$AF$1*70/100,0)+ROUND($N$4*$A6/30*$AF$2*70/100,0) -> 48 | P6: =ROUND($P$4*$A6/30*$AF$1*20/100,0)+ROUND($P$4*$A6/30*$AF$2*20/100,0) -> 14 | Q6: =ROUND($P$4*$A6/30*$AF$1*70/100,0)+ROUND($P$4*$A6/30*$AF$2*70/100,0) -> 51 | R6: =ROUND($R$4*$A6/30*$AF$1*20/100,0)+ROUND($R$4*$A6/30*$AF$2*20/100,0) -> 15 | S6: =ROUND($R$4*$A6/30*$AF$1*70/100,0)+ROUND($R$4*$A6/30*$AF$2*70/100,0) -> 54 | T6: =ROUND($T$4*$A6/30*$AF$1*20/100,0)+ROUND($T$4*$A6/30*$AF$2*20/100,0) -> 16 | U6: =ROUND($T$4*$A6/30*$AF$1*70/100,0)+ROUND($T$4*$A6/30*$AF$2*70/100,0) -> 56 | V6: =ROUND($V$4*$A6/30*$AF$1*20/100,0)+ROUND($V$4*$A6/30*$AF$2*20/100,0) -> 16 | W6: =ROUND($V$4*$A6/30*$AF$1*70/100,0)+ROUND($V$4*$A6/30*$AF$2*70/100,0) -> 59 | X6: =ROUND($X$4*$A6/30*$AF$1*20/100,0)+ROUND($X$4*$A6/30*$AF$2*20/100,0) -> 18 | Y6: =ROUND($X$4*$A6/30*$AF$1*70/100,0)+ROUND($X$4*$A6/30*$AF$2*70/100,0) -> 62 | Z6: =ROUND($Z$4*$A6/30*$AF$1*20/100,0)+ROUND($Z$4*$A6/30*$AF$2*20/100,0) -> 19 | AA6: =ROUND($Z$4*$A6/30*$AF$1*70/100,0)+ROUND($Z$4*$A6/30*$AF$2*70/100,0) -> 65 | AB6: =ROUND($AB$4*$A6/30*$AF$1*20/100,0)+ROUND($AB$4*$A6/30*$AF$2*20/100,0) -> 20 | AC6: =ROUND($AB$4*$A6/30*$AF$1*70/100,0)+ROUND($AB$4*$A6/30*$AF$2*70/100,0) -> 68
A7: 2 | B7: 17 | C7: 59 | D7: 20 | E7: 67 | F7: 21 | G7: 72 | H7: 24 | I7: 85 | J7: 25 | K7: 89 | L7: 26 | M7: 93 | N7: 27 | O7: 96 | P7: 30 | Q7: 102 | R7: 31 | S7: 107 | T7: 32 | U7: 113 | V7: 34 | W7: 118 | X7: 35 | Y7: 124 | Z7: 37 | AA7: 129 | AB7: 38 | AC7: 136
A8: 3 | B8: 25 | C8: 90 | D8: 29 | E8: 101 | F8: 31 | G8: 108 | H8: 36 | I8: 127 | J8: 38 | K8: 133 | L8: 39 | M8: 139 | N8: 42 | O8: 144 | P8: 44 | Q8: 153 | R8: 46 | S8: 161 | T8: 48 | U8: 169 | V8: 50 | W8: 177 | X8: 54 | Y8: 186 | Z8: 55 | AA8: 193 | AB8: 58 | AC8: 204
A9: 4 | B9: 34 | C9: 119 | D9: 38 | E9: 135 | F9: 42 | G9: 145 | H9: 48 | I9: 170 | J9: 50 | K9: 177 | L9: 53 | M9: 185 | N9: 55 | O9: 192 | P9: 58 | Q9: 205 | R9: 61 | S9: 215 | T9: 65 | U9: 226 | V9: 68 | W9: 237 | X9: 71 | Y9: 248 | Z9: 73 | AA9: 257 | AB9: 78 | AC9: 271
A10: 5 | B10: 43 | C10: 149 | D10: 48 | E10: 169 | F10: 52 | G10: 181 | H10: 60 | I10: 212 | J10: 64 | K10: 221 | L10: 66 | M10: 232 | N10: 69 | O10: 240 | P10: 73 | Q10: 255 | R10: 77 | S10: 268 | T10: 81 | U10: 282 | V10: 84 | W10: 296 | X10: 89 | Y10: 310 | Z10: 92 | AA10: 322 | AB10: 96 | AC10: 338
A11: 6 | B11: 51 | C11: 179 | D11: 58 | E11: 202 | F11: 62 | G11: 217 | H11: 73 | I11: 255 | J11: 76 | K11: 266 | L11: 80 | M11: 278 | N11: 82 | O11: 288 | P11: 88 | Q11: 307 | R11: 92 | S11: 322 | T11: 96 | U11: 338 | V11: 101 | W11: 354 | X11: 106 | Y11: 372 | Z11: 111 | AA11: 387 | AB11: 116 | AC11: 406
A12: 7 | B12: 59 | C12: 208 | D12: 67 | E12: 235 | F12: 72 | G12: 254 | H12: 85 | I12: 298 | J12: 89 | K12: 310 | L12: 93 | M12: 324 | N12: 96 | O12: 336 | P12: 102 | Q12: 358 | R12: 107 | S12: 376 | T12: 113 | U12: 394 | V12: 118 | W12: 413 | X12: 124 | Y12: 434 | Z12: 129 | AA12: 451 | AB12: 136 | AC12: 474
A13: 8 | B13: 68 | C13: 239 | D13: 77 | E13: 269 | F13: 83 | G13: 290 | H13: 97 | I13: 340 | J13: 101 | K13: 354 | L13: 106 | M13: 371 | N13: 110 | O13: 383 | P13: 117 | Q13: 409 | R13: 123 | S13: 429 | T13: 129 | U13: 451 | V13: 135 | W13: 472 | X13: 141 | Y13: 496 | Z13: 147 | AA13: 515 | AB13: 154 | AC13: 542
A14: 9 | B14: 77 | C14: 268 | D14: 87 | E14: 303 | F14: 93 | G14: 326 | H14: 110 | I14: 382 | J14: 114 | K14: 399 | L14: 119 | M14: 417 | N14: 124 | O14: 432 | P14: 131 | Q14: 460 | R14: 138 | S14: 483 | T14: 145 | U14: 507 | V14: 152 | W14: 531 | X14: 160 | Y14: 558 | Z14: 165 | AA14: 579 | AB14: 174 | AC14: 610
A15: 10 | B15: 85 | C15: 298 | D15: 96 | E15: 336 | F15: 104 | G15: 363 | H15: 122 | I15: 425 | J15: 127 | K15: 443 | L15: 133 | M15: 463 | N15: 137 | O15: 480 | P15: 146 | Q15: 511 | R15: 153 | S15: 537 | T15: 161 | U15: 564 | V15: 169 | W15: 590 | X15: 177 | Y15: 620 | Z15: 184 | AA15: 644 | AB15: 194 | AC15: 678
A16: 11 | B16: 93 | C16: 327 | D16: 106 | E16: 370 | F16: 114 | G16: 399 | H16: 134 | I16: 468 | J16: 139 | K16: 487 | L16: 146 | M16: 510 | N16: 151 | O16: 528 | P16: 161 | Q16: 562 | R16: 169 | S16: 590 | T16: 177 | U16: 620 | V16: 185 | W16: 649 | X16: 195 | Y16: 682 | Z16: 203 | AA16: 709 | AB16: 213 | AC16: 745
A17: 12 | B17: 102 | C17: 357 | D17: 115 | E17: 404 | F17: 124 | G17: 435 | H17: 146 | I17: 510 | J17: 152 | K17: 531 | L17: 159 | M17: 556 | N17: 164 | O17: 576 | P17: 175 | Q17: 613 | R17: 184 | S17: 644 | T17: 193 | U17: 677 | V17: 203 | W17: 709 | X17: 212 | Y17: 744 | Z17: 221 | AA17: 773 | AB17: 232 | AC17: 813
A18: 13 | B18: 111 | C18: 388 | D18: 125 | E18: 437 | F18: 135 | G18: 471 | H18: 158 | I18: 553 | J18: 164 | K18: 576 | L18: 172 | M18: 602 | N18: 178 | O18: 623 | P18: 190 | Q18: 665 | R18: 199 | S18: 698 | T18: 209 | U18: 733 | V18: 219 | W18: 768 | X18: 230 | Y18: 806 | Z18: 239 | AA18: 837 | AB18: 252 | AC18: 881
A19: 14 | B19: 119 | C19: 417 | D19: 135 | E19: 471 | F19: 145 | G19: 507 | H19: 170 | I19: 595 | J19: 177 | K19: 620 | L19: 185 | M19: 649 | N19: 192 | O19: 671 | P19: 205 | Q19: 715 | R19: 215 | S19: 751 | T19: 226 | U19: 790 | V19: 237 | W19: 827 | X19: 248 | Y19: 867 | Z19: 257 | AA19: 901 | AB19: 271 | AC19: 948
A20: 15 | B20: 128 | C20: 447 | D20: 145 | E20: 505 | F20: 156 | G20: 543 | H20: 182 | I20: 637 | J20: 190 | K20: 664 | L20: 198 | M20: 695 | N20: 206 | O20: 720 | P20: 219 | Q20: 767 | R20: 230 | S20: 805 | T20: 242 | U20: 846 | V20: 253 | W20: 886 | X20: 266 | Y20: 930 | Z20: 276 | AA20: 966 | AB20: 290 | AC20: 1,016
A21: 16 | B21: 136 | C21: 476 | D21: 153 | E21: 539 | F21: 165 | G21: 579 | H21: 194 | I21: 680 | J21: 203 | K21: 709 | L21: 212 | M21: 742 | N21: 219 | O21: 768 | P21: 233 | Q21: 818 | R21: 245 | S21: 859 | T21: 257 | U21: 902 | V21: 269 | W21: 944 | X21: 284 | Y21: 992 | Z21: 295 | AA21: 1,031 | AB21: 310 | AC21: 1,084
A22: 17 | B22: 145 | C22: 506 | D22: 163 | E22: 572 | F22: 176 | G22: 616 | H22: 206 | I22: 723 | J22: 215 | K22: 752 | L22: 226 | M22: 789 | N22: 233 | O22: 816 | P22: 249 | Q22: 869 | R22: 261 | S22: 912 | T22: 274 | U22: 958 | V22: 287 | W22: 1,003 | X22: 301 | Y22: 1,054 | Z22: 313 | AA22: 1,095 | AB22: 329 | AC22: 1,152
A23: 18 | B23: 153 | C23: 537 | D23: 173 | E23: 606 | F23: 186 | G23: 652 | H23: 219 | I23: 766 | J23: 228 | K23: 797 | L23: 239 | M23: 835 | N23: 246 | O23: 864 | P23: 263 | Q23: 920 | R23: 276 | S23: 966 | T23: 290 | U23: 1,014 | V23: 303 | W23: 1,062 | X23: 319 | Y23: 1,116 | Z23: 331 | AA23: 1,159 | AB23: 348 | AC23: 1,220
A24: 19 | B24: 162 | C24: 566 | D24: 183 | E24: 640 | F24: 197 | G24: 688 | H24: 231 | I24: 807 | J24: 240 | K24: 841 | L24: 252 | M24: 881 | N24: 261 | O24: 911 | P24: 277 | Q24: 971 | R24: 291 | S24: 1,020 | T24: 306 | U24: 1,071 | V24: 321 | W24: 1,122 | X24: 336 | Y24: 1,177 | Z24: 349 | AA24: 1,223 | AB24: 368 | AC24: 1,287
A25: 20 | B25: 170 | C25: 596 | D25: 193 | E25: 673 | F25: 207 | G25: 725 | H25: 243 | I25: 850 | J25: 253 | K25: 886 | L25: 265 | M25: 928 | N25: 274 | O25: 959 | P25: 292 | Q25: 1,022 | R25: 307 | S25: 1,073 | T25: 322 | U25: 1,127 | V25: 337 | W25: 1,181 | X25: 354 | Y25: 1,240 | Z25: 368 | AA25: 1,288 | AB25: 388 | AC25: 1,355
A26: 21 | B26: 179 | C26: 625 | D26: 202 | E26: 706 | F26: 217 | G26: 761 | H26: 255 | I26: 893 | J26: 266 | K26: 930 | L26: 278 | M26: 974 | N26: 288 | O26: 1,008 | P26: 307 | Q26: 1,073 | R26: 322 | S26: 1,127 | T26: 338 | U26: 1,184 | V26: 354 | W26: 1,240 | X26: 372 | Y26: 1,301 | Z26: 387 | AA26: 1,353 | AB26: 406 | AC26: 1,423
A27: 22 | B27: 187 | C27: 655 | D27: 211 | E27: 740 | F27: 228 | G27: 797 | H27: 267 | I27: 935 | J27: 278 | K27: 974 | L27: 291 | M27: 1,020 | N27: 301 | O27: 1,056 | P27: 321 | Q27: 1,125 | R27: 337 | S27: 1,181 | T27: 355 | U27: 1,240 | V27: 371 | W27: 1,299 | X27: 390 | Y27: 1,364 | Z27: 405 | AA27: 1,417 | AB27: 426 | AC27: 1,491
A28: 23 | B28: 196 | C28: 685 | D28: 221 | E28: 774 | F28: 238 | G28: 833 | H28: 279 | I28: 978 | J28: 291 | K28: 1,019 | L28: 304 | M28: 1,067 | N28: 315 | O28: 1,104 | P28: 336 | Q28: 1,175 | R28: 353 | S28: 1,234 | T28: 370 | U28: 1,297 | V28: 388 | W28: 1,358 | X28: 407 | Y28: 1,426 | Z28: 423 | AA28: 1,481 | AB28: 446 | AC28: 1,559
A29: 24 | B29: 204 | C29: 715 | D29: 231 | E29: 807 | F29: 249 | G29: 870 | H29: 291 | I29: 1,020 | J29: 303 | K29: 1,062 | L29: 318 | M29: 1,113 | N29: 329 | O29: 1,151 | P29: 350 | Q29: 1,227 | R29: 368 | S29: 1,288 | T29: 387 | U29: 1,353 | V29: 405 | W29: 1,417 | X29: 425 | Y29: 1,487 | Z29: 441 | AA29: 1,545 | AB29: 464 | AC29: 1,626
A30: 25 | B30: 213 | C30: 745 | D30: 240 | E30: 841 | F30: 259 | G30: 906 | H30: 303 | I30: 1,062 | J30: 317 | K30: 1,107 | L30: 331 | M30: 1,159 | N30: 343 | O30: 1,199 | P30: 365 | Q30: 1,278 | R30: 383 | S30: 1,342 | T30: 403 | U30: 1,410 | V30: 422 | W30: 1,476 | X30: 443 | Y30: 1,550 | Z30: 460 | AA30: 1,610 | AB30: 484 | AC30: 1,694
A31: 26 | B31: 221 | C31: 774 | D31: 250 | E31: 875 | F31: 269 | G31: 942 | H31: 315 | I31: 1,105 | J31: 329 | K31: 1,151 | L31: 344 | M31: 1,206 | N31: 356 | O31: 1,247 | P31: 380 | Q31: 1,329 | R31: 399 | S31: 1,396 | T31: 418 | U31: 1,465 | V31: 438 | W31: 1,534 | X31: 460 | Y31: 1,611 | Z31: 479 | AA31: 1,675 | AB31: 504 | AC31: 1,761
A32: 27 | B32: 230 | C32: 804 | D32: 260 | E32: 909 | F32: 279 | G32: 978 | H32: 328 | I32: 1,148 | J32: 342 | K32: 1,195 | L32: 358 | M32: 1,252 | N32: 370 | O32: 1,296 | P32: 394 | Q32: 1,380 | R32: 414 | S32: 1,450 | T32: 435 | U32: 1,522 | V32: 456 | W32: 1,594 | X32: 479 | Y32: 1,674 | Z32: 497 | AA32: 1,739 | AB32: 522 | AC32: 1,829
A33: 28 | B33: 239 | C33: 834 | D33: 269 | E33: 942 | F33: 290 | G33: 1,014 | H33: 340 | I33: 1,190 | J33: 354 | K33: 1,240 | L33: 371 | M33: 1,298 | N33: 383 | O33: 1,344 | P33: 409 | Q33: 1,431 | R33: 429 | S33: 1,504 | T33: 451 | U33: 1,578 | V33: 472 | W33: 1,653 | X33: 496 | Y33: 1,736 | Z33: 515 | AA33: 1,803 | AB33: 542 | AC33: 1,897
A34: 29 | B34: 246 | C34: 864 | D34: 279 | E34: 976 | F34: 300 | G34: 1,050 | H34: 353 | I34: 1,232 | J34: 367 | K34: 1,284 | L34: 384 | M34: 1,345 | N34: 398 | O34: 1,391 | P34: 424 | Q34: 1,482 | R34: 445 | S34: 1,557 | T34: 467 | U34: 1,635 | V34: 490 | W34: 1,712 | X34: 514 | Y34: 1,797 | Z34: 533 | AA34: 1,867 | AB34: 562 | AC34: 1,965
A35: 30 | B35: 255 | C35: 894 | D35: 288 | E35: 1,010 | F35: 311 | G35: 1,087 | H35: 365 | I35: 1,275 | J35: 380 | K35: 1,329 | L35: 398 | M35: 1,391 | N35: 411 | O35: 1,439 | P35: 438 | Q35: 1,533 | R35: 460 | S35: 1,611 | T35: 483 | U35: 1,691 | V35: 506 | W35: 1,771 | X35: 531 | Y35: 1,860 | Z35: 552 | AA35: 1,932 | AB35: 581 | AC35: 2,033
B37: 第2級 | D37: 第3級 | F37: 第4級 | H37: 第5級 | J37: 第6級 | L37: 第7級 | N37: 第8級 | P37: 第9級 | R37: 第10級 | T37: 第11級 | V37: 第12級 | X37: 第13級 | Z37: 第14級
B38: 26,400 | D38: 27,600 | F38: 28,800 | H38: 30,300 | J38: 31,800 | L38: 33,300 | N38: 34,800 | P38: 36,300 | R38: 38,200 | T38: 40,100 | V38: 42,000 | X38: 43,900 | Z38: 45,800
B39: 勞工 | C39: 單位 | D39: 勞工 | E39: 單位 | F39: 勞工 | G39: 單位 | H39: 勞工 | I39: 單位 | J39: 勞工 | K39: 單位 | L39: 勞工 | M39: 單位 | N39: 勞工 | O39: 單位 | P39: 勞工 | Q39: 單位 | R39: 勞工 | S39: 單位 | T39: 勞工 | U39: 單位 | V39: 勞工 | W39: 單位 | X39: 勞工 | Y39: 單位 | Z39: 勞工 | AA39: 單位 | AB39: 勞工 | AC39: 單位
A40: 1 | B40: =ROUND($B$38*$A40/30*$AF$1*20/100,0)+ROUND($B$38*$A40/30*$AF$2*20/100,0) -> 20 | C40: =ROUND($B$38*$A40/30*$AF$1*70/100,0)+ROUND($B$38*$A40/30*$AF$2*70/100,0) -> 71 | D40: =ROUND($D$38*$A40/30*$AF$1*20/100,0)+ROUND($D$38*$A40/30*$AF$2*20/100,0) -> 21 | E40: =ROUND($D$38*$A40/30*$AF$1*70/100,0)+ROUND($D$38*$A40/30*$AF$2*70/100,0) -> 74 | F40: =ROUND($F$38*$A40/30*$AF$1*20/100,0)+ROUND($F$38*$A40/30*$AF$2*20/100,0) -> 22 | G40: =ROUND($F$38*$A40/30*$AF$1*70/100,0)+ROUND($F$38*$A40/30*$AF$2*70/100,0) -> 78 | H40: =ROUND($H$38*$A40/30*$AF$1*20/100,0)+ROUND($H$38*$A40/30*$AF$2*20/100,0) -> 23 | I40: =ROUND($H$38*$A40/30*$AF$1*70/100,0)+ROUND($H$38*$A40/30*$AF$2*70/100,0) -> 81 | J40: =ROUND($J$38*$A40/30*$AF$1*20/100,0)+ROUND($J$38*$A40/30*$AF$2*20/100,0) -> 24 | K40: =ROUND($J$38*$A40/30*$AF$1*70/100,0)+ROUND($J$38*$A40/30*$AF$2*70/100,0) -> 85 | L40: =ROUND($L$38*$A40/30*$AF$1*20/100,0)+ROUND($L$38*$A40/30*$AF$2*20/100,0) -> 25 | M40: =ROUND($L$38*$A40/30*$AF$1*70/100,0)+ROUND($L$38*$A40/30*$AF$2*70/100,0) -> 90 | N40: =ROUND($N$38*$A40/30*$AF$1*20/100,0)+ROUND($N$38*$A40/30*$AF$2*20/100,0) -> 26 | O40: =ROUND($N$38*$A40/30*$AF$1*70/100,0)+ROUND($N$38*$A40/30*$AF$2*70/100,0) -> 93 | P40: =ROUND($P$38*$A40/30*$AF$1*20/100,0)+ROUND($P$38*$A40/30*$AF$2*20/100,0) -> 27 | Q40: =ROUND($P$38*$A40/30*$AF$1*70/100,0)+ROUND($P$38*$A40/30*$AF$2*70/100,0) -> 97 | R40: =ROUND($R$38*$A40/30*$AF$1*20/100,0)+ROUND($R$38*$A40/30*$AF$2*20/100,0) -> 30 | S40: =ROUND($R$38*$A40/30*$AF$1*70/100,0)+ROUND($R$38*$A40/30*$AF$2*70/100,0) -> 103 | T40: =ROUND($T$38*$A40/30*$AF$1*20/100,0)+ROUND($T$38*$A40/30*$AF$2*20/100,0) -> 31 | U40: =ROUND($T$38*$A40/30*$AF$1*70/100,0)+ROUND($T$38*$A40/30*$AF$2*70/100,0) -> 107 | V40: =ROUND($V$38*$A40/30*$AF$1*20/100,0)+ROUND($V$38*$A40/30*$AF$2*20/100,0) -> 32 | W40: =ROUND($V$38*$A40/30*$AF$1*70/100,0)+ROUND($V$38*$A40/30*$AF$2*70/100,0) -> 113 | X40: =ROUND($X$38*$A40/30*$AF$1*20/100,0)+ROUND($X$38*$A40/30*$AF$2*20/100,0) -> 34 | Y40: =ROUND($X$38*$A40/30*$AF$1*70/100,0)+ROUND($X$38*$A40/30*$AF$2*70/100,0) -> 118 | Z40: =ROUND($Z$38*$A40/30*$AF$1*20/100,0)+ROUND($Z$38*$A40/30*$AF$2*20/100,0) -> 35 | AA40: =ROUND($Z$38*$A40/30*$AF$1*70/100,0)+ROUND($Z$38*$A40/30*$AF$2*70/100,0) -> 123
A41: 2 | B41: 41 | C41: 141 | D41: 43 | E41: 148 | F41: 44 | G41: 154 | H41: 46 | I41: 162 | J41: 49 | K41: 171 | L41: 51 | M41: 179 | N41: 54 | O41: 187 | P41: 56 | Q41: 195 | R41: 58 | S41: 205 | T41: 61 | U41: 215 | V41: 65 | W41: 226 | X41: 67 | Y41: 235 | Z41: 70 | AA41: 245
A42: 3 | B42: 60 | C42: 212 | D42: 64 | E42: 222 | F42: 66 | G42: 232 | H42: 70 | I42: 244 | J42: 73 | K42: 256 | L42: 77 | M42: 268 | N42: 80 | O42: 280 | P42: 83 | Q42: 292 | R42: 88 | S42: 308 | T42: 92 | U42: 323 | V42: 96 | W42: 338 | X42: 101 | Y42: 354 | Z42: 105 | AA42: 369
A43: 4 | B43: 81 | C43: 284 | D43: 84 | E43: 296 | F43: 89 | G43: 309 | H43: 93 | I43: 325 | J43: 97 | K43: 342 | L43: 102 | M43: 357 | N43: 106 | O43: 373 | P43: 112 | Q43: 390 | R43: 117 | S43: 410 | T43: 123 | U43: 430 | V43: 129 | W43: 451 | X43: 135 | Y43: 471 | Z43: 140 | AA43: 492
A44: 5 | B44: 101 | C44: 354 | D44: 106 | E44: 370 | F44: 111 | G44: 387 | H44: 116 | I44: 406 | J44: 122 | K44: 427 | L44: 128 | M44: 447 | N44: 134 | O44: 467 | P44: 139 | Q44: 487 | R44: 147 | S44: 513 | T44: 153 | U44: 538 | V44: 161 | W44: 564 | X44: 169 | Y44: 589 | Z44: 175 | AA44: 614
A45: 6 | B45: 122 | C45: 425 | D45: 127 | E45: 445 | F45: 133 | G45: 463 | H45: 139 | I45: 487 | J45: 147 | K45: 512 | L45: 153 | M45: 537 | N45: 160 | O45: 561 | P45: 167 | Q45: 585 | R45: 175 | S45: 615 | T45: 184 | U45: 645 | V45: 193 | W45: 676 | X45: 202 | Y45: 706 | Z45: 210 | AA45: 737
A46: 7 | B46: 141 | C46: 496 | D46: 148 | E46: 518 | F46: 154 | G46: 541 | H46: 162 | I46: 569 | J46: 171 | K46: 597 | L46: 179 | M46: 625 | N46: 187 | O46: 654 | P46: 195 | Q46: 682 | R46: 205 | S46: 717 | T46: 215 | U46: 753 | V46: 226 | W46: 789 | X46: 235 | Y46: 825 | Z46: 245 | AA46: 860
A47: 8 | B47: 162 | C47: 566 | D47: 170 | E47: 593 | F47: 176 | G47: 618 | H47: 186 | I47: 651 | J47: 195 | K47: 682 | L47: 204 | M47: 715 | N47: 214 | O47: 747 | P47: 222 | Q47: 779 | R47: 234 | S47: 820 | T47: 246 | U47: 861 | V47: 257 | W47: 901 | X47: 269 | Y47: 942 | Z47: 280 | AA47: 983
A48: 9 | B48: 182 | C48: 637 | D48: 191 | E48: 667 | F48: 198 | G48: 695 | H48: 209 | I48: 732 | J48: 219 | K48: 768 | L48: 230 | M48: 804 | N48: 240 | O48: 840 | P48: 251 | Q48: 876 | R48: 264 | S48: 922 | T48: 277 | U48: 968 | V48: 290 | W48: 1,014 | X48: 303 | Y48: 1,060 | Z48: 316 | AA48: 1,106
A49: 10 | B49: 203 | C49: 709 | D49: 211 | E49: 740 | F49: 221 | G49: 773 | H49: 232 | I49: 813 | J49: 244 | K49: 853 | L49: 255 | M49: 894 | N49: 267 | O49: 934 | P49: 278 | Q49: 974 | R49: 292 | S49: 1,025 | T49: 308 | U49: 1,076 | V49: 322 | W49: 1,127 | X49: 336 | Y49: 1,178 | Z49: 352 | AA49: 1,229
A50: 11 | B50: 222 | C50: 779 | D50: 233 | E50: 815 | F50: 243 | G50: 850 | H50: 255 | I50: 895 | J50: 268 | K50: 939 | L50: 280 | M50: 982 | N50: 294 | O50: 1,027 | P50: 307 | Q50: 1,071 | R50: 322 | S50: 1,127 | T50: 338 | U50: 1,184 | V50: 354 | W50: 1,240 | X50: 370 | Y50: 1,296 | Z50: 387 | AA50: 1,352
A51: 12 | B51: 243 | C51: 850 | D51: 254 | E51: 888 | F51: 265 | G51: 928 | H51: 279 | I51: 976 | J51: 292 | K51: 1,024 | L51: 307 | M51: 1,072 | N51: 320 | O51: 1,120 | P51: 334 | Q51: 1,169 | R51: 352 | S51: 1,230 | T51: 369 | U51: 1,291 | V51: 387 | W51: 1,353 | X51: 404 | Y51: 1,414 | Z51: 422 | AA51: 1,475
A52: 13 | B52: 263 | C52: 921 | D52: 275 | E52: 963 | F52: 287 | G52: 1,004 | H52: 302 | I52: 1,057 | J52: 317 | K52: 1,109 | L52: 332 | M52: 1,162 | N52: 347 | O52: 1,214 | P52: 361 | Q52: 1,266 | R52: 381 | S52: 1,333 | T52: 400 | U52: 1,399 | V52: 418 | W52: 1,465 | X52: 437 | Y52: 1,531 | Z52: 457 | AA52: 1,598
A53: 14 | B53: 284 | C53: 992 | D53: 296 | E53: 1,037 | F53: 309 | G53: 1,082 | H53: 325 | I53: 1,138 | J53: 342 | K53: 1,195 | L53: 357 | M53: 1,251 | N53: 373 | O53: 1,308 | P53: 390 | Q53: 1,364 | R53: 410 | S53: 1,435 | T53: 430 | U53: 1,506 | V53: 451 | W53: 1,578 | X53: 471 | Y53: 1,649 | Z53: 492 | AA53: 1,721
A54: 15 | B54: 303 | C54: 1,062 | D54: 318 | E54: 1,111 | F54: 331 | G54: 1,159 | H54: 348 | I54: 1,220 | J54: 366 | K54: 1,280 | L54: 383 | M54: 1,341 | N54: 400 | O54: 1,401 | P54: 417 | Q54: 1,461 | R54: 439 | S54: 1,538 | T54: 461 | U54: 1,614 | V54: 483 | W54: 1,691 | X54: 505 | Y54: 1,767 | Z54: 527 | AA54: 1,843
A55: 16 | B55: 324 | C55: 1,134 | D55: 338 | E55: 1,185 | F55: 354 | G55: 1,237 | H55: 371 | I55: 1,301 | J55: 390 | K55: 1,366 | L55: 409 | M55: 1,429 | N55: 427 | O55: 1,494 | P55: 446 | Q55: 1,559 | R55: 469 | S55: 1,640 | T55: 492 | U55: 1,722 | V55: 515 | W55: 1,803 | X55: 539 | Y55: 1,885 | Z55: 562 | AA55: 1,966
A56: 17 | B56: 344 | C56: 1,205 | D56: 359 | E56: 1,259 | F56: 376 | G56: 1,314 | H56: 395 | I56: 1,382 | J56: 414 | K56: 1,450 | L56: 434 | M56: 1,519 | N56: 453 | O56: 1,587 | P56: 473 | Q56: 1,656 | R56: 498 | S56: 1,743 | T56: 522 | U56: 1,829 | V56: 548 | W56: 1,916 | X56: 572 | Y56: 2,002 | Z56: 597 | AA56: 2,090
A57: 18 | B57: 365 | C57: 1,275 | D57: 381 | E57: 1,333 | F57: 398 | G57: 1,391 | H57: 418 | I57: 1,463 | J57: 439 | K57: 1,536 | L57: 460 | M57: 1,609 | N57: 480 | O57: 1,681 | P57: 501 | Q57: 1,753 | R57: 527 | S57: 1,845 | T57: 553 | U57: 1,936 | V57: 579 | W57: 2,028 | X57: 606 | Y57: 2,120 | Z57: 632 | AA57: 2,212
A58: 19 | B58: 384 | C58: 1,346 | D58: 402 | E58: 1,407 | F58: 419 | G58: 1,469 | H58: 441 | I58: 1,544 | J58: 463 | K58: 1,621 | L58: 485 | M58: 1,698 | N58: 507 | O58: 1,774 | P58: 529 | Q58: 1,851 | R58: 556 | S58: 1,947 | T58: 584 | U58: 2,045 | V58: 612 | W58: 2,141 | X58: 640 | Y58: 2,239 | Z58: 667 | AA58: 2,335
A59: 20 | B59: 405 | C59: 1,417 | D59: 423 | E59: 1,481 | F59: 441 | G59: 1,545 | H59: 464 | I59: 1,626 | J59: 487 | K59: 1,706 | L59: 510 | M59: 1,787 | N59: 533 | O59: 1,867 | P59: 556 | Q59: 1,948 | R59: 586 | S59: 2,050 | T59: 614 | U59: 2,152 | V59: 644 | W59: 2,254 | X59: 674 | Y59: 2,356 | Z59: 702 | AA59: 2,458
A60: 21 | B60: 425 | C60: 1,487 | D60: 445 | E60: 1,555 | F60: 463 | G60: 1,623 | H60: 487 | I60: 1,707 | J60: 512 | K60: 1,792 | L60: 537 | M60: 1,876 | N60: 561 | O60: 1,961 | P60: 585 | Q60: 2,046 | R60: 615 | S60: 2,152 | T60: 645 | U60: 2,259 | V60: 676 | W60: 2,367 | X60: 706 | Y60: 2,474 | Z60: 737 | AA60: 2,580
A61: 22 | B61: 446 | C61: 1,559 | D61: 465 | E61: 1,630 | F61: 486 | G61: 1,700 | H61: 511 | I61: 1,789 | J61: 537 | K61: 1,877 | L61: 562 | M61: 1,966 | N61: 587 | O61: 2,055 | P61: 612 | Q61: 2,143 | R61: 644 | S61: 2,255 | T61: 677 | U61: 2,367 | V61: 709 | W61: 2,480 | X61: 740 | Y61: 2,591 | Z61: 772 | AA61: 2,704
A62: 23 | B62: 465 | C62: 1,630 | D62: 486 | E62: 1,703 | F62: 508 | G62: 1,778 | H62: 534 | I62: 1,870 | J62: 561 | K62: 1,963 | L62: 587 | M62: 2,055 | N62: 613 | O62: 2,148 | P62: 640 | Q62: 2,241 | R62: 674 | S62: 2,358 | T62: 707 | U62: 2,475 | V62: 740 | W62: 2,592 | X62: 774 | Y62: 2,710 | Z62: 807 | AA62: 2,827
A63: 24 | B63: 486 | C63: 1,700 | D63: 508 | E63: 1,778 | F63: 530 | G63: 1,854 | H63: 557 | I63: 1,952 | J63: 585 | K63: 2,048 | L63: 612 | M63: 2,144 | N63: 641 | O63: 2,241 | P63: 668 | Q63: 2,337 | R63: 703 | S63: 2,460 | T63: 738 | U63: 2,583 | V63: 773 | W63: 2,705 | X63: 808 | Y63: 2,827 | Z63: 842 | AA63: 2,949
A64: 25 | B64: 506 | C64: 1,771 | D64: 529 | E64: 1,852 | F64: 552 | G64: 1,932 | H64: 581 | I64: 2,033 | J64: 610 | K64: 2,134 | L64: 639 | M64: 2,234 | N64: 667 | O64: 2,335 | P64: 696 | Q64: 2,435 | R64: 733 | S64: 2,563 | T64: 769 | U64: 2,690 | V64: 805 | W64: 2,818 | X64: 841 | Y64: 2,945 | Z64: 878 | AA64: 3,072
A65: 26 | B65: 526 | C65: 1,842 | D65: 550 | E65: 1,925 | F65: 574 | G65: 2,010 | H65: 604 | I65: 2,114 | J65: 634 | K65: 2,219 | L65: 664 | M65: 2,323 | N65: 693 | O65: 2,428 | P65: 724 | Q65: 2,532 | R65: 761 | S65: 2,665 | T65: 800 | U65: 2,797 | V65: 837 | W65: 2,930 | X65: 875 | Y65: 3,062 | Z65: 913 | AA65: 3,195
A66: 27 | B66: 547 | C66: 1,912 | D66: 572 | E66: 2,000 | F66: 596 | G66: 2,086 | H66: 628 | I66: 2,195 | J66: 658 | K66: 2,304 | L66: 689 | M66: 2,413 | N66: 721 | O66: 2,521 | P66: 751 | Q66: 2,630 | R66: 791 | S66: 2,768 | T66: 830 | U66: 2,906 | V66: 870 | W66: 3,043 | X66: 909 | Y66: 3,181 | Z66: 948 | AA66: 3,319
A67: 28 | B67: 566 | C67: 1,983 | D67: 593 | E67: 2,073 | F67: 618 | G67: 2,164 | H67: 651 | I67: 2,277 | J67: 682 | K67: 2,389 | L67: 715 | M67: 2,502 | N67: 747 | O67: 2,614 | P67: 779 | Q67: 2,727 | R67: 820 | S67: 2,871 | T67: 861 | U67: 3,013 | V67: 901 | W67: 3,155 | X67: 942 | Y67: 3,299 | Z67: 983 | AA67: 3,441
A68: 29 | B68: 587 | C68: 2,055 | D68: 613 | E68: 2,148 | F68: 641 | G68: 2,241 | H68: 674 | I68: 2,358 | J68: 707 | K68: 2,474 | L68: 740 | M68: 2,591 | N68: 773 | O68: 2,708 | P68: 807 | Q68: 2,825 | R68: 849 | S68: 2,972 | T68: 892 | U68: 3,120 | V68: 934 | W68: 3,268 | X68: 976 | Y68: 3,416 | Z68: 1,019 | AA68: 3,564
A69: 30 | B69: 607 | C69: 2,125 | D69: 635 | E69: 2,222 | F69: 663 | G69: 2,319 | H69: 697 | I69: 2,439 | J69: 732 | K69: 2,560 | L69: 766 | M69: 2,681 | N69: 801 | O69: 2,802 | P69: 835 | Q69: 2,922 | R69: 878 | S69: 3,075 | T69: 922 | U69: 3,228 | V69: 966 | W69: 3,381 | X69: 1,010 | Y69: 3,534 | Z69: 1,054 | AA69: 3,687
AB71: 110.11製表

Sheet 勞保_雇主或外勞勞保11101起
A1: 勞 工 保 險 普 通 事 故 保 險 費 被 保 險 人 與 投 保 單 位 分 擔 金 額 表 (自111年1月1日起適用)
A2: ※本表不含勞工保險職業災害保險費，職業災害保險費率依投保單位行業別而有不同，請按繳款單所列職業災害保險費率自行計算，並請依規定職業災害保險費全部由投保單位負擔。 單位：新台幣元
B3: 部分工時勞工適用 | F3: 部分工時勞工、職訓機構受訓者適用 | AB3: 第1級 | AE3: 普通事故費率
B4: 11,100 | D4: 12,540 | F4: 13,500 | H4: 15,840 | J4: 16,500 | L4: 17,280 | N4: 17,880 | P4: 19,047 | R4: 20,008 | T4: 21,009 | V4: 22,000 | X4: 23,100 | Z4: 24,000 | AB4: 25,250 | AE4: 10.50%
B5: 勞工 | C5: 單位 | D5: 勞工 | E5: 單位 | F5: 勞工 | G5: 單位 | H5: 勞工 | I5: 單位 | J5: 勞工 | K5: 單位 | L5: 勞工 | M5: 單位 | N5: 勞工 | O5: 單位 | P5: 勞工 | Q5: 單位 | R5: 勞工 | S5: 單位 | T5: 勞工 | U5: 單位 | V5: 勞工 | W5: 單位 | X5: 勞工 | Y5: 單位 | Z5: 勞工 | AA5: 單位 | AB5: 勞工 | AC5: 單位
A6: 1 | B6: =ROUND($B$4*$A6/30*$AE$4*20/100,0) -> 8 | C6: =ROUND($B$4*$A6/30*$AE$4*70/100,0) -> 27 | D6: =ROUND($D$4*$A6/30*$AE$4*20/100,0) -> 9 | E6: =ROUND($D$4*$A6/30*$AE$4*70/100,0) -> 31 | F6: =ROUND($F$4*$A6/30*$AE$4*20/100,0) -> 9 | G6: =ROUND($F$4*$A6/30*$AE$4*70/100,0) -> 33 | H6: =ROUND($H$4*$A6/30*$AE$4*20/100,0) -> 11 | I6: =ROUND($H$4*$A6/30*$AE$4*70/100,0) -> 39 | J6: =ROUND($J$4*$A6/30*$AE$4*20/100,0) -> 12 | K6: =ROUND($J$4*$A6/30*$AE$4*70/100,0) -> 40 | L6: =ROUND($L$4*$A6/30*$AE$4*20/100,0) -> 12 | M6: =ROUND($L$4*$A6/30*$AE$4*70/100,0) -> 42 | N6: =ROUND($N$4*$A6/30*$AE$4*20/100,0) -> 13 | O6: =ROUND($N$4*$A6/30*$AE$4*70/100,0) -> 44 | P6: =ROUND($P$4*$A6/30*$AE$4*20/100,0) -> 13 | Q6: =ROUND($P$4*$A6/30*$AE$4*70/100,0) -> 47 | R6: =ROUND($R$4*$A6/30*$AE$4*20/100,0) -> 14 | S6: =ROUND($R$4*$A6/30*$AE$4*70/100,0) -> 49 | T6: =ROUND($T$4*$A6/30*$AE$4*20/100,0) -> 15 | U6: =ROUND($T$4*$A6/30*$AE$4*70/100,0) -> 51 | V6: =ROUND($V$4*$A6/30*$AE$4*20/100,0) -> 15 | W6: =ROUND($V$4*$A6/30*$AE$4*70/100,0) -> 54 | X6: =ROUND($X$4*$A6/30*$AE$4*20/100,0) -> 16 | Y6: =ROUND($X$4*$A6/30*$AE$4*70/100,0) -> 57 | Z6: =ROUND($Z$4*$A6/30*$AE$4*20/100,0) -> 17 | AA6: =ROUND($Z$4*$A6/30*$AE$4*70/100,0) -> 59 | AB6: =ROUND($AB$4*$A6/30*$AE$4*20/100,0) -> 18 | AC6: =ROUND($AB$4*$A6/30*$AE$4*70/100,0) -> 62
A7: 2 | B7: 16 | C7: 54 | D7: 18 | E7: 61 | F7: 19 | G7: 66 | H7: 22 | I7: 78 | J7: 23 | K7: 81 | L7: 24 | M7: 85 | N7: 25 | O7: 88 | P7: 27 | Q7: 93 | R7: 28 | S7: 98 | T7: 29 | U7: 103 | V7: 31 | W7: 108 | X7: 32 | Y7: 113 | Z7: 34 | AA7: 118 | AB7: 35 | AC7: 124
A8: 3 | B8: 23 | C8: 82 | D8: 26 | E8: 92 | F8: 28 | G8: 99 | H8: 33 | I8: 116 | J8: 35 | K8: 121 | L8: 36 | M8: 127 | N8: 38 | O8: 131 | P8: 40 | Q8: 140 | R8: 42 | S8: 147 | T8: 44 | U8: 154 | V8: 46 | W8: 162 | X8: 49 | Y8: 170 | Z8: 50 | AA8: 176 | AB8: 53 | AC8: 186
A9: 4 | B9: 31 | C9: 109 | D9: 35 | E9: 123 | F9: 38 | G9: 132 | H9: 44 | I9: 155 | J9: 46 | K9: 162 | L9: 48 | M9: 169 | N9: 50 | O9: 175 | P9: 53 | Q9: 187 | R9: 56 | S9: 196 | T9: 59 | U9: 206 | V9: 62 | W9: 216 | X9: 65 | Y9: 226 | Z9: 67 | AA9: 235 | AB9: 71 | AC9: 247
A10: 5 | B10: 39 | C10: 136 | D10: 44 | E10: 154 | F10: 47 | G10: 165 | H10: 55 | I10: 194 | J10: 58 | K10: 202 | L10: 60 | M10: 212 | N10: 63 | O10: 219 | P10: 67 | Q10: 233 | R10: 70 | S10: 245 | T10: 74 | U10: 257 | V10: 77 | W10: 270 | X10: 81 | Y10: 283 | Z10: 84 | AA10: 294 | AB10: 88 | AC10: 309
A11: 6 | B11: 47 | C11: 163 | D11: 53 | E11: 184 | F11: 57 | G11: 198 | H11: 67 | I11: 233 | J11: 69 | K11: 243 | L11: 73 | M11: 254 | N11: 75 | O11: 263 | P11: 80 | Q11: 280 | R11: 84 | S11: 294 | T11: 88 | U11: 309 | V11: 92 | W11: 323 | X11: 97 | Y11: 340 | Z11: 101 | AA11: 353 | AB11: 106 | AC11: 371
A12: 7 | B12: 54 | C12: 190 | D12: 61 | E12: 215 | F12: 66 | G12: 232 | H12: 78 | I12: 272 | J12: 81 | K12: 283 | L12: 85 | M12: 296 | N12: 88 | O12: 307 | P12: 93 | Q12: 327 | R12: 98 | S12: 343 | T12: 103 | U12: 360 | V12: 108 | W12: 377 | X12: 113 | Y12: 396 | Z12: 118 | AA12: 412 | AB12: 124 | AC12: 433
A13: 8 | B13: 62 | C13: 218 | D13: 70 | E13: 246 | F13: 76 | G13: 265 | H13: 89 | I13: 310 | J13: 92 | K13: 323 | L13: 97 | M13: 339 | N13: 100 | O13: 350 | P13: 107 | Q13: 373 | R13: 112 | S13: 392 | T13: 118 | U13: 412 | V13: 123 | W13: 431 | X13: 129 | Y13: 453 | Z13: 134 | AA13: 470 | AB13: 141 | AC13: 495
A14: 9 | B14: 70 | C14: 245 | D14: 79 | E14: 277 | F14: 85 | G14: 298 | H14: 100 | I14: 349 | J14: 104 | K14: 364 | L14: 109 | M14: 381 | N14: 113 | O14: 394 | P14: 120 | Q14: 420 | R14: 126 | S14: 441 | T14: 132 | U14: 463 | V14: 139 | W14: 485 | X14: 146 | Y14: 509 | Z14: 151 | AA14: 529 | AB14: 159 | AC14: 557
A15: 10 | B15: 78 | C15: 272 | D15: 88 | E15: 307 | F15: 95 | G15: 331 | H15: 111 | I15: 388 | J15: 116 | K15: 404 | L15: 121 | M15: 423 | N15: 125 | O15: 438 | P15: 133 | Q15: 467 | R15: 140 | S15: 490 | T15: 147 | U15: 515 | V15: 154 | W15: 539 | X15: 162 | Y15: 566 | Z15: 168 | AA15: 588 | AB15: 177 | AC15: 619
A16: 11 | B16: 85 | C16: 299 | D16: 97 | E16: 338 | F16: 104 | G16: 364 | H16: 122 | I16: 427 | J16: 127 | K16: 445 | L16: 133 | M16: 466 | N16: 138 | O16: 482 | P16: 147 | Q16: 513 | R16: 154 | S16: 539 | T16: 162 | U16: 566 | V16: 169 | W16: 593 | X16: 178 | Y16: 623 | Z16: 185 | AA16: 647 | AB16: 194 | AC16: 680
A17: 12 | B17: 93 | C17: 326 | D17: 105 | E17: 369 | F17: 113 | G17: 397 | H17: 133 | I17: 466 | J17: 139 | K17: 485 | L17: 145 | M17: 508 | N17: 150 | O17: 526 | P17: 160 | Q17: 560 | R17: 168 | S17: 588 | T17: 176 | U17: 618 | V17: 185 | W17: 647 | X17: 194 | Y17: 679 | Z17: 202 | AA17: 706 | AB17: 212 | AC17: 742
A18: 13 | B18: 101 | C18: 354 | D18: 114 | E18: 399 | F18: 123 | G18: 430 | H18: 144 | I18: 505 | J18: 150 | K18: 526 | L18: 157 | M18: 550 | N18: 163 | O18: 569 | P18: 173 | Q18: 607 | R18: 182 | S18: 637 | T18: 191 | U18: 669 | V18: 200 | W18: 701 | X18: 210 | Y18: 736 | Z18: 218 | AA18: 764 | AB18: 230 | AC18: 804
A19: 14 | B19: 109 | C19: 381 | D19: 123 | E19: 430 | F19: 132 | G19: 463 | H19: 155 | I19: 543 | J19: 162 | K19: 566 | L19: 169 | M19: 593 | N19: 175 | O19: 613 | P19: 187 | Q19: 653 | R19: 196 | S19: 686 | T19: 206 | U19: 721 | V19: 216 | W19: 755 | X19: 226 | Y19: 792 | Z19: 235 | AA19: 823 | AB19: 247 | AC19: 866
A20: 15 | B20: 117 | C20: 408 | D20: 132 | E20: 461 | F20: 142 | G20: 496 | H20: 166 | I20: 582 | J20: 173 | K20: 606 | L20: 181 | M20: 635 | N20: 188 | O20: 657 | P20: 200 | Q20: 700 | R20: 210 | S20: 735 | T20: 221 | U20: 772 | V20: 231 | W20: 809 | X20: 243 | Y20: 849 | Z20: 252 | AA20: 882 | AB20: 265 | AC20: 928
A21: 16 | B21: 124 | C21: 435 | D21: 140 | E21: 492 | F21: 151 | G21: 529 | H21: 177 | I21: 621 | J21: 185 | K21: 647 | L21: 194 | M21: 677 | N21: 200 | O21: 701 | P21: 213 | Q21: 747 | R21: 224 | S21: 784 | T21: 235 | U21: 824 | V21: 246 | W21: 862 | X21: 259 | Y21: 906 | Z21: 269 | AA21: 941 | AB21: 283 | AC21: 990
A22: 17 | B22: 132 | C22: 462 | D22: 149 | E22: 522 | F22: 161 | G22: 562 | H22: 188 | I22: 660 | J22: 196 | K22: 687 | L22: 206 | M22: 720 | N22: 213 | O22: 745 | P22: 227 | Q22: 793 | R22: 238 | S22: 833 | T22: 250 | U22: 875 | V22: 262 | W22: 916 | X22: 275 | Y22: 962 | Z22: 286 | AA22: 1,000 | AB22: 300 | AC22: 1,052
A23: 18 | B23: 140 | C23: 490 | D23: 158 | E23: 553 | F23: 170 | G23: 595 | H23: 200 | I23: 699 | J23: 208 | K23: 728 | L23: 218 | M23: 762 | N23: 225 | O23: 789 | P23: 240 | Q23: 840 | R23: 252 | S23: 882 | T23: 265 | U23: 926 | V23: 277 | W23: 970 | X23: 291 | Y23: 1,019 | Z23: 302 | AA23: 1,058 | AB23: 318 | AC23: 1,114
A24: 19 | B24: 148 | C24: 517 | D24: 167 | E24: 584 | F24: 180 | G24: 628 | H24: 211 | I24: 737 | J24: 219 | K24: 768 | L24: 230 | M24: 804 | N24: 238 | O24: 832 | P24: 253 | Q24: 887 | R24: 266 | S24: 931 | T24: 279 | U24: 978 | V24: 293 | W24: 1,024 | X24: 307 | Y24: 1,075 | Z24: 319 | AA24: 1,117 | AB24: 336 | AC24: 1,175
A25: 20 | B25: 155 | C25: 544 | D25: 176 | E25: 614 | F25: 189 | G25: 662 | H25: 222 | I25: 776 | J25: 231 | K25: 809 | L25: 242 | M25: 847 | N25: 250 | O25: 876 | P25: 267 | Q25: 933 | R25: 280 | S25: 980 | T25: 294 | U25: 1,029 | V25: 308 | W25: 1,078 | X25: 323 | Y25: 1,132 | Z25: 336 | AA25: 1,176 | AB25: 354 | AC25: 1,237
A26: 21 | B26: 163 | C26: 571 | D26: 184 | E26: 645 | F26: 198 | G26: 695 | H26: 233 | I26: 815 | J26: 243 | K26: 849 | L26: 254 | M26: 889 | N26: 263 | O26: 920 | P26: 280 | Q26: 980 | R26: 294 | S26: 1,029 | T26: 309 | U26: 1,081 | V26: 323 | W26: 1,132 | X26: 340 | Y26: 1,188 | Z26: 353 | AA26: 1,235 | AB26: 371 | AC26: 1,299
A27: 22 | B27: 171 | C27: 598 | D27: 193 | E27: 676 | F27: 208 | G27: 728 | H27: 244 | I27: 854 | J27: 254 | K27: 889 | L27: 266 | M27: 931 | N27: 275 | O27: 964 | P27: 293 | Q27: 1,027 | R27: 308 | S27: 1,078 | T27: 324 | U27: 1,132 | V27: 339 | W27: 1,186 | X27: 356 | Y27: 1,245 | Z27: 370 | AA27: 1,294 | AB27: 389 | AC27: 1,361
A28: 23 | B28: 179 | C28: 625 | D28: 202 | E28: 707 | F28: 217 | G28: 761 | H28: 255 | I28: 893 | J28: 266 | K28: 930 | L28: 278 | M28: 974 | N28: 288 | O28: 1,008 | P28: 307 | Q28: 1,073 | R28: 322 | S28: 1,127 | T28: 338 | U28: 1,184 | V28: 354 | W28: 1,240 | X28: 372 | Y28: 1,302 | Z28: 386 | AA28: 1,352 | AB28: 407 | AC28: 1,423
A29: 24 | B29: 186 | C29: 653 | D29: 211 | E29: 737 | F29: 227 | G29: 794 | H29: 266 | I29: 931 | J29: 277 | K29: 970 | L29: 290 | M29: 1,016 | N29: 300 | O29: 1,051 | P29: 320 | Q29: 1,120 | R29: 336 | S29: 1,176 | T29: 353 | U29: 1,235 | V29: 370 | W29: 1,294 | X29: 388 | Y29: 1,358 | Z29: 403 | AA29: 1,411 | AB29: 424 | AC29: 1,485
A30: 25 | B30: 194 | C30: 680 | D30: 219 | E30: 768 | F30: 236 | G30: 827 | H30: 277 | I30: 970 | J30: 289 | K30: 1,011 | L30: 302 | M30: 1,058 | N30: 313 | O30: 1,095 | P30: 333 | Q30: 1,167 | R30: 350 | S30: 1,225 | T30: 368 | U30: 1,287 | V30: 385 | W30: 1,348 | X30: 404 | Y30: 1,415 | Z30: 420 | AA30: 1,470 | AB30: 442 | AC30: 1,547
A31: 26 | B31: 202 | C31: 707 | D31: 228 | E31: 799 | F31: 246 | G31: 860 | H31: 288 | I31: 1,009 | J31: 300 | K31: 1,051 | L31: 314 | M31: 1,101 | N31: 325 | O31: 1,139 | P31: 347 | Q31: 1,213 | R31: 364 | S31: 1,275 | T31: 382 | U31: 1,338 | V31: 400 | W31: 1,401 | X31: 420 | Y31: 1,471 | Z31: 437 | AA31: 1,529 | AB31: 460 | AC31: 1,608
A32: 27 | B32: 210 | C32: 734 | D32: 237 | E32: 830 | F32: 255 | G32: 893 | H32: 299 | I32: 1,048 | J32: 312 | K32: 1,091 | L32: 327 | M32: 1,143 | N32: 338 | O32: 1,183 | P32: 360 | Q32: 1,260 | R32: 378 | S32: 1,324 | T32: 397 | U32: 1,390 | V32: 416 | W32: 1,455 | X32: 437 | Y32: 1,528 | Z32: 454 | AA32: 1,588 | AB32: 477 | AC32: 1,670
A33: 28 | B33: 218 | C33: 761 | D33: 246 | E33: 860 | F33: 265 | G33: 926 | H33: 310 | I33: 1,087 | J33: 323 | K33: 1,132 | L33: 339 | M33: 1,185 | N33: 350 | O33: 1,227 | P33: 373 | Q33: 1,307 | R33: 392 | S33: 1,373 | T33: 412 | U33: 1,441 | V33: 431 | W33: 1,509 | X33: 453 | Y33: 1,585 | Z33: 470 | AA33: 1,646 | AB33: 495 | AC33: 1,732
A34: 29 | B34: 225 | C34: 789 | D34: 255 | E34: 891 | F34: 274 | G34: 959 | H34: 322 | I34: 1,125 | J34: 335 | K34: 1,172 | L34: 351 | M34: 1,228 | N34: 363 | O34: 1,270 | P34: 387 | Q34: 1,353 | R34: 406 | S34: 1,422 | T34: 426 | U34: 1,493 | V34: 447 | W34: 1,563 | X34: 469 | Y34: 1,641 | Z34: 487 | AA34: 1,705 | AB34: 513 | AC34: 1,794
A35: 30 | B35: 233 | C35: 816 | D35: 263 | E35: 922 | F35: 284 | G35: 992 | H35: 333 | I35: 1,164 | J35: 347 | K35: 1,213 | L35: 363 | M35: 1,270 | N35: 375 | O35: 1,314 | P35: 400 | Q35: 1,400 | R35: 420 | S35: 1,471 | T35: 441 | U35: 1,544 | V35: 462 | W35: 1,617 | X35: 485 | Y35: 1,698 | Z35: 504 | AA35: 1,764 | AB35: 530 | AC35: 1,856
B37: 第2級 | D37: 第3級 | F37: 第4級 | H37: 第5級 | J37: 第6級 | L37: 第7級 | N37: 第8級 | P37: 第9級 | R37: 第10級 | T37: 第11級 | V37: 第12級 | X37: 第13級 | Z37: 第14級
B38: 26,400 | D38: 27,600 | F38: 28,800 | H38: 30,300 | J38: 31,800 | L38: 33,300 | N38: 34,800 | P38: 36,300 | R38: 38,200 | T38: 40,100 | V38: 42,000 | X38: 43,900 | Z38: 45,800
B39: 勞工 | C39: 單位 | D39: 勞工 | E39: 單位 | F39: 勞工 | G39: 單位 | H39: 勞工 | I39: 單位 | J39: 勞工 | K39: 單位 | L39: 勞工 | M39: 單位 | N39: 勞工 | O39: 單位 | P39: 勞工 | Q39: 單位 | R39: 勞工 | S39: 單位 | T39: 勞工 | U39: 單位 | V39: 勞工 | W39: 單位 | X39: 勞工 | Y39: 單位 | Z39: 勞工 | AA39: 單位 | AB39: 勞工 | AC39: 單位
A40: 1 | B40: =ROUND($B$38*$A40/30*$AE$4*20/100,0) -> 18 | C40: =ROUND($B$38*$A40/30*$AE$4*70/100,0) -> 65 | D40: =ROUND($D$38*$A40/30*$AE$4*20/100,0) -> 19 | E40: =ROUND($D$38*$A40/30*$AE$4*70/100,0) -> 68 | F40: =ROUND($F$38*$A40/30*$AE$4*20/100,0) -> 20 | G40: =ROUND($F$38*$A40/30*$AE$4*70/100,0) -> 71 | H40: =ROUND($H$38*$A40/30*$AE$4*20/100,0) -> 21 | I40: =ROUND($H$38*$A40/30*$AE$4*70/100,0) -> 74 | J40: =ROUND($J$38*$A40/30*$AE$4*20/100,0) -> 22 | K40: =ROUND($J$38*$A40/30*$AE$4*70/100,0) -> 78 | L40: =ROUND($L$38*$A40/30*$AE$4*20/100,0) -> 23 | M40: =ROUND($L$38*$A40/30*$AE$4*70/100,0) -> 82 | N40: =ROUND($N$38*$A40/30*$AE$4*20/100,0) -> 24 | O40: =ROUND($N$38*$A40/30*$AE$4*70/100,0) -> 85 | P40: =ROUND($P$38*$A40/30*$AE$4*20/100,0) -> 25 | Q40: =ROUND($P$38*$A40/30*$AE$4*70/100,0) -> 89 | R40: =ROUND($R$38*$A40/30*$AE$4*20/100,0) -> 27 | S40: =ROUND($R$38*$A40/30*$AE$4*70/100,0) -> 94 | T40: =ROUND($T$38*$A40/30*$AE$4*20/100,0) -> 28 | U40: =ROUND($T$38*$A40/30*$AE$4*70/100,0) -> 98 | V40: =ROUND($V$38*$A40/30*$AE$4*20/100,0) -> 29 | W40: =ROUND($V$38*$A40/30*$AE$4*70/100,0) -> 103 | X40: =ROUND($X$38*$A40/30*$AE$4*20/100,0) -> 31 | Y40: =ROUND($X$38*$A40/30*$AE$4*70/100,0) -> 108 | Z40: =ROUND($Z$38*$A40/30*$AE$4*20/100,0) -> 32 | AA40: =ROUND($Z$38*$A40/30*$AE$4*70/100,0) -> 112
A41: 2 | B41: 37 | C41: 129 | D41: 39 | E41: 135 | F41: 40 | G41: 141 | H41: 42 | I41: 148 | J41: 45 | K41: 156 | L41: 47 | M41: 163 | N41: 49 | O41: 171 | P41: 51 | Q41: 178 | R41: 53 | S41: 187 | T41: 56 | U41: 196 | V41: 59 | W41: 206 | X41: 61 | Y41: 215 | Z41: =ROUND($Z$38*$A41/30*$AE$4*20/100,0) -> 64 | AA41: =ROUND($Z$38*$A41/30*$AE$4*70/100,0) -> 224
A42: 3 | B42: 55 | C42: 194 | D42: 58 | E42: 203 | F42: 60 | G42: 212 | H42: 64 | I42: 223 | J42: 67 | K42: 234 | L42: 70 | M42: 245 | N42: 73 | O42: 256 | P42: 76 | Q42: 267 | R42: 80 | S42: 281 | T42: 84 | U42: 295 | V42: 88 | W42: 309 | X42: 92 | Y42: 323 | Z42: 96 | AA42: 337
A43: 4 | B43: 74 | C43: 259 | D43: 77 | E43: 270 | F43: 81 | G43: 282 | H43: 85 | I43: 297 | J43: 89 | K43: 312 | L43: 93 | M43: 326 | N43: 97 | O43: 341 | P43: 102 | Q43: 356 | R43: 107 | S43: 374 | T43: 112 | U43: 393 | V43: 118 | W43: 412 | X43: 123 | Y43: 430 | Z43: 128 | AA43: 449
A44: 5 | B44: 92 | C44: 323 | D44: 97 | E44: 338 | F44: 101 | G44: 353 | H44: 106 | I44: 371 | J44: 111 | K44: 390 | L44: 117 | M44: 408 | N44: 122 | O44: 426 | P44: 127 | Q44: 445 | R44: 134 | S44: 468 | T44: 140 | U44: 491 | V44: 147 | W44: 515 | X44: 154 | Y44: 538 | Z44: 160 | AA44: 561
A45: 6 | B45: 111 | C45: 388 | D45: 116 | E45: 406 | F45: 121 | G45: 423 | H45: 127 | I45: 445 | J45: 134 | K45: 467 | L45: 140 | M45: 490 | N45: 146 | O45: 512 | P45: 152 | Q45: 534 | R45: 160 | S45: 562 | T45: 168 | U45: 589 | V45: 176 | W45: 617 | X45: 184 | Y45: 645 | Z45: 192 | AA45: 673
A46: 7 | B46: 129 | C46: 453 | D46: 135 | E46: 473 | F46: 141 | G46: 494 | H46: 148 | I46: 520 | J46: 156 | K46: 545 | L46: 163 | M46: 571 | N46: 171 | O46: 597 | P46: 178 | Q46: 623 | R46: 187 | S46: 655 | T46: 196 | U46: 688 | V46: 206 | W46: 720 | X46: 215 | Y46: 753 | Z46: 224 | AA46: 785
A47: 8 | B47: 148 | C47: 517 | D47: 155 | E47: 541 | F47: 161 | G47: 564 | H47: 170 | I47: 594 | J47: 178 | K47: 623 | L47: 186 | M47: 653 | N47: 195 | O47: 682 | P47: 203 | Q47: 711 | R47: 214 | S47: 749 | T47: 225 | U47: 786 | V47: 235 | W47: 823 | X47: 246 | Y47: 860 | Z47: 256 | AA47: 898
A48: 9 | B48: 166 | C48: 582 | D48: 174 | E48: 609 | F48: 181 | G48: 635 | H48: 191 | I48: 668 | J48: 200 | K48: 701 | L48: 210 | M48: 734 | N48: 219 | O48: 767 | P48: 229 | Q48: 800 | R48: 241 | S48: 842 | T48: 253 | U48: 884 | V48: 265 | W48: 926 | X48: 277 | Y48: 968 | Z48: 289 | AA48: 1,010
A49: 10 | B49: 185 | C49: 647 | D49: 193 | E49: 676 | F49: 202 | G49: 706 | H49: 212 | I49: 742 | J49: 223 | K49: 779 | L49: 233 | M49: 816 | N49: 244 | O49: 853 | P49: 254 | Q49: 889 | R49: 267 | S49: 936 | T49: 281 | U49: 982 | V49: 294 | W49: 1,029 | X49: 307 | Y49: 1,076 | Z49: 321 | AA49: 1,122
A50: 11 | B50: 203 | C50: 711 | D50: 213 | E50: 744 | F50: 222 | G50: 776 | H50: 233 | I50: 817 | J50: 245 | K50: 857 | L50: 256 | M50: 897 | N50: 268 | O50: 938 | P50: 280 | Q50: 978 | R50: 294 | S50: 1,029 | T50: 309 | U50: 1,081 | V50: 323 | W50: 1,132 | X50: 338 | Y50: 1,183 | Z50: 353 | AA50: 1,234
A51: 12 | B51: 222 | C51: 776 | D51: 232 | E51: 811 | F51: 242 | G51: 847 | H51: 255 | I51: 891 | J51: 267 | K51: 935 | L51: 280 | M51: 979 | N51: 292 | O51: 1,023 | P51: 305 | Q51: 1,067 | R51: 321 | S51: 1,123 | T51: 337 | U51: 1,179 | V51: 353 | W51: 1,235 | X51: 369 | Y51: 1,291 | Z51: 385 | AA51: 1,347
A52: 13 | B52: 240 | C52: 841 | D52: 251 | E52: 879 | F52: 262 | G52: 917 | H52: 276 | I52: 965 | J52: 289 | K52: 1,013 | L52: 303 | M52: 1,061 | N52: 317 | O52: 1,108 | P52: 330 | Q52: 1,156 | R52: 348 | S52: 1,217 | T52: 365 | U52: 1,277 | V52: 382 | W52: 1,338 | X52: 399 | Y52: 1,398 | Z52: 417 | AA52: 1,459
A53: 14 | B53: 259 | C53: 906 | D53: 270 | E53: 947 | F53: 282 | G53: 988 | H53: 297 | I53: 1,039 | J53: 312 | K53: 1,091 | L53: 326 | M53: 1,142 | N53: 341 | O53: 1,194 | P53: 356 | Q53: 1,245 | R53: 374 | S53: 1,310 | T53: 393 | U53: 1,375 | V53: 412 | W53: 1,441 | X53: 430 | Y53: 1,506 | Z53: 449 | AA53: 1,571
A54: 15 | B54: 277 | C54: 970 | D54: 290 | E54: 1,014 | F54: 302 | G54: 1,058 | H54: 318 | I54: 1,114 | J54: 334 | K54: 1,169 | L54: 350 | M54: 1,224 | N54: 365 | O54: 1,279 | P54: 381 | Q54: 1,334 | R54: 401 | S54: 1,404 | T54: 421 | U54: 1,474 | V54: 441 | W54: 1,544 | X54: 461 | Y54: 1,613 | Z54: 481 | AA54: 1,683
A55: 16 | B55: 296 | C55: 1,035 | D55: 309 | E55: 1,082 | F55: 323 | G55: 1,129 | H55: 339 | I55: 1,188 | J55: 356 | K55: 1,247 | L55: 373 | M55: 1,305 | N55: 390 | O55: 1,364 | P55: 407 | Q55: 1,423 | R55: 428 | S55: 1,497 | T55: 449 | U55: 1,572 | V55: 470 | W55: 1,646 | X55: 492 | Y55: 1,721 | Z55: 513 | AA55: 1,795
A56: 17 | B56: 314 | C56: 1,100 | D56: 328 | E56: 1,150 | F56: 343 | G56: 1,200 | H56: 361 | I56: 1,262 | J56: 378 | K56: 1,324 | L56: 396 | M56: 1,387 | N56: 414 | O56: 1,449 | P56: 432 | Q56: 1,512 | R56: 455 | S56: 1,591 | T56: 477 | U56: 1,670 | V56: 500 | W56: 1,749 | X56: 522 | Y56: 1,828 | Z56: 545 | AA56: 1,908
A57: 18 | B57: 333 | C57: 1,164 | D57: 348 | E57: 1,217 | F57: 363 | G57: 1,270 | H57: 382 | I57: 1,336 | J57: 401 | K57: 1,402 | L57: 420 | M57: 1,469 | N57: 438 | O57: 1,535 | P57: 457 | Q57: 1,601 | R57: 481 | S57: 1,685 | T57: 505 | U57: 1,768 | V57: 529 | W57: 1,852 | X57: 553 | Y57: 1,936 | Z57: 577 | AA57: 2,020
A58: 19 | B58: 351 | C58: 1,229 | D58: 367 | E58: 1,285 | F58: 383 | G58: 1,341 | H58: 403 | I58: 1,410 | J58: 423 | K58: 1,480 | L58: 443 | M58: 1,550 | N58: 463 | O58: 1,620 | P58: 483 | Q58: 1,690 | R58: 508 | S58: 1,778 | T58: 533 | U58: 1,867 | V58: 559 | W58: 1,955 | X58: 584 | Y58: 2,044 | Z58: 609 | AA58: 2,132
A59: 20 | B59: 370 | C59: 1,294 | D59: 386 | E59: 1,352 | F59: 403 | G59: 1,411 | H59: 424 | I59: 1,485 | J59: 445 | K59: 1,558 | L59: 466 | M59: 1,632 | N59: 487 | O59: 1,705 | P59: 508 | Q59: 1,779 | R59: 535 | S59: 1,872 | T59: 561 | U59: 1,965 | V59: 588 | W59: 2,058 | X59: 615 | Y59: 2,151 | Z59: 641 | AA59: 2,244
A60: 21 | B60: 388 | C60: 1,358 | D60: 406 | E60: 1,420 | F60: 423 | G60: 1,482 | H60: 445 | I60: 1,559 | J60: 467 | K60: 1,636 | L60: 490 | M60: 1,713 | N60: 512 | O60: 1,790 | P60: 534 | Q60: 1,868 | R60: 562 | S60: 1,965 | T60: 589 | U60: 2,063 | V60: 617 | W60: 2,161 | X60: 645 | Y60: 2,259 | Z60: 673 | AA60: 2,356
A61: 22 | B61: 407 | C61: 1,423 | D61: 425 | E61: 1,488 | F61: 444 | G61: 1,552 | H61: 467 | I61: 1,633 | J61: 490 | K61: 1,714 | L61: 513 | M61: 1,795 | N61: 536 | O61: 1,876 | P61: 559 | Q61: 1,957 | R61: 588 | S61: 2,059 | T61: 618 | U61: 2,161 | V61: 647 | W61: 2,264 | X61: 676 | Y61: 2,366 | Z61: 705 | AA61: 2,469
A62: 23 | B62: 425 | C62: 1,488 | D62: 444 | E62: 1,555 | F62: 464 | G62: 1,623 | H62: 488 | I62: 1,707 | J62: 512 | K62: 1,792 | L62: 536 | M62: 1,876 | N62: 560 | O62: 1,961 | P62: 584 | Q62: 2,046 | R62: 615 | S62: 2,153 | T62: 646 | U62: 2,260 | V62: 676 | W62: 2,367 | X62: 707 | Y62: 2,474 | Z62: 737 | AA62: 2,581
A63: 24 | B63: 444 | C63: 1,552 | D63: 464 | E63: 1,623 | F63: 484 | G63: 1,693 | H63: 509 | I63: 1,782 | J63: 534 | K63: 1,870 | L63: 559 | M63: 1,958 | N63: 585 | O63: 2,046 | P63: 610 | Q63: 2,134 | R63: 642 | S63: 2,246 | T63: 674 | U63: 2,358 | V63: 706 | W63: 2,470 | X63: 738 | Y63: 2,581 | Z63: 769 | AA63: 2,693
A64: 25 | B64: 462 | C64: 1,617 | D64: 483 | E64: 1,691 | F64: 504 | G64: 1,764 | H64: 530 | I64: 1,856 | J64: 557 | K64: 1,948 | L64: 583 | M64: 2,040 | N64: 609 | O64: 2,132 | P64: 635 | Q64: 2,223 | R64: 669 | S64: 2,340 | T64: 702 | U64: 2,456 | V64: 735 | W64: 2,573 | X64: 768 | Y64: 2,689 | Z64: 802 | AA64: 2,805
A65: 26 | B65: 480 | C65: 1,682 | D65: 502 | E65: 1,758 | F65: 524 | G65: 1,835 | H65: 551 | I65: 1,930 | J65: 579 | K65: 2,026 | L65: 606 | M65: 2,121 | N65: 633 | O65: 2,217 | P65: 661 | Q65: 2,312 | R65: 695 | S65: 2,433 | T65: 730 | U65: 2,554 | V65: 764 | W65: 2,675 | X65: 799 | Y65: 2,796 | Z65: 834 | AA65: 2,917
A66: 27 | B66: 499 | C66: 1,746 | D66: 522 | E66: 1,826 | F66: 544 | G66: 1,905 | H66: 573 | I66: 2,004 | J66: 601 | K66: 2,104 | L66: 629 | M66: 2,203 | N66: 658 | O66: 2,302 | P66: 686 | Q66: 2,401 | R66: 722 | S66: 2,527 | T66: 758 | U66: 2,653 | V66: 794 | W66: 2,778 | X66: 830 | Y66: 2,904 | Z66: 866 | AA66: 3,030
A67: 28 | B67: 517 | C67: 1,811 | D67: 541 | E67: 1,893 | F67: 564 | G67: 1,976 | H67: 594 | I67: 2,079 | J67: 623 | K67: 2,181 | L67: 653 | M67: 2,284 | N67: 682 | O67: 2,387 | P67: 711 | Q67: 2,490 | R67: 749 | S67: 2,621 | T67: 786 | U67: 2,751 | V67: 823 | W67: 2,881 | X67: 860 | Y67: 3,012 | Z67: 898 | AA67: 3,142
A68: 29 | B68: 536 | C68: 1,876 | D68: 560 | E68: 1,961 | F68: 585 | G68: 2,046 | H68: 615 | I68: 2,153 | J68: 646 | K68: 2,259 | L68: 676 | M68: 2,366 | N68: 706 | O68: 2,473 | P68: 737 | Q68: 2,579 | R68: 775 | S68: 2,714 | T68: 814 | U68: 2,849 | V68: 853 | W68: 2,984 | X68: 891 | Y68: 3,119 | Z68: 930 | AA68: 3,254
A69: 30 | B69: 554 | C69: 1,940 | D69: 580 | E69: 2,029 | F69: 605 | G69: 2,117 | H69: 636 | I69: 2,227 | J69: 668 | K69: 2,337 | L69: 699 | M69: 2,448 | N69: 731 | O69: 2,558 | P69: 762 | Q69: 2,668 | R69: 802 | S69: 2,808 | T69: 842 | U69: 2,947 | V69: 882 | W69: 3,087 | X69: 922 | Y69: 3,227 | Z69: 962 | AA69: 3,366
AB70: 110.11製表

Sheet 健保_雇主11107
A1: 全民健康保險保險費負擔金額表(五)
B2: ﹝雇主、自營業主、專門職業及技術人員自行執業者適用﹞ | F2: 單位：新台幣元
A3: 投保金額等級 | B3: 月投保金額 | C3: 被保險人及眷屬負擔金額﹝負擔比率100%﹞
C4: 本人 | D4: 本人+1眷口 | E4: 本人+2眷口 | F4: 本人+3眷口
A5: 1
A6: =+A5+1 -> 2
A7: 3
A8: 4
A9: 5
A10: 6 | B10: 31,800 | C10: =+ROUND(B10*0.0517,0) -> 1644 | D10: =+C10*2 -> 3288 | E10: =+C10*3 -> 4932 | F10: =+C10*4 -> 6576
A11: 7 | B11: 33,300 | C11: 1722 | D11: 3444 | E11: 5166 | F11: 6888
A12: 8 | B12: 34,800 | C12: 1799 | D12: =+C12*2 -> 3598 | E12: =+C12*3 -> 5397 | F12: =+C12*4 -> 7196
A13: 9 | B13: 36,300 | C13: 1877 | D13: =+C13*2 -> 3754 | E13: =+C13*3 -> 5631 | F13: =+C13*4 -> 7508
A14: 10 | B14: 38,200 | C14: 1975 | D14: 3950 | E14: 5925 | F14: 7900
A15: 11 | B15: 40,100 | C15: 2073 | D15: 4146 | E15: 6219 | F15: 8292
A16: 12 | B16: 42,000 | C16: 2171 | D16: 4342 | E16: 6513 | F16: 8684
A17: 13 | B17: 43,900 | C17: 2270 | D17: 4540 | E17: 6810 | F17: 9080
A18: 14 | B18: 45,800 | C18: 2368 | D18: 4736 | E18: 7104 | F18: 9472
A19: 15 | B19: 48,200 | C19: 2492 | D19: 4984 | E19: 7476 | F19: 9968
A20: 16 | B20: 50,600 | C20: 2616 | D20: 5232 | E20: 7848 | F20: 10464
A21: 17 | B21: 53,000 | C21: 2740 | D21: 5480 | E21: 8220 | F21: 10960
A22: 18 | B22: 55,400 | C22: 2864 | D22: 5728 | E22: 8592 | F22: 11456
A23: 19 | B23: 57,800 | C23: 2988 | D23: 5976 | E23: 8964 | F23: 11952
A24: 20 | B24: 60,800 | C24: 3143 | D24: 6286 | E24: 9429 | F24: 12572
A25: 21 | B25: 63,800 | C25: 3298 | D25: 6596 | E25: 9894 | F25: 13192
A26: 22 | B26: 66,800 | C26: 3454 | D26: 6908 | E26: 10362 | F26: 13816
A27: 23 | B27: 69,800 | C27: 3609 | D27: 7218 | E27: 10827 | F27: 14436
A28: 24 | B28: 72,800 | C28: 3764 | D28: 7528 | E28: 11292 | F28: 15056
A29: 25 | B29: 76,500 | C29: 3955 | D29: 7910 | E29: 11865 | F29: 15820
A30: 26 | B30: 80,200 | C30: 4146 | D30: 8292 | E30: 12438 | F30: 16584
A31: 27 | B31: 83,900 | C31: 4338 | D31: 8676 | E31: 13014 | F31: 17352
A32: 28 | B32: 87,600 | C32: 4529 | D32: 9058 | E32: 13587 | F32: 18116
A33: 29 | B33: 92,100 | C33: 4762 | D33: 9524 | E33: 14286 | F33: 19048
A34: 30 | B34: 96,600 | C34: 4994 | D34: 9988 | E34: 14982 | F34: 19976
A35: 31 | B35: 101,100 | C35: 5227 | D35: 10454 | E35: 15681 | F35: 20908
A36: 32 | B36: 105,600 | C36: 5460 | D36: 10920 | E36: 16380 | F36: 21840
A37: 33 | B37: 110,100 | C37: 5692 | D37: 11384 | E37: 17076 | F37: 22768
A38: 34 | B38: 115,500 | C38: 5971 | D38: 11942 | E38: 17913 | F38: 23884
A39: 35 | B39: 120,900 | C39: 6251 | D39: 12502 | E39: 18753 | F39: 25004
A40: 36 | B40: 126,300 | C40: 6530 | D40: 13060 | E40: 19590 | F40: 26120
A41: 37 | B41: 131,700 | C41: 6809 | D41: 13618 | E41: 20427 | F41: 27236
A42: 38 | B42: 137,100 | C42: 7088 | D42: 14176 | E42: 21264 | F42: 28352
A43: 39 | B43: 142,500 | C43: 7367 | D43: 14734 | E43: 22101 | F43: 29468
A44: 40 | B44: 147,900 | C44: 7646 | D44: 15292 | E44: 22938 | F44: 30584
A45: =+A44+1 -> 41 | B45: 150,000 | C45: 7755 | D45: 15510 | E45: 23265 | F45: 31020
A46: 42 | B46: 156,400 | C46: 8086 | D46: 16172 | E46: 24258 | F46: 32344
A47: 43 | B47: 162,800 | C47: 8417 | D47: 16834 | E47: 25251 | F47: 33668
A48: 44 | B48: 169,200 | C48: 8748 | D48: 17496 | E48: 26244 | F48: 34992
A49: =+A48+1 -> 45 | B49: 175,600 | C49: 9079 | D49: 18158 | E49: 27237 | F49: 36316
A50: 46 | B50: 182,000 | C50: 9409 | D50: 18818 | E50: 28227 | F50: 37636
A51: 47 | B51: 189,500 | C51: 9797 | D51: 19594 | E51: 29391 | F51: 39188
A52: 48 | B52: 197,000 | C52: 10185 | D52: 20370 | E52: 30555 | F52: 40740
A53: 49 | B53: 204,500 | C53: 10573 | D53: 21146 | E53: 31719 | F53: 42292
A54: 50 | B54: 212,000 | C54: 10960 | D54: 21920 | E54: 32880 | F54: 43840
A55: 51 | B55: 219,500 | C55: 11348 | D55: 22696 | E55: 34044 | F55: 45392
A56: 111年7月1日起實施 | F56: 中央健康保險署製表
A58: 註:1.自111年7月1日起，投保金額最高一級調整為219,500元。
A59: 2.自111年1月1日起，配合基本工資調整，修正投保金額分級表級數。
A60: 3.自110年1月1日起，調整費率為5.17%。
A61: 4.僱用被保險人數5人以上之事業單位負責人或會計師、律師、建築師、醫師、牙醫師、中醫師自行執業者除自行舉證申 報其投保金額者外，應按投保金額分級表最高一級申報。自行舉證申報之投保金額，最低不得低於勞工保險投保薪資 分級表最高一級(105年5月1日起為45,800元)及其所屬員工申報之最高投保金額。 5.僱用被保險人數未滿5人之事業單位負責人、前項以外之專門職業及技術人員自行執業者或屬於第一類被保險人之自營 業主，除自行舉證申報其投保金額者外，應按投保金額分級表最高一級申報。自行舉證申報之投保金額，最低不得低 於健保法第10條第1項第1款第2目被保險人之平均投保金額(目前為34,800元)及其所屬員工申報之最高投保金額。但未 僱用有酬人員幫同工作之本款專門職業及技術人員自行執業者，其自行舉證申報之投保金額，最低以投保金額分級表第 6級(111年1月1日起為31,800元)為限。

Sheet 健保_一定雇主之受雇者11101起
B1: 全民健康保險保險費負擔金額表(三)
B2: ﹝公、民營事業、機構及有一定雇主之受雇者適用﹞ | H2: 單位：新台幣元
A3: 投保金額等級 | B3: 月投保金額 | C3: 被保險人及眷屬負擔金額﹝負擔比率30%﹞ | G3: 投保單位負擔金額﹝負擔比率60%﹞ | H3: 政府補助金額﹝補助比率10%﹞
C4: 本人 | D4: 本人+１眷口 | E4: 本人+２眷口 | F4: 本人+３眷口
A5: 1 | B5: 25,250 | C5: =+ROUND(B5*0.0517*0.3,0) -> 392 | D5: =+C5*2 -> 784 | E5: =+C5*3 -> 1176 | F5: =+C5*4 -> 1568 | G5: =+ROUND(B5*0.0517*0.6*1.58,0) -> 1238 | H5: =+ROUND(B5*0.0517*0.1*1.58,0) -> 206
A6: =+A5+1 -> 2 | B6: 26,400 | C6: 409 | D6: 818 | E6: 1227 | F6: 1636 | G6: 1294 | H6: 216
A7: 3 | B7: 27,600 | C7: 428 | D7: 856 | E7: 1284 | F7: 1712 | G7: 1353 | H7: 225
A8: 4 | B8: 28,800 | C8: 447 | D8: 894 | E8: 1341 | F8: 1788 | G8: 1412 | H8: 235
A9: 5 | B9: 30,300 | C9: 470 | D9: 940 | E9: 1410 | F9: 1880 | G9: 1485 | H9: 248
A10: 6 | B10: 31,800 | C10: 493 | D10: 986 | E10: 1479 | F10: 1972 | G10: 1559 | H10: 260
A11: 7 | B11: 33,300 | C11: 516 | D11: 1032 | E11: 1548 | F11: 2064 | G11: 1632 | H11: 272
A12: 8 | B12: 34,800 | C12: 540 | D12: 1080 | E12: 1620 | F12: 2160 | G12: 1706 | H12: 284
A13: 9 | B13: 36,300 | C13: 563 | D13: 1126 | E13: 1689 | F13: 2252 | G13: 1779 | H13: 297
A14: 10 | B14: 38,200 | C14: 592 | D14: 1184 | E14: 1776 | F14: 2368 | G14: 1872 | H14: 312
A15: 11 | B15: 40,100 | C15: 622 | D15: 1244 | E15: 1866 | F15: 2488 | G15: 1965 | H15: 328
A16: 12 | B16: 42,000 | C16: 651 | D16: =+C16*2 -> 1302 | E16: 1953 | F16: 2604 | G16: 2058 | H16: 343
A17: 13 | B17: 43,900 | C17: 681 | D17: =+C17*2 -> 1362 | E17: 2043 | F17: 2724 | G17: 2152 | H17: 359
A18: 14 | B18: 45,800 | C18: 710 | D18: 1420 | E18: 2130 | F18: 2840 | G18: 2245 | H18: 374
A19: 15 | B19: 48,200 | C19: 748 | D19: 1496 | E19: 2244 | F19: 2992 | G19: 2362 | H19: 394
A20: 16 | B20: 50,600 | C20: 785 | D20: 1570 | E20: 2355 | F20: 3140 | G20: 2480 | H20: 413
A21: 17 | B21: 53,000 | C21: 822 | D21: 1644 | E21: 2466 | F21: 3288 | G21: 2598 | H21: 433
A22: 18 | B22: 55,400 | C22: 859 | D22: 1718 | E22: 2577 | F22: 3436 | G22: 2715 | H22: 453
A23: 19 | B23: 57,800 | C23: 896 | D23: 1792 | E23: 2688 | F23: 3584 | G23: 2833 | H23: 472
A24: 20 | B24: 60,800 | C24: 943 | D24: 1886 | E24: 2829 | F24: 3772 | G24: 2980 | H24: 497
A25: 21 | B25: 63,800 | C25: 990 | D25: 1980 | E25: 2970 | F25: 3960 | G25: 3127 | H25: 521
A26: 22 | B26: 66,800 | C26: 1036 | D26: 2072 | E26: 3108 | F26: 4144 | G26: 3274 | H26: 546
A27: 23 | B27: 69,800 | C27: 1083 | D27: 2166 | E27: 3249 | F27: 4332 | G27: 3421 | H27: 570
A28: 24 | B28: 72,800 | C28: 1129 | D28: 2258 | E28: 3387 | F28: 4516 | G28: 3568 | H28: 595
A29: 25 | B29: 76,500 | C29: 1187 | D29: 2374 | E29: 3561 | F29: 4748 | G29: 3749 | H29: 625
A30: 26 | B30: 80,200 | C30: 1244 | D30: 2488 | E30: 3732 | F30: 4976 | G30: 3931 | H30: 655
A31: 27 | B31: 83,900 | C31: 1301 | D31: 2602 | E31: 3903 | F31: 5204 | G31: 4112 | H31: 685
A32: 28 | B32: 87,600 | C32: 1359 | D32: 2718 | E32: 4077 | F32: 5436 | G32: 4293 | H32: 716
A33: 29 | B33: 92,100 | C33: 1428 | D33: 2856 | E33: 4284 | F33: 5712 | G33: 4514 | H33: 752
A34: 30 | B34: 96,600 | C34: 1498 | D34: 2996 | E34: 4494 | F34: 5992 | G34: 4735 | H34: 789
A35: 31 | B35: 101,100 | C35: 1568 | D35: 3136 | E35: 4704 | F35: 6272 | G35: 4955 | H35: 826
A36: 32 | B36: 105,600 | C36: 1638 | D36: 3276 | E36: 4914 | F36: 6552 | G36: 5176 | H36: 863
A37: 33 | B37: 110,100 | C37: 1708 | D37: 3416 | E37: 5124 | F37: 6832 | G37: 5396 | H37: 899
A38: 34 | B38: 115,500 | C38: 1791 | D38: 3582 | E38: 5373 | F38: 7164 | G38: 5661 | H38: 943
A39: 35 | B39: 120,900 | C39: 1875 | D39: 3750 | E39: 5625 | F39: 7500 | G39: 5926 | H39: 988
A40: 36 | B40: 126,300 | C40: 1959 | D40: 3918 | E40: 5877 | F40: 7836 | G40: 6190 | H40: 1032
A41: =+A40+1 -> 37 | B41: 131,700 | C41: 2043 | D41: 4086 | E41: 6129 | F41: 8172 | G41: 6455 | H41: 1076
A42: 38 | B42: 137,100 | C42: 2126 | D42: 4252 | E42: 6378 | F42: 8504 | G42: 6719 | H42: 1120
A43: 39 | B43: 142,500 | C43: 2210 | D43: 4420 | E43: 6630 | F43: 8840 | G43: 6984 | H43: 1164
A44: 40 | B44: 147,900 | C44: 2294 | D44: 4588 | E44: 6882 | F44: 9176 | G44: 7249 | H44: 1208
A45: =+A44+1 -> 41 | B45: 150,000 | C45: 2327 | D45: 4654 | E45: 6981 | F45: 9308 | G45: 7352 | H45: 1225
A46: 42 | B46: 156,400 | C46: 2426 | D46: 4852 | E46: 7278 | F46: 9704 | G46: 7665 | H46: 1278
A47: 43 | B47: 162,800 | C47: 2525 | D47: 5050 | E47: 7575 | F47: 10100 | G47: 7979 | H47: 1330
A48: 44 | B48: 169,200 | C48: 2624 | D48: 5248 | E48: 7872 | F48: 10496 | G48: 8293 | H48: 1382
A49: =+A48+1 -> 45 | B49: 175,600 | C49: 2724 | D49: 5448 | E49: 8172 | F49: 10896 | G49: 8606 | H49: 1434
A50: 46 | B50: 182,000 | C50: 2823 | D50: 5646 | E50: 8469 | F50: 11292 | G50: 8920 | H50: 1487
A51: 111年1月1日起實施 | H51: 中央健康保險署製表
A53: 註:1.自111年1月1日起配合基本工資調整，第一級調整為25,250元。
A54: 2.自110年1月1日起費率調整為5.17%。
A55: 3.自109年1月1日起調整平均眷口數為0.58人，投保單位負擔金額含本人 及平均眷屬人數0.58人,合計1.58人。

Sheet 健保_雇主11101
A1: 全民健康保險保險費負擔金額表(五)
B2: ﹝雇主、自營業主、專門職業及技術人員自行執業者適用﹞ | F2: 單位：新台幣元
A3: 投保金額等級 | B3: 月投保金額 | C3: 被保險人及眷屬負擔金額﹝負擔比率100%﹞
C4: 本人 | D4: 本人+1眷口 | E4: 本人+2眷口 | F4: 本人+3眷口
A5: 1
A6: =+A5+1 -> 2
A7: 3
A8: 4
A9: 5
A10: 6 | B10: 31,800 | C10: =+ROUND(B10*0.0517,0) -> 1644 | D10: =+C10*2 -> 3288 | E10: =+C10*3 -> 4932 | F10: =+C10*4 -> 6576
A11: 7 | B11: 33,300 | C11: 1722 | D11: 3444 | E11: 5166 | F11: 6888
A12: 8 | B12: 34,800 | C12: 1799 | D12: =+C12*2 -> 3598 | E12: =+C12*3 -> 5397 | F12: =+C12*4 -> 7196
A13: 9 | B13: 36,300 | C13: 1877 | D13: =+C13*2 -> 3754 | E13: =+C13*3 -> 5631 | F13: =+C13*4 -> 7508
A14: 10 | B14: 38,200 | C14: 1975 | D14: 3950 | E14: 5925 | F14: 7900
A15: 11 | B15: 40,100 | C15: 2073 | D15: 4146 | E15: 6219 | F15: 8292
A16: 12 | B16: 42,000 | C16: 2171 | D16: 4342 | E16: 6513 | F16: 8684
A17: 13 | B17: 43,900 | C17: 2270 | D17: 4540 | E17: 6810 | F17: 9080
A18: 14 | B18: 45,800 | C18: 2368 | D18: 4736 | E18: 7104 | F18: 9472
A19: 15 | B19: 48,200 | C19: 2492 | D19: 4984 | E19: 7476 | F19: 9968
A20: 16 | B20: 50,600 | C20: 2616 | D20: 5232 | E20: 7848 | F20: 10464
A21: 17 | B21: 53,000 | C21: 2740 | D21: 5480 | E21: 8220 | F21: 10960
A22: 18 | B22: 55,400 | C22: 2864 | D22: 5728 | E22: 8592 | F22: 11456
A23: 19 | B23: 57,800 | C23: 2988 | D23: 5976 | E23: 8964 | F23: 11952
A24: 20 | B24: 60,800 | C24: 3143 | D24: 6286 | E24: 9429 | F24: 12572
A25: 21 | B25: 63,800 | C25: 3298 | D25: 6596 | E25: 9894 | F25: 13192
A26: 22 | B26: 66,800 | C26: 3454 | D26: 6908 | E26: 10362 | F26: 13816
A27: 23 | B27: 69,800 | C27: 3609 | D27: 7218 | E27: 10827 | F27: 14436
A28: 24 | B28: 72,800 | C28: 3764 | D28: 7528 | E28: 11292 | F28: 15056
A29: 25 | B29: 76,500 | C29: 3955 | D29: 7910 | E29: 11865 | F29: 15820
A30: 26 | B30: 80,200 | C30: 4146 | D30: 8292 | E30: 12438 | F30: 16584
A31: 27 | B31: 83,900 | C31: 4338 | D31: 8676 | E31: 13014 | F31: 17352
A32: 28 | B32: 87,600 | C32: 4529 | D32: 9058 | E32: 13587 | F32: 18116
A33: 29 | B33: 92,100 | C33: 4762 | D33: 9524 | E33: 14286 | F33: 19048
A34: 30 | B34: 96,600 | C34: 4994 | D34: 9988 | E34: 14982 | F34: 19976
A35: 31 | B35: 101,100 | C35: 5227 | D35: 10454 | E35: 15681 | F35: 20908
A36: 32 | B36: 105,600 | C36: 5460 | D36: 10920 | E36: 16380 | F36: 21840
A37: 33 | B37: 110,100 | C37: 5692 | D37: 11384 | E37: 17076 | F37: 22768
A38: 34 | B38: 115,500 | C38: 5971 | D38: 11942 | E38: 17913 | F38: 23884
A39: 35 | B39: 120,900 | C39: 6251 | D39: 12502 | E39: 18753 | F39: 25004
A40: 36 | B40: 126,300 | C40: 6530 | D40: 13060 | E40: 19590 | F40: 26120
A41: 37 | B41: 131,700 | C41: 6809 | D41: 13618 | E41: 20427 | F41: 27236
A42: 38 | B42: 137,100 | C42: 7088 | D42: 14176 | E42: 21264 | F42: 28352
A43: 39 | B43: 142,500 | C43: 7367 | D43: 14734 | E43: 22101 | F43: 29468
A44: 40 | B44: 147,900 | C44: 7646 | D44: 15292 | E44: 22938 | F44: 30584
A45: =+A44+1 -> 41 | B45: 150,000 | C45: 7755 | D45: 15510 | E45: 23265 | F45: 31020
A46: 42 | B46: 156,400 | C46: 8086 | D46: 16172 | E46: 24258 | F46: 32344
A47: 43 | B47: 162,800 | C47: 8417 | D47: 16834 | E47: 25251 | F47: 33668
A48: 44 | B48: 169,200 | C48: 8748 | D48: 17496 | E48: 26244 | F48: 34992
A49: =+A48+1 -> 45 | B49: 175,600 | C49: 9079 | D49: 18158 | E49: 27237 | F49: 36316
A50: 46 | B50: 182,000 | C50: 9409 | D50: 18818 | E50: 28227 | F50: 37636
A51: 111年1月1日起實施 | F51: 中央健康保險署製表
A52: 註:1.自111年1月1日起，配合基本工資調整，修正投保金額分級表級數。
A53: 2.自110年1月1日起，調整費率為5.17%。
A54: 3.僱用被保險人數5人以上之事業單位負責人或會計師、律師、建築師、醫師、牙醫師、中醫師自行執業者除自行舉證申 報其投保金額者外，應按投保金額分級表最高一級申報。自行舉證申報之投保金額，最低不得低於勞工保險投保薪資 分級表最高一級(105年5月1日起為45,800元)及其所屬員工申報之最高投保金額。 4.僱用被保險人數未滿5人之事業單位負責人、前項以外之專門職業及技術人員自行執業者或屬於第一類被保險人之自營 業主，除自行舉證申報其投保金額者外，應按投保金額分級表最高一級申報。自行舉證申報之投保金額，最低不得低 於健保法第10條第1項第1款第2目被保險人之平均投保金額(目前為34,800元)及其所屬員工申報之最高投保金額。但未 僱用有酬人員幫同工作之本款專門職業及技術人員自行執業者，其自行舉證申報之投保金額，最低以投保金額分級表第 6級(111年1月1日起為31,800元)為限。

Sheet 職業工會會員
B1: 全民健康保險保險費負擔金額表(四)
B2: ﹝職業工會會員適用﹞ | F2: 單位：新台幣元
A3: 投保金額等級 | C3: 被保險人及眷屬負擔金額﹝負擔比率60%﹞
B4: 月投保金額 | C4: 本人 | D4: 本人+ １眷口 | E4: 本人+ ２眷口 | F4: 本人+ ３眷口
A5: 1 | B5: 25,250 | C5: =+ROUND(B5*0.0517*0.6,0) -> 783 | D5: =+C5*2 -> 1566 | E5: =+C5*3 -> 2349 | F5: =+C5*4 -> 3132
A6: =+A5+1 -> 2 | B6: 26,400 | C6: 819 | D6: 1638 | E6: 2457 | F6: 3276
A7: 3 | B7: 27,600 | C7: 856 | D7: 1712 | E7: 2568 | F7: 3424
A8: 4 | B8: 28,800 | C8: 893 | D8: 1786 | E8: 2679 | F8: 3572
A9: 5 | B9: 30,300 | C9: 940 | D9: 1880 | E9: 2820 | F9: 3760
A10: 6 | B10: 31,800 | C10: 986 | D10: 1972 | E10: 2958 | F10: 3944
A11: 7 | B11: 33,300 | C11: 1033 | D11: 2066 | E11: 3099 | F11: 4132
A12: 8 | B12: 34,800 | C12: 1079 | D12: 2158 | E12: 3237 | F12: 4316
A13: 9 | B13: 36,300 | C13: 1126 | D13: 2252 | E13: 3378 | F13: 4504
A14: 10 | B14: 38,200 | C14: 1185 | D14: 2370 | E14: 3555 | F14: 4740
A15: 11 | B15: 40,100 | C15: 1244 | D15: 2488 | E15: 3732 | F15: 4976
A16: 12 | B16: 42,000 | C16: 1303 | D16: =+C16*2 -> 2606 | E16: 3909 | F16: 5212
A17: 13 | B17: 43,900 | C17: 1362 | D17: =+C17*2 -> 2724 | E17: 4086 | F17: 5448
A18: 14 | B18: 45,800 | C18: 1421 | D18: 2842 | E18: 4263 | F18: 5684
A19: 15 | B19: 48,200 | C19: 1495 | D19: 2990 | E19: 4485 | F19: 5980
A20: 16 | B20: 50,600 | C20: 1570 | D20: 3140 | E20: 4710 | F20: 6280
A21: 17 | B21: 53,000 | C21: 1644 | D21: 3288 | E21: 4932 | F21: 6576
A22: 18 | B22: 55,400 | C22: 1719 | D22: 3438 | E22: 5157 | F22: 6876
A23: 19 | B23: 57,800 | C23: 1793 | D23: 3586 | E23: 5379 | F23: 7172
A24: 20 | B24: 60,800 | C24: 1886 | D24: 3772 | E24: 5658 | F24: 7544
A25: 21 | B25: 63,800 | C25: 1979 | D25: 3958 | E25: 5937 | F25: 7916
A26: 22 | B26: 66,800 | C26: 2072 | D26: 4144 | E26: 6216 | F26: 8288
A27: 23 | B27: 69,800 | C27: 2165 | D27: 4330 | E27: 6495 | F27: 8660
A28: 24 | B28: 72,800 | C28: 2258 | D28: 4516 | E28: 6774 | F28: 9032
A29: 25 | B29: 76,500 | C29: 2373 | D29: 4746 | E29: 7119 | F29: 9492
A30: 26 | B30: 80,200 | C30: 2488 | D30: 4976 | E30: 7464 | F30: 9952
A31: 27 | B31: 83,900 | C31: 2603 | D31: 5206 | E31: 7809 | F31: 10412
A32: 28 | B32: 87,600 | C32: 2717 | D32: 5434 | E32: 8151 | F32: 10868
A33: 29 | B33: 92,100 | C33: 2857 | D33: 5714 | E33: 8571 | F33: 11428
A34: 30 | B34: 96,600 | C34: 2997 | D34: 5994 | E34: 8991 | F34: 11988
A35: 31 | B35: 101,100 | C35: 3136 | D35: 6272 | E35: 9408 | F35: 12544
A36: 32 | B36: 105,600 | C36: 3276 | D36: 6552 | E36: 9828 | F36: 13104
A37: 33 | B37: 110,100 | C37: 3415 | D37: 6830 | E37: 10245 | F37: 13660
A38: 34 | B38: 115,500 | C38: 3583 | D38: 7166 | E38: 10749 | F38: 14332
A39: 35 | B39: 120,900 | C39: 3750 | D39: 7500 | E39: 11250 | F39: 15000
A40: 36 | B40: 126,300 | C40: 3918 | D40: 7836 | E40: 11754 | F40: 15672
A41: =+A40+1 -> 37 | B41: 131,700 | C41: 4085 | D41: 8170 | E41: 12255 | F41: 16340
A42: 38 | B42: 137,100 | C42: 4253 | D42: 8506 | E42: 12759 | F42: 17012
A43: 39 | B43: 142,500 | C43: 4420 | D43: 8840 | E43: 13260 | F43: 17680
A44: 40 | B44: 147,900 | C44: 4588 | D44: 9176 | E44: 13764 | F44: 18352
A45: =+A44+1 -> 41 | B45: 150,000 | C45: 4653 | D45: 9306 | E45: 13959 | F45: 18612
A46: 42 | B46: 156,400 | C46: 4852 | D46: 9704 | E46: 14556 | F46: 19408
A47: 43 | B47: 162,800 | C47: 5050 | D47: 10100 | E47: 15150 | F47: 20200
A48: 44 | B48: 169,200 | C48: 5249 | D48: 10498 | E48: 15747 | F48: 20996
A49: =+A48+1 -> 45 | B49: 175,600 | C49: 5447 | D49: 10894 | E49: 16341 | F49: 21788
A50: =+A49+1 -> 46 | B50: 182,000 | C50: 5646 | D50: 11292 | E50: 16938 | F50: 22584
A51: =+A50+1 -> 47 | B51: 189,500 | C51: 5878 | D51: 11756 | E51: 17634 | F51: 23512
A52: 48 | B52: 197,000 | C52: 6111 | D52: 12222 | E52: 18333 | F52: 24444
A53: 49 | B53: 204,500 | C53: 6344 | D53: 12688 | E53: 19032 | F53: 25376
A54: 50 | B54: 212,000 | C54: 6576 | D54: 13152 | E54: 19728 | F54: 26304
A55: 51 | B55: 219,500 | C55: 6809 | D55: 13618 | E55: 20427 | F55: 27236
A56: 111年7月1日起實施 | F56: 中央健康保險署製表
A58: 註:1.自111年7月1日起，投保金額最高一級調整為219,500元。
A59: 2.自111年1月1日起配合基本工資調整，第一級調整為25,250元。
A60: 3.自110年1月1日起費率調整為5.17%。
A61: 4.自101年7月1日起第2類被保險人及眷屬之保險費由中央政府負擔40%。

Sheet 勞保_一般員工勞就保11001起
A1: 勞 工 保 險 普 通 事 故 保 險 費 及 就 業 保 險 保 險 費 合 計 之 被 保 險 人 與 投 保 單 位 分 擔 金 額 表 (自110年1月1日起適用) | AE1: 普通事故費率 | AF1: 10.50%
A2: ※本表不含勞工保險職業災害保險費，職業災害保險費率依投保單位行業別而有不同，請按繳款單所列職業災害保險費率自行計算，並請依規定職業災害保險費全部由投保單位負擔。 單位：新台幣元 | AE2: 就業保險費率 | AF2: 1.00%
B3: 部分工時勞工適用 | Z3: 第1級 | AB3: 第2級
B4: 11,100 | D4: 12,540 | F4: 13,500 | H4: 15,840 | J4: 16,500 | L4: 17,280 | N4: 17,880 | P4: 19,047 | R4: 20,008 | T4: 21,009 | V4: 22,000 | X4: 23,100 | Z4: 24,000 | AB4: 25,200
B5: 勞工 | C5: 單位 | D5: 勞工 | E5: 單位 | F5: 勞工 | G5: 單位 | H5: 勞工 | I5: 單位 | J5: 勞工 | K5: 單位 | L5: 勞工 | M5: 單位 | N5: 勞工 | O5: 單位 | P5: 勞工 | Q5: 單位 | R5: 勞工 | S5: 單位 | T5: 勞工 | U5: 單位 | V5: 勞工 | W5: 單位 | X5: 勞工 | Y5: 單位 | Z5: 勞工 | AA5: 單位 | AB5: 勞工 | AC5: 單位
A6: 1 | B6: =ROUND($B$4*$A6/30*$AF$1*20/100,0)+ROUND($B$4*$A6/30*$AF$2*20/100,0) -> 9 | C6: =ROUND($B$4*$A6/30*$AF$1*70/100,0)+ROUND($B$4*$A6/30*$AF$2*70/100,0) -> 30 | D6: =ROUND($D$4*$A6/30*$AF$1*20/100,0)+ROUND($D$4*$A6/30*$AF$2*20/100,0) -> 10 | E6: =ROUND($D$4*$A6/30*$AF$1*70/100,0)+ROUND($D$4*$A6/30*$AF$2*70/100,0) -> 34 | F6: =ROUND($F$4*$A6/30*$AF$1*20/100,0)+ROUND($F$4*$A6/30*$AF$2*20/100,0) -> 10 | G6: =ROUND($F$4*$A6/30*$AF$1*70/100,0)+ROUND($F$4*$A6/30*$AF$2*70/100,0) -> 36 | H6: =ROUND($H$4*$A6/30*$AF$1*20/100,0)+ROUND($H$4*$A6/30*$AF$2*20/100,0) -> 12 | I6: =ROUND($H$4*$A6/30*$AF$1*70/100,0)+ROUND($H$4*$A6/30*$AF$2*70/100,0) -> 43 | J6: =ROUND($J$4*$A6/30*$AF$1*20/100,0)+ROUND($J$4*$A6/30*$AF$2*20/100,0) -> 13 | K6: =ROUND($J$4*$A6/30*$AF$1*70/100,0)+ROUND($J$4*$A6/30*$AF$2*70/100,0) -> 44 | L6: =ROUND($L$4*$A6/30*$AF$1*20/100,0)+ROUND($L$4*$A6/30*$AF$2*20/100,0) -> 13 | M6: =ROUND($L$4*$A6/30*$AF$1*70/100,0)+ROUND($L$4*$A6/30*$AF$2*70/100,0) -> 46 | N6: =ROUND($N$4*$A6/30*$AF$1*20/100,0)+ROUND($N$4*$A6/30*$AF$2*20/100,0) -> 14 | O6: =ROUND($N$4*$A6/30*$AF$1*70/100,0)+ROUND($N$4*$A6/30*$AF$2*70/100,0) -> 48 | P6: =ROUND($P$4*$A6/30*$AF$1*20/100,0)+ROUND($P$4*$A6/30*$AF$2*20/100,0) -> 14 | Q6: =ROUND($P$4*$A6/30*$AF$1*70/100,0)+ROUND($P$4*$A6/30*$AF$2*70/100,0) -> 51 | R6: =ROUND($R$4*$A6/30*$AF$1*20/100,0)+ROUND($R$4*$A6/30*$AF$2*20/100,0) -> 15 | S6: =ROUND($R$4*$A6/30*$AF$1*70/100,0)+ROUND($R$4*$A6/30*$AF$2*70/100,0) -> 54 | T6: =ROUND($T$4*$A6/30*$AF$1*20/100,0)+ROUND($T$4*$A6/30*$AF$2*20/100,0) -> 16 | U6: =ROUND($T$4*$A6/30*$AF$1*70/100,0)+ROUND($T$4*$A6/30*$AF$2*70/100,0) -> 56 | V6: =ROUND($V$4*$A6/30*$AF$1*20/100,0)+ROUND($V$4*$A6/30*$AF$2*20/100,0) -> 16 | W6: =ROUND($V$4*$A6/30*$AF$1*70/100,0)+ROUND($V$4*$A6/30*$AF$2*70/100,0) -> 59 | X6: =ROUND($X$4*$A6/30*$AF$1*20/100,0)+ROUND($X$4*$A6/30*$AF$2*20/100,0) -> 18 | Y6: =ROUND($X$4*$A6/30*$AF$1*70/100,0)+ROUND($X$4*$A6/30*$AF$2*70/100,0) -> 62 | Z6: =ROUND($Z$4*$A6/30*$AF$1*20/100,0)+ROUND($Z$4*$A6/30*$AF$2*20/100,0) -> 19 | AA6: =ROUND($Z$4*$A6/30*$AF$1*70/100,0)+ROUND($Z$4*$A6/30*$AF$2*70/100,0) -> 65 | AB6: =ROUND($AB$4*$A6/30*$AF$1*20/100,0)+ROUND($AB$4*$A6/30*$AF$2*20/100,0) -> 20 | AC6: =ROUND($AB$4*$A6/30*$AF$1*70/100,0)+ROUND($AB$4*$A6/30*$AF$2*70/100,0) -> 68
A7: 2 | B7: 17 | C7: 59 | D7: 20 | E7: 67 | F7: 21 | G7: 72 | H7: 24 | I7: 85 | J7: 25 | K7: 89 | L7: 26 | M7: 93 | N7: 27 | O7: 96 | P7: 30 | Q7: 102 | R7: 31 | S7: 107 | T7: 32 | U7: 113 | V7: 34 | W7: 118 | X7: 35 | Y7: 124 | Z7: 37 | AA7: 129 | AB7: 38 | AC7: 135
A8: 3 | B8: 25 | C8: 90 | D8: 29 | E8: 101 | F8: 31 | G8: 108 | H8: 36 | I8: 127 | J8: 38 | K8: 133 | L8: 39 | M8: 139 | N8: 42 | O8: 144 | P8: 44 | Q8: 153 | R8: 46 | S8: 161 | T8: 48 | U8: 169 | V8: 50 | W8: 177 | X8: 54 | Y8: 186 | Z8: 55 | AA8: 193 | AB8: 58 | AC8: 203
A9: 4 | B9: 34 | C9: 119 | D9: 38 | E9: 135 | F9: 42 | G9: 145 | H9: 48 | I9: 170 | J9: 50 | K9: 177 | L9: 53 | M9: 185 | N9: 55 | O9: 192 | P9: 58 | Q9: 205 | R9: 61 | S9: 215 | T9: 65 | U9: 226 | V9: 68 | W9: 237 | X9: 71 | Y9: 248 | Z9: 73 | AA9: 257 | AB9: 78 | AC9: 271
A10: 5 | B10: 43 | C10: 149 | D10: 48 | E10: 169 | F10: 52 | G10: 181 | H10: 60 | I10: 212 | J10: 64 | K10: 221 | L10: 66 | M10: 232 | N10: 69 | O10: 240 | P10: 73 | Q10: 255 | R10: 77 | S10: 268 | T10: 81 | U10: 282 | V10: 84 | W10: 296 | X10: 89 | Y10: 310 | Z10: 92 | AA10: 322 | AB10: 96 | AC10: 338
A11: 6 | B11: 51 | C11: 179 | D11: 58 | E11: 202 | F11: 62 | G11: 217 | H11: 73 | I11: 255 | J11: 76 | K11: 266 | L11: 80 | M11: 278 | N11: 82 | O11: 288 | P11: 88 | Q11: 307 | R11: 92 | S11: 322 | T11: 96 | U11: 338 | V11: 101 | W11: 354 | X11: 106 | Y11: 372 | Z11: 111 | AA11: 387 | AB11: 116 | AC11: 405
A12: 7 | B12: 59 | C12: 208 | D12: 67 | E12: 235 | F12: 72 | G12: 254 | H12: 85 | I12: 298 | J12: 89 | K12: 310 | L12: 93 | M12: 324 | N12: 96 | O12: 336 | P12: 102 | Q12: 358 | R12: 107 | S12: 376 | T12: 113 | U12: 394 | V12: 118 | W12: 413 | X12: 124 | Y12: 434 | Z12: 129 | AA12: 451 | AB12: 135 | AC12: 473
A13: 8 | B13: 68 | C13: 239 | D13: 77 | E13: 269 | F13: 83 | G13: 290 | H13: 97 | I13: 340 | J13: 101 | K13: 354 | L13: 106 | M13: 371 | N13: 110 | O13: 383 | P13: 117 | Q13: 409 | R13: 123 | S13: 429 | T13: 129 | U13: 451 | V13: 135 | W13: 472 | X13: 141 | Y13: 496 | Z13: 147 | AA13: 515 | AB13: 154 | AC13: 541
A14: 9 | B14: 77 | C14: 268 | D14: 87 | E14: 303 | F14: 93 | G14: 326 | H14: 110 | I14: 382 | J14: 114 | K14: 399 | L14: 119 | M14: 417 | N14: 124 | O14: 432 | P14: 131 | Q14: 460 | R14: 138 | S14: 483 | T14: 145 | U14: 507 | V14: 152 | W14: 531 | X14: 160 | Y14: 558 | Z14: 165 | AA14: 579 | AB14: 174 | AC14: 609
A15: 10 | B15: 85 | C15: 298 | D15: 96 | E15: 336 | F15: 104 | G15: 363 | H15: 122 | I15: 425 | J15: 127 | K15: 443 | L15: 133 | M15: 463 | N15: 137 | O15: 480 | P15: 146 | Q15: 511 | R15: 153 | S15: 537 | T15: 161 | U15: 564 | V15: 169 | W15: 590 | X15: 177 | Y15: 620 | Z15: 184 | AA15: 644 | AB15: 193 | AC15: 676
A16: 11 | B16: 93 | C16: 327 | D16: 106 | E16: 370 | F16: 114 | G16: 399 | H16: 134 | I16: 468 | J16: 139 | K16: 487 | L16: 146 | M16: 510 | N16: 151 | O16: 528 | P16: 161 | Q16: 562 | R16: 169 | S16: 590 | T16: 177 | U16: 620 | V16: 185 | W16: 649 | X16: 195 | Y16: 682 | Z16: 203 | AA16: 709 | AB16: 212 | AC16: 744
A17: 12 | B17: 102 | C17: 357 | D17: 115 | E17: 404 | F17: 124 | G17: 435 | H17: 146 | I17: 510 | J17: 152 | K17: 531 | L17: 159 | M17: 556 | N17: 164 | O17: 576 | P17: 175 | Q17: 613 | R17: 184 | S17: 644 | T17: 193 | U17: 677 | V17: 203 | W17: 709 | X17: 212 | Y17: 744 | Z17: 221 | AA17: 773 | AB17: 232 | AC17: 812
A18: 13 | B18: 111 | C18: 388 | D18: 125 | E18: 437 | F18: 135 | G18: 471 | H18: 158 | I18: 553 | J18: 164 | K18: 576 | L18: 172 | M18: 602 | N18: 178 | O18: 623 | P18: 190 | Q18: 665 | R18: 199 | S18: 698 | T18: 209 | U18: 733 | V18: 219 | W18: 768 | X18: 230 | Y18: 806 | Z18: 239 | AA18: 837 | AB18: 251 | AC18: 879
A19: 14 | B19: 119 | C19: 417 | D19: 135 | E19: 471 | F19: 145 | G19: 507 | H19: 170 | I19: 595 | J19: 177 | K19: 620 | L19: 185 | M19: 649 | N19: 192 | O19: 671 | P19: 205 | Q19: 715 | R19: 215 | S19: 751 | T19: 226 | U19: 790 | V19: 237 | W19: 827 | X19: 248 | Y19: 867 | Z19: 257 | AA19: 901 | AB19: 271 | AC19: 946
A20: 15 | B20: 128 | C20: 447 | D20: 145 | E20: 505 | F20: 156 | G20: 543 | H20: 182 | I20: 637 | J20: 190 | K20: 664 | L20: 198 | M20: 695 | N20: 206 | O20: 720 | P20: 219 | Q20: 767 | R20: 230 | S20: 805 | T20: 242 | U20: 846 | V20: 253 | W20: 886 | X20: 266 | Y20: 930 | Z20: 276 | AA20: 966 | AB20: 290 | AC20: 1,014
A21: 16 | B21: 136 | C21: 476 | D21: 153 | E21: 539 | F21: 165 | G21: 579 | H21: 194 | I21: 680 | J21: 203 | K21: 709 | L21: 212 | M21: 742 | N21: 219 | O21: 768 | P21: 233 | Q21: 818 | R21: 245 | S21: 859 | T21: 257 | U21: 902 | V21: 269 | W21: 944 | X21: 284 | Y21: 992 | Z21: 295 | AA21: 1,031 | AB21: 309 | AC21: 1,082
A22: 17 | B22: 145 | C22: 506 | D22: 163 | E22: 572 | F22: 176 | G22: 616 | H22: 206 | I22: 723 | J22: 215 | K22: 752 | L22: 226 | M22: 789 | N22: 233 | O22: 816 | P22: 249 | Q22: 869 | R22: 261 | S22: 912 | T22: 274 | U22: 958 | V22: 287 | W22: 1,003 | X22: 301 | Y22: 1,054 | Z22: 313 | AA22: 1,095 | AB22: 329 | AC22: 1,150
A23: 18 | B23: 153 | C23: 537 | D23: 173 | E23: 606 | F23: 186 | G23: 652 | H23: 219 | I23: 766 | J23: 228 | K23: 797 | L23: 239 | M23: 835 | N23: 246 | O23: 864 | P23: 263 | Q23: 920 | R23: 276 | S23: 966 | T23: 290 | U23: 1,014 | V23: 303 | W23: 1,062 | X23: 319 | Y23: 1,116 | Z23: 331 | AA23: 1,159 | AB23: 348 | AC23: 1,217
A24: 19 | B24: 162 | C24: 566 | D24: 183 | E24: 640 | F24: 197 | G24: 688 | H24: 231 | I24: 807 | J24: 240 | K24: 841 | L24: 252 | M24: 881 | N24: 261 | O24: 911 | P24: 277 | Q24: 971 | R24: 291 | S24: 1,020 | T24: 306 | U24: 1,071 | V24: 321 | W24: 1,122 | X24: 336 | Y24: 1,177 | Z24: 349 | AA24: 1,223 | AB24: 367 | AC24: 1,285
A25: 20 | B25: 170 | C25: 596 | D25: 193 | E25: 673 | F25: 207 | G25: 725 | H25: 243 | I25: 850 | J25: 253 | K25: 886 | L25: 265 | M25: 928 | N25: 274 | O25: 959 | P25: 292 | Q25: 1,022 | R25: 307 | S25: 1,073 | T25: 322 | U25: 1,127 | V25: 337 | W25: 1,181 | X25: 354 | Y25: 1,240 | Z25: 368 | AA25: 1,288 | AB25: 387 | AC25: 1,353
A26: 21 | B26: 179 | C26: 625 | D26: 202 | E26: 706 | F26: 217 | G26: 761 | H26: 255 | I26: 893 | J26: 266 | K26: 930 | L26: 278 | M26: 974 | N26: 288 | O26: 1,008 | P26: 307 | Q26: 1,073 | R26: 322 | S26: 1,127 | T26: 338 | U26: 1,184 | V26: 354 | W26: 1,240 | X26: 372 | Y26: 1,301 | Z26: 387 | AA26: 1,353 | AB26: 405 | AC26: 1,420
A27: 22 | B27: 187 | C27: 655 | D27: 211 | E27: 740 | F27: 228 | G27: 797 | H27: 267 | I27: 935 | J27: 278 | K27: 974 | L27: 291 | M27: 1,020 | N27: 301 | O27: 1,056 | P27: 321 | Q27: 1,125 | R27: 337 | S27: 1,181 | T27: 355 | U27: 1,240 | V27: 371 | W27: 1,299 | X27: 390 | Y27: 1,364 | Z27: 405 | AA27: 1,417 | AB27: 425 | AC27: 1,487
A28: 23 | B28: 196 | C28: 685 | D28: 221 | E28: 774 | F28: 238 | G28: 833 | H28: 279 | I28: 978 | J28: 291 | K28: 1,019 | L28: 304 | M28: 1,067 | N28: 315 | O28: 1,104 | P28: 336 | Q28: 1,175 | R28: 353 | S28: 1,234 | T28: 370 | U28: 1,297 | V28: 388 | W28: 1,358 | X28: 407 | Y28: 1,426 | Z28: 423 | AA28: 1,481 | AB28: 445 | AC28: 1,555
A29: 24 | B29: 204 | C29: 715 | D29: 231 | E29: 807 | F29: 249 | G29: 870 | H29: 291 | I29: 1,020 | J29: 303 | K29: 1,062 | L29: 318 | M29: 1,113 | N29: 329 | O29: 1,151 | P29: 350 | Q29: 1,227 | R29: 368 | S29: 1,288 | T29: 387 | U29: 1,353 | V29: 405 | W29: 1,417 | X29: 425 | Y29: 1,487 | Z29: 441 | AA29: 1,545 | AB29: 463 | AC29: 1,623
A30: 25 | B30: 213 | C30: 745 | D30: 240 | E30: 841 | F30: 259 | G30: 906 | H30: 303 | I30: 1,062 | J30: 317 | K30: 1,107 | L30: 331 | M30: 1,159 | N30: 343 | O30: 1,199 | P30: 365 | Q30: 1,278 | R30: 383 | S30: 1,342 | T30: 403 | U30: 1,410 | V30: 422 | W30: 1,476 | X30: 443 | Y30: 1,550 | Z30: 460 | AA30: 1,610 | AB30: 483 | AC30: 1,691
A31: 26 | B31: 221 | C31: 774 | D31: 250 | E31: 875 | F31: 269 | G31: 942 | H31: 315 | I31: 1,105 | J31: 329 | K31: 1,151 | L31: 344 | M31: 1,206 | N31: 356 | O31: 1,247 | P31: 380 | Q31: 1,329 | R31: 399 | S31: 1,396 | T31: 418 | U31: 1,465 | V31: 438 | W31: 1,534 | X31: 460 | Y31: 1,611 | Z31: 479 | AA31: 1,675 | AB31: 503 | AC31: 1,758
A32: 27 | B32: 230 | C32: 804 | D32: 260 | E32: 909 | F32: 279 | G32: 978 | H32: 328 | I32: 1,148 | J32: 342 | K32: 1,195 | L32: 358 | M32: 1,252 | N32: 370 | O32: 1,296 | P32: 394 | Q32: 1,380 | R32: 414 | S32: 1,450 | T32: 435 | U32: 1,522 | V32: 456 | W32: 1,594 | X32: 479 | Y32: 1,674 | Z32: 497 | AA32: 1,739 | AB32: 521 | AC32: 1,826
A33: 28 | B33: 239 | C33: 834 | D33: 269 | E33: 942 | F33: 290 | G33: 1,014 | H33: 340 | I33: 1,190 | J33: 354 | K33: 1,240 | L33: 371 | M33: 1,298 | N33: 383 | O33: 1,344 | P33: 409 | Q33: 1,431 | R33: 429 | S33: 1,504 | T33: 451 | U33: 1,578 | V33: 472 | W33: 1,653 | X33: 496 | Y33: 1,736 | Z33: 515 | AA33: 1,803 | AB33: 541 | AC33: 1,894
A34: 29 | B34: 246 | C34: 864 | D34: 279 | E34: 976 | F34: 300 | G34: 1,050 | H34: 353 | I34: 1,232 | J34: 367 | K34: 1,284 | L34: 384 | M34: 1,345 | N34: 398 | O34: 1,391 | P34: 424 | Q34: 1,482 | R34: 445 | S34: 1,557 | T34: 467 | U34: 1,635 | V34: 490 | W34: 1,712 | X34: 514 | Y34: 1,797 | Z34: 533 | AA34: 1,867 | AB34: 561 | AC34: 1,961
A35: 30 | B35: 255 | C35: 894 | D35: 288 | E35: 1,010 | F35: 311 | G35: 1,087 | H35: 365 | I35: 1,275 | J35: 380 | K35: 1,329 | L35: 398 | M35: 1,391 | N35: 411 | O35: 1,439 | P35: 438 | Q35: 1,533 | R35: 460 | S35: 1,611 | T35: 483 | U35: 1,691 | V35: 506 | W35: 1,771 | X35: 531 | Y35: 1,860 | Z35: 552 | AA35: 1,932 | AB35: 579 | AC35: 2,028
B37: 第3級 | D37: 第4級 | F37: 第5級 | H37: 第6級 | J37: 第7級 | L37: 第8級 | N37: 第9級 | P37: 第10級 | R37: 第11級 | T37: 第12級 | V37: 第13級 | X37: 第14級 | Z37: 第15級
B38: 26,400 | D38: 27,600 | F38: 28,800 | H38: 30,300 | J38: 31,800 | L38: 33,300 | N38: 34,800 | P38: 36,300 | R38: 38,200 | T38: 40,100 | V38: 42,000 | X38: 43,900 | Z38: 45,800
B39: 勞工 | C39: 單位 | D39: 勞工 | E39: 單位 | F39: 勞工 | G39: 單位 | H39: 勞工 | I39: 單位 | J39: 勞工 | K39: 單位 | L39: 勞工 | M39: 單位 | N39: 勞工 | O39: 單位 | P39: 勞工 | Q39: 單位 | R39: 勞工 | S39: 單位 | T39: 勞工 | U39: 單位 | V39: 勞工 | W39: 單位 | X39: 勞工 | Y39: 單位 | Z39: 勞工 | AA39: 單位 | AB39: 勞工 | AC39: 單位
A40: 1 | B40: =ROUND($B$38*$A40/30*$AF$1*20/100,0)+ROUND($B$38*$A40/30*$AF$2*20/100,0) -> 20 | C40: =ROUND($B$38*$A40/30*$AF$1*70/100,0)+ROUND($B$38*$A40/30*$AF$2*70/100,0) -> 71 | D40: =ROUND($D$38*$A40/30*$AF$1*20/100,0)+ROUND($D$38*$A40/30*$AF$2*20/100,0) -> 21 | E40: =ROUND($D$38*$A40/30*$AF$1*70/100,0)+ROUND($D$38*$A40/30*$AF$2*70/100,0) -> 74 | F40: =ROUND($F$38*$A40/30*$AF$1*20/100,0)+ROUND($F$38*$A40/30*$AF$2*20/100,0) -> 22 | G40: =ROUND($F$38*$A40/30*$AF$1*70/100,0)+ROUND($F$38*$A40/30*$AF$2*70/100,0) -> 78 | H40: =ROUND($H$38*$A40/30*$AF$1*20/100,0)+ROUND($H$38*$A40/30*$AF$2*20/100,0) -> 23 | I40: =ROUND($H$38*$A40/30*$AF$1*70/100,0)+ROUND($H$38*$A40/30*$AF$2*70/100,0) -> 81 | J40: =ROUND($J$38*$A40/30*$AF$1*20/100,0)+ROUND($J$38*$A40/30*$AF$2*20/100,0) -> 24 | K40: =ROUND($J$38*$A40/30*$AF$1*70/100,0)+ROUND($J$38*$A40/30*$AF$2*70/100,0) -> 85 | L40: =ROUND($L$38*$A40/30*$AF$1*20/100,0)+ROUND($L$38*$A40/30*$AF$2*20/100,0) -> 25 | M40: =ROUND($L$38*$A40/30*$AF$1*70/100,0)+ROUND($L$38*$A40/30*$AF$2*70/100,0) -> 90 | N40: =ROUND($N$38*$A40/30*$AF$1*20/100,0)+ROUND($N$38*$A40/30*$AF$2*20/100,0) -> 26 | O40: =ROUND($N$38*$A40/30*$AF$1*70/100,0)+ROUND($N$38*$A40/30*$AF$2*70/100,0) -> 93 | P40: =ROUND($P$38*$A40/30*$AF$1*20/100,0)+ROUND($P$38*$A40/30*$AF$2*20/100,0) -> 27 | Q40: =ROUND($P$38*$A40/30*$AF$1*70/100,0)+ROUND($P$38*$A40/30*$AF$2*70/100,0) -> 97 | R40: =ROUND($R$38*$A40/30*$AF$1*20/100,0)+ROUND($R$38*$A40/30*$AF$2*20/100,0) -> 30 | S40: =ROUND($R$38*$A40/30*$AF$1*70/100,0)+ROUND($R$38*$A40/30*$AF$2*70/100,0) -> 103 | T40: =ROUND($T$38*$A40/30*$AF$1*20/100,0)+ROUND($T$38*$A40/30*$AF$2*20/100,0) -> 31 | U40: =ROUND($T$38*$A40/30*$AF$1*70/100,0)+ROUND($T$38*$A40/30*$AF$2*70/100,0) -> 107 | V40: =ROUND($V$38*$A40/30*$AF$1*20/100,0)+ROUND($V$38*$A40/30*$AF$2*20/100,0) -> 32 | W40: =ROUND($V$38*$A40/30*$AF$1*70/100,0)+ROUND($V$38*$A40/30*$AF$2*70/100,0) -> 113 | X40: =ROUND($X$38*$A40/30*$AF$1*20/100,0)+ROUND($X$38*$A40/30*$AF$2*20/100,0) -> 34 | Y40: =ROUND($X$38*$A40/30*$AF$1*70/100,0)+ROUND($X$38*$A40/30*$AF$2*70/100,0) -> 118 | Z40: =ROUND($Z$38*$A40/30*$AF$1*20/100,0)+ROUND($Z$38*$A40/30*$AF$2*20/100,0) -> 35 | AA40: =ROUND($Z$38*$A40/30*$AF$1*70/100,0)+ROUND($Z$38*$A40/30*$AF$2*70/100,0) -> 123
A41: 2 | B41: 41 | C41: 141 | D41: 43 | E41: 148 | F41: 44 | G41: 154 | H41: 46 | I41: 162 | J41: 49 | K41: 171 | L41: 51 | M41: 179 | N41: 54 | O41: 187 | P41: 56 | Q41: 195 | R41: 58 | S41: 205 | T41: 61 | U41: 215 | V41: 65 | W41: 226 | X41: 67 | Y41: 235 | Z41: 70 | AA41: 245
A42: 3 | B42: 60 | C42: 212 | D42: 64 | E42: 222 | F42: 66 | G42: 232 | H42: 70 | I42: 244 | J42: 73 | K42: 256 | L42: 77 | M42: 268 | N42: 80 | O42: 280 | P42: 83 | Q42: 292 | R42: 88 | S42: 308 | T42: 92 | U42: 323 | V42: 96 | W42: 338 | X42: 101 | Y42: 354 | Z42: 105 | AA42: 369
A43: 4 | B43: 81 | C43: 284 | D43: 84 | E43: 296 | F43: 89 | G43: 309 | H43: 93 | I43: 325 | J43: 97 | K43: 342 | L43: 102 | M43: 357 | N43: 106 | O43: 373 | P43: 112 | Q43: 390 | R43: 117 | S43: 410 | T43: 123 | U43: 430 | V43: 129 | W43: 451 | X43: 135 | Y43: 471 | Z43: 140 | AA43: 492
A44: 5 | B44: 101 | C44: 354 | D44: 106 | E44: 370 | F44: 111 | G44: 387 | H44: 116 | I44: 406 | J44: 122 | K44: 427 | L44: 128 | M44: 447 | N44: 134 | O44: 467 | P44: 139 | Q44: 487 | R44: 147 | S44: 513 | T44: 153 | U44: 538 | V44: 161 | W44: 564 | X44: 169 | Y44: 589 | Z44: 175 | AA44: 614
A45: 6 | B45: 122 | C45: 425 | D45: 127 | E45: 445 | F45: 133 | G45: 463 | H45: 139 | I45: 487 | J45: 147 | K45: 512 | L45: 153 | M45: 537 | N45: 160 | O45: 561 | P45: 167 | Q45: 585 | R45: 175 | S45: 615 | T45: 184 | U45: 645 | V45: 193 | W45: 676 | X45: 202 | Y45: 706 | Z45: 210 | AA45: 737
A46: 7 | B46: 141 | C46: 496 | D46: 148 | E46: 518 | F46: 154 | G46: 541 | H46: 162 | I46: 569 | J46: 171 | K46: 597 | L46: 179 | M46: 625 | N46: 187 | O46: 654 | P46: 195 | Q46: 682 | R46: 205 | S46: 717 | T46: 215 | U46: 753 | V46: 226 | W46: 789 | X46: 235 | Y46: 825 | Z46: 245 | AA46: 860
A47: 8 | B47: 162 | C47: 566 | D47: 170 | E47: 593 | F47: 176 | G47: 618 | H47: 186 | I47: 651 | J47: 195 | K47: 682 | L47: 204 | M47: 715 | N47: 214 | O47: 747 | P47: 222 | Q47: 779 | R47: 234 | S47: 820 | T47: 246 | U47: 861 | V47: 257 | W47: 901 | X47: 269 | Y47: 942 | Z47: 280 | AA47: 983
A48: 9 | B48: 182 | C48: 637 | D48: 191 | E48: 667 | F48: 198 | G48: 695 | H48: 209 | I48: 732 | J48: 219 | K48: 768 | L48: 230 | M48: 804 | N48: 240 | O48: 840 | P48: 251 | Q48: 876 | R48: 264 | S48: 922 | T48: 277 | U48: 968 | V48: 290 | W48: 1,014 | X48: 303 | Y48: 1,060 | Z48: 316 | AA48: 1,106
A49: 10 | B49: 203 | C49: 709 | D49: 211 | E49: 740 | F49: 221 | G49: 773 | H49: 232 | I49: 813 | J49: 244 | K49: 853 | L49: 255 | M49: 894 | N49: 267 | O49: 934 | P49: 278 | Q49: 974 | R49: 292 | S49: 1,025 | T49: 308 | U49: 1,076 | V49: 322 | W49: 1,127 | X49: 336 | Y49: 1,178 | Z49: 352 | AA49: 1,229
A50: 11 | B50: 222 | C50: 779 | D50: 233 | E50: 815 | F50: 243 | G50: 850 | H50: 255 | I50: 895 | J50: 268 | K50: 939 | L50: 280 | M50: 982 | N50: 294 | O50: 1,027 | P50: 307 | Q50: 1,071 | R50: 322 | S50: 1,127 | T50: 338 | U50: 1,184 | V50: 354 | W50: 1,240 | X50: 370 | Y50: 1,296 | Z50: 387 | AA50: 1,352
A51: 12 | B51: 243 | C51: 850 | D51: 254 | E51: 888 | F51: 265 | G51: 928 | H51: 279 | I51: 976 | J51: 292 | K51: 1,024 | L51: 307 | M51: 1,072 | N51: 320 | O51: 1,120 | P51: 334 | Q51: 1,169 | R51: 352 | S51: 1,230 | T51: 369 | U51: 1,291 | V51: 387 | W51: 1,353 | X51: 404 | Y51: 1,414 | Z51: 422 | AA51: 1,475
A52: 13 | B52: 263 | C52: 921 | D52: 275 | E52: 963 | F52: 287 | G52: 1,004 | H52: 302 | I52: 1,057 | J52: 317 | K52: 1,109 | L52: 332 | M52: 1,162 | N52: 347 | O52: 1,214 | P52: 361 | Q52: 1,266 | R52: 381 | S52: 1,333 | T52: 400 | U52: 1,399 | V52: 418 | W52: 1,465 | X52: 437 | Y52: 1,531 | Z52: 457 | AA52: 1,598
A53: 14 | B53: 284 | C53: 992 | D53: 296 | E53: 1,037 | F53: 309 | G53: 1,082 | H53: 325 | I53: 1,138 | J53: 342 | K53: 1,195 | L53: 357 | M53: 1,251 | N53: 373 | O53: 1,308 | P53: 390 | Q53: 1,364 | R53: 410 | S53: 1,435 | T53: 430 | U53: 1,506 | V53: 451 | W53: 1,578 | X53: 471 | Y53: 1,649 | Z53: 492 | AA53: 1,721
A54: 15 | B54: 303 | C54: 1,062 | D54: 318 | E54: 1,111 | F54: 331 | G54: 1,159 | H54: 348 | I54: 1,220 | J54: 366 | K54: 1,280 | L54: 383 | M54: 1,341 | N54: 400 | O54: 1,401 | P54: 417 | Q54: 1,461 | R54: 439 | S54: 1,538 | T54: 461 | U54: 1,614 | V54: 483 | W54: 1,691 | X54: 505 | Y54: 1,767 | Z54: 527 | AA54: 1,843
A55: 16 | B55: 324 | C55: 1,134 | D55: 338 | E55: 1,185 | F55: 354 | G55: 1,237 | H55: 371 | I55: 1,301 | J55: 390 | K55: 1,366 | L55: 409 | M55: 1,429 | N55: 427 | O55: 1,494 | P55: 446 | Q55: 1,559 | R55: 469 | S55: 1,640 | T55: 492 | U55: 1,722 | V55: 515 | W55: 1,803 | X55: 539 | Y55: 1,885 | Z55: 562 | AA55: 1,966
A56: 17 | B56: 344 | C56: 1,205 | D56: 359 | E56: 1,259 | F56: 376 | G56: 1,314 | H56: 395 | I56: 1,382 | J56: 414 | K56: 1,450 | L56: 434 | M56: 1,519 | N56: 453 | O56: 1,587 | P56: 473 | Q56: 1,656 | R56: 498 | S56: 1,743 | T56: 522 | U56: 1,829 | V56: 548 | W56: 1,916 | X56: 572 | Y56: 2,002 | Z56: 597 | AA56: 2,090
A57: 18 | B57: 365 | C57: 1,275 | D57: 381 | E57: 1,333 | F57: 398 | G57: 1,391 | H57: 418 | I57: 1,463 | J57: 439 | K57: 1,536 | L57: 460 | M57: 1,609 | N57: 480 | O57: 1,681 | P57: 501 | Q57: 1,753 | R57: 527 | S57: 1,845 | T57: 553 | U57: 1,936 | V57: 579 | W57: 2,028 | X57: 606 | Y57: 2,120 | Z57: 632 | AA57: 2,212
A58: 19 | B58: 384 | C58: 1,346 | D58: 402 | E58: 1,407 | F58: 419 | G58: 1,469 | H58: 441 | I58: 1,544 | J58: 463 | K58: 1,621 | L58: 485 | M58: 1,698 | N58: 507 | O58: 1,774 | P58: 529 | Q58: 1,851 | R58: 556 | S58: 1,947 | T58: 584 | U58: 2,045 | V58: 612 | W58: 2,141 | X58: 640 | Y58: 2,239 | Z58: 667 | AA58: 2,335
A59: 20 | B59: 405 | C59: 1,417 | D59: 423 | E59: 1,481 | F59: 441 | G59: 1,545 | H59: 464 | I59: 1,626 | J59: 487 | K59: 1,706 | L59: 510 | M59: 1,787 | N59: 533 | O59: 1,867 | P59: 556 | Q59: 1,948 | R59: 586 | S59: 2,050 | T59: 614 | U59: 2,152 | V59: 644 | W59: 2,254 | X59: 674 | Y59: 2,356 | Z59: 702 | AA59: 2,458
A60: 21 | B60: 425 | C60: 1,487 | D60: 445 | E60: 1,555 | F60: 463 | G60: 1,623 | H60: 487 | I60: 1,707 | J60: 512 | K60: 1,792 | L60: 537 | M60: 1,876 | N60: 561 | O60: 1,961 | P60: 585 | Q60: 2,046 | R60: 615 | S60: 2,152 | T60: 645 | U60: 2,259 | V60: 676 | W60: 2,367 | X60: 706 | Y60: 2,474 | Z60: 737 | AA60: 2,580
A61: 22 | B61: 446 | C61: 1,559 | D61: 465 | E61: 1,630 | F61: 486 | G61: 1,700 | H61: 511 | I61: 1,789 | J61: 537 | K61: 1,877 | L61: 562 | M61: 1,966 | N61: 587 | O61: 2,055 | P61: 612 | Q61: 2,143 | R61: 644 | S61: 2,255 | T61: 677 | U61: 2,367 | V61: 709 | W61: 2,480 | X61: 740 | Y61: 2,591 | Z61: 772 | AA61: 2,704
A62: 23 | B62: 465 | C62: 1,630 | D62: 486 | E62: 1,703 | F62: 508 | G62: 1,778 | H62: 534 | I62: 1,870 | J62: 561 | K62: 1,963 | L62: 587 | M62: 2,055 | N62: 613 | O62: 2,148 | P62: 640 | Q62: 2,241 | R62: 674 | S62: 2,358 | T62: 707 | U62: 2,475 | V62: 740 | W62: 2,592 | X62: 774 | Y62: 2,710 | Z62: 807 | AA62: 2,827
A63: 24 | B63: 486 | C63: 1,700 | D63: 508 | E63: 1,778 | F63: 530 | G63: 1,854 | H63: 557 | I63: 1,952 | J63: 585 | K63: 2,048 | L63: 612 | M63: 2,144 | N63: 641 | O63: 2,241 | P63: 668 | Q63: 2,337 | R63: 703 | S63: 2,460 | T63: 738 | U63: 2,583 | V63: 773 | W63: 2,705 | X63: 808 | Y63: 2,827 | Z63: 842 | AA63: 2,949
A64: 25 | B64: 506 | C64: 1,771 | D64: 529 | E64: 1,852 | F64: 552 | G64: 1,932 | H64: 581 | I64: 2,033 | J64: 610 | K64: 2,134 | L64: 639 | M64: 2,234 | N64: 667 | O64: 2,335 | P64: 696 | Q64: 2,435 | R64: 733 | S64: 2,563 | T64: 769 | U64: 2,690 | V64: 805 | W64: 2,818 | X64: 841 | Y64: 2,945 | Z64: 878 | AA64: 3,072
A65: 26 | B65: 526 | C65: 1,842 | D65: 550 | E65: 1,925 | F65: 574 | G65: 2,010 | H65: 604 | I65: 2,114 | J65: 634 | K65: 2,219 | L65: 664 | M65: 2,323 | N65: 693 | O65: 2,428 | P65: 724 | Q65: 2,532 | R65: 761 | S65: 2,665 | T65: 800 | U65: 2,797 | V65: 837 | W65: 2,930 | X65: 875 | Y65: 3,062 | Z65: 913 | AA65: 3,195
A66: 27 | B66: 547 | C66: 1,912 | D66: 572 | E66: 2,000 | F66: 596 | G66: 2,086 | H66: 628 | I66: 2,195 | J66: 658 | K66: 2,304 | L66: 689 | M66: 2,413 | N66: 721 | O66: 2,521 | P66: 751 | Q66: 2,630 | R66: 791 | S66: 2,768 | T66: 830 | U66: 2,906 | V66: 870 | W66: 3,043 | X66: 909 | Y66: 3,181 | Z66: 948 | AA66: 3,319
A67: 28 | B67: 566 | C67: 1,983 | D67: 593 | E67: 2,073 | F67: 618 | G67: 2,164 | H67: 651 | I67: 2,277 | J67: 682 | K67: 2,389 | L67: 715 | M67: 2,502 | N67: 747 | O67: 2,614 | P67: 779 | Q67: 2,727 | R67: 820 | S67: 2,871 | T67: 861 | U67: 3,013 | V67: 901 | W67: 3,155 | X67: 942 | Y67: 3,299 | Z67: 983 | AA67: 3,441
A68: 29 | B68: 587 | C68: 2,055 | D68: 613 | E68: 2,148 | F68: 641 | G68: 2,241 | H68: 674 | I68: 2,358 | J68: 707 | K68: 2,474 | L68: 740 | M68: 2,591 | N68: 773 | O68: 2,708 | P68: 807 | Q68: 2,825 | R68: 849 | S68: 2,972 | T68: 892 | U68: 3,120 | V68: 934 | W68: 3,268 | X68: 976 | Y68: 3,416 | Z68: 1,019 | AA68: 3,564
A69: 30 | B69: 607 | C69: 2,125 | D69: 635 | E69: 2,222 | F69: 663 | G69: 2,319 | H69: 697 | I69: 2,439 | J69: 732 | K69: 2,560 | L69: 766 | M69: 2,681 | N69: 801 | O69: 2,802 | P69: 835 | Q69: 2,922 | R69: 878 | S69: 3,075 | T69: 922 | U69: 3,228 | V69: 966 | W69: 3,381 | X69: 1,010 | Y69: 3,534 | Z69: 1,054 | AA69: 3,687
AB71: 109.11製表

Sheet 退休金分級表11001
A1: 勞工退休金月提繳分級表
A2: 中華民國109年11月5日勞動部勞動福3字第1090136036B號令修正發布，自110年1月1日生效
A3: 級距 | B3: 級 | C3: 實際工資/執行業務所得 | D3: 月提繳工資/月提繳執行業務所得 | E3: 級距 | F3: 級 | G3: 實際工資/執行業務所得 | H3: 月提繳工資/月提繳執行業務所得
A4: 第1組 | B4: 1 | C4: 1,500元以下 | D4: 1,500元 | E4: 第7組 | F4: 35 | G4: 45,801元至48,200元 | H4: 48,200元
B5: 2 | C5: 1,501元至3,000元 | D5: 3,000元 | F5: 36 | G5: 48,201元至50,600元 | H5: 50,600元
B6: 3 | C6: 3,001元至4,500元 | D6: 4,500元 | F6: 37 | G6: 50,601元至53,000元 | H6: 53,000元
B7: 4 | C7: 4,501元至6,000元 | D7: 6,000元 | F7: 38 | G7: 53,001元至55,400元 | H7: 55,400元
B8: 5 | C8: 6,001元至7,500元 | D8: 7,500元 | F8: 39 | G8: 55,401元至57,800元 | H8: 57,800元
A9: 第2組 | B9: 6 | C9: 7,501元至8,700元 | D9: 8,700元 | E9: 第8組 | F9: 40 | G9: 57,801元至60,800元 | H9: 60,800元
B10: 7 | C10: 8,701元至9,900元 | D10: 9,900元 | F10: 41 | G10: 60,801元至63,800元 | H10: 63,800元
B11: 8 | C11: 9,901元至11,100元 | D11: 11,100元 | F11: 42 | G11: 63,801元至66,800元 | H11: 66,800元
B12: 9 | C12: 11,101元至12,540元 | D12: 12,540元 | F12: 43 | G12: 66,801元至69,800元 | H12: 69,800元
B13: 10 | C13: 12,541元至13,500元 | D13: 13,500元 | F13: 44 | G13: 69,801元至72,800元 | H13: 72,800元
A14: 第3組 | B14: 11 | C14: 13,501元至15,840元 | D14: 15,840元 | E14: 第9組 | F14: 45 | G14: 72,801元至76,500元 | H14: 76,500元
B15: 12 | C15: 15,841元至16,500元 | D15: 16,500元 | F15: 46 | G15: 76,501元至80,200元 | H15: 80,200元
B16: 13 | C16: 16,501元至17,280元 | D16: 17,280元 | F16: 47 | G16: 80,201元至83,900元 | H16: 83,900元
B17: 14 | C17: 17,281元至17,880元 | D17: 17,880元 | F17: 48 | G17: 83,901元至87,600元 | H17: 87,600元
B18: 15 | C18: 17,881元至19,047元 | D18: 19,047元 | E18: 第10組 | F18: 49 | G18: 87,601元至92,100元 | H18: 92,100元
B19: 16 | C19: 19,048元至20,008元 | D19: 20,008元 | F19: 50 | G19: 92,101元至96,600元 | H19: 96,600元
B20: 17 | C20: 20,009元至21,009元 | D20: 21,009元 | F20: 51 | G20: 96,601元至101,100元 | H20: 101,100元
B21: 18 | C21: 21,010元至22,000元 | D21: 22,000元 | F21: 52 | G21: 101,101元至105,600元 | H21: 105,600元
B22: 19 | C22: 22,001元至23,100元 | D22: 23,100元 | F22: 53 | G22: 105,601元至110,100元 | H22: 110,100元
A23: 第4組 | B23: 20 | C23: 23,101元至24,000元 | D23: 24,000元 | E23: 第11組 | F23: 54 | G23: 110,101元至115,500元 | H23: 115,500元
B24: 21 | C24: 24,001元至25,200元 | D24: 25,200元 | F24: 55 | G24: 115,501元至120,900元 | H24: 120,900元
B25: 22 | C25: 25,201元至26,400元 | D25: 26,400元 | F25: 56 | G25: 120,901元至126,300元 | H25: 126,300元
B26: 23 | C26: 26,401元至27,600元 | D26: 27,600元 | F26: 57 | G26: 126,301元至131,700元 | H26: 131,700元
B27: 24 | C27: 27,601元至28,800元 | D27: 28,800元 | F27: 58 | G27: 131,701元至137,100元 | H27: 137,100元
A28: 第5組 | B28: 25 | C28: 28,801元至30,300元 | D28: 30,300元 | F28: 59 | G28: 137,101元至142,500元 | H28: 142,500元
B29: 26 | C29: 30,301元至31,800元 | D29: 31,800元 | F29: 60 | G29: 142,501元至147,900元 | H29: 147,900元
B30: 27 | C30: 31,801元至33,300元 | D30: 33,300元 | F30: 61 | G30: 147,901元以上 | H30: 150,000元
B31: 28 | C31: 33,301元至34,800元 | D31: 34,800元 | E31: 備註：
B32: 29 | C32: 34,801元至36,300元 | D32: 36,300元 | E32: 一、本表依勞工退休金條例第十四條第五項規定訂定之。
A33: 第6組 | B33: 30 | C33: 36,301元至38,200元 | D33: 38,200元 | E33: 二、本表月提繳工資/月提繳執行業務所得金額以新臺幣元為單位，角以下四捨五入。
B34: 31 | C34: 38,201元至40,100元 | D34: 40,100元
B35: 32 | C35: 40,101元至42,000元 | D35: 42,000元
B36: 33 | C36: 42,001元至43,900元 | D36: 43,900元
B37: 34 | C37: 43,901元至45,800元 | D37: 45,800元

Sheet 勞保_雇主或外勞勞保11001起
A1: 勞 工 保 險 普 通 事 故 保 險 費 被 保 險 人 與 投 保 單 位 分 擔 金 額 表 (自110年1月1日起適用)
A2: ※本表不含勞工保險職業災害保險費，職業災害保險費率依投保單位行業別而有不同，請按繳款單所列職業災害保險費率自行計算，並請依規定職業災害保險費全部由投保單位負擔。 單位：新台幣元
B3: 部分工時勞工適用 | F3: 部分工時勞工、職訓機構受訓者適用 | Z3: 第1級 | AB3: 第2級 | AE3: 普通事故費率
B4: 11,100 | D4: 12,540 | F4: 13,500 | H4: 15,840 | J4: 16,500 | L4: 17,280 | N4: 17,880 | P4: 19,047 | R4: 20,008 | T4: 21,009 | V4: 22,000 | X4: 23,100 | Z4: 24,000 | AB4: 25,200 | AE4: 10.50%
B5: 勞工 | C5: 單位 | D5: 勞工 | E5: 單位 | F5: 勞工 | G5: 單位 | H5: 勞工 | I5: 單位 | J5: 勞工 | K5: 單位 | L5: 勞工 | M5: 單位 | N5: 勞工 | O5: 單位 | P5: 勞工 | Q5: 單位 | R5: 勞工 | S5: 單位 | T5: 勞工 | U5: 單位 | V5: 勞工 | W5: 單位 | X5: 勞工 | Y5: 單位 | Z5: 勞工 | AA5: 單位 | AB5: 勞工 | AC5: 單位
A6: 1 | B6: =ROUND($B$4*$A6/30*$AE$4*20/100,0) -> 8 | C6: =ROUND($B$4*$A6/30*$AE$4*70/100,0) -> 27 | D6: =ROUND($D$4*$A6/30*$AE$4*20/100,0) -> 9 | E6: =ROUND($D$4*$A6/30*$AE$4*70/100,0) -> 31 | F6: =ROUND($F$4*$A6/30*$AE$4*20/100,0) -> 9 | G6: =ROUND($F$4*$A6/30*$AE$4*70/100,0) -> 33 | H6: =ROUND($H$4*$A6/30*$AE$4*20/100,0) -> 11 | I6: =ROUND($H$4*$A6/30*$AE$4*70/100,0) -> 39 | J6: =ROUND($J$4*$A6/30*$AE$4*20/100,0) -> 12 | K6: =ROUND($J$4*$A6/30*$AE$4*70/100,0) -> 40 | L6: =ROUND($L$4*$A6/30*$AE$4*20/100,0) -> 12 | M6: =ROUND($L$4*$A6/30*$AE$4*70/100,0) -> 42 | N6: =ROUND($N$4*$A6/30*$AE$4*20/100,0) -> 13 | O6: =ROUND($N$4*$A6/30*$AE$4*70/100,0) -> 44 | P6: =ROUND($P$4*$A6/30*$AE$4*20/100,0) -> 13 | Q6: =ROUND($P$4*$A6/30*$AE$4*70/100,0) -> 47 | R6: =ROUND($R$4*$A6/30*$AE$4*20/100,0) -> 14 | S6: =ROUND($R$4*$A6/30*$AE$4*70/100,0) -> 49 | T6: =ROUND($T$4*$A6/30*$AE$4*20/100,0) -> 15 | U6: =ROUND($T$4*$A6/30*$AE$4*70/100,0) -> 51 | V6: =ROUND($V$4*$A6/30*$AE$4*20/100,0) -> 15 | W6: =ROUND($V$4*$A6/30*$AE$4*70/100,0) -> 54 | X6: =ROUND($X$4*$A6/30*$AE$4*20/100,0) -> 16 | Y6: =ROUND($X$4*$A6/30*$AE$4*70/100,0) -> 57 | Z6: =ROUND($Z$4*$A6/30*$AE$4*20/100,0) -> 17 | AA6: =ROUND($Z$4*$A6/30*$AE$4*70/100,0) -> 59 | AB6: =ROUND($AB$4*$A6/30*$AE$4*20/100,0) -> 18 | AC6: =ROUND($AB$4*$A6/30*$AE$4*70/100,0) -> 62
A7: 2 | B7: 16 | C7: 54 | D7: 18 | E7: 61 | F7: 19 | G7: 66 | H7: 22 | I7: 78 | J7: 23 | K7: 81 | L7: 24 | M7: 85 | N7: 25 | O7: 88 | P7: 27 | Q7: 93 | R7: 28 | S7: 98 | T7: 29 | U7: 103 | V7: 31 | W7: 108 | X7: 32 | Y7: 113 | Z7: 34 | AA7: 118 | AB7: 35 | AC7: 123
A8: 3 | B8: 23 | C8: 82 | D8: 26 | E8: 92 | F8: 28 | G8: 99 | H8: 33 | I8: 116 | J8: 35 | K8: 121 | L8: 36 | M8: 127 | N8: 38 | O8: 131 | P8: 40 | Q8: 140 | R8: 42 | S8: 147 | T8: 44 | U8: 154 | V8: 46 | W8: 162 | X8: 49 | Y8: 170 | Z8: 50 | AA8: 176 | AB8: 53 | AC8: 185
A9: 4 | B9: 31 | C9: 109 | D9: 35 | E9: 123 | F9: 38 | G9: 132 | H9: 44 | I9: 155 | J9: 46 | K9: 162 | L9: 48 | M9: 169 | N9: 50 | O9: 175 | P9: 53 | Q9: 187 | R9: 56 | S9: 196 | T9: 59 | U9: 206 | V9: 62 | W9: 216 | X9: 65 | Y9: 226 | Z9: 67 | AA9: 235 | AB9: 71 | AC9: 247
A10: 5 | B10: 39 | C10: 136 | D10: 44 | E10: 154 | F10: 47 | G10: 165 | H10: 55 | I10: 194 | J10: 58 | K10: 202 | L10: 60 | M10: 212 | N10: 63 | O10: 219 | P10: 67 | Q10: 233 | R10: 70 | S10: 245 | T10: 74 | U10: 257 | V10: 77 | W10: 270 | X10: 81 | Y10: 283 | Z10: 84 | AA10: 294 | AB10: 88 | AC10: 309
A11: 6 | B11: 47 | C11: 163 | D11: 53 | E11: 184 | F11: 57 | G11: 198 | H11: 67 | I11: 233 | J11: 69 | K11: 243 | L11: 73 | M11: 254 | N11: 75 | O11: 263 | P11: 80 | Q11: 280 | R11: 84 | S11: 294 | T11: 88 | U11: 309 | V11: 92 | W11: 323 | X11: 97 | Y11: 340 | Z11: 101 | AA11: 353 | AB11: 106 | AC11: 370
A12: 7 | B12: 54 | C12: 190 | D12: 61 | E12: 215 | F12: 66 | G12: 232 | H12: 78 | I12: 272 | J12: 81 | K12: 283 | L12: 85 | M12: 296 | N12: 88 | O12: 307 | P12: 93 | Q12: 327 | R12: 98 | S12: 343 | T12: 103 | U12: 360 | V12: 108 | W12: 377 | X12: 113 | Y12: 396 | Z12: 118 | AA12: 412 | AB12: 123 | AC12: 432
A13: 8 | B13: 62 | C13: 218 | D13: 70 | E13: 246 | F13: 76 | G13: 265 | H13: 89 | I13: 310 | J13: 92 | K13: 323 | L13: 97 | M13: 339 | N13: 100 | O13: 350 | P13: 107 | Q13: 373 | R13: 112 | S13: 392 | T13: 118 | U13: 412 | V13: 123 | W13: 431 | X13: 129 | Y13: 453 | Z13: 134 | AA13: 470 | AB13: 141 | AC13: 494
A14: 9 | B14: 70 | C14: 245 | D14: 79 | E14: 277 | F14: 85 | G14: 298 | H14: 100 | I14: 349 | J14: 104 | K14: 364 | L14: 109 | M14: 381 | N14: 113 | O14: 394 | P14: 120 | Q14: 420 | R14: 126 | S14: 441 | T14: 132 | U14: 463 | V14: 139 | W14: 485 | X14: 146 | Y14: 509 | Z14: 151 | AA14: 529 | AB14: 159 | AC14: 556
A15: 10 | B15: 78 | C15: 272 | D15: 88 | E15: 307 | F15: 95 | G15: 331 | H15: 111 | I15: 388 | J15: 116 | K15: 404 | L15: 121 | M15: 423 | N15: 125 | O15: 438 | P15: 133 | Q15: 467 | R15: 140 | S15: 490 | T15: 147 | U15: 515 | V15: 154 | W15: 539 | X15: 162 | Y15: 566 | Z15: 168 | AA15: 588 | AB15: 176 | AC15: 617
A16: 11 | B16: 85 | C16: 299 | D16: 97 | E16: 338 | F16: 104 | G16: 364 | H16: 122 | I16: 427 | J16: 127 | K16: 445 | L16: 133 | M16: 466 | N16: 138 | O16: 482 | P16: 147 | Q16: 513 | R16: 154 | S16: 539 | T16: 162 | U16: 566 | V16: 169 | W16: 593 | X16: 178 | Y16: 623 | Z16: 185 | AA16: 647 | AB16: 194 | AC16: 679
A17: 12 | B17: 93 | C17: 326 | D17: 105 | E17: 369 | F17: 113 | G17: 397 | H17: 133 | I17: 466 | J17: 139 | K17: 485 | L17: 145 | M17: 508 | N17: 150 | O17: 526 | P17: 160 | Q17: 560 | R17: 168 | S17: 588 | T17: 176 | U17: 618 | V17: 185 | W17: 647 | X17: 194 | Y17: 679 | Z17: 202 | AA17: 706 | AB17: 212 | AC17: 741
A18: 13 | B18: 101 | C18: 354 | D18: 114 | E18: 399 | F18: 123 | G18: 430 | H18: 144 | I18: 505 | J18: 150 | K18: 526 | L18: 157 | M18: 550 | N18: 163 | O18: 569 | P18: 173 | Q18: 607 | R18: 182 | S18: 637 | T18: 191 | U18: 669 | V18: 200 | W18: 701 | X18: 210 | Y18: 736 | Z18: 218 | AA18: 764 | AB18: 229 | AC18: 803
A19: 14 | B19: 109 | C19: 381 | D19: 123 | E19: 430 | F19: 132 | G19: 463 | H19: 155 | I19: 543 | J19: 162 | K19: 566 | L19: 169 | M19: 593 | N19: 175 | O19: 613 | P19: 187 | Q19: 653 | R19: 196 | S19: 686 | T19: 206 | U19: 721 | V19: 216 | W19: 755 | X19: 226 | Y19: 792 | Z19: 235 | AA19: 823 | AB19: 247 | AC19: 864
A20: 15 | B20: 117 | C20: 408 | D20: 132 | E20: 461 | F20: 142 | G20: 496 | H20: 166 | I20: 582 | J20: 173 | K20: 606 | L20: 181 | M20: 635 | N20: 188 | O20: 657 | P20: 200 | Q20: 700 | R20: 210 | S20: 735 | T20: 221 | U20: 772 | V20: 231 | W20: 809 | X20: 243 | Y20: 849 | Z20: 252 | AA20: 882 | AB20: 265 | AC20: 926
A21: 16 | B21: 124 | C21: 435 | D21: 140 | E21: 492 | F21: 151 | G21: 529 | H21: 177 | I21: 621 | J21: 185 | K21: 647 | L21: 194 | M21: 677 | N21: 200 | O21: 701 | P21: 213 | Q21: 747 | R21: 224 | S21: 784 | T21: 235 | U21: 824 | V21: 246 | W21: 862 | X21: 259 | Y21: 906 | Z21: 269 | AA21: 941 | AB21: 282 | AC21: 988
A22: 17 | B22: 132 | C22: 462 | D22: 149 | E22: 522 | F22: 161 | G22: 562 | H22: 188 | I22: 660 | J22: 196 | K22: 687 | L22: 206 | M22: 720 | N22: 213 | O22: 745 | P22: 227 | Q22: 793 | R22: 238 | S22: 833 | T22: 250 | U22: 875 | V22: 262 | W22: 916 | X22: 275 | Y22: 962 | Z22: 286 | AA22: 1,000 | AB22: 300 | AC22: 1,050
A23: 18 | B23: 140 | C23: 490 | D23: 158 | E23: 553 | F23: 170 | G23: 595 | H23: 200 | I23: 699 | J23: 208 | K23: 728 | L23: 218 | M23: 762 | N23: 225 | O23: 789 | P23: 240 | Q23: 840 | R23: 252 | S23: 882 | T23: 265 | U23: 926 | V23: 277 | W23: 970 | X23: 291 | Y23: 1,019 | Z23: 302 | AA23: 1,058 | AB23: 318 | AC23: 1,111
A24: 19 | B24: 148 | C24: 517 | D24: 167 | E24: 584 | F24: 180 | G24: 628 | H24: 211 | I24: 737 | J24: 219 | K24: 768 | L24: 230 | M24: 804 | N24: 238 | O24: 832 | P24: 253 | Q24: 887 | R24: 266 | S24: 931 | T24: 279 | U24: 978 | V24: 293 | W24: 1,024 | X24: 307 | Y24: 1,075 | Z24: 319 | AA24: 1,117 | AB24: 335 | AC24: 1,173
A25: 20 | B25: 155 | C25: 544 | D25: 176 | E25: 614 | F25: 189 | G25: 662 | H25: 222 | I25: 776 | J25: 231 | K25: 809 | L25: 242 | M25: 847 | N25: 250 | O25: 876 | P25: 267 | Q25: 933 | R25: 280 | S25: 980 | T25: 294 | U25: 1,029 | V25: 308 | W25: 1,078 | X25: 323 | Y25: 1,132 | Z25: 336 | AA25: 1,176 | AB25: 353 | AC25: 1,235
A26: 21 | B26: 163 | C26: 571 | D26: 184 | E26: 645 | F26: 198 | G26: 695 | H26: 233 | I26: 815 | J26: 243 | K26: 849 | L26: 254 | M26: 889 | N26: 263 | O26: 920 | P26: 280 | Q26: 980 | R26: 294 | S26: 1,029 | T26: 309 | U26: 1,081 | V26: 323 | W26: 1,132 | X26: 340 | Y26: 1,188 | Z26: 353 | AA26: 1,235 | AB26: 370 | AC26: 1,297
A27: 22 | B27: 171 | C27: 598 | D27: 193 | E27: 676 | F27: 208 | G27: 728 | H27: 244 | I27: 854 | J27: 254 | K27: 889 | L27: 266 | M27: 931 | N27: 275 | O27: 964 | P27: 293 | Q27: 1,027 | R27: 308 | S27: 1,078 | T27: 324 | U27: 1,132 | V27: 339 | W27: 1,186 | X27: 356 | Y27: 1,245 | Z27: 370 | AA27: 1,294 | AB27: 388 | AC27: 1,358
A28: 23 | B28: 179 | C28: 625 | D28: 202 | E28: 707 | F28: 217 | G28: 761 | H28: 255 | I28: 893 | J28: 266 | K28: 930 | L28: 278 | M28: 974 | N28: 288 | O28: 1,008 | P28: 307 | Q28: 1,073 | R28: 322 | S28: 1,127 | T28: 338 | U28: 1,184 | V28: 354 | W28: 1,240 | X28: 372 | Y28: 1,302 | Z28: 386 | AA28: 1,352 | AB28: 406 | AC28: 1,420
A29: 24 | B29: 186 | C29: 653 | D29: 211 | E29: 737 | F29: 227 | G29: 794 | H29: 266 | I29: 931 | J29: 277 | K29: 970 | L29: 290 | M29: 1,016 | N29: 300 | O29: 1,051 | P29: 320 | Q29: 1,120 | R29: 336 | S29: 1,176 | T29: 353 | U29: 1,235 | V29: 370 | W29: 1,294 | X29: 388 | Y29: 1,358 | Z29: 403 | AA29: 1,411 | AB29: 423 | AC29: 1,482
A30: 25 | B30: 194 | C30: 680 | D30: 219 | E30: 768 | F30: 236 | G30: 827 | H30: 277 | I30: 970 | J30: 289 | K30: 1,011 | L30: 302 | M30: 1,058 | N30: 313 | O30: 1,095 | P30: 333 | Q30: 1,167 | R30: 350 | S30: 1,225 | T30: 368 | U30: 1,287 | V30: 385 | W30: 1,348 | X30: 404 | Y30: 1,415 | Z30: 420 | AA30: 1,470 | AB30: 441 | AC30: 1,544
A31: 26 | B31: 202 | C31: 707 | D31: 228 | E31: 799 | F31: 246 | G31: 860 | H31: 288 | I31: 1,009 | J31: 300 | K31: 1,051 | L31: 314 | M31: 1,101 | N31: 325 | O31: 1,139 | P31: 347 | Q31: 1,213 | R31: 364 | S31: 1,275 | T31: 382 | U31: 1,338 | V31: 400 | W31: 1,401 | X31: 420 | Y31: 1,471 | Z31: 437 | AA31: 1,529 | AB31: 459 | AC31: 1,605
A32: 27 | B32: 210 | C32: 734 | D32: 237 | E32: 830 | F32: 255 | G32: 893 | H32: 299 | I32: 1,048 | J32: 312 | K32: 1,091 | L32: 327 | M32: 1,143 | N32: 338 | O32: 1,183 | P32: 360 | Q32: 1,260 | R32: 378 | S32: 1,324 | T32: 397 | U32: 1,390 | V32: 416 | W32: 1,455 | X32: 437 | Y32: 1,528 | Z32: 454 | AA32: 1,588 | AB32: 476 | AC32: 1,667
A33: 28 | B33: 218 | C33: 761 | D33: 246 | E33: 860 | F33: 265 | G33: 926 | H33: 310 | I33: 1,087 | J33: 323 | K33: 1,132 | L33: 339 | M33: 1,185 | N33: 350 | O33: 1,227 | P33: 373 | Q33: 1,307 | R33: 392 | S33: 1,373 | T33: 412 | U33: 1,441 | V33: 431 | W33: 1,509 | X33: 453 | Y33: 1,585 | Z33: 470 | AA33: 1,646 | AB33: 494 | AC33: 1,729
A34: 29 | B34: 225 | C34: 789 | D34: 255 | E34: 891 | F34: 274 | G34: 959 | H34: 322 | I34: 1,125 | J34: 335 | K34: 1,172 | L34: 351 | M34: 1,228 | N34: 363 | O34: 1,270 | P34: 387 | Q34: 1,353 | R34: 406 | S34: 1,422 | T34: 426 | U34: 1,493 | V34: 447 | W34: 1,563 | X34: 469 | Y34: 1,641 | Z34: 487 | AA34: 1,705 | AB34: 512 | AC34: 1,790
A35: 30 | B35: 233 | C35: 816 | D35: 263 | E35: 922 | F35: 284 | G35: 992 | H35: 333 | I35: 1,164 | J35: 347 | K35: 1,213 | L35: 363 | M35: 1,270 | N35: 375 | O35: 1,314 | P35: 400 | Q35: 1,400 | R35: 420 | S35: 1,471 | T35: 441 | U35: 1,544 | V35: 462 | W35: 1,617 | X35: 485 | Y35: 1,698 | Z35: 504 | AA35: 1,764 | AB35: 529 | AC35: 1,852
B37: 第3級 | D37: 第4級 | F37: 第5級 | H37: 第6級 | J37: 第7級 | L37: 第8級 | N37: 第9級 | P37: 第10級 | R37: 第11級 | T37: 第12級 | V37: 第13級 | X37: 第14級 | Z37: 第15級
B38: 26,400 | D38: 27,600 | F38: 28,800 | H38: 30,300 | J38: 31,800 | L38: 33,300 | N38: 34,800 | P38: 36,300 | R38: 38,200 | T38: 40,100 | V38: 42,000 | X38: 43,900 | Z38: 45,800
B39: 勞工 | C39: 單位 | D39: 勞工 | E39: 單位 | F39: 勞工 | G39: 單位 | H39: 勞工 | I39: 單位 | J39: 勞工 | K39: 單位 | L39: 勞工 | M39: 單位 | N39: 勞工 | O39: 單位 | P39: 勞工 | Q39: 單位 | R39: 勞工 | S39: 單位 | T39: 勞工 | U39: 單位 | V39: 勞工 | W39: 單位 | X39: 勞工 | Y39: 單位 | Z39: 勞工 | AA39: 單位 | AB39: 勞工 | AC39: 單位
A40: 1 | B40: =ROUND($B$38*$A40/30*$AE$4*20/100,0) -> 18 | C40: =ROUND($B$38*$A40/30*$AE$4*70/100,0) -> 65 | D40: =ROUND($D$38*$A40/30*$AE$4*20/100,0) -> 19 | E40: =ROUND($D$38*$A40/30*$AE$4*70/100,0) -> 68 | F40: =ROUND($F$38*$A40/30*$AE$4*20/100,0) -> 20 | G40: =ROUND($F$38*$A40/30*$AE$4*70/100,0) -> 71 | H40: =ROUND($H$38*$A40/30*$AE$4*20/100,0) -> 21 | I40: =ROUND($H$38*$A40/30*$AE$4*70/100,0) -> 74 | J40: =ROUND($J$38*$A40/30*$AE$4*20/100,0) -> 22 | K40: =ROUND($J$38*$A40/30*$AE$4*70/100,0) -> 78 | L40: =ROUND($L$38*$A40/30*$AE$4*20/100,0) -> 23 | M40: =ROUND($L$38*$A40/30*$AE$4*70/100,0) -> 82 | N40: =ROUND($N$38*$A40/30*$AE$4*20/100,0) -> 24 | O40: =ROUND($N$38*$A40/30*$AE$4*70/100,0) -> 85 | P40: =ROUND($P$38*$A40/30*$AE$4*20/100,0) -> 25 | Q40: =ROUND($P$38*$A40/30*$AE$4*70/100,0) -> 89 | R40: =ROUND($R$38*$A40/30*$AE$4*20/100,0) -> 27 | S40: =ROUND($R$38*$A40/30*$AE$4*70/100,0) -> 94 | T40: =ROUND($T$38*$A40/30*$AE$4*20/100,0) -> 28 | U40: =ROUND($T$38*$A40/30*$AE$4*70/100,0) -> 98 | V40: =ROUND($V$38*$A40/30*$AE$4*20/100,0) -> 29 | W40: =ROUND($V$38*$A40/30*$AE$4*70/100,0) -> 103 | X40: =ROUND($X$38*$A40/30*$AE$4*20/100,0) -> 31 | Y40: =ROUND($X$38*$A40/30*$AE$4*70/100,0) -> 108 | Z40: =ROUND($Z$38*$A40/30*$AE$4*20/100,0) -> 32 | AA40: =ROUND($Z$38*$A40/30*$AE$4*70/100,0) -> 112
A41: 2 | B41: 37 | C41: 129 | D41: 39 | E41: 135 | F41: 40 | G41: 141 | H41: 42 | I41: 148 | J41: 45 | K41: 156 | L41: 47 | M41: 163 | N41: 49 | O41: 171 | P41: 51 | Q41: 178 | R41: 53 | S41: 187 | T41: 56 | U41: 196 | V41: 59 | W41: 206 | X41: 61 | Y41: 215 | Z41: =ROUND($Z$38*$A41/30*$AE$4*20/100,0) -> 64 | AA41: =ROUND($Z$38*$A41/30*$AE$4*70/100,0) -> 224
A42: 3 | B42: 55 | C42: 194 | D42: 58 | E42: 203 | F42: 60 | G42: 212 | H42: 64 | I42: 223 | J42: 67 | K42: 234 | L42: 70 | M42: 245 | N42: 73 | O42: 256 | P42: 76 | Q42: 267 | R42: 80 | S42: 281 | T42: 84 | U42: 295 | V42: 88 | W42: 309 | X42: 92 | Y42: 323 | Z42: 96 | AA42: 337
A43: 4 | B43: 74 | C43: 259 | D43: 77 | E43: 270 | F43: 81 | G43: 282 | H43: 85 | I43: 297 | J43: 89 | K43: 312 | L43: 93 | M43: 326 | N43: 97 | O43: 341 | P43: 102 | Q43: 356 | R43: 107 | S43: 374 | T43: 112 | U43: 393 | V43: 118 | W43: 412 | X43: 123 | Y43: 430 | Z43: 128 | AA43: 449
A44: 5 | B44: 92 | C44: 323 | D44: 97 | E44: 338 | F44: 101 | G44: 353 | H44: 106 | I44: 371 | J44: 111 | K44: 390 | L44: 117 | M44: 408 | N44: 122 | O44: 426 | P44: 127 | Q44: 445 | R44: 134 | S44: 468 | T44: 140 | U44: 491 | V44: 147 | W44: 515 | X44: 154 | Y44: 538 | Z44: 160 | AA44: 561
A45: 6 | B45: 111 | C45: 388 | D45: 116 | E45: 406 | F45: 121 | G45: 423 | H45: 127 | I45: 445 | J45: 134 | K45: 467 | L45: 140 | M45: 490 | N45: 146 | O45: 512 | P45: 152 | Q45: 534 | R45: 160 | S45: 562 | T45: 168 | U45: 589 | V45: 176 | W45: 617 | X45: 184 | Y45: 645 | Z45: 192 | AA45: 673
A46: 7 | B46: 129 | C46: 453 | D46: 135 | E46: 473 | F46: 141 | G46: 494 | H46: 148 | I46: 520 | J46: 156 | K46: 545 | L46: 163 | M46: 571 | N46: 171 | O46: 597 | P46: 178 | Q46: 623 | R46: 187 | S46: 655 | T46: 196 | U46: 688 | V46: 206 | W46: 720 | X46: 215 | Y46: 753 | Z46: 224 | AA46: 785
A47: 8 | B47: 148 | C47: 517 | D47: 155 | E47: 541 | F47: 161 | G47: 564 | H47: 170 | I47: 594 | J47: 178 | K47: 623 | L47: 186 | M47: 653 | N47: 195 | O47: 682 | P47: 203 | Q47: 711 | R47: 214 | S47: 749 | T47: 225 | U47: 786 | V47: 235 | W47: 823 | X47: 246 | Y47: 860 | Z47: 256 | AA47: 898
A48: 9 | B48: 166 | C48: 582 | D48: 174 | E48: 609 | F48: 181 | G48: 635 | H48: 191 | I48: 668 | J48: 200 | K48: 701 | L48: 210 | M48: 734 | N48: 219 | O48: 767 | P48: 229 | Q48: 800 | R48: 241 | S48: 842 | T48: 253 | U48: 884 | V48: 265 | W48: 926 | X48: 277 | Y48: 968 | Z48: 289 | AA48: 1,010
A49: 10 | B49: 185 | C49: 647 | D49: 193 | E49: 676 | F49: 202 | G49: 706 | H49: 212 | I49: 742 | J49: 223 | K49: 779 | L49: 233 | M49: 816 | N49: 244 | O49: 853 | P49: 254 | Q49: 889 | R49: 267 | S49: 936 | T49: 281 | U49: 982 | V49: 294 | W49: 1,029 | X49: 307 | Y49: 1,076 | Z49: 321 | AA49: 1,122
A50: 11 | B50: 203 | C50: 711 | D50: 213 | E50: 744 | F50: 222 | G50: 776 | H50: 233 | I50: 817 | J50: 245 | K50: 857 | L50: 256 | M50: 897 | N50: 268 | O50: 938 | P50: 280 | Q50: 978 | R50: 294 | S50: 1,029 | T50: 309 | U50: 1,081 | V50: 323 | W50: 1,132 | X50: 338 | Y50: 1,183 | Z50: 353 | AA50: 1,234
A51: 12 | B51: 222 | C51: 776 | D51: 232 | E51: 811 | F51: 242 | G51: 847 | H51: 255 | I51: 891 | J51: 267 | K51: 935 | L51: 280 | M51: 979 | N51: 292 | O51: 1,023 | P51: 305 | Q51: 1,067 | R51: 321 | S51: 1,123 | T51: 337 | U51: 1,179 | V51: 353 | W51: 1,235 | X51: 369 | Y51: 1,291 | Z51: 385 | AA51: 1,347
A52: 13 | B52: 240 | C52: 841 | D52: 251 | E52: 879 | F52: 262 | G52: 917 | H52: 276 | I52: 965 | J52: 289 | K52: 1,013 | L52: 303 | M52: 1,061 | N52: 317 | O52: 1,108 | P52: 330 | Q52: 1,156 | R52: 348 | S52: 1,217 | T52: 365 | U52: 1,277 | V52: 382 | W52: 1,338 | X52: 399 | Y52: 1,398 | Z52: 417 | AA52: 1,459
A53: 14 | B53: 259 | C53: 906 | D53: 270 | E53: 947 | F53: 282 | G53: 988 | H53: 297 | I53: 1,039 | J53: 312 | K53: 1,091 | L53: 326 | M53: 1,142 | N53: 341 | O53: 1,194 | P53: 356 | Q53: 1,245 | R53: 374 | S53: 1,310 | T53: 393 | U53: 1,375 | V53: 412 | W53: 1,441 | X53: 430 | Y53: 1,506 | Z53: 449 | AA53: 1,571
A54: 15 | B54: 277 | C54: 970 | D54: 290 | E54: 1,014 | F54: 302 | G54: 1,058 | H54: 318 | I54: 1,114 | J54: 334 | K54: 1,169 | L54: 350 | M54: 1,224 | N54: 365 | O54: 1,279 | P54: 381 | Q54: 1,334 | R54: 401 | S54: 1,404 | T54: 421 | U54: 1,474 | V54: 441 | W54: 1,544 | X54: 461 | Y54: 1,613 | Z54: 481 | AA54: 1,683
A55: 16 | B55: 296 | C55: 1,035 | D55: 309 | E55: 1,082 | F55: 323 | G55: 1,129 | H55: 339 | I55: 1,188 | J55: 356 | K55: 1,247 | L55: 373 | M55: 1,305 | N55: 390 | O55: 1,364 | P55: 407 | Q55: 1,423 | R55: 428 | S55: 1,497 | T55: 449 | U55: 1,572 | V55: 470 | W55: 1,646 | X55: 492 | Y55: 1,721 | Z55: 513 | AA55: 1,795
A56: 17 | B56: 314 | C56: 1,100 | D56: 328 | E56: 1,150 | F56: 343 | G56: 1,200 | H56: 361 | I56: 1,262 | J56: 378 | K56: 1,324 | L56: 396 | M56: 1,387 | N56: 414 | O56: 1,449 | P56: 432 | Q56: 1,512 | R56: 455 | S56: 1,591 | T56: 477 | U56: 1,670 | V56: 500 | W56: 1,749 | X56: 522 | Y56: 1,828 | Z56: 545 | AA56: 1,908
A57: 18 | B57: 333 | C57: 1,164 | D57: 348 | E57: 1,217 | F57: 363 | G57: 1,270 | H57: 382 | I57: 1,336 | J57: 401 | K57: 1,402 | L57: 420 | M57: 1,469 | N57: 438 | O57: 1,535 | P57: 457 | Q57: 1,601 | R57: 481 | S57: 1,685 | T57: 505 | U57: 1,768 | V57: 529 | W57: 1,852 | X57: 553 | Y57: 1,936 | Z57: 577 | AA57: 2,020
A58: 19 | B58: 351 | C58: 1,229 | D58: 367 | E58: 1,285 | F58: 383 | G58: 1,341 | H58: 403 | I58: 1,410 | J58: 423 | K58: 1,480 | L58: 443 | M58: 1,550 | N58: 463 | O58: 1,620 | P58: 483 | Q58: 1,690 | R58: 508 | S58: 1,778 | T58: 533 | U58: 1,867 | V58: 559 | W58: 1,955 | X58: 584 | Y58: 2,044 | Z58: 609 | AA58: 2,132
A59: 20 | B59: 370 | C59: 1,294 | D59: 386 | E59: 1,352 | F59: 403 | G59: 1,411 | H59: 424 | I59: 1,485 | J59: 445 | K59: 1,558 | L59: 466 | M59: 1,632 | N59: 487 | O59: 1,705 | P59: 508 | Q59: 1,779 | R59: 535 | S59: 1,872 | T59: 561 | U59: 1,965 | V59: 588 | W59: 2,058 | X59: 615 | Y59: 2,151 | Z59: 641 | AA59: 2,244
A60: 21 | B60: 388 | C60: 1,358 | D60: 406 | E60: 1,420 | F60: 423 | G60: 1,482 | H60: 445 | I60: 1,559 | J60: 467 | K60: 1,636 | L60: 490 | M60: 1,713 | N60: 512 | O60: 1,790 | P60: 534 | Q60: 1,868 | R60: 562 | S60: 1,965 | T60: 589 | U60: 2,063 | V60: 617 | W60: 2,161 | X60: 645 | Y60: 2,259 | Z60: 673 | AA60: 2,356
A61: 22 | B61: 407 | C61: 1,423 | D61: 425 | E61: 1,488 | F61: 444 | G61: 1,552 | H61: 467 | I61: 1,633 | J61: 490 | K61: 1,714 | L61: 513 | M61: 1,795 | N61: 536 | O61: 1,876 | P61: 559 | Q61: 1,957 | R61: 588 | S61: 2,059 | T61: 618 | U61: 2,161 | V61: 647 | W61: 2,264 | X61: 676 | Y61: 2,366 | Z61: 705 | AA61: 2,469
A62: 23 | B62: 425 | C62: 1,488 | D62: 444 | E62: 1,555 | F62: 464 | G62: 1,623 | H62: 488 | I62: 1,707 | J62: 512 | K62: 1,792 | L62: 536 | M62: 1,876 | N62: 560 | O62: 1,961 | P62: 584 | Q62: 2,046 | R62: 615 | S62: 2,153 | T62: 646 | U62: 2,260 | V62: 676 | W62: 2,367 | X62: 707 | Y62: 2,474 | Z62: 737 | AA62: 2,581
A63: 24 | B63: 444 | C63: 1,552 | D63: 464 | E63: 1,623 | F63: 484 | G63: 1,693 | H63: 509 | I63: 1,782 | J63: 534 | K63: 1,870 | L63: 559 | M63: 1,958 | N63: 585 | O63: 2,046 | P63: 610 | Q63: 2,134 | R63: 642 | S63: 2,246 | T63: 674 | U63: 2,358 | V63: 706 | W63: 2,470 | X63: 738 | Y63: 2,581 | Z63: 769 | AA63: 2,693
A64: 25 | B64: 462 | C64: 1,617 | D64: 483 | E64: 1,691 | F64: 504 | G64: 1,764 | H64: 530 | I64: 1,856 | J64: 557 | K64: 1,948 | L64: 583 | M64: 2,040 | N64: 609 | O64: 2,132 | P64: 635 | Q64: 2,223 | R64: 669 | S64: 2,340 | T64: 702 | U64: 2,456 | V64: 735 | W64: 2,573 | X64: 768 | Y64: 2,689 | Z64: 802 | AA64: 2,805
A65: 26 | B65: 480 | C65: 1,682 | D65: 502 | E65: 1,758 | F65: 524 | G65: 1,835 | H65: 551 | I65: 1,930 | J65: 579 | K65: 2,026 | L65: 606 | M65: 2,121 | N65: 633 | O65: 2,217 | P65: 661 | Q65: 2,312 | R65: 695 | S65: 2,433 | T65: 730 | U65: 2,554 | V65: 764 | W65: 2,675 | X65: 799 | Y65: 2,796 | Z65: 834 | AA65: 2,917
A66: 27 | B66: 499 | C66: 1,746 | D66: 522 | E66: 1,826 | F66: 544 | G66: 1,905 | H66: 573 | I66: 2,004 | J66: 601 | K66: 2,104 | L66: 629 | M66: 2,203 | N66: 658 | O66: 2,302 | P66: 686 | Q66: 2,401 | R66: 722 | S66: 2,527 | T66: 758 | U66: 2,653 | V66: 794 | W66: 2,778 | X66: 830 | Y66: 2,904 | Z66: 866 | AA66: 3,030
A67: 28 | B67: 517 | C67: 1,811 | D67: 541 | E67: 1,893 | F67: 564 | G67: 1,976 | H67: 594 | I67: 2,079 | J67: 623 | K67: 2,181 | L67: 653 | M67: 2,284 | N67: 682 | O67: 2,387 | P67: 711 | Q67: 2,490 | R67: 749 | S67: 2,621 | T67: 786 | U67: 2,751 | V67: 823 | W67: 2,881 | X67: 860 | Y67: 3,012 | Z67: 898 | AA67: 3,142
A68: 29 | B68: 536 | C68: 1,876 | D68: 560 | E68: 1,961 | F68: 585 | G68: 2,046 | H68: 615 | I68: 2,153 | J68: 646 | K68: 2,259 | L68: 676 | M68: 2,366 | N68: 706 | O68: 2,473 | P68: 737 | Q68: 2,579 | R68: 775 | S68: 2,714 | T68: 814 | U68: 2,849 | V68: 853 | W68: 2,984 | X68: 891 | Y68: 3,119 | Z68: 930 | AA68: 3,254
A69: 30 | B69: 554 | C69: 1,940 | D69: 580 | E69: 2,029 | F69: 605 | G69: 2,117 | H69: 636 | I69: 2,227 | J69: 668 | K69: 2,337 | L69: 699 | M69: 2,448 | N69: 731 | O69: 2,558 | P69: 762 | Q69: 2,668 | R69: 802 | S69: 2,808 | T69: 842 | U69: 2,947 | V69: 882 | W69: 3,087 | X69: 922 | Y69: 3,227 | Z69: 962 | AA69: 3,366
AB70: 109.11製表

Sheet 健保_一定雇主之受雇者11001
B1: 全民健康保險保險費負擔金額表(三)
B2: ﹝公、民營事業、機構及有一定雇主之受雇者適用﹞ | H2: 單位：新台幣元
A3: 投保金額等級 | B3: 月投保金額 | C3: 被保險人及眷屬負擔金額﹝負擔比率30%﹞ | G3: 投保單位負擔金額﹝負擔比率60%﹞ | H3: 政府補助金額﹝補助比率10%﹞
C4: 本人 | D4: 本人+１眷口 | E4: 本人+２眷口 | F4: 本人+３眷口
A5: 1 | B5: 24,000 | C5: =+ROUND(B5*0.0517*0.3,0) -> 372 | D5: =+C5*2 -> 744 | E5: =+C5*3 -> 1116 | F5: =+C5*4 -> 1488 | G5: =+ROUND(B5*0.0517*0.6*1.58,0) -> 1176 | H5: =+ROUND(B5*0.0517*0.1*1.58,0) -> 196
A6: =+A5+1 -> 2 | B6: 25,200 | C6: =+ROUND(B6*0.0517*0.3,0) -> 391 | D6: 782 | E6: 1173 | F6: 1564 | G6: =+ROUND(B6*0.0517*0.6*1.58,0) -> 1235 | H6: =+ROUND(B6*0.0517*0.1*1.58,0) -> 206
A7: 3 | B7: 26,400 | C7: 409 | D7: 818 | E7: 1227 | F7: 1636 | G7: 1294 | H7: 216
A8: 4 | B8: 27,600 | C8: 428 | D8: 856 | E8: 1284 | F8: 1712 | G8: 1353 | H8: 225
A9: 5 | B9: 28,800 | C9: 447 | D9: 894 | E9: 1341 | F9: 1788 | G9: 1412 | H9: 235
A10: 6 | B10: 30,300 | C10: 470 | D10: 940 | E10: 1410 | F10: 1880 | G10: 1485 | H10: 248
A11: 7 | B11: 31,800 | C11: 493 | D11: 986 | E11: 1479 | F11: 1972 | G11: 1559 | H11: 260
A12: 8 | B12: 33,300 | C12: 516 | D12: 1032 | E12: 1548 | F12: 2064 | G12: 1632 | H12: 272
A13: 9 | B13: 34,800 | C13: 540 | D13: 1080 | E13: 1620 | F13: 2160 | G13: 1706 | H13: 284
A14: 10 | B14: 36,300 | C14: 563 | D14: 1126 | E14: 1689 | F14: 2252 | G14: 1779 | H14: 297
A15: 11 | B15: 38,200 | C15: 592 | D15: 1184 | E15: 1776 | F15: 2368 | G15: 1872 | H15: 312
A16: 12 | B16: 40,100 | C16: 622 | D16: 1244 | E16: 1866 | F16: 2488 | G16: 1965 | H16: 328
A17: 13 | B17: 42,000 | C17: 651 | D17: =+C17*2 -> 1302 | E17: 1953 | F17: 2604 | G17: 2058 | H17: 343
A18: 14 | B18: 43,900 | C18: 681 | D18: =+C18*2 -> 1362 | E18: 2043 | F18: 2724 | G18: 2152 | H18: 359
A19: 15 | B19: 45,800 | C19: 710 | D19: 1420 | E19: 2130 | F19: 2840 | G19: 2245 | H19: 374
A20: 16 | B20: 48,200 | C20: 748 | D20: 1496 | E20: 2244 | F20: 2992 | G20: 2362 | H20: 394
A21: 17 | B21: 50,600 | C21: 785 | D21: 1570 | E21: 2355 | F21: 3140 | G21: 2480 | H21: 413
A22: 18 | B22: 53,000 | C22: 822 | D22: 1644 | E22: 2466 | F22: 3288 | G22: 2598 | H22: 433
A23: 19 | B23: 55,400 | C23: 859 | D23: 1718 | E23: 2577 | F23: 3436 | G23: 2715 | H23: 453
A24: 20 | B24: 57,800 | C24: 896 | D24: 1792 | E24: 2688 | F24: 3584 | G24: 2833 | H24: 472
A25: 21 | B25: 60,800 | C25: 943 | D25: 1886 | E25: 2829 | F25: 3772 | G25: 2980 | H25: 497
A26: 22 | B26: 63,800 | C26: 990 | D26: 1980 | E26: 2970 | F26: 3960 | G26: 3127 | H26: 521
A27: 23 | B27: 66,800 | C27: 1036 | D27: 2072 | E27: 3108 | F27: 4144 | G27: 3274 | H27: 546
A28: 24 | B28: 69,800 | C28: 1083 | D28: 2166 | E28: 3249 | F28: 4332 | G28: 3421 | H28: 570
A29: 25 | B29: 72,800 | C29: 1129 | D29: 2258 | E29: 3387 | F29: 4516 | G29: 3568 | H29: 595
A30: 26 | B30: 76,500 | C30: 1187 | D30: 2374 | E30: 3561 | F30: 4748 | G30: 3749 | H30: 625
A31: 27 | B31: 80,200 | C31: 1244 | D31: 2488 | E31: 3732 | F31: 4976 | G31: 3931 | H31: 655
A32: 28 | B32: 83,900 | C32: 1301 | D32: 2602 | E32: 3903 | F32: 5204 | G32: 4112 | H32: 685
A33: 29 | B33: 87,600 | C33: 1359 | D33: 2718 | E33: 4077 | F33: 5436 | G33: 4293 | H33: 716
A34: 30 | B34: 92,100 | C34: 1428 | D34: 2856 | E34: 4284 | F34: 5712 | G34: 4514 | H34: 752
A35: 31 | B35: 96,600 | C35: 1498 | D35: 2996 | E35: 4494 | F35: 5992 | G35: 4735 | H35: 789
A36: 32 | B36: 101,100 | C36: 1568 | D36: 3136 | E36: 4704 | F36: 6272 | G36: 4955 | H36: 826
A37: 33 | B37: 105,600 | C37: 1638 | D37: 3276 | E37: 4914 | F37: 6552 | G37: 5176 | H37: 863
A38: 34 | B38: 110,100 | C38: 1708 | D38: 3416 | E38: 5124 | F38: 6832 | G38: 5396 | H38: 899
A39: 35 | B39: 115,500 | C39: 1791 | D39: 3582 | E39: 5373 | F39: 7164 | G39: 5661 | H39: 943
A40: 36 | B40: 120,900 | C40: 1875 | D40: 3750 | E40: 5625 | F40: 7500 | G40: 5926 | H40: 988
A41: 37 | B41: 126,300 | C41: 1959 | D41: 3918 | E41: 5877 | F41: 7836 | G41: 6190 | H41: 1032
A42: =+A41+1 -> 38 | B42: 131,700 | C42: 2043 | D42: 4086 | E42: 6129 | F42: 8172 | G42: 6455 | H42: 1076
A43: 39 | B43: 137,100 | C43: 2126 | D43: 4252 | E43: 6378 | F43: 8504 | G43: 6719 | H43: 1120
A44: 40 | B44: 142,500 | C44: 2210 | D44: 4420 | E44: 6630 | F44: 8840 | G44: 6984 | H44: 1164
A45: 41 | B45: 147,900 | C45: 2294 | D45: 4588 | E45: 6882 | F45: 9176 | G45: 7249 | H45: 1208
A46: =+A45+1 -> 42 | B46: 150,000 | C46: 2327 | D46: 4654 | E46: 6981 | F46: 9308 | G46: 7352 | H46: 1225
A47: 43 | B47: 156,400 | C47: 2426 | D47: 4852 | E47: 7278 | F47: 9704 | G47: 7665 | H47: 1278
A48: 44 | B48: 162,800 | C48: 2525 | D48: 5050 | E48: 7575 | F48: 10100 | G48: 7979 | H48: 1330
A49: 45 | B49: 169,200 | C49: 2624 | D49: 5248 | E49: 7872 | F49: 10496 | G49: 8293 | H49: 1382
A50: =+A49+1 -> 46 | B50: 175,600 | C50: 2724 | D50: 5448 | E50: 8172 | F50: 10896 | G50: 8606 | H50: 1434
A51: 47 | B51: 182,000 | C51: 2823 | D51: 5646 | E51: 8469 | F51: 11292 | G51: 8920 | H51: 1487
A52: 110年1月1日起實施 | H52: 中央健康保險署製表
A54: 註:1.自110年1月1日起配合基本工資調整，第一級調整為24,000元。
A55: 2.自110年1月1日起費率調整為5.17%。
A56: 3.自109年1月1日起調整平均眷口數為0.58人，投保單位負擔金額含本人 及平均眷屬人數0.58人,合計1.58人。

Sheet 健保_雇主11001
A1: 全民健康保險保險費負擔金額表(五)
B2: ﹝雇主、自營業主、專門職業及技術人員自行執業者適用﹞ | F2: 單位：新台幣元
A3: 投保金額等級 | B3: 月投保金額 | C3: 被保險人及眷屬負擔金額﹝負擔比率100%﹞
C4: 本人 | D4: 本人+1眷口 | E4: 本人+2眷口 | F4: 本人+3眷口
A5: 1
A6: =+A5+1 -> 2
A7: 3
A8: 4
A9: 5
A10: 6 | B10: 30,300 | C10: =+ROUND(B10*0.0517,0) -> 1567 | D10: =+C10*2 -> 3134 | E10: =+C10*3 -> 4701 | F10: =+C10*4 -> 6268
A11: 7 | B11: 31,800 | C11: =+ROUND(B11*0.0517,0) -> 1644 | D11: 3288 | E11: 4932 | F11: 6576
A12: 8 | B12: 33,300 | C12: 1722 | D12: 3444 | E12: 5166 | F12: 6888
A13: 9 | B13: 34,800 | C13: 1799 | D13: =+C13*2 -> 3598 | E13: =+C13*3 -> 5397 | F13: =+C13*4 -> 7196
A14: 10 | B14: 36,300 | C14: 1877 | D14: =+C14*2 -> 3754 | E14: =+C14*3 -> 5631 | F14: =+C14*4 -> 7508
A15: 11 | B15: 38,200 | C15: 1975 | D15: 3950 | E15: 5925 | F15: 7900
A16: 12 | B16: 40,100 | C16: 2073 | D16: 4146 | E16: 6219 | F16: 8292
A17: 13 | B17: 42,000 | C17: 2171 | D17: 4342 | E17: 6513 | F17: 8684
A18: 14 | B18: 43,900 | C18: 2270 | D18: 4540 | E18: 6810 | F18: 9080
A19: 15 | B19: 45,800 | C19: 2368 | D19: 4736 | E19: 7104 | F19: 9472
A20: 16 | B20: 48,200 | C20: 2492 | D20: 4984 | E20: 7476 | F20: 9968
A21: 17 | B21: 50,600 | C21: 2616 | D21: 5232 | E21: 7848 | F21: 10464
A22: 18 | B22: 53,000 | C22: 2740 | D22: 5480 | E22: 8220 | F22: 10960
A23: 19 | B23: 55,400 | C23: 2864 | D23: 5728 | E23: 8592 | F23: 11456
A24: 20 | B24: 57,800 | C24: 2988 | D24: 5976 | E24: 8964 | F24: 11952
A25: 21 | B25: 60,800 | C25: 3143 | D25: 6286 | E25: 9429 | F25: 12572
A26: 22 | B26: 63,800 | C26: 3298 | D26: 6596 | E26: 9894 | F26: 13192
A27: 23 | B27: 66,800 | C27: 3454 | D27: 6908 | E27: 10362 | F27: 13816
A28: 24 | B28: 69,800 | C28: 3609 | D28: 7218 | E28: 10827 | F28: 14436
A29: 25 | B29: 72,800 | C29: 3764 | D29: 7528 | E29: 11292 | F29: 15056
A30: 26 | B30: 76,500 | C30: 3955 | D30: 7910 | E30: 11865 | F30: 15820
A31: 27 | B31: 80,200 | C31: 4146 | D31: 8292 | E31: 12438 | F31: 16584
A32: 28 | B32: 83,900 | C32: 4338 | D32: 8676 | E32: 13014 | F32: 17352
A33: 29 | B33: 87,600 | C33: 4529 | D33: 9058 | E33: 13587 | F33: 18116
A34: 30 | B34: 92,100 | C34: 4762 | D34: 9524 | E34: 14286 | F34: 19048
A35: 31 | B35: 96,600 | C35: 4994 | D35: 9988 | E35: 14982 | F35: 19976
A36: 32 | B36: 101,100 | C36: 5227 | D36: 10454 | E36: 15681 | F36: 20908
A37: 33 | B37: 105,600 | C37: 5460 | D37: 10920 | E37: 16380 | F37: 21840
A38: 34 | B38: 110,100 | C38: 5692 | D38: 11384 | E38: 17076 | F38: 22768
A39: 35 | B39: 115,500 | C39: 5971 | D39: 11942 | E39: 17913 | F39: 23884
A40: 36 | B40: 120,900 | C40: 6251 | D40: 12502 | E40: 18753 | F40: 25004
A41: 37 | B41: 126,300 | C41: 6530 | D41: 13060 | E41: 19590 | F41: 26120
A42: 38 | B42: 131,700 | C42: 6809 | D42: 13618 | E42: 20427 | F42: 27236
A43: 39 | B43: 137,100 | C43: 7088 | D43: 14176 | E43: 21264 | F43: 28352
A44: 40 | B44: 142,500 | C44: 7367 | D44: 14734 | E44: 22101 | F44: 29468
A45: 41 | B45: 147,900 | C45: 7646 | D45: 15292 | E45: 22938 | F45: 30584
A46: =+A45+1 -> 42 | B46: 150,000 | C46: 7755 | D46: 15510 | E46: 23265 | F46: 31020
A47: 43 | B47: 156,400 | C47: 8086 | D47: 16172 | E47: 24258 | F47: 32344
A48: 44 | B48: 162,800 | C48: 8417 | D48: 16834 | E48: 25251 | F48: 33668
A49: 45 | B49: 169,200 | C49: 8748 | D49: 17496 | E49: 26244 | F49: 34992
A50: =+A49+1 -> 46 | B50: 175,600 | C50: 9079 | D50: 18158 | E50: 27237 | F50: 36316
A51: 47 | B51: 182,000 | C51: 9409 | D51: 18818 | E51: 28227 | F51: 37636
A52: 110年1月1日起實施 | F52: 中央健康保險署製表
A53: 註:1.自110年1月1日起，配合基本工資調整，修正投保金額分級表級數。
A54: 2.自110年1月1日起，調整費率為5.17%。
A55: 3.僱用被保險人數5人以上之事業單位負責人或會計師、律師、建築師、醫師、牙醫師、中醫師自行執業者除自行舉證申 報其投保金額者外，應按投保金額分級表最高一級申報。自行舉證申報之投保金額，最低不得低於勞工保險投保薪資 分級表最高一級(105年5月1日起為45,800元)及其所屬員工申報之最高投保金額。 4.僱用被保險人數未滿5人之事業單位負責人、前項以外之專門職業及技術人員自行執業者或屬於第一類被保險人之自營 業主，除自行舉證申報其投保金額者外，應按投保金額分級表最高一級申報。自行舉證申報之投保金額，最低不得低 於健保法第10條第1項第1款第2目被保險人之平均投保金額(目前為34,800元)及其所屬員工申報之最高投保金額。但未 僱用有酬人員幫同工作之本款專門職業及技術人員自行執業者，其自行舉證申報之投保金額，最低以投保金額分級表第 6級(110年1月1日起為30,300元)為限。

Sheet 勞保_一般員工勞就保1090101起
A1: 勞 工 保 險 普 通 事 故 保 險 費 及 就 業 保 險 保 險 費 合 計 之 被 保 險 人 與 投 保 單 位 分 擔 金 額 表 (自109年1月1日起適用)
A2: ※本表不含勞工保險職業災害保險費，職業災害保險費率依投保單位行業別而有不同，請按繳款單所列職業災害保險費率自行計算，並請依規定職業災害保險費全部由投保單位負擔。 單位：新台幣元
B3: 部分工時勞工適用 | Z3: 第1級 | AB3: 第2級 | AE3: 普通事故費率
B4: 11,100 | D4: 12,540 | F4: 13,500 | H4: 15,840 | J4: 16,500 | L4: 17,280 | N4: 17,880 | P4: 19,047 | R4: 20,008 | T4: 21,009 | V4: 22,000 | X4: 23,100 | Z4: 23,800 | AB4: 24,000 | AE4: 10.00%
B5: 勞工 | C5: 單位 | D5: 勞工 | E5: 單位 | F5: 勞工 | G5: 單位 | H5: 勞工 | I5: 單位 | J5: 勞工 | K5: 單位 | L5: 勞工 | M5: 單位 | N5: 勞工 | O5: 單位 | P5: 勞工 | Q5: 單位 | R5: 勞工 | S5: 單位 | T5: 勞工 | U5: 單位 | V5: 勞工 | W5: 單位 | X5: 勞工 | Y5: 單位 | Z5: 勞工 | AA5: 單位 | AB5: 勞工 | AC5: 單位 | AE5: 就業保險費率
A6: 1 | B6: =ROUND($B$4*$A6/30*$AE$4*20/100,0)+ROUND($B$4*$A6/30*$AE$6*20/100,0) -> 8 | C6: =ROUND($B$4*$A6/30*$AE$4*70/100,0)+ROUND($B$4*$A6/30*$AE$6*70/100,0) -> 29 | D6: =ROUND($D$4*$A6/30*$AE$4*20/100,0)+ROUND($D$4*$A6/30*$AE$6*20/100,0) -> 9 | E6: =ROUND($D$4*$A6/30*$AE$4*70/100,0)+ROUND($D$4*$A6/30*$AE$6*70/100,0) -> 32 | F6: =ROUND($F$4*$A6/30*$AE$4*20/100,0)+ROUND($F$4*$A6/30*$AE$6*20/100,0) -> 10 | G6: =ROUND($F$4*$A6/30*$AE$4*70/100,0)+ROUND($F$4*$A6/30*$AE$6*70/100,0) -> 35 | H6: =ROUND($H$4*$A6/30*$AE$4*20/100,0)+ROUND($H$4*$A6/30*$AE$6*20/100,0) -> 12 | I6: =ROUND($H$4*$A6/30*$AE$4*70/100,0)+ROUND($H$4*$A6/30*$AE$6*70/100,0) -> 41 | J6: =ROUND($J$4*$A6/30*$AE$4*20/100,0)+ROUND($J$4*$A6/30*$AE$6*20/100,0) -> 12 | K6: =ROUND($J$4*$A6/30*$AE$4*70/100,0)+ROUND($J$4*$A6/30*$AE$6*70/100,0) -> 43 | L6: =ROUND($L$4*$A6/30*$AE$4*20/100,0)+ROUND($L$4*$A6/30*$AE$6*20/100,0) -> 13 | M6: =ROUND($L$4*$A6/30*$AE$4*70/100,0)+ROUND($L$4*$A6/30*$AE$6*70/100,0) -> 44 | N6: =ROUND($N$4*$A6/30*$AE$4*20/100,0)+ROUND($N$4*$A6/30*$AE$6*20/100,0) -> 13 | O6: =ROUND($N$4*$A6/30*$AE$4*70/100,0)+ROUND($N$4*$A6/30*$AE$6*70/100,0) -> 46 | P6: =ROUND($P$4*$A6/30*$AE$4*20/100,0)+ROUND($P$4*$A6/30*$AE$6*20/100,0) -> 14 | Q6: =ROUND($P$4*$A6/30*$AE$4*70/100,0)+ROUND($P$4*$A6/30*$AE$6*70/100,0) -> 48 | R6: =ROUND($R$4*$A6/30*$AE$4*20/100,0)+ROUND($R$4*$A6/30*$AE$6*20/100,0) -> 14 | S6: =ROUND($R$4*$A6/30*$AE$4*70/100,0)+ROUND($R$4*$A6/30*$AE$6*70/100,0) -> 52 | T6: =ROUND($T$4*$A6/30*$AE$4*20/100,0)+ROUND($T$4*$A6/30*$AE$6*20/100,0) -> 15 | U6: =ROUND($T$4*$A6/30*$AE$4*70/100,0)+ROUND($T$4*$A6/30*$AE$6*70/100,0) -> 54 | V6: =ROUND($V$4*$A6/30*$AE$4*20/100,0)+ROUND($V$4*$A6/30*$AE$6*20/100,0) -> 16 | W6: =ROUND($V$4*$A6/30*$AE$4*70/100,0)+ROUND($V$4*$A6/30*$AE$6*70/100,0) -> 56 | X6: =ROUND($X$4*$A6/30*$AE$4*20/100,0)+ROUND($X$4*$A6/30*$AE$6*20/100,0) -> 17 | Y6: =ROUND($X$4*$A6/30*$AE$4*70/100,0)+ROUND($X$4*$A6/30*$AE$6*70/100,0) -> 59 | Z6: =ROUND($Z$4*$A6/30*$AE$4*20/100,0)+ROUND($Z$4*$A6/30*$AE$6*20/100,0) -> 18 | AA6: =ROUND($Z$4*$A6/30*$AE$4*70/100,0)+ROUND($Z$4*$A6/30*$AE$6*70/100,0) -> 62 | AB6: =ROUND($AB$4*$A6/30*$AE$4*20/100,0)+ROUND($AB$4*$A6/30*$AE$6*20/100,0) -> 18 | AC6: =ROUND($AB$4*$A6/30*$AE$4*70/100,0)+ROUND($AB$4*$A6/30*$AE$6*70/100,0) -> 62 | AE6: 1.00%
A7: 2 | B7: 16 | C7: 57 | D7: 19 | E7: 65 | F7: 20 | G7: 69 | H7: 23 | I7: 81 | J7: 24 | K7: 85 | L7: 25 | M7: 89 | N7: 26 | O7: 91 | P7: 28 | Q7: 98 | R7: 30 | S7: 102 | T7: 31 | U7: 108 | V7: 32 | W7: 113 | X7: 34 | Y7: 119 | Z7: 35 | AA7: 122 | AB7: 35 | AC7: 123
A8: 3 | B8: 24 | C8: 86 | D8: 28 | E8: 97 | F8: 30 | G8: 104 | H8: 35 | I8: 122 | J8: 36 | K8: 128 | L8: 38 | M8: 133 | N8: 40 | O8: 138 | P8: 42 | Q8: 146 | R8: 44 | S8: 154 | T8: 46 | U8: 162 | V8: 48 | W8: 169 | X8: 51 | Y8: 178 | Z8: 53 | AA8: 184 | AB8: 53 | AC8: 185
A9: 4 | B9: 33 | C9: 114 | D9: 36 | E9: 129 | F9: 40 | G9: 139 | H9: 46 | I9: 163 | J9: 48 | K9: 169 | L9: 51 | M9: 177 | N9: 53 | O9: 184 | P9: 56 | Q9: 196 | R9: 58 | S9: 206 | T9: 62 | U9: 216 | V9: 65 | W9: 226 | X9: 68 | Y9: 238 | Z9: 69 | AA9: 244 | AB9: 70 | AC9: 246
A10: 5 | B10: 41 | C10: 143 | D10: 46 | E10: 161 | F10: 50 | G10: 174 | H10: 58 | I10: 203 | J10: 61 | K10: 212 | L10: 64 | M10: 222 | N10: 66 | O10: 230 | P10: 69 | Q10: 244 | R10: 74 | S10: 256 | T10: 77 | U10: 270 | V10: 80 | W10: 283 | X10: 85 | Y10: 297 | Z10: 87 | AA10: 306 | AB10: 88 | AC10: 308
A11: 6 | B11: 48 | C11: 171 | D11: 55 | E11: 194 | F11: 59 | G11: 208 | H11: 69 | I11: 244 | J11: 73 | K11: 254 | L11: 76 | M11: 266 | N11: 79 | O11: 275 | P11: 84 | Q11: 294 | R11: 88 | S11: 308 | T11: 92 | U11: 323 | V11: 97 | W11: 339 | X11: 101 | Y11: 355 | Z11: 105 | AA11: 366 | AB11: 106 | AC11: 370
A12: 7 | B12: 57 | C12: 199 | D12: 65 | E12: 225 | F12: 69 | G12: 243 | H12: 81 | I12: 285 | J12: 85 | K12: 297 | L12: 89 | M12: 310 | N12: 91 | O12: 321 | P12: 98 | Q12: 342 | R12: 102 | S12: 360 | T12: 108 | U12: 377 | V12: 113 | W12: 395 | X12: 119 | Y12: 415 | Z12: 122 | AA12: 428 | AB12: 123 | AC12: 431
A13: 8 | B13: 65 | C13: 228 | D13: 74 | E13: 257 | F13: 79 | G13: 277 | H13: 92 | I13: 326 | J13: 97 | K13: 339 | L13: 101 | M13: 355 | N13: 105 | O13: 367 | P13: 112 | Q13: 392 | R13: 118 | S13: 410 | T13: 123 | U13: 431 | V13: 129 | W13: 452 | X13: 135 | Y13: 474 | Z13: 140 | AA13: 488 | AB13: 141 | AC13: 493
A14: 9 | B14: 74 | C14: 256 | D14: 83 | E14: 289 | F14: 89 | G14: 312 | H14: 105 | I14: 366 | J14: 109 | K14: 382 | L14: 114 | M14: 399 | N14: 118 | O14: 413 | P14: 125 | Q14: 440 | R14: 132 | S14: 462 | T14: 139 | U14: 485 | V14: 145 | W14: 508 | X14: 153 | Y14: 534 | Z14: 157 | AA14: 550 | AB14: 158 | AC14: 554
A15: 10 | B15: 81 | C15: 285 | D15: 92 | E15: 322 | F15: 99 | G15: 347 | H15: 117 | I15: 407 | J15: 121 | K15: 424 | L15: 127 | M15: 443 | N15: 131 | O15: 459 | P15: 140 | Q15: 488 | R15: 146 | S15: 514 | T15: 154 | U15: 539 | V15: 162 | W15: 564 | X15: 169 | Y15: 593 | Z15: 175 | AA15: 611 | AB15: 176 | AC15: 616
A16: 11 | B16: 89 | C16: 313 | D16: 101 | E16: 354 | F16: 109 | G16: 382 | H16: 128 | I16: 448 | J16: 133 | K16: 466 | L16: 140 | M16: 488 | N16: 144 | O16: 505 | P16: 154 | Q16: 538 | R16: 162 | S16: 565 | T16: 169 | U16: 593 | V16: 177 | W16: 621 | X16: 186 | Y16: 652 | Z16: 192 | AA16: 672 | AB16: 194 | AC16: 678
A17: 12 | B17: 98 | C17: 342 | D17: 110 | E17: 386 | F17: 119 | G17: 416 | H17: 140 | I17: 488 | J17: 145 | K17: 508 | L17: 152 | M17: 532 | N17: 157 | O17: 551 | P17: 167 | Q17: 586 | R17: 176 | S17: 616 | T17: 185 | U17: 647 | V17: 194 | W17: 678 | X17: 203 | Y17: 712 | Z17: 209 | AA17: 733 | AB17: 211 | AC17: 739
A18: 13 | B18: 106 | C18: 371 | D18: 120 | E18: 418 | F18: 129 | G18: 451 | H18: 151 | I18: 528 | J18: 157 | K18: 551 | L18: 165 | M18: 576 | N18: 170 | O18: 596 | P18: 182 | Q18: 636 | R18: 190 | S18: 668 | T18: 200 | U18: 701 | V18: 210 | W18: 734 | X18: 220 | Y18: 771 | Z18: 227 | AA18: 794 | AB18: 229 | AC18: 801
A19: 14 | B19: 114 | C19: 399 | D19: 129 | E19: 451 | F19: 139 | G19: 485 | H19: 163 | I19: 569 | J19: 169 | K19: 593 | L19: 177 | M19: 620 | N19: 184 | O19: 642 | P19: 196 | Q19: 684 | R19: 206 | S19: 719 | T19: 216 | U19: 755 | V19: 226 | W19: 791 | X19: 238 | Y19: 830 | Z19: 244 | AA19: 855 | AB19: 246 | AC19: 862
A20: 15 | B20: 122 | C20: 428 | D20: 138 | E20: 483 | F20: 149 | G20: 520 | H20: 174 | I20: 609 | J20: 182 | K20: 636 | L20: 190 | M20: 665 | N20: 197 | O20: 689 | P20: 209 | Q20: 734 | R20: 220 | S20: 770 | T20: 231 | U20: 809 | V20: 242 | W20: 847 | X20: 254 | Y20: 890 | Z20: 262 | AA20: 916 | AB20: 264 | AC20: 924
A21: 16 | B21: 130 | C21: 455 | D21: 147 | E21: 515 | F21: 158 | G21: 554 | H21: 186 | I21: 650 | J21: 194 | K21: 678 | L21: 202 | M21: 710 | N21: 210 | O21: 735 | P21: 223 | Q21: 782 | R21: 234 | S21: 822 | T21: 246 | U21: 862 | V21: 258 | W21: 903 | X21: 271 | Y21: 948 | Z21: 279 | AA21: 978 | AB21: 282 | AC21: 986
A22: 17 | B22: 139 | C22: 484 | D22: 156 | E22: 547 | F22: 168 | G22: 590 | H22: 198 | I22: 691 | J22: 206 | K22: 720 | L22: 216 | M22: 754 | N22: 223 | O22: 780 | P22: 238 | Q22: 832 | R22: 250 | S22: 873 | T22: 262 | U22: 916 | V22: 274 | W22: 960 | X22: 288 | Y22: 1,008 | Z22: 297 | AA22: 1,038 | AB22: 299 | AC22: 1,047
A23: 18 | B23: 146 | C23: 513 | D23: 165 | E23: 580 | F23: 178 | G23: 624 | H23: 209 | I23: 732 | J23: 218 | K23: 762 | L23: 228 | M23: 799 | N23: 236 | O23: 826 | P23: 252 | Q23: 880 | R23: 264 | S23: 924 | T23: 277 | U23: 970 | V23: 290 | W23: 1,016 | X23: 305 | Y23: 1,067 | Z23: 315 | AA23: 1,100 | AB23: 317 | AC23: 1,109
A24: 19 | B24: 155 | C24: 541 | D24: 175 | E24: 612 | F24: 188 | G24: 659 | H24: 221 | I24: 772 | J24: 230 | K24: 805 | L24: 241 | M24: 843 | N24: 249 | O24: 872 | P24: 265 | Q24: 928 | R24: 278 | S24: 976 | T24: 293 | U24: 1,024 | V24: 307 | W24: 1,073 | X24: 322 | Y24: 1,126 | Z24: 331 | AA24: 1,161 | AB24: 334 | AC24: 1,170
A25: 20 | B25: 163 | C25: 570 | D25: 184 | E25: 644 | F25: 198 | G25: 693 | H25: 232 | I25: 813 | J25: 242 | K25: 847 | L25: 253 | M25: 887 | N25: 262 | O25: 917 | P25: 279 | Q25: 978 | R25: 294 | S25: 1,027 | T25: 308 | U25: 1,078 | V25: 322 | W25: 1,130 | X25: 339 | Y25: 1,186 | Z25: 349 | AA25: 1,222 | AB25: 352 | AC25: 1,232
A26: 21 | B26: 171 | C26: 598 | D26: 194 | E26: 675 | F26: 208 | G26: 728 | H26: 244 | I26: 854 | J26: 254 | K26: 890 | L26: 266 | M26: 932 | N26: 275 | O26: 964 | P26: 294 | Q26: 1,026 | R26: 308 | S26: 1,078 | T26: 323 | U26: 1,132 | V26: 339 | W26: 1,186 | X26: 355 | Y26: 1,245 | Z26: 366 | AA26: 1,283 | AB26: 370 | AC26: 1,294
A27: 22 | B27: 179 | C27: 627 | D27: 202 | E27: 708 | F27: 218 | G27: 762 | H27: 255 | I27: 894 | J27: 266 | K27: 932 | L27: 278 | M27: 976 | N27: 288 | O27: 1,010 | P27: 307 | Q27: 1,076 | R27: 322 | S27: 1,130 | T27: 339 | U27: 1,186 | V27: 355 | W27: 1,242 | X27: 373 | Y27: 1,305 | Z27: 384 | AA27: 1,344 | AB27: 387 | AC27: 1,355
A28: 23 | B28: 187 | C28: 656 | D28: 211 | E28: 740 | F28: 228 | G28: 797 | H28: 267 | I28: 935 | J28: 278 | K28: 975 | L28: 291 | M28: 1,020 | N28: 301 | O28: 1,056 | P28: 321 | Q28: 1,124 | R28: 338 | S28: 1,181 | T28: 354 | U28: 1,240 | V28: 371 | W28: 1,299 | X28: 389 | Y28: 1,364 | Z28: 401 | AA28: 1,405 | AB28: 405 | AC28: 1,417
A29: 24 | B29: 196 | C29: 684 | D29: 221 | E29: 772 | F29: 238 | G29: 832 | H29: 278 | I29: 976 | J29: 290 | K29: 1,016 | L29: 304 | M29: 1,065 | N29: 315 | O29: 1,101 | P29: 335 | Q29: 1,174 | R29: 352 | S29: 1,232 | T29: 370 | U29: 1,295 | V29: 387 | W29: 1,355 | X29: 407 | Y29: 1,423 | Z29: 419 | AA29: 1,466 | AB29: 422 | AC29: 1,478
A30: 25 | B30: 204 | C30: 713 | D30: 230 | E30: 805 | F30: 248 | G30: 867 | H30: 290 | I30: 1,016 | J30: 303 | K30: 1,059 | L30: 317 | M30: 1,109 | N30: 328 | O30: 1,147 | P30: 349 | Q30: 1,222 | R30: 366 | S30: 1,284 | T30: 385 | U30: 1,349 | V30: 404 | W30: 1,411 | X30: 424 | Y30: 1,483 | Z30: 437 | AA30: 1,527 | AB30: 440 | AC30: 1,540
A31: 26 | B31: 211 | C31: 740 | D31: 239 | E31: 837 | F31: 257 | G31: 901 | H31: 302 | I31: 1,057 | J31: 315 | K31: 1,101 | L31: 330 | M31: 1,153 | N31: 341 | O31: 1,193 | P31: 363 | Q31: 1,272 | R31: 382 | S31: 1,335 | T31: 400 | U31: 1,402 | V31: 419 | W31: 1,468 | X31: 440 | Y31: 1,541 | Z31: 454 | AA31: 1,588 | AB31: 458 | AC31: 1,602
A32: 27 | B32: 220 | C32: 769 | D32: 249 | E32: 869 | F32: 267 | G32: 936 | H32: 314 | I32: 1,098 | J32: 327 | K32: 1,144 | L32: 342 | M32: 1,198 | N32: 354 | O32: 1,239 | P32: 377 | Q32: 1,320 | R32: 396 | S32: 1,387 | T32: 416 | U32: 1,456 | V32: 436 | W32: 1,525 | X32: 458 | Y32: 1,601 | Z32: 471 | AA32: 1,649 | AB32: 475 | AC32: 1,663
A33: 28 | B33: 228 | C33: 798 | D33: 257 | E33: 901 | F33: 277 | G33: 970 | H33: 326 | I33: 1,138 | J33: 339 | K33: 1,186 | L33: 355 | M33: 1,242 | N33: 367 | O33: 1,285 | P33: 392 | Q33: 1,368 | R33: 410 | S33: 1,438 | T33: 431 | U33: 1,510 | V33: 452 | W33: 1,581 | X33: 474 | Y33: 1,660 | Z33: 488 | AA33: 1,710 | AB33: 493 | AC33: 1,725
A34: 29 | B34: 236 | C34: 826 | D34: 266 | E34: 934 | F34: 287 | G34: 1,005 | H34: 337 | I34: 1,179 | J34: 351 | K34: 1,229 | L34: 367 | M34: 1,286 | N34: 381 | O34: 1,331 | P34: 405 | Q34: 1,418 | R34: 426 | S34: 1,489 | T34: 447 | U34: 1,564 | V34: 468 | W34: 1,638 | X34: 492 | Y34: 1,719 | Z34: 506 | AA34: 1,771 | AB34: 510 | AC34: 1,786
A35: 30 | B35: 244 | C35: 855 | D35: 276 | E35: 966 | F35: 297 | G35: 1,040 | H35: 349 | I35: 1,220 | J35: 363 | K35: 1,271 | L35: 381 | M35: 1,331 | N35: 394 | O35: 1,377 | P35: 419 | Q35: 1,466 | R35: 440 | S35: 1,541 | T35: 462 | U35: 1,618 | V35: 484 | W35: 1,694 | X35: 508 | Y35: 1,779 | Z35: 524 | AA35: 1,833 | AB35: 528 | AC35: 1,848
B37: 第3級 | D37: 第4級 | F37: 第5級 | H37: 第6級 | J37: 第7級 | L37: 第8級 | N37: 第9級 | P37: 第10級 | R37: 第11級 | T37: 第12級 | V37: 第13級 | X37: 第14級 | Z37: 第15級 | AB37: 第16級
B38: 25,200 | D38: 26,400 | F38: 27,600 | H38: 28,800 | J38: 30,300 | L38: 31,800 | N38: 33,300 | P38: 34,800 | R38: 36,300 | T38: 38,200 | V38: 40,100 | X38: 42,000 | Z38: 43,900 | AB38: 45,800
B39: 勞工 | C39: 單位 | D39: 勞工 | E39: 單位 | F39: 勞工 | G39: 單位 | H39: 勞工 | I39: 單位 | J39: 勞工 | K39: 單位 | L39: 勞工 | M39: 單位 | N39: 勞工 | O39: 單位 | P39: 勞工 | Q39: 單位 | R39: 勞工 | S39: 單位 | T39: 勞工 | U39: 單位 | V39: 勞工 | W39: 單位 | X39: 勞工 | Y39: 單位 | Z39: 勞工 | AA39: 單位 | AB39: 勞工 | AC39: 單位
A40: 1 | B40: =ROUND($B$38*$A40/30*$AE$4*20/100,0)+ROUND($B$38*$A40/30*$AE$6*20/100,0) -> 19 | C40: =ROUND($B$38*$A40/30*$AE$4*70/100,0)+ROUND($B$38*$A40/30*$AE$6*70/100,0) -> 65 | D40: =ROUND($D$38*$A40/30*$AE$4*20/100,0)+ROUND($D$38*$A40/30*$AE$6*20/100,0) -> 20 | E40: =ROUND($D$38*$A40/30*$AE$4*70/100,0)+ROUND($D$38*$A40/30*$AE$6*70/100,0) -> 68 | F40: =ROUND($F$38*$A40/30*$AE$4*20/100,0)+ROUND($F$38*$A40/30*$AE$6*20/100,0) -> 20 | G40: =ROUND($F$38*$A40/30*$AE$4*70/100,0)+ROUND($F$38*$A40/30*$AE$6*70/100,0) -> 70 | H40: =ROUND($H$38*$A40/30*$AE$4*20/100,0)+ROUND($H$38*$A40/30*$AE$6*20/100,0) -> 21 | I40: =ROUND($H$38*$A40/30*$AE$4*70/100,0)+ROUND($H$38*$A40/30*$AE$6*70/100,0) -> 74 | J40: =ROUND($J$38*$A40/30*$AE$4*20/100,0)+ROUND($J$38*$A40/30*$AE$6*20/100,0) -> 22 | K40: =ROUND($J$38*$A40/30*$AE$4*70/100,0)+ROUND($J$38*$A40/30*$AE$6*70/100,0) -> 78 | L40: =ROUND($L$38*$A40/30*$AE$4*20/100,0)+ROUND($L$38*$A40/30*$AE$6*20/100,0) -> 23 | M40: =ROUND($L$38*$A40/30*$AE$4*70/100,0)+ROUND($L$38*$A40/30*$AE$6*70/100,0) -> 81 | N40: =ROUND($N$38*$A40/30*$AE$4*20/100,0)+ROUND($N$38*$A40/30*$AE$6*20/100,0) -> 24 | O40: =ROUND($N$38*$A40/30*$AE$4*70/100,0)+ROUND($N$38*$A40/30*$AE$6*70/100,0) -> 86 | P40: =ROUND($P$38*$A40/30*$AE$4*20/100,0)+ROUND($P$38*$A40/30*$AE$6*20/100,0) -> 25 | Q40: =ROUND($P$38*$A40/30*$AE$4*70/100,0)+ROUND($P$38*$A40/30*$AE$6*70/100,0) -> 89 | R40: =ROUND($R$38*$A40/30*$AE$4*20/100,0)+ROUND($R$38*$A40/30*$AE$6*20/100,0) -> 26 | S40: =ROUND($R$38*$A40/30*$AE$4*70/100,0)+ROUND($R$38*$A40/30*$AE$6*70/100,0) -> 93 | T40: =ROUND($T$38*$A40/30*$AE$4*20/100,0)+ROUND($T$38*$A40/30*$AE$6*20/100,0) -> 28 | U40: =ROUND($T$38*$A40/30*$AE$4*70/100,0)+ROUND($T$38*$A40/30*$AE$6*70/100,0) -> 98 | V40: =ROUND($V$38*$A40/30*$AE$4*20/100,0)+ROUND($V$38*$A40/30*$AE$6*20/100,0) -> 30 | W40: =ROUND($V$38*$A40/30*$AE$4*70/100,0)+ROUND($V$38*$A40/30*$AE$6*70/100,0) -> 103 | X40: =ROUND($X$38*$A40/30*$AE$4*20/100,0)+ROUND($X$38*$A40/30*$AE$6*20/100,0) -> 31 | Y40: =ROUND($X$38*$A40/30*$AE$4*70/100,0)+ROUND($X$38*$A40/30*$AE$6*70/100,0) -> 108 | Z40: =ROUND($Z$38*$A40/30*$AE$4*20/100,0)+ROUND($Z$38*$A40/30*$AE$6*20/100,0) -> 32 | AA40: =ROUND($Z$38*$A40/30*$AE$4*70/100,0)+ROUND($Z$38*$A40/30*$AE$6*70/100,0) -> 112 | AB40: =ROUND($AB$38*$A40/30*$AE$4*20/100,0)+ROUND($AB$38*$A40/30*$AE$6*20/100,0) -> 34 | AC40: =ROUND($AB$38*$A40/30*$AE$4*70/100,0)+ROUND($AB$38*$A40/30*$AE$6*70/100,0) -> 118
A41: 2 | B41: 37 | C41: 130 | D41: 39 | E41: 135 | F41: 41 | G41: 142 | H41: 42 | I41: 147 | J41: 44 | K41: 155 | L41: 46 | M41: 163 | N41: 48 | O41: 171 | P41: 51 | Q41: 178 | R41: 53 | S41: 186 | T41: 56 | U41: 196 | V41: 58 | W41: 206 | X41: 62 | Y41: 216 | Z41: =ROUND($Z$38*$A41/30*$AE$4*20/100,0)+ROUND($Z$38*$A41/30*$AE$6*20/100,0) -> 65 | AA41: =ROUND($Z$38*$A41/30*$AE$4*70/100,0)+ROUND($Z$38*$A41/30*$AE$6*70/100,0) -> 225 | AB41: =ROUND($AB$38*$A41/30*$AE$4*20/100,0)+ROUND($AB$38*$A41/30*$AE$6*20/100,0) -> 67 | AC41: =ROUND($AB$38*$A41/30*$AE$4*70/100,0)+ROUND($AB$38*$A41/30*$AE$6*70/100,0) -> 235
A42: 3 | B42: 55 | C42: 194 | D42: 58 | E42: 203 | F42: 61 | G42: 212 | H42: 64 | I42: 222 | J42: 67 | K42: 233 | L42: 70 | M42: 245 | N42: 74 | O42: 256 | P42: 77 | Q42: 268 | R42: 80 | S42: 279 | T42: 84 | U42: 294 | V42: 88 | W42: 309 | X42: 92 | Y42: 323 | Z42: 97 | AA42: 338 | AB42: 101 | AC42: 353
A43: 4 | B43: 74 | C43: 259 | D43: 77 | E43: 271 | F43: 81 | G43: 284 | H43: 85 | I43: 296 | J43: 89 | K43: 311 | L43: 93 | M43: 327 | N43: 98 | O43: 342 | P43: 102 | Q43: 357 | R43: 107 | S43: 373 | T43: 112 | U43: 393 | V43: 118 | W43: 411 | X43: 123 | Y43: 431 | Z43: 129 | AA43: 451 | AB43: 134 | AC43: 470
A44: 5 | B44: 92 | C44: 323 | D44: 97 | E44: 339 | F44: 101 | G44: 354 | H44: 106 | I44: 370 | J44: 111 | K44: 389 | L44: 117 | M44: 408 | N44: 122 | O44: 428 | P44: 128 | Q44: 447 | R44: 133 | S44: 466 | T44: 140 | U44: 491 | V44: 147 | W44: 515 | X44: 154 | Y44: 539 | Z44: 161 | AA44: 563 | AB44: 168 | AC44: 587
A45: 6 | B45: 111 | C45: 388 | D45: 117 | E45: 407 | F45: 121 | G45: 425 | H45: 127 | I45: 443 | J45: 133 | K45: 466 | L45: 140 | M45: 490 | N45: 146 | O45: 513 | P45: 153 | Q45: 536 | R45: 160 | S45: 559 | T45: 168 | U45: 588 | V45: 176 | W45: 617 | X45: 185 | Y45: 647 | Z45: 194 | AA45: 676 | AB45: 201 | AC45: 705
A46: 7 | B46: 130 | C46: 453 | D46: 135 | E46: 474 | F46: 142 | G46: 496 | H46: 147 | I46: 517 | J46: 155 | K46: 544 | L46: 163 | M46: 571 | N46: 171 | O46: 598 | P46: 178 | Q46: 625 | R46: 186 | S46: 652 | T46: 196 | U46: 686 | V46: 206 | W46: 720 | X46: 216 | Y46: 755 | Z46: 225 | AA46: 789 | AB46: 235 | AC46: 823
A47: 8 | B47: 147 | C47: 517 | D47: 155 | E47: 542 | F47: 162 | G47: 567 | H47: 169 | I47: 592 | J47: 178 | K47: 623 | L47: 187 | M47: 653 | N47: 196 | O47: 684 | P47: 205 | Q47: 715 | R47: 213 | S47: 746 | T47: 224 | U47: 784 | V47: 235 | W47: 824 | X47: 246 | Y47: 862 | Z47: 257 | AA47: 901 | AB47: 268 | AC47: 940
A48: 9 | B48: 166 | C48: 582 | D48: 174 | E48: 609 | F48: 183 | G48: 638 | H48: 190 | I48: 665 | J48: 200 | K48: 700 | L48: 210 | M48: 735 | N48: 220 | O48: 769 | P48: 230 | Q48: 804 | R48: 240 | S48: 838 | T48: 252 | U48: 882 | V48: 265 | W48: 926 | X48: 277 | Y48: 970 | Z48: 289 | AA48: 1,014 | AB48: 302 | AC48: 1,058
A49: 10 | B49: 185 | C49: 647 | D49: 194 | E49: 678 | F49: 202 | G49: 708 | H49: 211 | I49: 739 | J49: 222 | K49: 778 | L49: 233 | M49: 816 | N49: 244 | O49: 855 | P49: 255 | Q49: 893 | R49: 266 | S49: 932 | T49: 280 | U49: 980 | V49: 294 | W49: 1,030 | X49: 308 | Y49: 1,078 | Z49: 322 | AA49: 1,126 | AB49: 336 | AC49: 1,176
A50: 11 | B50: 203 | C50: 712 | D50: 213 | E50: 746 | F50: 222 | G50: 779 | H50: 232 | I50: 813 | J50: 244 | K50: 856 | L50: 256 | M50: 898 | N50: 268 | O50: 940 | P50: 281 | Q50: 982 | R50: 293 | S50: 1,025 | T50: 308 | U50: 1,078 | V50: 323 | W50: 1,132 | X50: 339 | Y50: 1,186 | Z50: 354 | AA50: 1,240 | AB50: 370 | AC50: 1,294
A51: 12 | B51: 222 | C51: 777 | D51: 232 | E51: 813 | F51: 243 | G51: 850 | H51: 253 | I51: 887 | J51: 266 | K51: 933 | L51: 279 | M51: 979 | N51: 293 | O51: 1,025 | P51: 306 | Q51: 1,071 | R51: 319 | S51: 1,118 | T51: 337 | U51: 1,177 | V51: 353 | W51: 1,235 | X51: 370 | Y51: 1,294 | Z51: 386 | AA51: 1,352 | AB51: 403 | AC51: 1,410
A52: 13 | B52: 240 | C52: 840 | D52: 252 | E52: 881 | F52: 263 | G52: 921 | H52: 275 | I52: 961 | J52: 289 | K52: 1,011 | L52: 304 | M52: 1,061 | N52: 318 | O52: 1,111 | P52: 332 | Q52: 1,162 | R52: 346 | S52: 1,211 | T52: 364 | U52: 1,275 | V52: 383 | W52: 1,338 | X52: 400 | Y52: 1,401 | Z52: 418 | AA52: 1,465 | AB52: 437 | AC52: 1,528
A53: 14 | B53: 259 | C53: 905 | D53: 271 | E53: 948 | F53: 284 | G53: 992 | H53: 296 | I53: 1,035 | J53: 311 | K53: 1,089 | L53: 327 | M53: 1,143 | N53: 342 | O53: 1,197 | P53: 357 | Q53: 1,251 | R53: 373 | S53: 1,305 | T53: 393 | U53: 1,373 | V53: 411 | W53: 1,441 | X53: 431 | Y53: 1,509 | Z53: 451 | AA53: 1,577 | AB53: 470 | AC53: 1,646
A54: 15 | B54: 277 | C54: 970 | D54: 290 | E54: 1,016 | F54: 304 | G54: 1,063 | H54: 317 | I54: 1,109 | J54: 333 | K54: 1,167 | L54: 350 | M54: 1,224 | N54: 366 | O54: 1,283 | P54: 383 | Q54: 1,340 | R54: 399 | S54: 1,398 | T54: 420 | U54: 1,471 | V54: 441 | W54: 1,544 | X54: 462 | Y54: 1,617 | Z54: 483 | AA54: 1,691 | AB54: 504 | AC54: 1,763
A55: 16 | B55: 296 | C55: 1,035 | D55: 310 | E55: 1,085 | F55: 323 | G55: 1,133 | H55: 338 | I55: 1,183 | J55: 355 | K55: 1,244 | L55: 373 | M55: 1,306 | N55: 391 | O55: 1,367 | P55: 408 | Q55: 1,429 | R55: 426 | S55: 1,491 | T55: 448 | U55: 1,569 | V55: 471 | W55: 1,647 | X55: 493 | Y55: 1,725 | Z55: 515 | AA55: 1,803 | AB55: 538 | AC55: 1,881
A56: 17 | B56: 315 | C56: 1,100 | D56: 329 | E56: 1,152 | F56: 344 | G56: 1,204 | H56: 359 | I56: 1,256 | J56: 377 | K56: 1,322 | L56: 396 | M56: 1,387 | N56: 415 | O56: 1,453 | P56: 433 | Q56: 1,518 | R56: 452 | S56: 1,584 | T56: 476 | U56: 1,667 | V56: 499 | W56: 1,750 | X56: 524 | Y56: 1,833 | Z56: 548 | AA56: 1,915 | AB56: 571 | AC56: 1,999
A57: 18 | B57: 332 | C57: 1,164 | D57: 349 | E57: 1,220 | F57: 364 | G57: 1,275 | H57: 381 | I57: 1,331 | J57: 400 | K57: 1,400 | L57: 420 | M57: 1,470 | N57: 440 | O57: 1,539 | P57: 460 | Q57: 1,608 | R57: 480 | S57: 1,677 | T57: 504 | U57: 1,764 | V57: 529 | W57: 1,852 | X57: 554 | Y57: 1,940 | Z57: 580 | AA57: 2,028 | AB57: 605 | AC57: 2,116
A58: 19 | B58: 351 | C58: 1,229 | D58: 367 | E58: 1,287 | F58: 385 | G58: 1,346 | H58: 401 | I58: 1,405 | J58: 422 | K58: 1,477 | L58: 443 | M58: 1,551 | N58: 464 | O58: 1,624 | P58: 485 | Q58: 1,697 | R58: 506 | S58: 1,770 | T58: 532 | U58: 1,863 | V58: 559 | W58: 1,956 | X58: 585 | Y58: 2,048 | Z58: 612 | AA58: 2,141 | AB58: 638 | AC58: 2,233
A59: 20 | B59: 370 | C59: 1,294 | D59: 387 | E59: 1,355 | F59: 405 | G59: 1,417 | H59: 422 | I59: 1,478 | J59: 444 | K59: 1,555 | L59: 466 | M59: 1,632 | N59: 488 | O59: 1,709 | P59: 510 | Q59: 1,786 | R59: 532 | S59: 1,863 | T59: 560 | U59: 1,961 | V59: 588 | W59: 2,058 | X59: 616 | Y59: 2,156 | Z59: 644 | AA59: 2,254 | AB59: 672 | AC59: 2,351
A60: 21 | B60: 388 | C60: 1,358 | D60: 407 | E60: 1,423 | F60: 425 | G60: 1,487 | H60: 443 | I60: 1,552 | J60: 466 | K60: 1,633 | L60: 490 | M60: 1,714 | N60: 513 | O60: 1,795 | P60: 536 | Q60: 1,876 | R60: 559 | S60: 1,957 | T60: 588 | U60: 2,059 | V60: 617 | W60: 2,161 | X60: 647 | Y60: 2,264 | Z60: 676 | AA60: 2,366 | AB60: 705 | AC60: 2,468
A61: 22 | B61: 407 | C61: 1,423 | D61: 426 | E61: 1,491 | F61: 445 | G61: 1,559 | H61: 464 | I61: 1,626 | J61: 488 | K61: 1,711 | L61: 513 | M61: 1,795 | N61: 537 | O61: 1,880 | P61: 561 | Q61: 1,965 | R61: 585 | S61: 2,049 | T61: 616 | U61: 2,157 | V61: 647 | W61: 2,264 | X61: 678 | Y61: 2,372 | Z61: 708 | AA61: 2,479 | AB61: 739 | AC61: 2,586
A62: 23 | B62: 425 | C62: 1,487 | D62: 445 | E62: 1,559 | F62: 465 | G62: 1,629 | H62: 486 | I62: 1,701 | J62: 511 | K62: 1,789 | L62: 537 | M62: 1,878 | N62: 562 | O62: 1,966 | P62: 587 | Q62: 2,055 | R62: 613 | S62: 2,143 | T62: 645 | U62: 2,255 | V62: 676 | W62: 2,367 | X62: 708 | Y62: 2,479 | Z62: 740 | AA62: 2,592 | AB62: 772 | AC62: 2,704
A63: 24 | B63: 443 | C63: 1,552 | D63: 464 | E63: 1,626 | F63: 486 | G63: 1,701 | H63: 507 | I63: 1,774 | J63: 533 | K63: 1,867 | L63: 560 | M63: 1,959 | N63: 586 | O63: 2,051 | P63: 613 | Q63: 2,144 | R63: 639 | S63: 2,236 | T63: 672 | U63: 2,353 | V63: 706 | W63: 2,471 | X63: 739 | Y63: 2,587 | Z63: 772 | AA63: 2,704 | AB63: 806 | AC63: 2,821
A64: 25 | B64: 462 | C64: 1,617 | D64: 484 | E64: 1,694 | F64: 506 | G64: 1,771 | H64: 528 | I64: 1,848 | J64: 556 | K64: 1,945 | L64: 583 | M64: 2,041 | N64: 611 | O64: 2,137 | P64: 638 | Q64: 2,233 | R64: 666 | S64: 2,330 | T64: 701 | U64: 2,451 | V64: 735 | W64: 2,573 | X64: 770 | Y64: 2,695 | Z64: 805 | AA64: 2,817 | AB64: 839 | AC64: 2,939
A65: 26 | B65: 481 | C65: 1,682 | D65: 504 | E65: 1,762 | F65: 526 | G65: 1,841 | H65: 549 | I65: 1,922 | J65: 578 | K65: 2,022 | L65: 606 | M65: 2,122 | N65: 635 | O65: 2,222 | P65: 663 | Q65: 2,322 | R65: 692 | S65: 2,422 | T65: 728 | U65: 2,549 | V65: 765 | W65: 2,676 | X65: 801 | Y65: 2,803 | Z65: 837 | AA65: 2,929 | AB65: 873 | AC65: 3,057
A66: 27 | B66: 499 | C66: 1,747 | D66: 523 | E66: 1,829 | F66: 547 | G66: 1,913 | H66: 570 | I66: 1,995 | J66: 600 | K66: 2,100 | L66: 629 | M66: 2,203 | N66: 659 | O66: 2,308 | P66: 689 | Q66: 2,411 | R66: 718 | S66: 2,516 | T66: 757 | U66: 2,648 | V66: 794 | W66: 2,779 | X66: 832 | Y66: 2,911 | Z66: 869 | AA66: 3,043 | AB66: 906 | AC66: 3,174
A67: 28 | B67: 517 | C67: 1,811 | D67: 542 | E67: 1,897 | F67: 567 | G67: 1,983 | H67: 592 | I67: 2,070 | J67: 623 | K67: 2,178 | L67: 653 | M67: 2,286 | N67: 684 | O67: 2,394 | P67: 715 | Q67: 2,501 | R67: 746 | S67: 2,609 | T67: 784 | U67: 2,746 | V67: 824 | W67: 2,882 | X67: 862 | Y67: 3,018 | Z67: 901 | AA67: 3,155 | AB67: 940 | AC67: 3,291
A68: 29 | B68: 536 | C68: 1,876 | D68: 561 | E68: 1,965 | F68: 587 | G68: 2,055 | H68: 613 | I68: 2,144 | J68: 645 | K68: 2,255 | L68: 676 | M68: 2,367 | N68: 708 | O68: 2,478 | P68: 740 | Q68: 2,590 | R68: 772 | S68: 2,702 | T68: 813 | U68: 2,843 | V68: 853 | W68: 2,984 | X68: 893 | Y68: 3,126 | Z68: 934 | AA68: 3,268 | AB68: 974 | AC68: 3,409
A69: 30 | B69: 554 | C69: 1,940 | D69: 581 | E69: 2,033 | F69: 607 | G69: 2,125 | H69: 634 | I69: 2,218 | J69: 667 | K69: 2,333 | L69: 700 | M69: 2,449 | N69: 733 | O69: 2,564 | P69: 766 | Q69: 2,680 | R69: 799 | S69: 2,795 | T69: 840 | U69: 2,941 | V69: 882 | W69: 3,088 | X69: 924 | Y69: 3,234 | Z69: 966 | AA69: 3,380 | AB69: 1,008 | AC69: 3,527
AB71: 108.10製表

Sheet 退休金分級表10901
A1: 勞工退休金月提繳分級表
A2: 中華民國108年10月30日勞動部勞動福3字第1080136084號令修正發布，自109年1月1日生效
A3: 級距 | B3: 級 | C3: 實際工資/執行業務所得 | D3: 月提繳工資/月提繳執行業務所得 | E3: 級距 | F3: 級 | G3: 實際工資/執行業務所得 | H3: 月提繳工資/月提繳執行業務所得
A4: 第1組 | B4: 1 | C4: 1,500元以下 | D4: 1,500元 | F4: 35 | G4: 43,901元至45,800元 | H4: 45,800元
B5: 2 | C5: 1,501元至3,000元 | D5: 3,000元 | E5: 第7組 | F5: 36 | G5: 45,801元至48,200元 | H5: 48,200元
B6: 3 | C6: 3,001元至4,500元 | D6: 4,500元 | F6: 37 | G6: 48,201元至50,600元 | H6: 50,600元
B7: 4 | C7: 4,501元至6,000元 | D7: 6,000元 | F7: 38 | G7: 50,601元至53,000元 | H7: 53,000元
B8: 5 | C8: 6,001元至7,500元 | D8: 7,500元 | F8: 39 | G8: 53,001元至55,400元 | H8: 55,400元
A9: 第2組 | B9: 6 | C9: 7,501元至8,700元 | D9: 8,700元 | F9: 40 | G9: 55,401元至57,800元 | H9: 57,800元
B10: 7 | C10: 8,701元至9,900元 | D10: 9,900元 | E10: 第8組 | F10: 41 | G10: 57,801元至60,800元 | H10: 60,800元
B11: 8 | C11: 9,901元至11,100元 | D11: 11,100元 | F11: 42 | G11: 60,801元至63,800元 | H11: 63,800元
B12: 9 | C12: 11,101元至12,540元 | D12: 12,540元 | F12: 43 | G12: 63,801元至66,800元 | H12: 66,800元
B13: 10 | C13: 12,541元至13,500元 | D13: 13,500元 | F13: 44 | G13: 66,801元至69,800元 | H13: 69,800元
A14: 第3組 | B14: 11 | C14: 13,501元至15,840元 | D14: 15,840元 | F14: 45 | G14: 69,801元至72,800元 | H14: 72,800元
B15: 12 | C15: 15,841元至16,500元 | D15: 16,500元 | E15: 第9組 | F15: 46 | G15: 72,801元至76,500元 | H15: 76,500元
B16: 13 | C16: 16,501元至17,280元 | D16: 17,280元 | F16: 47 | G16: 76,501元至80,200元 | H16: 80,200元
B17: 14 | C17: 17,281元至17,880元 | D17: 17,880元 | F17: 48 | G17: 80,201元至83,900元 | H17: 83,900元
B18: 15 | C18: 17,881元至19,047元 | D18: 19,047元 | F18: 49 | G18: 83,901元至87,600元 | H18: 87,600元
B19: 16 | C19: 19,048元至20,008元 | D19: 20,008元 | E19: 第10組 | F19: 50 | G19: 87,601元至92,100元 | H19: 92,100元
B20: 17 | C20: 20,009元至21,009元 | D20: 21,009元 | F20: 51 | G20: 92,101元至96,600元 | H20: 96,600元
B21: 18 | C21: 21,010元至22,000元 | D21: 22,000元 | F21: 52 | G21: 96,601元至101,100元 | H21: 101,100元
B22: 19 | C22: 22,001元至23,100元 | D22: 23,100元 | F22: 53 | G22: 101,101元至105,600元 | H22: 105,600元
B23: 20 | C23: 23,101元至23,800元 | D23: 23,800元 | F23: 54 | G23: 105,601元至110,100元 | H23: 110,100元
A24: 第4組 | B24: 21 | C24: 23,801元至24,000元 | D24: 24,000元 | E24: 第11組 | F24: 55 | G24: 110,101元至115,500元 | H24: 115,500元
B25: 22 | C25: 24,001元至25,200元 | D25: 25,200元 | F25: 56 | G25: 115,501元至120,900元 | H25: 120,900元
B26: 23 | C26: 25,201元至26,400元 | D26: 26,400元 | F26: 57 | G26: 120,901元至126,300元 | H26: 126,300元
B27: 24 | C27: 26,401元至27,600元 | D27: 27,600元 | F27: 58 | G27: 126,301元至131,700元 | H27: 131,700元
B28: 25 | C28: 27,601元至28,800元 | D28: 28,800元 | F28: 59 | G28: 131,701元至137,100元 | H28: 137,100元
A29: 第5組 | B29: 26 | C29: 28,801元至30,300元 | D29: 30,300元 | F29: 60 | G29: 137,101元至142,500元 | H29: 142,500元
B30: 27 | C30: 30,301元至31,800元 | D30: 31,800元 | F30: 61 | G30: 142,501元至147,900元 | H30: 147,900元
B31: 28 | C31: 31,801元至33,300元 | D31: 33,300元 | F31: 62 | G31: 147,901元以上 | H31: 150,000元
B32: 29 | C32: 33,301元至34,800元 | D32: 34,800元 | E32: 備註：
B33: 30 | C33: 34,801元至36,300元 | D33: 36,300元 | E33: 一、本表依勞工退休金條例第十四條第五項規定訂定之。
A34: 第6組 | B34: 31 | C34: 36,301元至38,200元 | D34: 38,200元 | E34: 二、本表月提繳工資/月提繳執行業務所得金額以新臺幣元為單位，角以下四捨五入。
B35: 32 | C35: 38,201元至40,100元 | D35: 40,100元
B36: 33 | C36: 40,101元至42,000元 | D36: 42,000元
B37: 34 | C37: 42,001元至43,900元 | D37: 43,900元

Sheet 健保_一般勞工11001
B1: 全民健康保險保險費負擔金額表(三)
B2: ﹝公、民營事業、機構及有一定雇主之受雇者適用﹞ | H2: 單位：新台幣元
A3: 投保金額等級 | B3: 月投保金額 | C3: 被保險人及眷屬負擔金額﹝負擔比率30%﹞ | G3: 投保單位負擔金額﹝負擔比率60%﹞ | H3: 政府補助金額﹝補助比率10%﹞
C4: 本人 | D4: 本人+１眷口 | E4: 本人+２眷口 | F4: 本人+３眷口
A5: 1 | B5: 24,000 | C5: =+ROUND(B5*0.0517*0.3,0) -> 372 | D5: =+C5*2 -> 744 | E5: =+C5*3 -> 1116 | F5: =+C5*4 -> 1488 | G5: =+ROUND(B5*0.0517*0.6*1.58,0) -> 1176 | H5: =+ROUND(B5*0.0517*0.1*1.58,0) -> 196
A6: =+A5+1 -> 2 | B6: 25,200 | C6: =+ROUND(B6*0.0517*0.3,0) -> 391 | D6: 782 | E6: 1173 | F6: 1564 | G6: =+ROUND(B6*0.0517*0.6*1.58,0) -> 1235 | H6: =+ROUND(B6*0.0517*0.1*1.58,0) -> 206
A7: 3 | B7: 26,400 | C7: 409 | D7: 818 | E7: 1227 | F7: 1636 | G7: 1294 | H7: 216
A8: 4 | B8: 27,600 | C8: 428 | D8: 856 | E8: 1284 | F8: 1712 | G8: 1353 | H8: 225
A9: 5 | B9: 28,800 | C9: 447 | D9: 894 | E9: 1341 | F9: 1788 | G9: 1412 | H9: 235
A10: 6 | B10: 30,300 | C10: 470 | D10: 940 | E10: 1410 | F10: 1880 | G10: 1485 | H10: 248
A11: 7 | B11: 31,800 | C11: 493 | D11: 986 | E11: 1479 | F11: 1972 | G11: 1559 | H11: 260
A12: 8 | B12: 33,300 | C12: 516 | D12: 1032 | E12: 1548 | F12: 2064 | G12: 1632 | H12: 272
A13: 9 | B13: 34,800 | C13: 540 | D13: 1080 | E13: 1620 | F13: 2160 | G13: 1706 | H13: 284
A14: 10 | B14: 36,300 | C14: 563 | D14: 1126 | E14: 1689 | F14: 2252 | G14: 1779 | H14: 297
A15: 11 | B15: 38,200 | C15: 592 | D15: 1184 | E15: 1776 | F15: 2368 | G15: 1872 | H15: 312
A16: 12 | B16: 40,100 | C16: 622 | D16: 1244 | E16: 1866 | F16: 2488 | G16: 1965 | H16: 328
A17: 13 | B17: 42,000 | C17: 651 | D17: =+C17*2 -> 1302 | E17: 1953 | F17: 2604 | G17: 2058 | H17: 343
A18: 14 | B18: 43,900 | C18: 681 | D18: =+C18*2 -> 1362 | E18: 2043 | F18: 2724 | G18: 2152 | H18: 359
A19: 15 | B19: 45,800 | C19: 710 | D19: 1420 | E19: 2130 | F19: 2840 | G19: 2245 | H19: 374
A20: 16 | B20: 48,200 | C20: 748 | D20: 1496 | E20: 2244 | F20: 2992 | G20: 2362 | H20: 394
A21: 17 | B21: 50,600 | C21: 785 | D21: 1570 | E21: 2355 | F21: 3140 | G21: 2480 | H21: 413
A22: 18 | B22: 53,000 | C22: 822 | D22: 1644 | E22: 2466 | F22: 3288 | G22: 2598 | H22: 433
A23: 19 | B23: 55,400 | C23: 859 | D23: 1718 | E23: 2577 | F23: 3436 | G23: 2715 | H23: 453
A24: 20 | B24: 57,800 | C24: 896 | D24: 1792 | E24: 2688 | F24: 3584 | G24: 2833 | H24: 472
A25: 21 | B25: 60,800 | C25: 943 | D25: 1886 | E25: 2829 | F25: 3772 | G25: 2980 | H25: 497
A26: 22 | B26: 63,800 | C26: 990 | D26: 1980 | E26: 2970 | F26: 3960 | G26: 3127 | H26: 521
A27: 23 | B27: 66,800 | C27: 1036 | D27: 2072 | E27: 3108 | F27: 4144 | G27: 3274 | H27: 546
A28: 24 | B28: 69,800 | C28: 1083 | D28: 2166 | E28: 3249 | F28: 4332 | G28: 3421 | H28: 570
A29: 25 | B29: 72,800 | C29: 1129 | D29: 2258 | E29: 3387 | F29: 4516 | G29: 3568 | H29: 595
A30: 26 | B30: 76,500 | C30: 1187 | D30: 2374 | E30: 3561 | F30: 4748 | G30: 3749 | H30: 625
A31: 27 | B31: 80,200 | C31: 1244 | D31: 2488 | E31: 3732 | F31: 4976 | G31: 3931 | H31: 655
A32: 28 | B32: 83,900 | C32: 1301 | D32: 2602 | E32: 3903 | F32: 5204 | G32: 4112 | H32: 685
A33: 29 | B33: 87,600 | C33: 1359 | D33: 2718 | E33: 4077 | F33: 5436 | G33: 4293 | H33: 716
A34: 30 | B34: 92,100 | C34: 1428 | D34: 2856 | E34: 4284 | F34: 5712 | G34: 4514 | H34: 752
A35: 31 | B35: 96,600 | C35: 1498 | D35: 2996 | E35: 4494 | F35: 5992 | G35: 4735 | H35: 789
A36: 32 | B36: 101,100 | C36: 1568 | D36: 3136 | E36: 4704 | F36: 6272 | G36: 4955 | H36: 826
A37: 33 | B37: 105,600 | C37: 1638 | D37: 3276 | E37: 4914 | F37: 6552 | G37: 5176 | H37: 863
A38: 34 | B38: 110,100 | C38: 1708 | D38: 3416 | E38: 5124 | F38: 6832 | G38: 5396 | H38: 899
A39: 35 | B39: 115,500 | C39: 1791 | D39: 3582 | E39: 5373 | F39: 7164 | G39: 5661 | H39: 943
A40: 36 | B40: 120,900 | C40: 1875 | D40: 3750 | E40: 5625 | F40: 7500 | G40: 5926 | H40: 988
A41: 37 | B41: 126,300 | C41: 1959 | D41: 3918 | E41: 5877 | F41: 7836 | G41: 6190 | H41: 1032
A42: =+A41+1 -> 38 | B42: 131,700 | C42: 2043 | D42: 4086 | E42: 6129 | F42: 8172 | G42: 6455 | H42: 1076
A43: 39 | B43: 137,100 | C43: 2126 | D43: 4252 | E43: 6378 | F43: 8504 | G43: 6719 | H43: 1120
A44: 40 | B44: 142,500 | C44: 2210 | D44: 4420 | E44: 6630 | F44: 8840 | G44: 6984 | H44: 1164
A45: 41 | B45: 147,900 | C45: 2294 | D45: 4588 | E45: 6882 | F45: 9176 | G45: 7249 | H45: 1208
A46: =+A45+1 -> 42 | B46: 150,000 | C46: 2327 | D46: 4654 | E46: 6981 | F46: 9308 | G46: 7352 | H46: 1225
A47: 43 | B47: 156,400 | C47: 2426 | D47: 4852 | E47: 7278 | F47: 9704 | G47: 7665 | H47: 1278
A48: 44 | B48: 162,800 | C48: 2525 | D48: 5050 | E48: 7575 | F48: 10100 | G48: 7979 | H48: 1330
A49: 45 | B49: 169,200 | C49: 2624 | D49: 5248 | E49: 7872 | F49: 10496 | G49: 8293 | H49: 1382
A50: =+A49+1 -> 46 | B50: 175,600 | C50: 2724 | D50: 5448 | E50: 8172 | F50: 10896 | G50: 8606 | H50: 1434
A51: 47 | B51: 182,000 | C51: 2823 | D51: 5646 | E51: 8469 | F51: 11292 | G51: 8920 | H51: 1487
A52: 110年1月1日起實施 | H52: 中央健康保險署製表
A54: 註:1.自110年1月1日起配合基本工資調整，第一級調整為24,000元。
A55: 2.自110年1月1日起費率調整為5.17%。
A56: 3.自109年1月1日起調整平均眷口數為0.58人，投保單位負擔金額含本人 及平均眷屬人數0.58人,合計1.58人。

Sheet 勞保_雇主或外勞勞保1090101起
A1: 勞 工 保 險 普 通 事 故 保 險 費 被 保 險 人 與 投 保 單 位 分 擔 金 額 表 (自109年1月1日起適用)
A2: ※本表不含勞工保險職業災害保險費，職業災害保險費率依投保單位行業別而有不同，請按繳款單所列職業災害保險費率自行計算，並請依規定職業災害保險費全部由投保單位負擔。 單位：新台幣元
B3: 部分工時勞工適用 | F3: 部分工時勞工、職訓機構受訓者適用 | Z3: 第1級 | AB3: 第2級 | AE3: 普通事故費率
B4: 11,100 | D4: 12,540 | F4: 13,500 | H4: 15,840 | J4: 16,500 | L4: 17,280 | N4: 17,880 | P4: 19,047 | R4: 20,008 | T4: 21,009 | V4: 22,000 | X4: 23,100 | Z4: 23,800 | AB4: 24,000 | AE4: 10.00%
B5: 勞工 | C5: 單位 | D5: 勞工 | E5: 單位 | F5: 勞工 | G5: 單位 | H5: 勞工 | I5: 單位 | J5: 勞工 | K5: 單位 | L5: 勞工 | M5: 單位 | N5: 勞工 | O5: 單位 | P5: 勞工 | Q5: 單位 | R5: 勞工 | S5: 單位 | T5: 勞工 | U5: 單位 | V5: 勞工 | W5: 單位 | X5: 勞工 | Y5: 單位 | Z5: 勞工 | AA5: 單位 | AB5: 勞工 | AC5: 單位
A6: 1 | B6: =ROUND($B$4*$A6/30*$AE$4*20/100,0) -> 7 | C6: =ROUND($B$4*$A6/30*$AE$4*70/100,0) -> 26 | D6: =ROUND($D$4*$A6/30*$AE$4*20/100,0) -> 8 | E6: =ROUND($D$4*$A6/30*$AE$4*70/100,0) -> 29 | F6: =ROUND($F$4*$A6/30*$AE$4*20/100,0) -> 9 | G6: =ROUND($F$4*$A6/30*$AE$4*70/100,0) -> 32 | H6: =ROUND($H$4*$A6/30*$AE$4*20/100,0) -> 11 | I6: =ROUND($H$4*$A6/30*$AE$4*70/100,0) -> 37 | J6: =ROUND($J$4*$A6/30*$AE$4*20/100,0) -> 11 | K6: =ROUND($J$4*$A6/30*$AE$4*70/100,0) -> 39 | L6: =ROUND($L$4*$A6/30*$AE$4*20/100,0) -> 12 | M6: =ROUND($L$4*$A6/30*$AE$4*70/100,0) -> 40 | N6: =ROUND($N$4*$A6/30*$AE$4*20/100,0) -> 12 | O6: =ROUND($N$4*$A6/30*$AE$4*70/100,0) -> 42 | P6: =ROUND($P$4*$A6/30*$AE$4*20/100,0) -> 13 | Q6: =ROUND($P$4*$A6/30*$AE$4*70/100,0) -> 44 | R6: =ROUND($R$4*$A6/30*$AE$4*20/100,0) -> 13 | S6: =ROUND($R$4*$A6/30*$AE$4*70/100,0) -> 47 | T6: =ROUND($T$4*$A6/30*$AE$4*20/100,0) -> 14 | U6: =ROUND($T$4*$A6/30*$AE$4*70/100,0) -> 49 | V6: =ROUND($V$4*$A6/30*$AE$4*20/100,0) -> 15 | W6: =ROUND($V$4*$A6/30*$AE$4*70/100,0) -> 51 | X6: =ROUND($X$4*$A6/30*$AE$4*20/100,0) -> 15 | Y6: =ROUND($X$4*$A6/30*$AE$4*70/100,0) -> 54 | Z6: =ROUND($Z$4*$A6/30*$AE$4*20/100,0) -> 16 | AA6: =ROUND($Z$4*$A6/30*$AE$4*70/100,0) -> 56 | AB6: =ROUND($AB$4*$A6/30*$AE$4*20/100,0) -> 16 | AC6: =ROUND($AB$4*$A6/30*$AE$4*70/100,0) -> 56
A7: 2 | B7: 15 | C7: 52 | D7: 17 | E7: 59 | F7: 18 | G7: 63 | H7: 21 | I7: 74 | J7: 22 | K7: 77 | L7: 23 | M7: 81 | N7: 24 | O7: 83 | P7: 25 | Q7: 89 | R7: 27 | S7: 93 | T7: 28 | U7: 98 | V7: 29 | W7: 103 | X7: 31 | Y7: 108 | Z7: 32 | AA7: 111 | AB7: 32 | AC7: 112
A8: 3 | B8: 22 | C8: 78 | D8: 25 | E8: 88 | F8: 27 | G8: 95 | H8: 32 | I8: 111 | J8: 33 | K8: 116 | L8: 35 | M8: 121 | N8: 36 | O8: 125 | P8: 38 | Q8: 133 | R8: 40 | S8: 140 | T8: 42 | U8: 147 | V8: 44 | W8: 154 | X8: 46 | Y8: 162 | Z8: 48 | AA8: 167 | AB8: 48 | AC8: 168
A9: 4 | B9: 30 | C9: 104 | D9: 33 | E9: 117 | F9: 36 | G9: 126 | H9: 42 | I9: 148 | J9: 44 | K9: 154 | L9: 46 | M9: 161 | N9: 48 | O9: 167 | P9: 51 | Q9: 178 | R9: 53 | S9: 187 | T9: 56 | U9: 196 | V9: 59 | W9: 205 | X9: 62 | Y9: 216 | Z9: 63 | AA9: 222 | AB9: 64 | AC9: 224
A10: 5 | B10: 37 | C10: 130 | D10: 42 | E10: 146 | F10: 45 | G10: 158 | H10: 53 | I10: 185 | J10: 55 | K10: 193 | L10: 58 | M10: 202 | N10: 60 | O10: 209 | P10: 63 | Q10: 222 | R10: 67 | S10: 233 | T10: 70 | U10: 245 | V10: 73 | W10: 257 | X10: 77 | Y10: 270 | Z10: 79 | AA10: 278 | AB10: 80 | AC10: 280
A11: 6 | B11: 44 | C11: 155 | D11: 50 | E11: 176 | F11: 54 | G11: 189 | H11: 63 | I11: 222 | J11: 66 | K11: 231 | L11: 69 | M11: 242 | N11: 72 | O11: 250 | P11: 76 | Q11: 267 | R11: 80 | S11: 280 | T11: 84 | U11: 294 | V11: 88 | W11: 308 | X11: 92 | Y11: 323 | Z11: 95 | AA11: 333 | AB11: 96 | AC11: 336
A12: 7 | B12: 52 | C12: 181 | D12: 59 | E12: 205 | F12: 63 | G12: 221 | H12: 74 | I12: 259 | J12: 77 | K12: 270 | L12: 81 | M12: 282 | N12: 83 | O12: 292 | P12: 89 | Q12: 311 | R12: 93 | S12: 327 | T12: 98 | U12: 343 | V12: 103 | W12: 359 | X12: 108 | Y12: 377 | Z12: 111 | AA12: 389 | AB12: 112 | AC12: 392
A13: 8 | B13: 59 | C13: 207 | D13: 67 | E13: 234 | F13: 72 | G13: 252 | H13: 84 | I13: 296 | J13: 88 | K13: 308 | L13: 92 | M13: 323 | N13: 95 | O13: 334 | P13: 102 | Q13: 356 | R13: 107 | S13: 373 | T13: 112 | U13: 392 | V13: 117 | W13: 411 | X13: 123 | Y13: 431 | Z13: 127 | AA13: 444 | AB13: 128 | AC13: 448
A14: 9 | B14: 67 | C14: 233 | D14: 75 | E14: 263 | F14: 81 | G14: 284 | H14: 95 | I14: 333 | J14: 99 | K14: 347 | L14: 104 | M14: 363 | N14: 107 | O14: 375 | P14: 114 | Q14: 400 | R14: 120 | S14: 420 | T14: 126 | U14: 441 | V14: 132 | W14: 462 | X14: 139 | Y14: 485 | Z14: 143 | AA14: 500 | AB14: 144 | AC14: 504
A15: 10 | B15: 74 | C15: 259 | D15: 84 | E15: 293 | F15: 90 | G15: 315 | H15: 106 | I15: 370 | J15: 110 | K15: 385 | L15: 115 | M15: 403 | N15: 119 | O15: 417 | P15: 127 | Q15: 444 | R15: 133 | S15: 467 | T15: 140 | U15: 490 | V15: 147 | W15: 513 | X15: 154 | Y15: 539 | Z15: 159 | AA15: 555 | AB15: 160 | AC15: 560
A16: 11 | B16: 81 | C16: 285 | D16: 92 | E16: 322 | F16: 99 | G16: 347 | H16: 116 | I16: 407 | J16: 121 | K16: 424 | L16: 127 | M16: 444 | N16: 131 | O16: 459 | P16: 140 | Q16: 489 | R16: 147 | S16: 514 | T16: 154 | U16: 539 | V16: 161 | W16: 565 | X16: 169 | Y16: 593 | Z16: 175 | AA16: 611 | AB16: 176 | AC16: 616
A17: 12 | B17: 89 | C17: 311 | D17: 100 | E17: 351 | F17: 108 | G17: 378 | H17: 127 | I17: 444 | J17: 132 | K17: 462 | L17: 138 | M17: 484 | N17: 143 | O17: 501 | P17: 152 | Q17: 533 | R17: 160 | S17: 560 | T17: 168 | U17: 588 | V17: 176 | W17: 616 | X17: 185 | Y17: 647 | Z17: 190 | AA17: 666 | AB17: 192 | AC17: 672
A18: 13 | B18: 96 | C18: 337 | D18: 109 | E18: 380 | F18: 117 | G18: 410 | H18: 137 | I18: 480 | J18: 143 | K18: 501 | L18: 150 | M18: 524 | N18: 155 | O18: 542 | P18: 165 | Q18: 578 | R18: 173 | S18: 607 | T18: 182 | U18: 637 | V18: 191 | W18: 667 | X18: 200 | Y18: 701 | Z18: 206 | AA18: 722 | AB18: 208 | AC18: 728
A19: 14 | B19: 104 | C19: 363 | D19: 117 | E19: 410 | F19: 126 | G19: 441 | H19: 148 | I19: 517 | J19: 154 | K19: 539 | L19: 161 | M19: 564 | N19: 167 | O19: 584 | P19: 178 | Q19: 622 | R19: 187 | S19: 654 | T19: 196 | U19: 686 | V19: 205 | W19: 719 | X19: 216 | Y19: 755 | Z19: 222 | AA19: 777 | AB19: 224 | AC19: 784
A20: 15 | B20: 111 | C20: 389 | D20: 125 | E20: 439 | F20: 135 | G20: 473 | H20: 158 | I20: 554 | J20: 165 | K20: 578 | L20: 173 | M20: 605 | N20: 179 | O20: 626 | P20: 190 | Q20: 667 | R20: 200 | S20: 700 | T20: 210 | U20: 735 | V20: 220 | W20: 770 | X20: 231 | Y20: 809 | Z20: 238 | AA20: 833 | AB20: 240 | AC20: 840
A21: 16 | B21: 118 | C21: 414 | D21: 134 | E21: 468 | F21: 144 | G21: 504 | H21: 169 | I21: 591 | J21: 176 | K21: 616 | L21: 184 | M21: 645 | N21: 191 | O21: 668 | P21: 203 | Q21: 711 | R21: 213 | S21: 747 | T21: 224 | U21: 784 | V21: 235 | W21: 821 | X21: 246 | Y21: 862 | Z21: 254 | AA21: 889 | AB21: 256 | AC21: 896
A22: 17 | B22: 126 | C22: 440 | D22: 142 | E22: 497 | F22: 153 | G22: 536 | H22: 180 | I22: 628 | J22: 187 | K22: 655 | L22: 196 | M22: 685 | N22: 203 | O22: 709 | P22: 216 | Q22: 756 | R22: 227 | S22: 794 | T22: 238 | U22: 833 | V22: 249 | W22: 873 | X22: 262 | Y22: 916 | Z22: 270 | AA22: 944 | AB22: 272 | AC22: 952
A23: 18 | B23: 133 | C23: 466 | D23: 150 | E23: 527 | F23: 162 | G23: 567 | H23: 190 | I23: 665 | J23: 198 | K23: 693 | L23: 207 | M23: 726 | N23: 215 | O23: 751 | P23: 229 | Q23: 800 | R23: 240 | S23: 840 | T23: 252 | U23: 882 | V23: 264 | W23: 924 | X23: 277 | Y23: 970 | Z23: 286 | AA23: 1,000 | AB23: 288 | AC23: 1,008
A24: 19 | B24: 141 | C24: 492 | D24: 159 | E24: 556 | F24: 171 | G24: 599 | H24: 201 | I24: 702 | J24: 209 | K24: 732 | L24: 219 | M24: 766 | N24: 226 | O24: 793 | P24: 241 | Q24: 844 | R24: 253 | S24: 887 | T24: 266 | U24: 931 | V24: 279 | W24: 975 | X24: 293 | Y24: 1,024 | Z24: 301 | AA24: 1,055 | AB24: 304 | AC24: 1,064
A25: 20 | B25: 148 | C25: 518 | D25: 167 | E25: 585 | F25: 180 | G25: 630 | H25: 211 | I25: 739 | J25: 220 | K25: 770 | L25: 230 | M25: 806 | N25: 238 | O25: 834 | P25: 254 | Q25: 889 | R25: 267 | S25: 934 | T25: 280 | U25: 980 | V25: 293 | W25: 1,027 | X25: 308 | Y25: 1,078 | Z25: 317 | AA25: 1,111 | AB25: 320 | AC25: 1,120
A26: 21 | B26: 155 | C26: 544 | D26: 176 | E26: 614 | F26: 189 | G26: 662 | H26: 222 | I26: 776 | J26: 231 | K26: 809 | L26: 242 | M26: 847 | N26: 250 | O26: 876 | P26: 267 | Q26: 933 | R26: 280 | S26: 980 | T26: 294 | U26: 1,029 | V26: 308 | W26: 1,078 | X26: 323 | Y26: 1,132 | Z26: 333 | AA26: 1,166 | AB26: 336 | AC26: 1,176
A27: 22 | B27: 163 | C27: 570 | D27: 184 | E27: 644 | F27: 198 | G27: 693 | H27: 232 | I27: 813 | J27: 242 | K27: 847 | L27: 253 | M27: 887 | N27: 262 | O27: 918 | P27: 279 | Q27: 978 | R27: 293 | S27: 1,027 | T27: 308 | U27: 1,078 | V27: 323 | W27: 1,129 | X27: 339 | Y27: 1,186 | Z27: 349 | AA27: 1,222 | AB27: 352 | AC27: 1,232
A28: 23 | B28: 170 | C28: 596 | D28: 192 | E28: 673 | F28: 207 | G28: 725 | H28: 243 | I28: 850 | J28: 253 | K28: 886 | L28: 265 | M28: 927 | N28: 274 | O28: 960 | P28: 292 | Q28: 1,022 | R28: 307 | S28: 1,074 | T28: 322 | U28: 1,127 | V28: 337 | W28: 1,181 | X28: 354 | Y28: 1,240 | Z28: 365 | AA28: 1,277 | AB28: 368 | AC28: 1,288
A29: 24 | B29: 178 | C29: 622 | D29: 201 | E29: 702 | F29: 216 | G29: 756 | H29: 253 | I29: 887 | J29: 264 | K29: 924 | L29: 276 | M29: 968 | N29: 286 | O29: 1,001 | P29: 305 | Q29: 1,067 | R29: 320 | S29: 1,120 | T29: 336 | U29: 1,177 | V29: 352 | W29: 1,232 | X29: 370 | Y29: 1,294 | Z29: 381 | AA29: 1,333 | AB29: 384 | AC29: 1,344
A30: 25 | B30: 185 | C30: 648 | D30: 209 | E30: 732 | F30: 225 | G30: 788 | H30: 264 | I30: 924 | J30: 275 | K30: 963 | L30: 288 | M30: 1,008 | N30: 298 | O30: 1,043 | P30: 317 | Q30: 1,111 | R30: 333 | S30: 1,167 | T30: 350 | U30: 1,226 | V30: 367 | W30: 1,283 | X30: 385 | Y30: 1,348 | Z30: 397 | AA30: 1,388 | AB30: 400 | AC30: 1,400
A31: 26 | B31: 192 | C31: 673 | D31: 217 | E31: 761 | F31: 234 | G31: 819 | H31: 275 | I31: 961 | J31: 286 | K31: 1,001 | L31: 300 | M31: 1,048 | N31: 310 | O31: 1,085 | P31: 330 | Q31: 1,156 | R31: 347 | S31: 1,214 | T31: 364 | U31: 1,275 | V31: 381 | W31: 1,335 | X31: 400 | Y31: 1,401 | Z31: 413 | AA31: 1,444 | AB31: 416 | AC31: 1,456
A32: 27 | B32: 200 | C32: 699 | D32: 226 | E32: 790 | F32: 243 | G32: 851 | H32: 285 | I32: 998 | J32: 297 | K32: 1,040 | L32: 311 | M32: 1,089 | N32: 322 | O32: 1,126 | P32: 343 | Q32: 1,200 | R32: 360 | S32: 1,261 | T32: 378 | U32: 1,324 | V32: 396 | W32: 1,386 | X32: 416 | Y32: 1,455 | Z32: 428 | AA32: 1,499 | AB32: 432 | AC32: 1,512
A33: 28 | B33: 207 | C33: 725 | D33: 234 | E33: 819 | F33: 252 | G33: 882 | H33: 296 | I33: 1,035 | J33: 308 | K33: 1,078 | L33: 323 | M33: 1,129 | N33: 334 | O33: 1,168 | P33: 356 | Q33: 1,244 | R33: 373 | S33: 1,307 | T33: 392 | U33: 1,373 | V33: 411 | W33: 1,437 | X33: 431 | Y33: 1,509 | Z33: 444 | AA33: 1,555 | AB33: 448 | AC33: 1,568
A34: 29 | B34: 215 | C34: 751 | D34: 242 | E34: 849 | F34: 261 | G34: 914 | H34: 306 | I34: 1,072 | J34: 319 | K34: 1,117 | L34: 334 | M34: 1,169 | N34: 346 | O34: 1,210 | P34: 368 | Q34: 1,289 | R34: 387 | S34: 1,354 | T34: 406 | U34: 1,422 | V34: 425 | W34: 1,489 | X34: 447 | Y34: 1,563 | Z34: 460 | AA34: 1,610 | AB34: 464 | AC34: 1,624
A35: 30 | B35: 222 | C35: 777 | D35: 251 | E35: 878 | F35: 270 | G35: 945 | H35: 317 | I35: 1,109 | J35: 330 | K35: 1,155 | L35: 346 | M35: 1,210 | N35: 358 | O35: 1,252 | P35: 381 | Q35: 1,333 | R35: 400 | S35: 1,401 | T35: 420 | U35: 1,471 | V35: 440 | W35: 1,540 | X35: 462 | Y35: 1,617 | Z35: 476 | AA35: 1,666 | AB35: 480 | AC35: 1,680
B37: 第3級 | D37: 第4級 | F37: 第5級 | H37: 第6級 | J37: 第7級 | L37: 第8級 | N37: 第9級 | P37: 第10級 | R37: 第11級 | T37: 第12級 | V37: 第13級 | X37: 第14級 | Z37: 第15級 | AB37: 第16級
B38: 25,200 | D38: 26,400 | F38: 27,600 | H38: 28,800 | J38: 30,300 | L38: 31,800 | N38: 33,300 | P38: 34,800 | R38: 36,300 | T38: 38,200 | V38: 40,100 | X38: 42,000 | Z38: 43,900 | AB38: 45,800
B39: 勞工 | C39: 單位 | D39: 勞工 | E39: 單位 | F39: 勞工 | G39: 單位 | H39: 勞工 | I39: 單位 | J39: 勞工 | K39: 單位 | L39: 勞工 | M39: 單位 | N39: 勞工 | O39: 單位 | P39: 勞工 | Q39: 單位 | R39: 勞工 | S39: 單位 | T39: 勞工 | U39: 單位 | V39: 勞工 | W39: 單位 | X39: 勞工 | Y39: 單位 | Z39: 勞工 | AA39: 單位 | AB39: 勞工 | AC39: 單位
A40: 1 | B40: =ROUND($B$38*$A40/30*$AE$4*20/100,0) -> 17 | C40: =ROUND($B$38*$A40/30*$AE$4*70/100,0) -> 59 | D40: =ROUND($D$38*$A40/30*$AE$4*20/100,0) -> 18 | E40: =ROUND($D$38*$A40/30*$AE$4*70/100,0) -> 62 | F40: =ROUND($F$38*$A40/30*$AE$4*20/100,0) -> 18 | G40: =ROUND($F$38*$A40/30*$AE$4*70/100,0) -> 64 | H40: =ROUND($H$38*$A40/30*$AE$4*20/100,0) -> 19 | I40: =ROUND($H$38*$A40/30*$AE$4*70/100,0) -> 67 | J40: =ROUND($J$38*$A40/30*$AE$4*20/100,0) -> 20 | K40: =ROUND($J$38*$A40/30*$AE$4*70/100,0) -> 71 | L40: =ROUND($L$38*$A40/30*$AE$4*20/100,0) -> 21 | M40: =ROUND($L$38*$A40/30*$AE$4*70/100,0) -> 74 | N40: =ROUND($N$38*$A40/30*$AE$4*20/100,0) -> 22 | O40: =ROUND($N$38*$A40/30*$AE$4*70/100,0) -> 78 | P40: =ROUND($P$38*$A40/30*$AE$4*20/100,0) -> 23 | Q40: =ROUND($P$38*$A40/30*$AE$4*70/100,0) -> 81 | R40: =ROUND($R$38*$A40/30*$AE$4*20/100,0) -> 24 | S40: =ROUND($R$38*$A40/30*$AE$4*70/100,0) -> 85 | T40: =ROUND($T$38*$A40/30*$AE$4*20/100,0) -> 25 | U40: =ROUND($T$38*$A40/30*$AE$4*70/100,0) -> 89 | V40: =ROUND($V$38*$A40/30*$AE$4*20/100,0) -> 27 | W40: =ROUND($V$38*$A40/30*$AE$4*70/100,0) -> 94 | X40: =ROUND($X$38*$A40/30*$AE$4*20/100,0) -> 28 | Y40: =ROUND($X$38*$A40/30*$AE$4*70/100,0) -> 98 | Z40: =ROUND($Z$38*$A40/30*$AE$4*20/100,0) -> 29 | AA40: =ROUND($Z$38*$A40/30*$AE$4*70/100,0) -> 102 | AB40: =ROUND($AB$38*$A40/30*$AE$4*20/100,0) -> 31 | AC40: =ROUND($AB$38*$A40/30*$AE$4*70/100,0) -> 107
A41: 2 | B41: 34 | C41: 118 | D41: 35 | E41: 123 | F41: 37 | G41: 129 | H41: 38 | I41: 134 | J41: 40 | K41: 141 | L41: 42 | M41: 148 | N41: 44 | O41: 155 | P41: 46 | Q41: 162 | R41: 48 | S41: 169 | T41: 51 | U41: 178 | V41: 53 | W41: 187 | X41: 56 | Y41: 196 | Z41: =ROUND($Z$38*$A41/30*$AE$4*20/100,0) -> 59 | AA41: =ROUND($Z$38*$A41/30*$AE$4*70/100,0) -> 205 | AB41: =ROUND($AB$38*$A41/30*$AE$4*20/100,0) -> 61 | AC41: =ROUND($AB$38*$A41/30*$AE$4*70/100,0) -> 214
A42: 3 | B42: 50 | C42: 176 | D42: 53 | E42: 185 | F42: 55 | G42: 193 | H42: 58 | I42: 202 | J42: 61 | K42: 212 | L42: 64 | M42: 223 | N42: 67 | O42: 233 | P42: 70 | Q42: 244 | R42: 73 | S42: 254 | T42: 76 | U42: 267 | V42: 80 | W42: 281 | X42: 84 | Y42: 294 | Z42: 88 | AA42: 307 | AB42: 92 | AC42: 321
A43: 4 | B43: 67 | C43: 235 | D43: 70 | E43: 246 | F43: 74 | G43: 258 | H43: 77 | I43: 269 | J43: 81 | K43: 283 | L43: 85 | M43: 297 | N43: 89 | O43: 311 | P43: 93 | Q43: 325 | R43: 97 | S43: 339 | T43: 102 | U43: 357 | V43: 107 | W43: 374 | X43: 112 | Y43: 392 | Z43: 117 | AA43: 410 | AB43: 122 | AC43: 427
A44: 5 | B44: 84 | C44: 294 | D44: 88 | E44: 308 | F44: 92 | G44: 322 | H44: 96 | I44: 336 | J44: 101 | K44: 354 | L44: 106 | M44: 371 | N44: 111 | O44: 389 | P44: 116 | Q44: 406 | R44: 121 | S44: 424 | T44: 127 | U44: 446 | V44: 134 | W44: 468 | X44: 140 | Y44: 490 | Z44: 146 | AA44: 512 | AB44: 153 | AC44: 534
A45: 6 | B45: 101 | C45: 353 | D45: 106 | E45: 370 | F45: 110 | G45: 386 | H45: 115 | I45: 403 | J45: 121 | K45: 424 | L45: 127 | M45: 445 | N45: 133 | O45: 466 | P45: 139 | Q45: 487 | R45: 145 | S45: 508 | T45: 153 | U45: 535 | V45: 160 | W45: 561 | X45: 168 | Y45: 588 | Z45: 176 | AA45: 615 | AB45: 183 | AC45: 641
A46: 7 | B46: 118 | C46: 412 | D46: 123 | E46: 431 | F46: 129 | G46: 451 | H46: 134 | I46: 470 | J46: 141 | K46: 495 | L46: 148 | M46: 519 | N46: 155 | O46: 544 | P46: 162 | Q46: 568 | R46: 169 | S46: 593 | T46: 178 | U46: 624 | V46: 187 | W46: 655 | X46: 196 | Y46: 686 | Z46: 205 | AA46: 717 | AB46: 214 | AC46: 748
A47: 8 | B47: 134 | C47: 470 | D47: 141 | E47: 493 | F47: 147 | G47: 515 | H47: 154 | I47: 538 | J47: 162 | K47: 566 | L47: 170 | M47: 594 | N47: 178 | O47: 622 | P47: 186 | Q47: 650 | R47: 194 | S47: 678 | T47: 204 | U47: 713 | V47: 214 | W47: 749 | X47: 224 | Y47: 784 | Z47: 234 | AA47: 819 | AB47: 244 | AC47: 855
A48: 9 | B48: 151 | C48: 529 | D48: 158 | E48: 554 | F48: 166 | G48: 580 | H48: 173 | I48: 605 | J48: 182 | K48: 636 | L48: 191 | M48: 668 | N48: 200 | O48: 699 | P48: 209 | Q48: 731 | R48: 218 | S48: 762 | T48: 229 | U48: 802 | V48: 241 | W48: 842 | X48: 252 | Y48: 882 | Z48: 263 | AA48: 922 | AB48: 275 | AC48: 962
A49: 10 | B49: 168 | C49: 588 | D49: 176 | E49: 616 | F49: 184 | G49: 644 | H49: 192 | I49: 672 | J49: 202 | K49: 707 | L49: 212 | M49: 742 | N49: 222 | O49: 777 | P49: 232 | Q49: 812 | R49: 242 | S49: 847 | T49: 255 | U49: 891 | V49: 267 | W49: 936 | X49: 280 | Y49: 980 | Z49: 293 | AA49: 1,024 | AB49: 305 | AC49: 1,069
A50: 11 | B50: 185 | C50: 647 | D50: 194 | E50: 678 | F50: 202 | G50: 708 | H50: 211 | I50: 739 | J50: 222 | K50: 778 | L50: 233 | M50: 816 | N50: 244 | O50: 855 | P50: 255 | Q50: 893 | R50: 266 | S50: 932 | T50: 280 | U50: 980 | V50: 294 | W50: 1,029 | X50: 308 | Y50: 1,078 | Z50: 322 | AA50: 1,127 | AB50: 336 | AC50: 1,176
A51: 12 | B51: 202 | C51: 706 | D51: 211 | E51: 739 | F51: 221 | G51: 773 | H51: 230 | I51: 806 | J51: 242 | K51: 848 | L51: 254 | M51: 890 | N51: 266 | O51: 932 | P51: 278 | Q51: 974 | R51: 290 | S51: 1,016 | T51: 306 | U51: 1,070 | V51: 321 | W51: 1,123 | X51: 336 | Y51: 1,176 | Z51: 351 | AA51: 1,229 | AB51: 366 | AC51: 1,282
A52: 13 | B52: 218 | C52: 764 | D52: 229 | E52: 801 | F52: 239 | G52: 837 | H52: 250 | I52: 874 | J52: 263 | K52: 919 | L52: 276 | M52: 965 | N52: 289 | O52: 1,010 | P52: 302 | Q52: 1,056 | R52: 315 | S52: 1,101 | T52: 331 | U52: 1,159 | V52: 348 | W52: 1,216 | X52: 364 | Y52: 1,274 | Z52: 380 | AA52: 1,332 | AB52: 397 | AC52: 1,389
A53: 14 | B53: 235 | C53: 823 | D53: 246 | E53: 862 | F53: 258 | G53: 902 | H53: 269 | I53: 941 | J53: 283 | K53: 990 | L53: 297 | M53: 1,039 | N53: 311 | O53: 1,088 | P53: 325 | Q53: 1,137 | R53: 339 | S53: 1,186 | T53: 357 | U53: 1,248 | V53: 374 | W53: 1,310 | X53: 392 | Y53: 1,372 | Z53: 410 | AA53: 1,434 | AB53: 427 | AC53: 1,496
A54: 15 | B54: 252 | C54: 882 | D54: 264 | E54: 924 | F54: 276 | G54: 966 | H54: 288 | I54: 1,008 | J54: 303 | K54: 1,061 | L54: 318 | M54: 1,113 | N54: 333 | O54: 1,166 | P54: 348 | Q54: 1,218 | R54: 363 | S54: 1,271 | T54: 382 | U54: 1,337 | V54: 401 | W54: 1,404 | X54: 420 | Y54: 1,470 | Z54: 439 | AA54: 1,537 | AB54: 458 | AC54: 1,603
A55: 16 | B55: 269 | C55: 941 | D55: 282 | E55: 986 | F55: 294 | G55: 1,030 | H55: 307 | I55: 1,075 | J55: 323 | K55: 1,131 | L55: 339 | M55: 1,187 | N55: 355 | O55: 1,243 | P55: 371 | Q55: 1,299 | R55: 387 | S55: 1,355 | T55: 407 | U55: 1,426 | V55: 428 | W55: 1,497 | X55: 448 | Y55: 1,568 | Z55: 468 | AA55: 1,639 | AB55: 489 | AC55: 1,710
A56: 17 | B56: 286 | C56: 1,000 | D56: 299 | E56: 1,047 | F56: 313 | G56: 1,095 | H56: 326 | I56: 1,142 | J56: 343 | K56: 1,202 | L56: 360 | M56: 1,261 | N56: 377 | O56: 1,321 | P56: 394 | Q56: 1,380 | R56: 411 | S56: 1,440 | T56: 433 | U56: 1,515 | V56: 454 | W56: 1,591 | X56: 476 | Y56: 1,666 | Z56: 498 | AA56: 1,741 | AB56: 519 | AC56: 1,817
A57: 18 | B57: 302 | C57: 1,058 | D57: 317 | E57: 1,109 | F57: 331 | G57: 1,159 | H57: 346 | I57: 1,210 | J57: 364 | K57: 1,273 | L57: 382 | M57: 1,336 | N57: 400 | O57: 1,399 | P57: 418 | Q57: 1,462 | R57: 436 | S57: 1,525 | T57: 458 | U57: 1,604 | V57: 481 | W57: 1,684 | X57: 504 | Y57: 1,764 | Z57: 527 | AA57: 1,844 | AB57: 550 | AC57: 1,924
A58: 19 | B58: 319 | C58: 1,117 | D58: 334 | E58: 1,170 | F58: 350 | G58: 1,224 | H58: 365 | I58: 1,277 | J58: 384 | K58: 1,343 | L58: 403 | M58: 1,410 | N58: 422 | O58: 1,476 | P58: 441 | Q58: 1,543 | R58: 460 | S58: 1,609 | T58: 484 | U58: 1,694 | V58: 508 | W58: 1,778 | X58: 532 | Y58: 1,862 | Z58: 556 | AA58: 1,946 | AB58: 580 | AC58: 2,030
A59: 20 | B59: 336 | C59: 1,176 | D59: 352 | E59: 1,232 | F59: 368 | G59: 1,288 | H59: 384 | I59: 1,344 | J59: 404 | K59: 1,414 | L59: 424 | M59: 1,484 | N59: 444 | O59: 1,554 | P59: 464 | Q59: 1,624 | R59: 484 | S59: 1,694 | T59: 509 | U59: 1,783 | V59: 535 | W59: 1,871 | X59: 560 | Y59: 1,960 | Z59: 585 | AA59: 2,049 | AB59: 611 | AC59: 2,137
A60: 21 | B60: 353 | C60: 1,235 | D60: 370 | E60: 1,294 | F60: 386 | G60: 1,352 | H60: 403 | I60: 1,411 | J60: 424 | K60: 1,485 | L60: 445 | M60: 1,558 | N60: 466 | O60: 1,632 | P60: 487 | Q60: 1,705 | R60: 508 | S60: 1,779 | T60: 535 | U60: 1,872 | V60: 561 | W60: 1,965 | X60: 588 | Y60: 2,058 | Z60: 615 | AA60: 2,151 | AB60: 641 | AC60: 2,244
A61: 22 | B61: 370 | C61: 1,294 | D61: 387 | E61: 1,355 | F61: 405 | G61: 1,417 | H61: 422 | I61: 1,478 | J61: 444 | K61: 1,555 | L61: 466 | M61: 1,632 | N61: 488 | O61: 1,709 | P61: 510 | Q61: 1,786 | R61: 532 | S61: 1,863 | T61: 560 | U61: 1,961 | V61: 588 | W61: 2,058 | X61: 616 | Y61: 2,156 | Z61: 644 | AA61: 2,254 | AB61: 672 | AC61: 2,351
A62: 23 | B62: 386 | C62: 1,352 | D62: 405 | E62: 1,417 | F62: 423 | G62: 1,481 | H62: 442 | I62: 1,546 | J62: 465 | K62: 1,626 | L62: 488 | M62: 1,707 | N62: 511 | O62: 1,787 | P62: 534 | Q62: 1,868 | R62: 557 | S62: 1,948 | T62: 586 | U62: 2,050 | V62: 615 | W62: 2,152 | X62: 644 | Y62: 2,254 | Z62: 673 | AA62: 2,356 | AB62: 702 | AC62: 2,458
A63: 24 | B63: 403 | C63: 1,411 | D63: 422 | E63: 1,478 | F63: 442 | G63: 1,546 | H63: 461 | I63: 1,613 | J63: 485 | K63: 1,697 | L63: 509 | M63: 1,781 | N63: 533 | O63: 1,865 | P63: 557 | Q63: 1,949 | R63: 581 | S63: 2,033 | T63: 611 | U63: 2,139 | V63: 642 | W63: 2,246 | X63: 672 | Y63: 2,352 | Z63: 702 | AA63: 2,458 | AB63: 733 | AC63: 2,565
A64: 25 | B64: 420 | C64: 1,470 | D64: 440 | E64: 1,540 | F64: 460 | G64: 1,610 | H64: 480 | I64: 1,680 | J64: 505 | K64: 1,768 | L64: 530 | M64: 1,855 | N64: 555 | O64: 1,943 | P64: 580 | Q64: 2,030 | R64: 605 | S64: 2,118 | T64: 637 | U64: 2,228 | V64: 668 | W64: 2,339 | X64: 700 | Y64: 2,450 | Z64: 732 | AA64: 2,561 | AB64: 763 | AC64: 2,672
A65: 26 | B65: 437 | C65: 1,529 | D65: 458 | E65: 1,602 | F65: 478 | G65: 1,674 | H65: 499 | I65: 1,747 | J65: 525 | K65: 1,838 | L65: 551 | M65: 1,929 | N65: 577 | O65: 2,020 | P65: 603 | Q65: 2,111 | R65: 629 | S65: 2,202 | T65: 662 | U65: 2,317 | V65: 695 | W65: 2,433 | X65: 728 | Y65: 2,548 | Z65: 761 | AA65: 2,663 | AB65: 794 | AC65: 2,779
A66: 27 | B66: 454 | C66: 1,588 | D66: 475 | E66: 1,663 | F66: 497 | G66: 1,739 | H66: 518 | I66: 1,814 | J66: 545 | K66: 1,909 | L66: 572 | M66: 2,003 | N66: 599 | O66: 2,098 | P66: 626 | Q66: 2,192 | R66: 653 | S66: 2,287 | T66: 688 | U66: 2,407 | V66: 722 | W66: 2,526 | X66: 756 | Y66: 2,646 | Z66: 790 | AA66: 2,766 | AB66: 824 | AC66: 2,885
A67: 28 | B67: 470 | C67: 1,646 | D67: 493 | E67: 1,725 | F67: 515 | G67: 1,803 | H67: 538 | I67: 1,882 | J67: 566 | K67: 1,980 | L67: 594 | M67: 2,078 | N67: 622 | O67: 2,176 | P67: 650 | Q67: 2,274 | R67: 678 | S67: 2,372 | T67: 713 | U67: 2,496 | V67: 749 | W67: 2,620 | X67: 784 | Y67: 2,744 | Z67: 819 | AA67: 2,868 | AB67: 855 | AC67: 2,992
A68: 29 | B68: 487 | C68: 1,705 | D68: 510 | E68: 1,786 | F68: 534 | G68: 1,868 | H68: 557 | I68: 1,949 | J68: 586 | K68: 2,050 | L68: 615 | M68: 2,152 | N68: 644 | O68: 2,253 | P68: 673 | Q68: 2,355 | R68: 702 | S68: 2,456 | T68: 739 | U68: 2,585 | V68: 775 | W68: 2,713 | X68: 812 | Y68: 2,842 | Z68: 849 | AA68: 2,971 | AB68: 885 | AC68: 3,099
A69: 30 | B69: 504 | C69: 1,764 | D69: 528 | E69: 1,848 | F69: 552 | G69: 1,932 | H69: 576 | I69: 2,016 | J69: 606 | K69: 2,121 | L69: 636 | M69: 2,226 | N69: 666 | O69: 2,331 | P69: 696 | Q69: 2,436 | R69: 726 | S69: 2,541 | T69: 764 | U69: 2,674 | V69: 802 | W69: 2,807 | X69: 840 | Y69: 2,940 | Z69: 878 | AA69: 3,073 | AB69: 916 | AC69: 3,206
AB71: 108.10製表

Sheet 健保_一般勞工10901
B1: 全民健康保險保險費負擔金額表(三)
B2: ﹝公、民營事業、機構及有一定雇主之受雇者適用﹞ | H2: 單位：新台幣元
A3: 投保金額等級 | B3: 月投保金額 | C3: 被保險人及眷屬負擔金額﹝負擔比率30%﹞ | G3: 投保單位負擔金額﹝負擔比率60%﹞ | H3: 政府補助金額﹝補助比率10%﹞
C4: 本人 | D4: 本人+１眷口 | E4: 本人+２眷口 | F4: 本人+３眷口
A5: 1 | B5: 23,800 | C5: =+ROUND(B5*0.0469*0.3,0) -> 335 | D5: =+C5*2 -> 670 | E5: =+C5*3 -> 1005 | F5: =+C5*4 -> 1340 | G5: =+ROUND(B5*0.0469*0.6*1.58,0) -> 1058 | H5: =+ROUND(B5*0.0469*0.1*1.58,0) -> 176
A6: =+A5+1 -> 2 | B6: 24,000 | C6: 338 | D6: 676 | E6: 1014 | F6: 1352 | G6: 1067 | H6: 178
A7: 3 | B7: 25,200 | C7: 355 | D7: 710 | E7: 1065 | F7: 1420 | G7: 1120 | H7: 187
A8: 4 | B8: 26,400 | C8: 371 | D8: 742 | E8: 1113 | F8: 1484 | G8: 1174 | H8: 196
A9: 5 | B9: 27,600 | C9: 388 | D9: 776 | E9: 1164 | F9: 1552 | G9: 1227 | H9: 205
A10: 6 | B10: 28,800 | C10: 405 | D10: 810 | E10: 1215 | F10: 1620 | G10: 1280 | H10: 213
A11: 7 | B11: 30,300 | C11: 426 | D11: 852 | E11: 1278 | F11: 1704 | G11: 1347 | H11: 225
A12: 8 | B12: 31,800 | C12: 447 | D12: 894 | E12: 1341 | F12: 1788 | G12: 1414 | H12: 236
A13: 9 | B13: 33,300 | C13: 469 | D13: 938 | E13: 1407 | F13: 1876 | G13: 1481 | H13: 247
A14: 10 | B14: 34,800 | C14: 490 | D14: 980 | E14: 1470 | F14: 1960 | G14: 1547 | H14: 258
A15: 11 | B15: 36,300 | C15: 511 | D15: 1022 | E15: 1533 | F15: 2044 | G15: 1614 | H15: 269
A16: 12 | B16: 38,200 | C16: 537 | D16: 1074 | E16: 1611 | F16: 2148 | G16: 1698 | H16: 283
A17: 13 | B17: 40,100 | C17: 564 | D17: 1128 | E17: 1692 | F17: 2256 | G17: 1783 | H17: 297
A18: 14 | B18: 42,000 | C18: 591 | D18: =+C18*2 -> 1182 | E18: 1773 | F18: 2364 | G18: 1867 | H18: 311
A19: 15 | B19: 43,900 | C19: 618 | D19: =+C19*2 -> 1236 | E19: 1854 | F19: 2472 | G19: 1952 | H19: 325
A20: 16 | B20: 45,800 | C20: 644 | D20: 1288 | E20: 1932 | F20: 2576 | G20: 2036 | H20: 339
A21: 17 | B21: 48,200 | C21: 678 | D21: 1356 | E21: 2034 | F21: 2712 | G21: 2143 | H21: 357
A22: 18 | B22: 50,600 | C22: 712 | D22: 1424 | E22: 2136 | F22: 2848 | G22: 2250 | H22: 375
A23: 19 | B23: 53,000 | C23: 746 | D23: 1492 | E23: 2238 | F23: 2984 | G23: 2356 | H23: 393
A24: 20 | B24: 55,400 | C24: 779 | D24: 1558 | E24: 2337 | F24: 3116 | G24: 2463 | H24: 411
A25: 21 | B25: 57,800 | C25: 813 | D25: 1626 | E25: 2439 | F25: 3252 | G25: 2570 | H25: 428
A26: 22 | B26: 60,800 | C26: =+ROUND(B26*0.0469*0.3,0) -> 855 | D26: 1710 | E26: 2565 | F26: 3420 | G26: 2703 | H26: 451
A27: 23 | B27: 63,800 | C27: 898 | D27: 1796 | E27: 2694 | F27: 3592 | G27: 2837 | H27: 473
A28: 24 | B28: 66,800 | C28: 940 | D28: 1880 | E28: 2820 | F28: 3760 | G28: 2970 | H28: 495
A29: 25 | B29: 69,800 | C29: 982 | D29: 1964 | E29: 2946 | F29: 3928 | G29: 3103 | H29: 517
A30: 26 | B30: 72,800 | C30: 1024 | D30: 2048 | E30: 3072 | F30: 4096 | G30: 3237 | H30: 539
A31: 27 | B31: 76,500 | C31: =+ROUND(B31*0.0469*0.3,0) -> 1076 | D31: 2152 | E31: 3228 | F31: 4304 | G31: 3401 | H31: 567
A32: 28 | B32: 80,200 | C32: 1128 | D32: 2256 | E32: 3384 | F32: 4512 | G32: 3566 | H32: 594
A33: 29 | B33: 83,900 | C33: 1180 | D33: 2360 | E33: 3540 | F33: 4720 | G33: 3730 | H33: 622
A34: 30 | B34: 87,600 | C34: 1233 | D34: 2466 | E34: 3699 | F34: 4932 | G34: 3895 | H34: 649
A35: 31 | B35: 92,100 | C35: =+ROUND(B35*0.0469*0.3,0) -> 1296 | D35: 2592 | E35: 3888 | F35: 5184 | G35: 4095 | H35: 682
A36: 32 | B36: 96,600 | C36: 1359 | D36: 2718 | E36: 4077 | F36: 5436 | G36: 4295 | H36: 716
A37: 33 | B37: 101,100 | C37: 1422 | D37: 2844 | E37: 4266 | F37: 5688 | G37: 4495 | H37: 749
A38: 34 | B38: 105,600 | C38: 1486 | D38: 2972 | E38: 4458 | F38: 5944 | G38: 4695 | H38: 783
A39: 35 | B39: 110,100 | C39: 1549 | D39: 3098 | E39: 4647 | F39: 6196 | G39: 4895 | H39: 816
A40: 36 | B40: 115,500 | C40: =+ROUND(B40*0.0469*0.3,0) -> 1625 | D40: 3250 | E40: 4875 | F40: 6500 | G40: 5135 | H40: 856
A41: 37 | B41: 120,900 | C41: 1701 | D41: 3402 | E41: 5103 | F41: 6804 | G41: 5375 | H41: 896
A42: 38 | B42: 126,300 | C42: 1777 | D42: 3554 | E42: 5331 | F42: 7108 | G42: 5615 | H42: 936
A43: =+A42+1 -> 39 | B43: 131,700 | C43: 1853 | D43: 3706 | E43: 5559 | F43: 7412 | G43: 5856 | H43: 976
A44: 40 | B44: 137,100 | C44: 1929 | D44: 3858 | E44: 5787 | F44: 7716 | G44: 6096 | H44: 1016
A45: 41 | B45: 142,500 | C45: =+ROUND(B45*0.0469*0.3,0) -> 2005 | D45: 4010 | E45: 6015 | F45: 8020 | G45: 6336 | H45: 1056
A46: 42 | B46: 147,900 | C46: 2081 | D46: 4162 | E46: 6243 | F46: 8324 | G46: 6576 | H46: 1096
A47: =+A46+1 -> 43 | B47: 150,000 | C47: 2111 | D47: 4222 | E47: 6333 | F47: 8444 | G47: 6669 | H47: 1112
A48: 44 | B48: 156,400 | C48: =+ROUND(B48*0.0469*0.3,0) -> 2201 | D48: 4402 | E48: 6603 | F48: 8804 | G48: 6954 | H48: 1159
A49: 45 | B49: 162,800 | C49: 2291 | D49: 4582 | E49: 6873 | F49: 9164 | G49: 7238 | H49: 1206
A50: 46 | B50: 169,200 | C50: 2381 | D50: 4762 | E50: 7143 | F50: 9524 | G50: 7523 | H50: 1254
A51: =+A50+1 -> 47 | B51: 175,600 | C51: 2471 | D51: 4942 | E51: 7413 | F51: 9884 | G51: 7807 | H51: 1301
A52: 48 | B52: 182,000 | C52: 2561 | D52: 5122 | E52: 7683 | F52: 10244 | G52: 8092 | H52: 1349
A53: 109年1月1日起實施 | H53: 承保組製表
A55: 註:1.自109年1月1日起配合基本工資調整，第一級調整為23,800元。
A56: 2.自109年1月1日起調整平均眷口數為0.58人，投保單位負擔金額含本人 及平均眷屬人數0.58人,合計1.58人。
A57: 3.自105年1月1日起費率調整為4.69％。

Sheet 退休金分級表10801
A1: 勞工退休金月提繳工資分級表
A2: 中華民國107年11月2日勞動部勞動福3字第1070136066號令修正發布，自108年1月1日生效
A3: 級距 | B3: 級 | C3: 實際工資 | D3: 月提繳工資 | E3: 級距 | F3: 級 | G3: 實際工資 | H3: 月提繳工資
A4: 第1組 | B4: 1 | C4: 1,500元以下 | D4: 1,500元 | E4: 第7組 | F4: 35 | G4: 45,801元至48,200元 | H4: 48,200元
B5: 2 | C5: 1,501元至3,000元 | D5: 3,000元 | F5: 36 | G5: 48,201元至50,600元 | H5: 50,600元
B6: 3 | C6: 3,001元至4,500元 | D6: 4,500元 | F6: 37 | G6: 50,601元至53,000元 | H6: 53,000元
B7: 4 | C7: 4,501元至6,000元 | D7: 6,000元 | F7: 38 | G7: 53,001元至55,400元 | H7: 55,400元
B8: 5 | C8: 6,001元至7,500元 | D8: 7,500元 | F8: 39 | G8: 55,401元至57,800元 | H8: 57,800元
A9: 第2組 | B9: 6 | C9: 7,501元至8,700元 | D9: 8,700元 | E9: 第8組 | F9: 40 | G9: 57,801元至60,800元 | H9: 60,800元
B10: 7 | C10: 8,701元至9,900元 | D10: 9,900元 | F10: 41 | G10: 60,801元至63,800元 | H10: 63,800元
B11: 8 | C11: 9,901元至11,100元 | D11: 11,100元 | F11: 42 | G11: 63,801元至66,800元 | H11: 66,800元
B12: 9 | C12: 11,101元至12,540元 | D12: 12,540元 | F12: 43 | G12: 66,801元至69,800元 | H12: 69,800元
B13: 10 | C13: 12,541元至13,500元 | D13: 13,500元 | F13: 44 | G13: 69,801元至72,800元 | H13: 72,800元
A14: 第3組 | B14: 11 | C14: 13,501元至15,840元 | D14: 15,840元 | E14: 第9組 | F14: 45 | G14: 72,801元至76,500元 | H14: 76,500元
B15: 12 | C15: 15,841元至16,500元 | D15: 16,500元 | F15: 46 | G15: 76,501元至80,200元 | H15: 80,200元
B16: 13 | C16: 16,501元至17,280元 | D16: 17,280元 | F16: 47 | G16: 80,201元至83,900元 | H16: 83,900元
B17: 14 | C17: 17,281元至17,880元 | D17: 17,880元 | F17: 48 | G17: 83,901元至87,600元 | H17: 87,600元
B18: 15 | C18: 17,881元至19,047元 | D18: 19,047元 | E18: 第10組 | F18: 49 | G18: 87,601元至92,100元 | H18: 92,100元
B19: 16 | C19: 19,048元至20,008元 | D19: 20,008元 | F19: 50 | G19: 92,101元至96,600元 | H19: 96,600元
B20: 17 | C20: 20,009元至21,009元 | D20: 21,009元 | F20: 51 | G20: 96,601元至101,100元 | H20: 101,100元
B21: 18 | C21: 21,010元至22,000元 | D21: 22,000元 | F21: 52 | G21: 101,101元至105,600元 | H21: 105,600元
B22: 19 | C22: 22,001元至23,100元 | D22: 23,100元 | F22: 53 | G22: 105,601元至110,100元 | H22: 110,100元
A23: 第4組 | B23: 20 | C23: 23,101元至24,000元 | D23: 24,000元 | E23: 第11組 | F23: 54 | G23: 110,101元至115,500元 | H23: 115,500元
B24: 21 | C24: 24,001元至25,200元 | D24: 25,200元 | F24: 55 | G24: 115,501元至120,900元 | H24: 120,900元
B25: 22 | C25: 25,201元至26,400元 | D25: 26,400元 | F25: 56 | G25: 120,901元至126,300元 | H25: 126,300元
B26: 23 | C26: 26,401元至27,600元 | D26: 27,600元 | F26: 57 | G26: 126,301元至131,700元 | H26: 131,700元
B27: 24 | C27: 27,601元至28,800元 | D27: 28,800元 | F27: 58 | G27: 131,701元至137,100元 | H27: 137,100元
A28: 第5組 | B28: 25 | C28: 28,801元至30,300元 | D28: 30,300元 | F28: 59 | G28: 137,101元至142,500元 | H28: 142,500元
B29: 26 | C29: 30,301元至31,800元 | D29: 31,800元 | F29: 60 | G29: 142,501元至147,900元 | H29: 147,900元
B30: 27 | C30: 31,801元至33,300元 | D30: 33,300元 | F30: 61 | G30: 147,901元以上 | H30: 150,000元
B31: 28 | C31: 33,301元至34,800元 | D31: 34,800元 | E31: 備註：本表月提繳工資金額以新臺幣元為單位，
B32: 29 | C32: 34,801元至36,300元 | D32: 36,300元 | E32: 月提繳工資金額角以下四捨五入。
A33: 第6組 | B33: 30 | C33: 36,301元至38,200元 | D33: 38,200元
B34: 31 | C34: 38,201元至40,100元 | D34: 40,100元
B35: 32 | C35: 40,101元至42,000元 | D35: 42,000元
B36: 33 | C36: 42,001元至43,900元 | D36: 43,900元
B37: 34 | C37: 43,901元至45,800元 | D37: 45,800元

Sheet 勞保_一般員工勞就保1080101起
A1: 勞 工 保 險 普 通 事 故 保 險 費 及 就 業 保 險 保 險 費 合 計 之 被 保 險 人 與 投 保 單 位 分 擔 金 額 表 (自108年1月1日起適用) | AA1: 單位：新台幣元
A2: ※本表不含勞工保險職業災害保險費，職業災害保險費率依投保單位行業別而有不同，請按繳款單所列職業災害保險費率自行計算，並請依規定職業災害保險費全部由投保單位負擔。
B3: 部分工時勞工適用 | X3: 第1級 | Z3: 第2級 | AB3: 第3級 | AE3: 普通事故費率
B4: 11,100 | D4: 12,540 | F4: 13,500 | H4: 15,840 | J4: 16,500 | L4: 17,280 | N4: 17,880 | P4: 19,047 | R4: 20,008 | T4: 21,009 | V4: 22,000 | X4: 23,100 | Z4: 24,000 | AB4: 25,200 | AE4: 10.00%
B5: 勞工 | C5: 單位 | D5: 勞工 | E5: 單位 | F5: 勞工 | G5: 單位 | H5: 勞工 | I5: 單位 | J5: 勞工 | K5: 單位 | L5: 勞工 | M5: 單位 | N5: 勞工 | O5: 單位 | P5: 勞工 | Q5: 單位 | R5: 勞工 | S5: 單位 | T5: 勞工 | U5: 單位 | V5: 勞工 | W5: 單位 | X5: 勞工 | Y5: 單位 | Z5: 勞工 | AA5: 單位 | AB5: 勞工 | AC5: 單位 | AE5: 就業保險費率
A6: 1 | B6: =ROUND($B$4*$A6/30*$AE$4*20/100,0)+ROUND($B$4*$A6/30*$AE$6*20/100,0) -> 8 | C6: =ROUND($B$4*$A6/30*$AE$4*70/100,0)+ROUND($B$4*$A6/30*$AE$6*70/100,0) -> 29 | D6: =ROUND($D$4*$A6/30*$AE$4*20/100,0)+ROUND($D$4*$A6/30*$AE$6*20/100,0) -> 9 | E6: =ROUND($D$4*$A6/30*$AE$4*70/100,0)+ROUND($D$4*$A6/30*$AE$6*70/100,0) -> 32 | F6: =ROUND($F$4*$A6/30*$AE$4*20/100,0)+ROUND($F$4*$A6/30*$AE$6*20/100,0) -> 10 | G6: =ROUND($F$4*$A6/30*$AE$4*70/100,0)+ROUND($F$4*$A6/30*$AE$6*70/100,0) -> 35 | H6: =ROUND($H$4*$A6/30*$AE$4*20/100,0)+ROUND($H$4*$A6/30*$AE$6*20/100,0) -> 12 | I6: =ROUND($H$4*$A6/30*$AE$4*70/100,0)+ROUND($H$4*$A6/30*$AE$6*70/100,0) -> 41 | J6: =ROUND($J$4*$A6/30*$AE$4*20/100,0)+ROUND($J$4*$A6/30*$AE$6*20/100,0) -> 12 | K6: =ROUND($J$4*$A6/30*$AE$4*70/100,0)+ROUND($J$4*$A6/30*$AE$6*70/100,0) -> 43 | L6: =ROUND($L$4*$A6/30*$AE$4*20/100,0)+ROUND($L$4*$A6/30*$AE$6*20/100,0) -> 13 | M6: =ROUND($L$4*$A6/30*$AE$4*70/100,0)+ROUND($L$4*$A6/30*$AE$6*70/100,0) -> 44 | N6: =ROUND($N$4*$A6/30*$AE$4*20/100,0)+ROUND($N$4*$A6/30*$AE$6*20/100,0) -> 13 | O6: =ROUND($N$4*$A6/30*$AE$4*70/100,0)+ROUND($N$4*$A6/30*$AE$6*70/100,0) -> 46 | P6: =ROUND($P$4*$A6/30*$AE$4*20/100,0)+ROUND($P$4*$A6/30*$AE$6*20/100,0) -> 14 | Q6: =ROUND($P$4*$A6/30*$AE$4*70/100,0)+ROUND($P$4*$A6/30*$AE$6*70/100,0) -> 48 | R6: =ROUND($R$4*$A6/30*$AE$4*20/100,0)+ROUND($R$4*$A6/30*$AE$6*20/100,0) -> 14 | S6: =ROUND($R$4*$A6/30*$AE$4*70/100,0)+ROUND($R$4*$A6/30*$AE$6*70/100,0) -> 52 | T6: =ROUND($T$4*$A6/30*$AE$4*20/100,0)+ROUND($T$4*$A6/30*$AE$6*20/100,0) -> 15 | U6: =ROUND($T$4*$A6/30*$AE$4*70/100,0)+ROUND($T$4*$A6/30*$AE$6*70/100,0) -> 54 | V6: =ROUND($V$4*$A6/30*$AE$4*20/100,0)+ROUND($V$4*$A6/30*$AE$6*20/100,0) -> 16 | W6: =ROUND($V$4*$A6/30*$AE$4*70/100,0)+ROUND($V$4*$A6/30*$AE$6*70/100,0) -> 56 | X6: =ROUND($X$4*$A6/30*$AE$4*20/100,0)+ROUND($X$4*$A6/30*$AE$6*20/100,0) -> 17 | Y6: =ROUND($X$4*$A6/30*$AE$4*70/100,0)+ROUND($X$4*$A6/30*$AE$6*70/100,0) -> 59 | Z6: =ROUND($Z$4*$A6/30*$AE$4*20/100,0)+ROUND($Z$4*$A6/30*$AE$6*20/100,0) -> 18 | AA6: =ROUND($Z$4*$A6/30*$AE$4*70/100,0)+ROUND($Z$4*$A6/30*$AE$6*70/100,0) -> 62 | AB6: =ROUND($AB$4*$A6/30*$AE$4*20/100,0)+ROUND($AB$4*$A6/30*$AE$6*20/100,0) -> 19 | AC6: =ROUND($AB$4*$A6/30*$AE$4*70/100,0)+ROUND($AB$4*$A6/30*$AE$6*70/100,0) -> 65 | AE6: 1.00%
A7: 2 | B7: 16 | C7: 57 | D7: 19 | E7: 65 | F7: 20 | G7: 69 | H7: 23 | I7: 81 | J7: 24 | K7: 85 | L7: 25 | M7: 89 | N7: 26 | O7: 91 | P7: 28 | Q7: 98 | R7: 30 | S7: 102 | T7: 31 | U7: 108 | V7: 32 | W7: 113 | X7: 34 | Y7: 119 | Z7: 35 | AA7: 123 | AB7: 37 | AC7: 130
A8: 3 | B8: 24 | C8: 86 | D8: 28 | E8: 97 | F8: 30 | G8: 104 | H8: 35 | I8: 122 | J8: 36 | K8: 128 | L8: 38 | M8: 133 | N8: 40 | O8: 138 | P8: 42 | Q8: 146 | R8: 44 | S8: 154 | T8: 46 | U8: 162 | V8: 48 | W8: 169 | X8: 51 | Y8: 178 | Z8: 53 | AA8: 185 | AB8: 55 | AC8: 194
A9: 4 | B9: 33 | C9: 114 | D9: 36 | E9: 129 | F9: 40 | G9: 139 | H9: 46 | I9: 163 | J9: 48 | K9: 169 | L9: 51 | M9: 177 | N9: 53 | O9: 184 | P9: 56 | Q9: 196 | R9: 58 | S9: 206 | T9: 62 | U9: 216 | V9: 65 | W9: 226 | X9: 68 | Y9: 238 | Z9: 70 | AA9: 246 | AB9: 74 | AC9: 259
A10: 5 | B10: 41 | C10: 143 | D10: 46 | E10: 161 | F10: 50 | G10: 174 | H10: 58 | I10: 203 | J10: 61 | K10: 212 | L10: 64 | M10: 222 | N10: 66 | O10: 230 | P10: 69 | Q10: 244 | R10: 74 | S10: 256 | T10: 77 | U10: 270 | V10: 80 | W10: 283 | X10: 85 | Y10: 297 | Z10: 88 | AA10: 308 | AB10: 92 | AC10: 323
A11: 6 | B11: 48 | C11: 171 | D11: 55 | E11: 194 | F11: 59 | G11: 208 | H11: 69 | I11: 244 | J11: 73 | K11: 254 | L11: 76 | M11: 266 | N11: 79 | O11: 275 | P11: 84 | Q11: 294 | R11: 88 | S11: 308 | T11: 92 | U11: 323 | V11: 97 | W11: 339 | X11: 101 | Y11: 355 | Z11: 106 | AA11: 370 | AB11: 111 | AC11: 388
A12: 7 | B12: 57 | C12: 199 | D12: 65 | E12: 225 | F12: 69 | G12: 243 | H12: 81 | I12: 285 | J12: 85 | K12: 297 | L12: 89 | M12: 310 | N12: 91 | O12: 321 | P12: 98 | Q12: 342 | R12: 102 | S12: 360 | T12: 108 | U12: 377 | V12: 113 | W12: 395 | X12: 119 | Y12: 415 | Z12: 123 | AA12: 431 | AB12: 130 | AC12: 453
A13: 8 | B13: 65 | C13: 228 | D13: 74 | E13: 257 | F13: 79 | G13: 277 | H13: 92 | I13: 326 | J13: 97 | K13: 339 | L13: 101 | M13: 355 | N13: 105 | O13: 367 | P13: 112 | Q13: 392 | R13: 118 | S13: 410 | T13: 123 | U13: 431 | V13: 129 | W13: 452 | X13: 135 | Y13: 474 | Z13: 141 | AA13: 493 | AB13: 147 | AC13: 517
A14: 9 | B14: 74 | C14: 256 | D14: 83 | E14: 289 | F14: 89 | G14: 312 | H14: 105 | I14: 366 | J14: 109 | K14: 382 | L14: 114 | M14: 399 | N14: 118 | O14: 413 | P14: 125 | Q14: 440 | R14: 132 | S14: 462 | T14: 139 | U14: 485 | V14: 145 | W14: 508 | X14: 153 | Y14: 534 | Z14: 158 | AA14: 554 | AB14: 166 | AC14: 582
A15: 10 | B15: 81 | C15: 285 | D15: 92 | E15: 322 | F15: 99 | G15: 347 | H15: 117 | I15: 407 | J15: 121 | K15: 424 | L15: 127 | M15: 443 | N15: 131 | O15: 459 | P15: 140 | Q15: 488 | R15: 146 | S15: 514 | T15: 154 | U15: 539 | V15: 162 | W15: 564 | X15: 169 | Y15: 593 | Z15: 176 | AA15: 616 | AB15: 185 | AC15: 647
A16: 11 | B16: 89 | C16: 313 | D16: 101 | E16: 354 | F16: 109 | G16: 382 | H16: 128 | I16: 448 | J16: 133 | K16: 466 | L16: 140 | M16: 488 | N16: 144 | O16: 505 | P16: 154 | Q16: 538 | R16: 162 | S16: 565 | T16: 169 | U16: 593 | V16: 177 | W16: 621 | X16: 186 | Y16: 652 | Z16: 194 | AA16: 678 | AB16: 203 | AC16: 712
A17: 12 | B17: 98 | C17: 342 | D17: 110 | E17: 386 | F17: 119 | G17: 416 | H17: 140 | I17: 488 | J17: 145 | K17: 508 | L17: 152 | M17: 532 | N17: 157 | O17: 551 | P17: 167 | Q17: 586 | R17: 176 | S17: 616 | T17: 185 | U17: 647 | V17: 194 | W17: 678 | X17: 203 | Y17: 712 | Z17: 211 | AA17: 739 | AB17: 222 | AC17: 777
A18: 13 | B18: 106 | C18: 371 | D18: 120 | E18: 418 | F18: 129 | G18: 451 | H18: 151 | I18: 528 | J18: 157 | K18: 551 | L18: 165 | M18: 576 | N18: 170 | O18: 596 | P18: 182 | Q18: 636 | R18: 190 | S18: 668 | T18: 200 | U18: 701 | V18: 210 | W18: 734 | X18: 220 | Y18: 771 | Z18: 229 | AA18: 801 | AB18: 240 | AC18: 840
A19: 14 | B19: 114 | C19: 399 | D19: 129 | E19: 451 | F19: 139 | G19: 485 | H19: 163 | I19: 569 | J19: 169 | K19: 593 | L19: 177 | M19: 620 | N19: 184 | O19: 642 | P19: 196 | Q19: 684 | R19: 206 | S19: 719 | T19: 216 | U19: 755 | V19: 226 | W19: 791 | X19: 238 | Y19: 830 | Z19: 246 | AA19: 862 | AB19: 259 | AC19: 905
A20: 15 | B20: 122 | C20: 428 | D20: 138 | E20: 483 | F20: 149 | G20: 520 | H20: 174 | I20: 609 | J20: 182 | K20: 636 | L20: 190 | M20: 665 | N20: 197 | O20: 689 | P20: 209 | Q20: 734 | R20: 220 | S20: 770 | T20: 231 | U20: 809 | V20: 242 | W20: 847 | X20: 254 | Y20: 890 | Z20: 264 | AA20: 924 | AB20: 277 | AC20: 970
A21: 16 | B21: 130 | C21: 455 | D21: 147 | E21: 515 | F21: 158 | G21: 554 | H21: 186 | I21: 650 | J21: 194 | K21: 678 | L21: 202 | M21: 710 | N21: 210 | O21: 735 | P21: 223 | Q21: 782 | R21: 234 | S21: 822 | T21: 246 | U21: 862 | V21: 258 | W21: 903 | X21: 271 | Y21: 948 | Z21: 282 | AA21: 986 | AB21: 296 | AC21: 1,035
A22: 17 | B22: 139 | C22: 484 | D22: 156 | E22: 547 | F22: 168 | G22: 590 | H22: 198 | I22: 691 | J22: 206 | K22: 720 | L22: 216 | M22: 754 | N22: 223 | O22: 780 | P22: 238 | Q22: 832 | R22: 250 | S22: 873 | T22: 262 | U22: 916 | V22: 274 | W22: 960 | X22: 288 | Y22: 1,008 | Z22: 299 | AA22: 1,047 | AB22: 315 | AC22: 1,100
A23: 18 | B23: 146 | C23: 513 | D23: 165 | E23: 580 | F23: 178 | G23: 624 | H23: 209 | I23: 732 | J23: 218 | K23: 762 | L23: 228 | M23: 799 | N23: 236 | O23: 826 | P23: 252 | Q23: 880 | R23: 264 | S23: 924 | T23: 277 | U23: 970 | V23: 290 | W23: 1,016 | X23: 305 | Y23: 1,067 | Z23: 317 | AA23: 1,109 | AB23: 332 | AC23: 1,164
A24: 19 | B24: 155 | C24: 541 | D24: 175 | E24: 612 | F24: 188 | G24: 659 | H24: 221 | I24: 772 | J24: 230 | K24: 805 | L24: 241 | M24: 843 | N24: 249 | O24: 872 | P24: 265 | Q24: 928 | R24: 278 | S24: 976 | T24: 293 | U24: 1,024 | V24: 307 | W24: 1,073 | X24: 322 | Y24: 1,126 | Z24: 334 | AA24: 1,170 | AB24: 351 | AC24: 1,229
